Workbook

Sheet Dati Giocatore1 (hidden)
A1: MDB TENNIS | I1: MDB TENNIS
I2: TERRENO SPECIFICO
A3: 26.07.2021 05:40 | C3: 24.06.2022 15:00 | I3: Data | K3: 14.06.2021 14:55
A4: Giocatore | C4: Rybakov A. | I4: Giocatore | K4: Rybakov A.
C5: Rybakov A. | K5: Rybakov A.
A6: Tipologia di Ranking | C6: ATP | I6: Tipologia di Ranking | K6: ATP
A7: Posizione | C7: : 409. | I7: Posizione | K7: : 409.
C8: 2 | K8: 2
C9: - | K9: -
A10: Avversario | C10: 0 | I10: Avversario | K10: 0
C11: Finale | K11: Finale
A12: Tipologia di Ranking | C12: Vanneste J. | I12: Tipologia di Ranking | K12: Vanneste J.
A13: Posizione | C13: Vanneste J. | I13: Posizione | K13: Vanneste J.
C14: ATP | K14: ATP
C15: : 396. | K15: : 396.
C16: Partita | K16: Partita
C17: Comparazione quote | K17: Comparazione quote
C18: Testa a Testa | K18: Testa a Testa
C19: Tabellone | K19: Tabellone
C20: Tutte le superfici | K20: Tutte le superfici
C21: Cemento | K21: Cemento
A22: =SUBSTITUTE(C22,"Ultimi Incontri:","") -> ULTIMI INCONTRI: HALYS Q. | C22: ULTIMI INCONTRI: HALYS Q. | I22: =SUBSTITUTE(K22,"Ultimi Incontri:","") -> ULTIMI INCONTRI: HALYS Q. | K22: ULTIMI INCONTRI: HALYS Q.
A23: Data | C23: 13.07.22 | I23: Data | K23: 02.04.22
A24: Torneo | C24: NEW | I24: Torneo | K24: SAI
A25: =IF($C$4=C25,"GIOCATORE","AVVERSARIO") -> AVVERSARIO | C25: Halys Q. | I25: =IF($C$4=K25,"GIOCATORE","AVVERSARIO") -> AVVERSARIO | K25: Bergs Z.
A26: =IF($C$4=C26,"GIOCATORE","AVVERSARIO") -> AVVERSARIO | C26: Duckworth J. | I26: =IF($C$4=K26,"GIOCATORE","AVVERSARIO") -> AVVERSARIO | K26: Halys Q.
A27: Risultato | C27: 1 | I27: Risultato | K27: 2
A28: Vinto o Perso | C28: 2 | I28: Vinto o Perso | K28: 1
A29: Data | C29: P | I29: Data | K29: P
A30: Torneo | C30: 12.07.22 | I30: Torneo | K30: 01.04.22
A31: =IF($C$4=C31,"GIOCATORE","AVVERSARIO") -> AVVERSARIO | C31: NEW | I31: =IF($C$4=K31,"GIOCATORE","AVVERSARIO") -> AVVERSARIO | K31: SAI
A32: =IF($C$4=C32,"GIOCATORE","AVVERSARIO") -> AVVERSARIO | C32: Halys Q. | I32: =IF($C$4=K32,"GIOCATORE","AVVERSARIO") -> AVVERSARIO | K32: Gray A.
A33: Risultato | C33: Popyrin Al. | I33: Risultato | K33: Halys Q.
A34: Vinto o Perso | C34: 2 | I34: Vinto o Perso | K34: 0
A35: Data | C35: 0 | I35: Data | K35: 2
A36: Torneo | C36: V | I36: Torneo | K36: V
A37: =IF($C$4=C37,"GIOCATORE","AVVERSARIO") -> AVVERSARIO | C37: 29.06.22 | I37: =IF($C$4=K37,"GIOCATORE","AVVERSARIO") -> AVVERSARIO | K37: 31.03.22
A38: =IF($C$4=C38,"GIOCATORE","AVVERSARIO") -> AVVERSARIO | C38: WIM | I38: =IF($C$4=K38,"GIOCATORE","AVVERSARIO") -> AVVERSARIO | K38: SAI
A39: Risultato | C39: Basilashvili N. | I39: Risultato | K39: Squire H.
A40: Vinto o Perso | C40: Halys Q. | I40: Vinto o Perso | K40: Halys Q.
A41: Data | C41: 3 | I41: Data | K41: 0
A42: Torneo | C42: 1 | I42: Torneo | K42: 2
A43: =IF($C$4=C43,"GIOCATORE","AVVERSARIO") -> AVVERSARIO | C43: P | I43: =IF($C$4=K43,"GIOCATORE","AVVERSARIO") -> AVVERSARIO | K43: V
A44: =IF($C$4=C44,"GIOCATORE","AVVERSARIO") -> AVVERSARIO | C44: 27.06.22 | I44: =IF($C$4=K44,"GIOCATORE","AVVERSARIO") -> AVVERSARIO | K44: 30.03.22
A45: Risultato | C45: WIM | I45: Risultato | K45: SAI
A46: Vinto o Perso | C46: Paire B. | I46: Vinto o Perso | K46: Lamasine T.
A47: Data | C47: Halys Q. | I47: Data | K47: Halys Q.
A48: Torneo | C48: 1 | I48: Torneo | K48: 0
A49: =IF($C$4=C49,"GIOCATORE","AVVERSARIO") -> AVVERSARIO | C49: 3 | I49: =IF($C$4=K49,"GIOCATORE","AVVERSARIO") -> AVVERSARIO | K49: 2
A50: =IF($C$4=C50,"GIOCATORE","AVVERSARIO") -> AVVERSARIO | C50: V | I50: =IF($C$4=K50,"GIOCATORE","AVVERSARIO") -> AVVERSARIO | K50: V
A51: Risultato | C51: 19.06.22 | I51: Risultato | K51: 27.03.22
A52: Vinto o Perso | C52: MAL | I52: Vinto o Perso | K52: LIL
A53: Data | C53: Thompson J. | I53: Data | K53: Berankis R.
A54: Torneo | C54: Halys Q. | I54: Torneo | K54: Halys Q.
A55: =IF($C$4=C55,"GIOCATORE","AVVERSARIO") -> AVVERSARIO | C55: 2 | I55: =IF($C$4=K55,"GIOCATORE","AVVERSARIO") -> AVVERSARIO | K55: 1
A56: =IF($C$4=C56,"GIOCATORE","AVVERSARIO") -> AVVERSARIO | C56: 0 | I56: =IF($C$4=K56,"GIOCATORE","AVVERSARIO") -> AVVERSARIO | K56: 2
A57: Risultato | C57: P | I57: Risultato | K57: V
A58: Vinto o Perso | C58: 18.06.22 | I58: Vinto o Perso | K58: 26.03.22
A59: Data | C59: MAL | I59: Data | K59: LIL
A60: Torneo | C60: Kuznetsov An. | I60: Torneo | K60: Lestienne C.
A61: =IF($C$4=C61,"GIOCATORE","AVVERSARIO") -> AVVERSARIO | C61: Halys Q. | I61: =IF($C$4=K61,"GIOCATORE","AVVERSARIO") -> AVVERSARIO | K61: Halys Q.
A62: =IF($C$4=C62,"GIOCATORE","AVVERSARIO") -> AVVERSARIO | C62: 1 | I62: =IF($C$4=K62,"GIOCATORE","AVVERSARIO") -> AVVERSARIO | K62: 1
A63: Risultato | C63: 2 | I63: Risultato | K63: 2
A64: Vinto o Perso | C64: V | I64: Vinto o Perso | K64: V
A65: Data | C65: 14.06.22 | I65: Data | K65: 25.03.22
A66: Torneo | C66: LON | I66: Torneo | K66: LIL
A67: =IF($C$4=C67,"GIOCATORE","AVVERSARIO") -> AVVERSARIO | C67: Halys Q. | I67: =IF($C$4=K67,"GIOCATORE","AVVERSARIO") -> AVVERSARIO | K67: Bergs Z.
A68: =IF($C$4=C68,"GIOCATORE","AVVERSARIO") -> AVVERSARIO | C68: Ruusuvuori E. | I68: =IF($C$4=K68,"GIOCATORE","AVVERSARIO") -> AVVERSARIO | K68: Halys Q.
A69: Risultato | C69: 1 | I69: Risultato | K69: 1
A70: Vinto o Perso | C70: 2 | I70: Vinto o Perso | K70: 2
A71: Data | C71: P | I71: Data | K71: V
A72: Torneo | C72: 12.06.22 | I72: Torneo | K72: 23.03.22
A73: =IF($C$4=C73,"GIOCATORE","AVVERSARIO") -> AVVERSARIO | C73: LON | I73: =IF($C$4=K73,"GIOCATORE","AVVERSARIO") -> AVVERSARIO | K73: LIL
A74: =IF($C$4=C74,"GIOCATORE","AVVERSARIO") -> AVVERSARIO | C74: Kudla D. | I74: =IF($C$4=K74,"GIOCATORE","AVVERSARIO") -> AVVERSARIO | K74: Sachko V.
A75: Risultato | C75: Halys Q. | I75: Risultato | K75: Halys Q.
A76: Vinto o Perso | C76: 0 | I76: Vinto o Perso | K76: 0
A77: Data | C77: 2 | I77: Data | K77: 2
A78: Torneo | C78: V | I78: Torneo | K78: V
A79: =IF($C$4=C79,"GIOCATORE","AVVERSARIO") -> AVVERSARIO | C79: 11.06.22 | I79: =IF($C$4=K79,"GIOCATORE","AVVERSARIO") -> AVVERSARIO | K79: 22.03.22
A80: =IF($C$4=C80,"GIOCATORE","AVVERSARIO") -> AVVERSARIO | C80: LON | I80: =IF($C$4=K80,"GIOCATORE","AVVERSARIO") -> AVVERSARIO | K80: LIL
A81: Risultato | C81: Halys Q. | I81: Risultato | K81: Basic M.
A82: Vinto o Perso | C82: Tabilo A. | I82: Vinto o Perso | K82: Halys Q.
A83: Data | C83: 2 | I83: Data | K83: 0
A84: Torneo | C84: 0 | I84: Torneo | K84: 2
A85: =IF($C$4=C85,"GIOCATORE","AVVERSARIO") -> AVVERSARIO | C85: V | I85: =IF($C$4=K85,"GIOCATORE","AVVERSARIO") -> AVVERSARIO | K85: V
A86: =IF($C$4=C86,"GIOCATORE","AVVERSARIO") -> AVVERSARIO | C86: 05.06.22 | I86: =IF($C$4=K86,"GIOCATORE","AVVERSARIO") -> AVVERSARIO | K86: 06.03.22
A87: Risultato | C87: STU | I87: Risultato | K87: TUR
A88: Vinto o Perso | C88: Halys Q. | I88: Vinto o Perso | K88: Halys Q.
A89: Data | C89: Albot R. | I89: Data | K89: Moraing M.
A90: Torneo | C90: 0 | I90: Torneo | K90: 0
A91: =IF($C$4=C91,"GIOCATORE","AVVERSARIO") -> AVVERSARIO | C91: 0 | I91: =IF($C$4=K91,"GIOCATORE","AVVERSARIO") -> AVVERSARIO | K91: 2
A92: =IF($C$4=C92,"GIOCATORE","AVVERSARIO") -> AVVERSARIO | C92: P | I92: =IF($C$4=K92,"GIOCATORE","AVVERSARIO") -> AVVERSARIO | K92: P
A93: Risultato | I93: Risultato
A94: Vinto o Perso | I94: Vinto o Perso
A95: Data | I95: Data
A96: Torneo | I96: Torneo
A97: =IF($C$4=C97,"GIOCATORE","AVVERSARIO") -> AVVERSARIO | I97: =IF($C$4=K97,"GIOCATORE","AVVERSARIO") -> AVVERSARIO
A98: =IF($C$4=C98,"GIOCATORE","AVVERSARIO") -> AVVERSARIO | I98: =IF($C$4=K98,"GIOCATORE","AVVERSARIO") -> AVVERSARIO
A99: Risultato | I99: Risultato
A100: Vinto o Perso | I100: Vinto o Perso
A101: Data | I101: Data
A102: Torneo | I102: Torneo
A103: =IF($C$4=C103,"GIOCATORE","AVVERSARIO") -> AVVERSARIO | I103: =IF($C$4=K103,"GIOCATORE","AVVERSARIO") -> AVVERSARIO
A104: =IF($C$4=C104,"GIOCATORE","AVVERSARIO") -> AVVERSARIO | I104: =IF($C$4=K104,"GIOCATORE","AVVERSARIO") -> AVVERSARIO
A105: Risultato | I105: Risultato
A106: Vinto o Perso | I106: Vinto o Perso
A107: Data | I107: Data
A108: Torneo | I108: Torneo
A109: =IF($C$4=C109,"GIOCATORE","AVVERSARIO") -> AVVERSARIO | I109: =IF($C$4=K109,"GIOCATORE","AVVERSARIO") -> AVVERSARIO
A110: =IF($C$4=C110,"GIOCATORE","AVVERSARIO") -> AVVERSARIO | I110: =IF($C$4=K110,"GIOCATORE","AVVERSARIO") -> AVVERSARIO
A111: Risultato | I111: Risultato
A112: Vinto o Perso | I112: Vinto o Perso
A113: Data | I113: Data
A114: Torneo | I114: Torneo
A115: =IF($C$4=C115,"GIOCATORE","AVVERSARIO") -> AVVERSARIO | I115: =IF($C$4=K115,"GIOCATORE","AVVERSARIO") -> AVVERSARIO
A116: =IF($C$4=C116,"GIOCATORE","AVVERSARIO") -> AVVERSARIO | I116: =IF($C$4=K116,"GIOCATORE","AVVERSARIO") -> AVVERSARIO
A117: Risultato | I117: Risultato
A118: Vinto o Perso | I118: Vinto o Perso
A119: Data | I119: Data
A120: Torneo | I120: Torneo
A121: =IF($C$4=C121,"GIOCATORE","AVVERSARIO") -> AVVERSARIO | I121: =IF($C$4=K121,"GIOCATORE","AVVERSARIO") -> AVVERSARIO
A122: =IF($C$4=C122,"GIOCATORE","AVVERSARIO") -> AVVERSARIO | I122: =IF($C$4=K122,"GIOCATORE","AVVERSARIO") -> AVVERSARIO
A123: Risultato | I123: Risultato
A124: Vinto o Perso | I124: Vinto o Perso
A125: Data | I125: Data
A126: Torneo | I126: Torneo
A127: =IF($C$4=C127,"GIOCATORE","AVVERSARIO") -> AVVERSARIO | I127: =IF($C$4=K127,"GIOCATORE","AVVERSARIO") -> AVVERSARIO
A128: =IF($C$4=C128,"GIOCATORE","AVVERSARIO") -> AVVERSARIO | I128: =IF($C$4=K128,"GIOCATORE","AVVERSARIO") -> AVVERSARIO
A129: Risultato | I129: Risultato
A130: Vinto o Perso | I130: Vinto o Perso
A131: Data | I131: Data
A132: Torneo | I132: Torneo
A133: =IF($C$4=C133,"GIOCATORE","AVVERSARIO") -> AVVERSARIO | I133: =IF($C$4=K133,"GIOCATORE","AVVERSARIO") -> AVVERSARIO
A134: =IF($C$4=C134,"GIOCATORE","AVVERSARIO") -> AVVERSARIO | I134: =IF($C$4=K134,"GIOCATORE","AVVERSARIO") -> AVVERSARIO
A135: Risultato | I135: Risultato
A136: Vinto o Perso | I136: Vinto o Perso
A137: Data | I137: Data
A138: Torneo | I138: Torneo
A139: =IF($C$4=C139,"GIOCATORE","AVVERSARIO") -> AVVERSARIO | I139: =IF($C$4=K139,"GIOCATORE","AVVERSARIO") -> AVVERSARIO
A140: =IF($C$4=C140,"GIOCATORE","AVVERSARIO") -> AVVERSARIO | I140: =IF($C$4=K140,"GIOCATORE","AVVERSARIO") -> AVVERSARIO
A141: Risultato | I141: Risultato
A142: Vinto o Perso | I142: Vinto o Perso
A143: Data | I143: Data
A144: Torneo | I144: Torneo
A145: =IF($C$4=C145,"GIOCATORE","AVVERSARIO") -> AVVERSARIO | I145: =IF($C$4=K145,"GIOCATORE","AVVERSARIO") -> AVVERSARIO
A146: =IF($C$4=C146,"GIOCATORE","AVVERSARIO") -> AVVERSARIO | I146: =IF($C$4=K146,"GIOCATORE","AVVERSARIO") -> AVVERSARIO
A147: Risultato | I147: Risultato
A148: Vinto o Perso | I148: Vinto o Perso
A149: Data | I149: Data
A150: Torneo | I150: Torneo
A151: =IF($C$4=C151,"GIOCATORE","AVVERSARIO") -> AVVERSARIO | I151: =IF($C$4=K151,"GIOCATORE","AVVERSARIO") -> AVVERSARIO
A152: =IF($C$4=C152,"GIOCATORE","AVVERSARIO") -> AVVERSARIO | I152: =IF($C$4=K152,"GIOCATORE","AVVERSARIO") -> AVVERSARIO
A153: Risultato | I153: Risultato
A154: Vinto o Perso | I154: Vinto o Perso
A155: Data | I155: Data
A156: Torneo | I156: Torneo
A157: =IF($C$4=C157,"GIOCATORE","AVVERSARIO") -> AVVERSARIO | I157: =IF($C$4=K157,"GIOCATORE","AVVERSARIO") -> AVVERSARIO
A158: =IF($C$4=C158,"GIOCATORE","AVVERSARIO") -> AVVERSARIO | I158: =IF($C$4=K158,"GIOCATORE","AVVERSARIO") -> AVVERSARIO
A159: Risultato | I159: Risultato
A160: Vinto o Perso | I160: Vinto o Perso
A161: Data | I161: Data
A162: Torneo | I162: Torneo
A163: =IF($C$4=C163,"GIOCATORE","AVVERSARIO") -> AVVERSARIO | I163: =IF($C$4=K163,"GIOCATORE","AVVERSARIO") -> AVVERSARIO
A164: =IF($C$4=C164,"GIOCATORE","AVVERSARIO") -> AVVERSARIO | I164: =IF($C$4=K164,"GIOCATORE","AVVERSARIO") -> AVVERSARIO
A165: Risultato | I165: Risultato
A166: Vinto o Perso | I166: Vinto o Perso
A167: Data | I167: Data
A168: Torneo | I168: Torneo
A169: =IF($C$4=C169,"GIOCATORE","AVVERSARIO") -> AVVERSARIO | I169: =IF($C$4=K169,"GIOCATORE","AVVERSARIO") -> AVVERSARIO
A170: =IF($C$4=C170,"GIOCATORE","AVVERSARIO") -> AVVERSARIO | I170: =IF($C$4=K170,"GIOCATORE","AVVERSARIO") -> AVVERSARIO
A171: Risultato | I171: Risultato
A172: Vinto o Perso | I172: Vinto o Perso
A173: Data | I173: Data
A174: Torneo | I174: Torneo
A175: =IF($C$4=C175,"GIOCATORE","AVVERSARIO") -> AVVERSARIO | I175: =IF($C$4=K175,"GIOCATORE","AVVERSARIO") -> AVVERSARIO
A176: =IF($C$4=C176,"GIOCATORE","AVVERSARIO") -> AVVERSARIO | I176: =IF($C$4=K176,"GIOCATORE","AVVERSARIO") -> AVVERSARIO
A177: Risultato | I177: Risultato
A178: Vinto o Perso | I178: Vinto o Perso
A179: Data | I179: Data
A180: Torneo | I180: Torneo
A181: =IF($C$4=C181,"GIOCATORE","AVVERSARIO") -> AVVERSARIO | I181: =IF($C$4=K181,"GIOCATORE","AVVERSARIO") -> AVVERSARIO
A182: =IF($C$4=C182,"GIOCATORE","AVVERSARIO") -> AVVERSARIO | I182: =IF($C$4=K182,"GIOCATORE","AVVERSARIO") -> AVVERSARIO
A183: Risultato | I183: Risultato
A184: Vinto o Perso | I184: Vinto o Perso
A185: Data | I185: Data
A186: Torneo | I186: Torneo
A187: =IF($C$4=C187,"GIOCATORE","AVVERSARIO") -> AVVERSARIO | I187: =IF($C$4=K187,"GIOCATORE","AVVERSARIO") -> AVVERSARIO
A188: =IF($C$4=C188,"GIOCATORE","AVVERSARIO") -> AVVERSARIO | I188: =IF($C$4=K188,"GIOCATORE","AVVERSARIO") -> AVVERSARIO
A189: Risultato | I189: Risultato
A190: Vinto o Perso | I190: Vinto o Perso
A191: Data | I191: Data
A192: Torneo | I192: Torneo
A193: =IF($C$4=C193,"GIOCATORE","AVVERSARIO") -> AVVERSARIO | I193: =IF($C$4=K193,"GIOCATORE","AVVERSARIO") -> AVVERSARIO
A194: =IF($C$4=C194,"GIOCATORE","AVVERSARIO") -> AVVERSARIO | I194: =IF($C$4=K194,"GIOCATORE","AVVERSARIO") -> AVVERSARIO
A195: Risultato | I195: Risultato
A196: Vinto o Perso | I196: Vinto o Perso
A197: Data | I197: Data
A198: Torneo | I198: Torneo
A199: =IF($C$4=C199,"GIOCATORE","AVVERSARIO") -> AVVERSARIO | I199: =IF($C$4=K199,"GIOCATORE","AVVERSARIO") -> AVVERSARIO
A200: =IF($C$4=C200,"GIOCATORE","AVVERSARIO") -> AVVERSARIO | I200: =IF($C$4=K200,"GIOCATORE","AVVERSARIO") -> AVVERSARIO
... 422 more rows

Sheet Dati Giocatore2 (hidden)
A1: MDB TENNIS | I1: MDB TENNIS
A2: INCONTRI TOTALI | I2: TERRENO SPECIFICO
A3: Data | I3: Data
A4: Giocatore | I4: Giocatore
A6: Tipologia di Ranking | I6: Tipologia di Ranking
A7: Posizione | I7: Posizione
A10: Avversario | I10: Avversario
A12: Tipologia di Ranking | I12: Tipologia di Ranking
A13: Posizione | I13: Posizione
A22: =SUBSTITUTE(C22,"Ultimi Incontri:","") -> ULTIMI INCONTRI: IVASHKA I. | C22: ULTIMI INCONTRI: IVASHKA I. | I22: =SUBSTITUTE(K22,"Ultimi Incontri:","") -> ULTIMI INCONTRI: IVASHKA I. | K22: ULTIMI INCONTRI: IVASHKA I.
A23: Data | C23: 22.06.22 | I23: Data | K23: 22.02.22
A24: Torneo | C24: MAL | I24: Torneo | K24: DUB
A25: =IF($C$4=C25,"GIOCATORE","AVVERSARIO") -> AVVERSARIO | C25: Ivashka I. | I25: =IF($C$4=K25,"GIOCATORE","AVVERSARIO") -> AVVERSARIO | K25: Ivashka I.
A26: =IF($C$4=C26,"GIOCATORE","AVVERSARIO") -> AVVERSARIO | C26: Tsitsipas S. | I26: =IF($C$4=K26,"GIOCATORE","AVVERSARIO") -> AVVERSARIO | K26: Kwon S.
A27: Risultato | C27: 0 | I27: Risultato | K27: 0
A28: Vinto o Perso | C28: 2 | I28: Vinto o Perso | K28: 2
A29: Data | C29: P | I29: Data | K29: P
A30: Torneo | C30: 20.06.22 | I30: Torneo | K30: 18.02.22
A31: =IF($C$4=C31,"GIOCATORE","AVVERSARIO") -> AVVERSARIO | C31: MAL | I31: =IF($C$4=K31,"GIOCATORE","AVVERSARIO") -> AVVERSARIO | K31: MAR
A32: =IF($C$4=C32,"GIOCATORE","AVVERSARIO") -> AVVERSARIO | C32: Ivashka I. | I32: =IF($C$4=K32,"GIOCATORE","AVVERSARIO") -> AVVERSARIO | K32: Auger-Aliassime F.
A33: Risultato | C33: Ruusuvuori E. | I33: Risultato | K33: Ivashka I.
A34: Vinto o Perso | C34: 2 | I34: Vinto o Perso | K34: 2
A35: Data | C35: 0 | I35: Data | K35: 0
A36: Torneo | C36: V | I36: Torneo | K36: P
A37: =IF($C$4=C37,"GIOCATORE","AVVERSARIO") -> AVVERSARIO | C37: 16.06.22 | I37: =IF($C$4=K37,"GIOCATORE","AVVERSARIO") -> AVVERSARIO | K37: 16.02.22
A38: =IF($C$4=C38,"GIOCATORE","AVVERSARIO") -> AVVERSARIO | C38: HAL | I38: =IF($C$4=K38,"GIOCATORE","AVVERSARIO") -> AVVERSARIO | K38: MAR
A39: Risultato | C39: Medvedev D. | I39: Risultato | K39: Travaglia S.
A40: Vinto o Perso | C40: Ivashka I. | I40: Vinto o Perso | K40: Ivashka I.
A41: Data | C41: 2 | I41: Data | K41: 0
A42: Torneo | C42: 0 | I42: Torneo | K42: 2
A43: =IF($C$4=C43,"GIOCATORE","AVVERSARIO") -> AVVERSARIO | C43: P | I43: =IF($C$4=K43,"GIOCATORE","AVVERSARIO") -> AVVERSARIO | K43: V
A44: =IF($C$4=C44,"GIOCATORE","AVVERSARIO") -> AVVERSARIO | C44: 13.06.22 | I44: =IF($C$4=K44,"GIOCATORE","AVVERSARIO") -> AVVERSARIO | K44: 14.02.22
A45: Risultato | C45: HAL | I45: Risultato | K45: MAR
A46: Vinto o Perso | C46: Ivashka I. | I46: Vinto o Perso | K46: Gombos N.
A47: Data | C47: Struff J-L. | I47: Data | K47: Ivashka I.
A48: Torneo | C48: 2 | I48: Torneo | K48: 0
A49: =IF($C$4=C49,"GIOCATORE","AVVERSARIO") -> AVVERSARIO | C49: 1 | I49: =IF($C$4=K49,"GIOCATORE","AVVERSARIO") -> AVVERSARIO | K49: 2
A50: =IF($C$4=C50,"GIOCATORE","AVVERSARIO") -> AVVERSARIO | C50: V | I50: =IF($C$4=K50,"GIOCATORE","AVVERSARIO") -> AVVERSARIO | K50: V
A51: Risultato | C51: 10.06.22 | I51: Risultato | K51: 10.02.22
A52: Vinto o Perso | C52: HER | I52: Vinto o Perso | K52: ROT
A53: Data | C53: Medvedev D. | I53: Data | K53: Tsitsipas S.
A54: Torneo | C54: Ivashka I. | I54: Torneo | K54: Ivashka I.
A55: =IF($C$4=C55,"GIOCATORE","AVVERSARIO") -> AVVERSARIO | C55: 2 | I55: =IF($C$4=K55,"GIOCATORE","AVVERSARIO") -> AVVERSARIO | K55: 2
A56: =IF($C$4=C56,"GIOCATORE","AVVERSARIO") -> AVVERSARIO | C56: 0 | I56: =IF($C$4=K56,"GIOCATORE","AVVERSARIO") -> AVVERSARIO | K56: 0
A57: Risultato | C57: P | I57: Risultato | K57: P
A58: Vinto o Perso | C58: 09.06.22 | I58: Vinto o Perso | K58: 09.02.22
A59: Data | C59: HER | I59: Data | K59: ROT
A60: Torneo | C60: Ivashka I. | I60: Torneo | K60: Harris L.
A61: =IF($C$4=C61,"GIOCATORE","AVVERSARIO") -> AVVERSARIO | C61: Ruusuvuori E. | I61: =IF($C$4=K61,"GIOCATORE","AVVERSARIO") -> AVVERSARIO | K61: Ivashka I.
A62: =IF($C$4=C62,"GIOCATORE","AVVERSARIO") -> AVVERSARIO | C62: 2 | I62: =IF($C$4=K62,"GIOCATORE","AVVERSARIO") -> AVVERSARIO | K62: 0
A63: Risultato | C63: 0 | I63: Risultato | K63: 2
A64: Vinto o Perso | C64: V | I64: Vinto o Perso | K64: V
A65: Data | C65: 07.06.22 | I65: Data | K65: 02.02.22
A66: Torneo | C66: HER | I66: Torneo | K66: MON
A67: =IF($C$4=C67,"GIOCATORE","AVVERSARIO") -> AVVERSARIO | C67: Ivashka I. | I67: =IF($C$4=K67,"GIOCATORE","AVVERSARIO") -> AVVERSARIO | K67: Ivashka I.
A68: =IF($C$4=C68,"GIOCATORE","AVVERSARIO") -> AVVERSARIO | C68: McDonald M. | I68: =IF($C$4=K68,"GIOCATORE","AVVERSARIO") -> AVVERSARIO | K68: McDonald M.
A69: Risultato | C69: 2 | I69: Risultato | K69: 0
A70: Vinto o Perso | C70: 1 | I70: Vinto o Perso | K70: 2
A71: Data | C71: V | I71: Data | K71: P
A72: Torneo | C72: 26.05.22 | I72: Torneo | K72: 03.11.21
A73: =IF($C$4=C73,"GIOCATORE","AVVERSARIO") -> AVVERSARIO | C73: FO | I73: =IF($C$4=K73,"GIOCATORE","AVVERSARIO") -> AVVERSARIO | K73: PAR
A74: =IF($C$4=C74,"GIOCATORE","AVVERSARIO") -> AVVERSARIO | C74: Ivashka I. | I74: =IF($C$4=K74,"GIOCATORE","AVVERSARIO") -> AVVERSARIO | K74: Ivashka I.
A75: Risultato | C75: Garin C. | I75: Risultato | K75: Medvedev D.
A76: Vinto o Perso | C76: 1 | I76: Vinto o Perso | K76: 0
A77: Data | C77: 3 | I77: Data | K77: 2
A78: Torneo | C78: P | I78: Torneo | K78: P
A79: =IF($C$4=C79,"GIOCATORE","AVVERSARIO") -> AVVERSARIO | C79: 24.05.22 | I79: =IF($C$4=K79,"GIOCATORE","AVVERSARIO") -> AVVERSARIO | K79: 01.11.21
A80: =IF($C$4=C80,"GIOCATORE","AVVERSARIO") -> AVVERSARIO | C80: FO | I80: =IF($C$4=K80,"GIOCATORE","AVVERSARIO") -> AVVERSARIO | K80: PAR
A81: Risultato | C81: Paire B. | I81: Risultato | K81: Ivashka I.
A82: Vinto o Perso | C82: Ivashka I. | I82: Vinto o Perso | K82: Ramos A.
A83: Data | C83: 1 | I83: Data | K83: 2
A84: Torneo | C84: 3 | I84: Torneo | K84: 0
A85: =IF($C$4=C85,"GIOCATORE","AVVERSARIO") -> AVVERSARIO | C85: V | I85: =IF($C$4=K85,"GIOCATORE","AVVERSARIO") -> AVVERSARIO | K85: V
A86: =IF($C$4=C86,"GIOCATORE","AVVERSARIO") -> AVVERSARIO | C86: 19.05.22 | I86: =IF($C$4=K86,"GIOCATORE","AVVERSARIO") -> AVVERSARIO | K86: 27.10.21
A87: Risultato | C87: GEN | I87: Risultato | K87: STP
A88: Vinto o Perso | C88: Ivashka I. | I88: Vinto o Perso | K88: Rublev A.
A89: Data | C89: Sousa J. | I89: Data | K89: Ivashka I.
A90: Torneo | C90: 0 | I90: Torneo | K90: 2
A91: =IF($C$4=C91,"GIOCATORE","AVVERSARIO") -> AVVERSARIO | C91: 2 | I91: =IF($C$4=K91,"GIOCATORE","AVVERSARIO") -> AVVERSARIO | K91: 0
A92: =IF($C$4=C92,"GIOCATORE","AVVERSARIO") -> AVVERSARIO | C92: P | I92: =IF($C$4=K92,"GIOCATORE","AVVERSARIO") -> AVVERSARIO | K92: P
A93: Risultato | I93: Risultato
A94: Vinto o Perso | I94: Vinto o Perso
A95: Data | I95: Data
A96: Torneo | I96: Torneo
A97: =IF($C$4=C97,"GIOCATORE","AVVERSARIO") -> GIOCATORE | I97: =IF($C$4=K97,"GIOCATORE","AVVERSARIO") -> GIOCATORE
A98: =IF($C$4=C98,"GIOCATORE","AVVERSARIO") -> GIOCATORE | I98: =IF($C$4=K98,"GIOCATORE","AVVERSARIO") -> GIOCATORE
A99: Risultato | I99: Risultato
A100: Vinto o Perso | I100: Vinto o Perso
A101: Data | I101: Data
A102: Torneo | I102: Torneo
A103: =IF($C$4=C103,"GIOCATORE","AVVERSARIO") -> GIOCATORE | I103: =IF($C$4=K103,"GIOCATORE","AVVERSARIO") -> GIOCATORE
A104: =IF($C$4=C104,"GIOCATORE","AVVERSARIO") -> GIOCATORE | I104: =IF($C$4=K104,"GIOCATORE","AVVERSARIO") -> GIOCATORE
A105: Risultato | I105: Risultato
A106: Vinto o Perso | I106: Vinto o Perso
A107: Data | I107: Data
A108: Torneo | I108: Torneo
A109: =IF($C$4=C109,"GIOCATORE","AVVERSARIO") -> GIOCATORE | I109: =IF($C$4=K109,"GIOCATORE","AVVERSARIO") -> GIOCATORE
A110: =IF($C$4=C110,"GIOCATORE","AVVERSARIO") -> GIOCATORE | I110: =IF($C$4=K110,"GIOCATORE","AVVERSARIO") -> GIOCATORE
A111: Risultato | I111: Risultato
A112: Vinto o Perso | I112: Vinto o Perso
A113: Data | I113: Data
A114: Torneo | I114: Torneo
A115: =IF($C$4=C115,"GIOCATORE","AVVERSARIO") -> GIOCATORE | I115: =IF($C$4=K115,"GIOCATORE","AVVERSARIO") -> GIOCATORE
A116: =IF($C$4=C116,"GIOCATORE","AVVERSARIO") -> GIOCATORE | I116: =IF($C$4=K116,"GIOCATORE","AVVERSARIO") -> GIOCATORE
A117: Risultato | I117: Risultato
A118: Vinto o Perso | I118: Vinto o Perso
A119: Data | I119: Data
A120: Torneo | I120: Torneo
A121: =IF($C$4=C121,"GIOCATORE","AVVERSARIO") -> GIOCATORE | I121: =IF($C$4=K121,"GIOCATORE","AVVERSARIO") -> GIOCATORE
A122: =IF($C$4=C122,"GIOCATORE","AVVERSARIO") -> GIOCATORE | I122: =IF($C$4=K122,"GIOCATORE","AVVERSARIO") -> GIOCATORE
A123: Risultato | I123: Risultato
A124: Vinto o Perso | I124: Vinto o Perso
A125: Data | I125: Data
A126: Torneo | I126: Torneo
A127: =IF($C$4=C127,"GIOCATORE","AVVERSARIO") -> GIOCATORE | I127: =IF($C$4=K127,"GIOCATORE","AVVERSARIO") -> GIOCATORE
A128: =IF($C$4=C128,"GIOCATORE","AVVERSARIO") -> GIOCATORE | I128: =IF($C$4=K128,"GIOCATORE","AVVERSARIO") -> GIOCATORE
A129: Risultato | I129: Risultato
A130: Vinto o Perso | I130: Vinto o Perso
A131: Data | I131: Data
A132: Torneo | I132: Torneo
A133: =IF($C$4=C133,"GIOCATORE","AVVERSARIO") -> GIOCATORE | I133: =IF($C$4=K133,"GIOCATORE","AVVERSARIO") -> GIOCATORE
A134: =IF($C$4=C134,"GIOCATORE","AVVERSARIO") -> GIOCATORE | I134: =IF($C$4=K134,"GIOCATORE","AVVERSARIO") -> GIOCATORE
A135: Risultato | I135: Risultato
A136: Vinto o Perso | I136: Vinto o Perso
A137: Data | I137: Data
A138: Torneo | I138: Torneo
A139: =IF($C$4=C139,"GIOCATORE","AVVERSARIO") -> GIOCATORE | I139: =IF($C$4=K139,"GIOCATORE","AVVERSARIO") -> GIOCATORE
A140: =IF($C$4=C140,"GIOCATORE","AVVERSARIO") -> GIOCATORE | I140: =IF($C$4=K140,"GIOCATORE","AVVERSARIO") -> GIOCATORE
A141: Risultato | I141: Risultato
A142: Vinto o Perso | I142: Vinto o Perso
A143: Data | I143: Data
A144: Torneo | I144: Torneo
A145: =IF($C$4=C145,"GIOCATORE","AVVERSARIO") -> GIOCATORE | I145: =IF($C$4=K145,"GIOCATORE","AVVERSARIO") -> GIOCATORE
A146: =IF($C$4=C146,"GIOCATORE","AVVERSARIO") -> GIOCATORE | I146: =IF($C$4=K146,"GIOCATORE","AVVERSARIO") -> GIOCATORE
A147: Risultato | I147: Risultato
A148: Vinto o Perso | I148: Vinto o Perso
A149: Data | I149: Data
A150: Torneo | I150: Torneo
A151: =IF($C$4=C151,"GIOCATORE","AVVERSARIO") -> GIOCATORE | I151: =IF($C$4=K151,"GIOCATORE","AVVERSARIO") -> GIOCATORE
A152: =IF($C$4=C152,"GIOCATORE","AVVERSARIO") -> GIOCATORE | I152: =IF($C$4=K152,"GIOCATORE","AVVERSARIO") -> GIOCATORE
A153: Risultato | I153: Risultato
A154: Vinto o Perso | I154: Vinto o Perso
A155: Data | I155: Data
A156: Torneo | I156: Torneo
A157: =IF($C$4=C157,"GIOCATORE","AVVERSARIO") -> GIOCATORE | I157: =IF($C$4=K157,"GIOCATORE","AVVERSARIO") -> GIOCATORE
A158: =IF($C$4=C158,"GIOCATORE","AVVERSARIO") -> GIOCATORE | I158: =IF($C$4=K158,"GIOCATORE","AVVERSARIO") -> GIOCATORE
A159: Risultato | I159: Risultato
A160: Vinto o Perso | I160: Vinto o Perso
A161: Data | I161: Data
A162: Torneo | I162: Torneo
A163: =IF($C$4=C163,"GIOCATORE","AVVERSARIO") -> GIOCATORE | I163: =IF($C$4=K163,"GIOCATORE","AVVERSARIO") -> GIOCATORE
A164: =IF($C$4=C164,"GIOCATORE","AVVERSARIO") -> GIOCATORE | I164: =IF($C$4=K164,"GIOCATORE","AVVERSARIO") -> GIOCATORE
A165: Risultato | I165: Risultato
A166: Vinto o Perso | I166: Vinto o Perso
A167: Data | I167: Data
A168: Torneo | I168: Torneo
A169: =IF($C$4=C169,"GIOCATORE","AVVERSARIO") -> GIOCATORE | I169: =IF($C$4=K169,"GIOCATORE","AVVERSARIO") -> GIOCATORE
A170: =IF($C$4=C170,"GIOCATORE","AVVERSARIO") -> GIOCATORE | I170: =IF($C$4=K170,"GIOCATORE","AVVERSARIO") -> GIOCATORE
A171: Risultato | I171: Risultato
A172: Vinto o Perso | I172: Vinto o Perso
A173: Data | I173: Data
A174: Torneo | I174: Torneo
A175: =IF($C$4=C175,"GIOCATORE","AVVERSARIO") -> GIOCATORE | I175: =IF($C$4=K175,"GIOCATORE","AVVERSARIO") -> GIOCATORE
A176: =IF($C$4=C176,"GIOCATORE","AVVERSARIO") -> GIOCATORE | I176: =IF($C$4=K176,"GIOCATORE","AVVERSARIO") -> GIOCATORE
A177: Risultato | I177: Risultato
A178: Vinto o Perso | I178: Vinto o Perso
A179: Data | I179: Data
A180: Torneo | I180: Torneo
A181: =IF($C$4=C181,"GIOCATORE","AVVERSARIO") -> GIOCATORE | I181: =IF($C$4=K181,"GIOCATORE","AVVERSARIO") -> GIOCATORE
A182: =IF($C$4=C182,"GIOCATORE","AVVERSARIO") -> GIOCATORE | I182: =IF($C$4=K182,"GIOCATORE","AVVERSARIO") -> GIOCATORE
A183: Risultato | I183: Risultato
A184: Vinto o Perso | I184: Vinto o Perso
A185: Data | I185: Data
A186: Torneo | I186: Torneo
A187: =IF($C$4=C187,"GIOCATORE","AVVERSARIO") -> GIOCATORE | I187: =IF($C$4=K187,"GIOCATORE","AVVERSARIO") -> GIOCATORE
A188: =IF($C$4=C188,"GIOCATORE","AVVERSARIO") -> GIOCATORE | I188: =IF($C$4=K188,"GIOCATORE","AVVERSARIO") -> GIOCATORE
A189: Risultato | I189: Risultato
A190: Vinto o Perso | I190: Vinto o Perso
A191: Data | I191: Data
A192: Torneo | I192: Torneo
A193: =IF($C$4=C193,"GIOCATORE","AVVERSARIO") -> GIOCATORE | I193: =IF($C$4=K193,"GIOCATORE","AVVERSARIO") -> GIOCATORE
A194: =IF($C$4=C194,"GIOCATORE","AVVERSARIO") -> GIOCATORE | I194: =IF($C$4=K194,"GIOCATORE","AVVERSARIO") -> GIOCATORE
A195: Risultato | I195: Risultato
A196: Vinto o Perso | I196: Vinto o Perso
A197: Data | I197: Data
A198: Torneo | I198: Torneo
A199: =IF($C$4=C199,"GIOCATORE","AVVERSARIO") -> GIOCATORE | I199: =IF($C$4=K199,"GIOCATORE","AVVERSARIO") -> GIOCATORE
A200: =IF($C$4=C200,"GIOCATORE","AVVERSARIO") -> GIOCATORE | I200: =IF($C$4=K200,"GIOCATORE","AVVERSARIO") -> GIOCATORE
A201: Risultato | I201: Risultato
A202: Vinto o Perso | I202: Vinto o Perso
A203: Data | I203: Data
A204: Torneo | I204: Torneo
A205: =IF($C$4=C205,"GIOCATORE","AVVERSARIO") -> GIOCATORE | I205: =IF($C$4=K205,"GIOCATORE","AVVERSARIO") -> GIOCATORE
A206: =IF($C$4=C206,"GIOCATORE","AVVERSARIO") -> GIOCATORE | I206: =IF($C$4=K206,"GIOCATORE","AVVERSARIO") -> GIOCATORE
A207: Risultato | I207: Risultato
A208: Vinto o Perso | I208: Vinto o Perso
A209: Data | I209: Data
A210: Torneo | I210: Torneo
A211: =IF($C$4=C211,"GIOCATORE","AVVERSARIO") -> GIOCATORE | I211: =IF($C$4=K211,"GIOCATORE","AVVERSARIO") -> GIOCATORE
A212: =IF($C$4=C212,"GIOCATORE","AVVERSARIO") -> GIOCATORE | I212: =IF($C$4=K212,"GIOCATORE","AVVERSARIO") -> GIOCATORE
... 410 more rows

Sheet Dati testa a testa (hidden)
A1: MDB TENNIS | I1: MDB TENNIS
A2: TERRENO SPECIFICO | I2: TERRENO SPECIFICO
A3: Data | I3: Data
A4: Giocatore | I4: Giocatore
A6: Tipologia di Ranking | I6: Tipologia di Ranking
A7: Posizione | I7: Posizione
A10: Avversario | I10: Avversario
A12: Tipologia di Ranking | I12: Tipologia di Ranking
A13: Posizione | I13: Posizione
C22: INCONTRI TESTA A TESTA | I22: =SUBSTITUTE(K22,"Ultimi Incontri:","") -> INCONTRI TESTA A TESTA | K22: INCONTRI TESTA A TESTA
C23: 16.08.18 | I23: Data | K23: 16.08.18
C24: VAN | I24: Torneo | K24: VAN
C25: Halys Q. | I25: =IF($C$4=K25,"GIOCATORE","AVVERSARIO") -> AVVERSARIO | K25: Halys Q.
C26: Ivashka I. | I26: =IF($C$4=K26,"GIOCATORE","AVVERSARIO") -> AVVERSARIO | K26: Ivashka I.
C27: 0 | I27: Risultato | K27: 0
C28: 2 | I28: Data | K28: 2
C29: 10.09.15 | I29: Torneo | K29: 10.09.15
C30: REM | I30: =IF($C$4=K30,"GIOCATORE","AVVERSARIO") -> AVVERSARIO | K30: REM
C31: Halys Q. | I31: =IF($C$4=K31,"GIOCATORE","AVVERSARIO") -> AVVERSARIO | K31: Halys Q.
C32: Ivashka I. | I32: Risultato | K32: Ivashka I.
C33: 2 | I33: Data | K33: 2
C34: 0 | I34: Torneo | K34: 0
I35: =IF($C$4=K35,"GIOCATORE","AVVERSARIO") -> GIOCATORE
I36: =IF($C$4=K36,"GIOCATORE","AVVERSARIO") -> GIOCATORE
I37: Risultato
I38: Data
I39: Torneo
I40: =IF($C$4=K40,"GIOCATORE","AVVERSARIO") -> GIOCATORE
I41: =IF($C$4=K41,"GIOCATORE","AVVERSARIO") -> GIOCATORE
I42: Risultato
I43: Data
I44: Torneo
I45: =IF($C$4=K45,"GIOCATORE","AVVERSARIO") -> GIOCATORE
I46: =IF($C$4=K46,"GIOCATORE","AVVERSARIO") -> GIOCATORE
I47: Risultato
I48: Data
I49: Torneo
I50: =IF($C$4=K50,"GIOCATORE","AVVERSARIO") -> GIOCATORE
I51: =IF($C$4=K51,"GIOCATORE","AVVERSARIO") -> GIOCATORE
I52: Risultato
I53: Data
I54: Torneo
I55: =IF($C$4=K55,"GIOCATORE","AVVERSARIO") -> GIOCATORE
I56: =IF($C$4=K56,"GIOCATORE","AVVERSARIO") -> GIOCATORE
I57: Risultato
I58: Data
I59: Torneo
I60: =IF($C$4=K60,"GIOCATORE","AVVERSARIO") -> GIOCATORE
I61: =IF($C$4=K61,"GIOCATORE","AVVERSARIO") -> GIOCATORE
I62: Risultato
I63: Data
I64: Torneo
I65: =IF($C$4=K65,"GIOCATORE","AVVERSARIO") -> GIOCATORE
I66: =IF($C$4=K66,"GIOCATORE","AVVERSARIO") -> GIOCATORE
I67: Risultato
I68: Data
I69: Torneo
I70: =IF($C$4=K70,"GIOCATORE","AVVERSARIO") -> GIOCATORE
I71: =IF($C$4=K71,"GIOCATORE","AVVERSARIO") -> GIOCATORE
I72: Risultato

Sheet Elaborazione H2H (hidden)
A1: =+'Dati testa a testa'!C23 -> 16.08.18 | B1: =+'Dati testa a testa'!C24 -> VAN | C1: =+'Dati testa a testa'!C25 -> Halys Q. | D1: =+'Dati testa a testa'!C26 -> Ivashka I. | E1: =+'Dati testa a testa'!C27 -> 0 | F1: =LEFT(E1,1) -> 0 | G1: =RIGHT(E1,2) -> 0 | H1: =IF(C1=0,"",IF(C1=$C$1,F1,G1)) -> 0 | I1: =IF(C1=0,"",IF(H1=F1,G1,F1)) -> 0 | J1: =IF(C1=0,"",$C$1) -> Halys Q. | K1: =IF(D1=0,"",$C$2) -> REM | L1: =IF(A1=0,"",A1) -> 16.08.18 | M1: =IF(B1=0,"",B1) -> VAN | N1: =IF(OR(H1=0,H1=1,H1=2,H1=3),H1,"") -> 
A2: =+'Dati testa a testa'!C28 -> 2 | B2: =+'Dati testa a testa'!C29 -> 10.09.15 | C2: =+'Dati testa a testa'!C30 -> REM | D2: =+'Dati testa a testa'!C31 -> Halys Q. | E2: =+'Dati testa a testa'!C32 -> Ivashka I. | F2: =LEFT(E2,1) -> I | G2: =RIGHT(E2,2) -> . | H2: . | I2: I | J2: Halys Q. | K2: REM | L2: =IF(A2=0,"",A2) -> 2 | M2: 10.09.15
A3: =+'Dati testa a testa'!C33 -> 2 | B3: =+'Dati testa a testa'!C34 -> 0 | C3: =+'Dati testa a testa'!C35 -> 0 | D3: =+'Dati testa a testa'!C36 -> 00:00:00 | E3: =+'Dati testa a testa'!C37 -> 0 | F3: 0 | G3: 0 | L3: 2 | M3: 0
A4: =+'Dati testa a testa'!C38 -> 0 | B4: =+'Dati testa a testa'!C39 -> 0 | C4: =+'Dati testa a testa'!C40 -> 0 | D4: =+'Dati testa a testa'!C41 -> 00:00:00 | E4: =+'Dati testa a testa'!C42 -> 0 | F4: 0 | G4: 0
A5: =+'Dati testa a testa'!C43 -> 0 | B5: =+'Dati testa a testa'!C44 -> 0 | C5: =+'Dati testa a testa'!C45 -> 0 | D5: =+'Dati testa a testa'!C46 -> 00:00:00 | E5: =+'Dati testa a testa'!C47 -> 0 | F5: 0 | G5: 0
A6: =+'Dati testa a testa'!C48 -> 0 | B6: =+'Dati testa a testa'!C49 -> 0 | C6: =+'Dati testa a testa'!C50 -> 0 | D6: =+'Dati testa a testa'!C51 -> 00:00:00 | E6: =+'Dati testa a testa'!C52 -> 0 | F6: 0 | G6: 0
A7: =+'Dati testa a testa'!C53 -> 0 | B7: =+'Dati testa a testa'!C54 -> 0 | C7: =+'Dati testa a testa'!C55 -> 0 | D7: =+'Dati testa a testa'!C56 -> 00:00:00 | E7: =+'Dati testa a testa'!C57 -> 0 | F7: 0 | G7: 0
A8: =+'Dati testa a testa'!C58 -> 0 | B8: =+'Dati testa a testa'!C59 -> 0 | C8: =+'Dati testa a testa'!C60 -> 0 | D8: =+'Dati testa a testa'!C61 -> 00:00:00 | E8: =+'Dati testa a testa'!C62 -> 0 | F8: 0 | G8: 0
A9: =+'Dati testa a testa'!C63 -> 0 | B9: =+'Dati testa a testa'!C64 -> 0 | C9: =+'Dati testa a testa'!C65 -> 0 | D9: =+'Dati testa a testa'!C66 -> 00:00:00 | E9: =+'Dati testa a testa'!C67 -> 0 | F9: 0 | G9: 0
A10: =+'Dati testa a testa'!C68 -> 0 | B10: =+'Dati testa a testa'!C69 -> 0 | C10: =+'Dati testa a testa'!C70 -> 0 | D10: =+'Dati testa a testa'!C71 -> 00:00:00 | E10: =+'Dati testa a testa'!C72 -> 0 | F10: 0 | G10: 0 | H10: =IF(C10=0,"",IF(C10=$C$1,F10,G10)) ->  | I10: =IF(C10=0,"",IF(H10=F10,G10,F10)) ->  | J10: =IF(C10=0,"",$C$1) ->  | K10: =IF(D10=0,"",$C$2) -> 
A12: 0-0 | B12: 1-0 | C12: 0-1 | D12: 2-0 | E12: 2-1 | F12: 0 - 2 | G12: 1-2 | H12: 3-0 | I12: 3-1 | J12: 3-2 | K12: 0-3 | L12: 1-3 | M12: 2-3
A13: 0 | B13: 0.04166666667 | C13: 0.0006944444444 | D13: 0.08333333333 | E13: 0.08402777778 | F13: 0.001388888889 | G13: 0.04305555556 | H13: 0.125 | I13: 0.1256944444 | J13: 0.1263888889 | K13: 0.002083333333 | L13: 0.04375 | M13: 0.08541666667
A14: 0 | B14: 1 | C14: 0 | D14: 2 | E14: 2 | F14: 0 | G14: 1 | H14: 3 | I14: 3 | J14: 3 | K14: 0 | L14: 1 | M14: 2
A15: 0 | B15: 0 | C15: 1 | D15: 0 | E15: 1 | F15: 2 | G15: 2 | H15: 0 | I15: 1 | J15: 2 | K15: 3 | L15: 3 | M15: 3

Sheet Elaborazione WTA (hidden)
A1: =+WTA!A10 -> Player | B1: =+WTA!B10 -> Matches | C1: =+WTA!C10 -> Unret% | D1: =+WTA!D10 -> <=3 W% | E1: =+WTA!E10 -> RiP W% | F1: =+WTA!F10 -> 1st: Unret% | G1: =+WTA!G10 -> <=3 W% | H1: =+WTA!H10 -> RiP W% | I1: =+WTA!I10 -> D Wide% | J1: =+WTA!J10 -> A Wide% | K1: =+WTA!K10 -> BP Wide% | L1: =+WTA!L10 -> 2nd: Unret% | M1: =+WTA!M10 -> <=3 W% | N1: =+WTA!N10 -> RiP W% | O1: =+WTA!O10 -> D Wide% | P1: =+WTA!P10 -> A Wide% | Q1: =+WTA!Q10 -> BP Wide% | R1: =+WTA!R10 -> 2ndAgg
A2: =+WTA!A11 -> Serena Williams | B2: =+WTA!B11 -> 9 | C2: =+WTA!C11 -> 0.328 | D2: =+WTA!D11 -> 0.41 | E2: =+WTA!E11 -> 0.445 | F2: =+WTA!F11 -> 0.452 | G2: =+WTA!G11 -> 0.553 | H2: =+WTA!H11 -> 0.51 | I2: =+WTA!I11 -> 0.525 | J2: =+WTA!J11 -> 0.415 | K2: =+WTA!K11 -> 0.406 | L2: =+WTA!L11 -> 0.172 | M2: =+WTA!M11 -> 0.234 | N2: =+WTA!N11 -> 0.381 | O2: =+WTA!O11 -> 0.018 | P2: =+WTA!P11 -> 0.444 | Q2: =+WTA!Q11 -> 0.583 | R2: =+WTA!R11 -> -4
A3: =+WTA!A12 -> Ludmilla Samsonova | B3: =+WTA!B12 -> 5 | C3: =+WTA!C12 -> 0.345 | D3: =+WTA!D12 -> 0.448 | E3: =+WTA!E12 -> 0.477 | F3: =+WTA!F12 -> 0.449 | G3: =+WTA!G12 -> 0.563 | H3: =+WTA!H12 -> 0.526 | I3: =+WTA!I12 -> 0.449 | J3: =+WTA!J12 -> 0.425 | K3: =+WTA!K12 -> 0.364 | L3: =+WTA!L12 -> 0.267 | M3: =+WTA!M12 -> 0.374 | N3: =+WTA!N12 -> 0.427 | O3: =+WTA!O12 -> 0.071 | P3: =+WTA!P12 -> 0.293 | Q3: =+WTA!Q12 -> 0.25 | R3: =+WTA!R12 -> 70
A4: =+WTA!A13 -> Naomi Osaka | B4: =+WTA!B13 -> 16 | C4: =+WTA!C13 -> 0.313 | D4: =+WTA!D13 -> 0.424 | E4: =+WTA!E13 -> 0.507 | F4: =+WTA!F13 -> 0.418 | G4: =+WTA!G13 -> 0.551 | H4: =+WTA!H13 -> 0.579 | I4: =+WTA!I13 -> 0.445 | J4: =+WTA!J13 -> 0.422 | K4: =+WTA!K13 -> 0.45 | L4: =+WTA!L13 -> 0.217 | M4: =+WTA!M13 -> 0.314 | N4: =+WTA!N13 -> 0.443 | O4: =+WTA!O13 -> 0.205 | P4: =+WTA!P13 -> 0.42 | Q4: =+WTA!Q13 -> 0.5 | R4: =+WTA!R13 -> 4
A5: =+WTA!A14 -> Jennifer Brady | B5: =+WTA!B14 -> 14 | C5: =+WTA!C14 -> 0.289 | D5: =+WTA!D14 -> 0.387 | E5: =+WTA!E14 -> 0.507 | F5: =+WTA!F14 -> 0.38 | G5: =+WTA!G14 -> 0.515 | H5: =+WTA!H14 -> 0.566 | I5: =+WTA!I14 -> 0.498 | J5: =+WTA!J14 -> 0.489 | K5: =+WTA!K14 -> 0.417 | L5: =+WTA!L14 -> 0.194 | M5: =+WTA!M14 -> 0.251 | N5: =+WTA!N14 -> 0.451 | O5: =+WTA!O14 -> 0.152 | P5: =+WTA!P14 -> 0.485 | Q5: =+WTA!Q14 -> 0.316 | R5: =+WTA!R14 -> -26
A6: =+WTA!A15 -> Ashleigh Barty | B6: =+WTA!B15 -> 19 | C6: =+WTA!C15 -> 0.297 | D6: =+WTA!D15 -> 0.403 | E6: =+WTA!E15 -> 0.524 | F6: =+WTA!F15 -> 0.374 | G6: =+WTA!G15 -> 0.516 | H6: =+WTA!H15 -> 0.576 | I6: =+WTA!I15 -> 0.433 | J6: =+WTA!J15 -> 0.339 | K6: =+WTA!K15 -> 0.308 | L6: =+WTA!L15 -> 0.204 | M6: =+WTA!M15 -> 0.26 | N6: =+WTA!N15 -> 0.454 | O6: =+WTA!O15 -> 0.185 | P6: =+WTA!P15 -> 0.565 | Q6: =+WTA!Q15 -> 0.63 | R6: =+WTA!R15 -> 36
A7: =+WTA!A16 -> Ons Jabeur | B7: =+WTA!B16 -> 11 | C7: =+WTA!C16 -> 0.244 | D7: =+WTA!D16 -> 0.329 | E7: =+WTA!E16 -> 0.444 | F7: =+WTA!F16 -> 0.354 | G7: =+WTA!G16 -> 0.464 | H7: =+WTA!H16 -> 0.53 | I7: =+WTA!I16 -> 0.574 | J7: =+WTA!J16 -> 0.307 | K7: =+WTA!K16 -> 0.293 | L7: =+WTA!L16 -> 0.138 | M7: =+WTA!M16 -> 0.202 | N7: =+WTA!N16 -> 0.365 | O7: =+WTA!O16 -> 0.194 | P7: =+WTA!P16 -> 0.54 | Q7: =+WTA!Q16 -> 0.513 | R7: =+WTA!R16 -> 5
A8: =+WTA!A17 -> Aryna Sabalenka | B8: =+WTA!B17 -> 65 | C8: =+WTA!C17 -> 0.275 | D8: =+WTA!D17 -> 0.424 | E8: =+WTA!E17 -> 0.506 | F8: =+WTA!F17 -> 0.351 | G8: =+WTA!G17 -> 0.524 | H8: =+WTA!H17 -> 0.527 | I8: =+WTA!I17 -> 0.582 | J8: =+WTA!J17 -> 0.512 | K8: =+WTA!K17 -> 0.604 | L8: =+WTA!L17 -> 0.198 | M8: =+WTA!M17 -> 0.336 | N8: =+WTA!N17 -> 0.477 | O8: =+WTA!O17 -> 0.55 | P8: =+WTA!P17 -> 0.465 | Q8: =+WTA!Q17 -> 0.405 | R8: =+WTA!R17 -> 71
A9: =+WTA!A18 -> Karolina Pliskova | B9: =+WTA!B18 -> 13 | C9: =+WTA!C18 -> 0.276 | D9: =+WTA!D18 -> 0.368 | E9: =+WTA!E18 -> 0.501 | F9: =+WTA!F18 -> 0.351 | G9: =+WTA!G18 -> 0.452 | H9: =+WTA!H18 -> 0.518 | I9: =+WTA!I18 -> 0.494 | J9: =+WTA!J18 -> 0.483 | K9: =+WTA!K18 -> 0.467 | L9: =+WTA!L18 -> 0.192 | M9: =+WTA!M18 -> 0.291 | N9: =+WTA!N18 -> 0.469 | O9: =+WTA!O18 -> 0.215 | P9: =+WTA!P18 -> 0.557 | Q9: =+WTA!Q18 -> 0.5 | R9: =+WTA!R18 -> 50
A10: =+WTA!A19 -> Belinda Bencic | B10: =+WTA!B19 -> 5 | C10: =+WTA!C19 -> 0.228 | D10: =+WTA!D19 -> 0.33 | E10: =+WTA!E19 -> 0.483 | F10: =+WTA!F19 -> 0.333 | G10: =+WTA!G19 -> 0.495 | H10: =+WTA!H19 -> 0.5 | I10: =+WTA!I19 -> 0.554 | J10: =+WTA!J19 -> 0.35 | K10: =+WTA!K19 -> 0.333 | L10: =+WTA!L19 -> 0.105 | M10: =+WTA!M19 -> 0.132 | N10: =+WTA!N19 -> 0.461 | O10: =+WTA!O19 -> 0.352 | P10: =+WTA!P19 -> 0.333 | Q10: =+WTA!Q19 -> 0.25 | R10: =+WTA!R19 -> -21
A11: =+WTA!A20 -> Shelby Rogers | B11: =+WTA!B20 -> 5 | C11: =+WTA!C20 -> 0.281 | D11: =+WTA!D20 -> 0.366 | E11: =+WTA!E20 -> 0.449 | F11: =+WTA!F20 -> 0.331 | G11: =+WTA!G20 -> 0.438 | H11: =+WTA!H20 -> 0.494 | I11: =+WTA!I20 -> 0.457 | J11: =+WTA!J20 -> 0.492 | K11: =+WTA!K20 -> 0.429 | L11: =+WTA!L20 -> 0.223 | M11: =+WTA!M20 -> 0.277 | N11: =+WTA!N20 -> 0.376 | O11: =+WTA!O20 -> 0.245 | P11: =+WTA!P20 -> 0.506 | Q11: =+WTA!Q20 -> 0.538 | R11: =+WTA!R20 -> 28
A12: =+WTA!A21 -> Ana Konjuh | B12: =+WTA!B21 -> 5 | C12: =+WTA!C21 -> 0.251 | D12: =+WTA!D21 -> 0.351 | E12: =+WTA!E21 -> 0.492 | F12: =+WTA!F21 -> 0.325 | G12: =+WTA!G21 -> 0.444 | H12: =+WTA!H21 -> 0.512 | I12: =+WTA!I21 -> 0.495 | J12: =+WTA!J21 -> 0.239 | K12: =+WTA!K21 -> 0.476 | L12: =+WTA!L21 -> 0.159 | M12: =+WTA!M21 -> 0.243 | N12: =+WTA!N21 -> 0.456 | O12: =+WTA!O21 -> 0.373 | P12: =+WTA!P21 -> 0.292 | Q12: =+WTA!Q21 -> 0 | R12: =+WTA!R21 -> 22
A13: =+WTA!A22 -> Maria Sakkari | B13: =+WTA!B22 -> 17 | C13: =+WTA!C22 -> 0.249 | D13: =+WTA!D22 -> 0.339 | E13: =+WTA!E22 -> 0.463 | F13: =+WTA!F22 -> 0.312 | G13: =+WTA!G22 -> 0.429 | H13: =+WTA!H22 -> 0.499 | I13: =+WTA!I22 -> 0.444 | J13: =+WTA!J22 -> 0.437 | K13: =+WTA!K22 -> 0.311 | L13: =+WTA!L22 -> 0.169 | M13: =+WTA!M22 -> 0.221 | N13: =+WTA!N22 -> 0.408 | O13: =+WTA!O22 -> 0.2 | P13: =+WTA!P22 -> 0.417 | Q13: =+WTA!Q22 -> 0.414 | R13: =+WTA!R22 -> 46
A14: =+WTA!A23 -> Veronika Kudermetova | B14: =+WTA!B23 -> 7 | C14: =+WTA!C23 -> 0.234 | D14: =+WTA!D23 -> 0.339 | E14: =+WTA!E23 -> 0.443 | F14: =+WTA!F23 -> 0.31 | G14: =+WTA!G23 -> 0.471 | H14: =+WTA!H23 -> 0.551 | I14: =+WTA!I23 -> 0.444 | J14: =+WTA!J23 -> 0.426 | K14: =+WTA!K23 -> 0.385 | L14: =+WTA!L23 -> 0.163 | M14: =+WTA!M23 -> 0.207 | N14: =+WTA!N23 -> 0.335 | O14: =+WTA!O23 -> 0.649 | P14: =+WTA!P23 -> 0.341 | Q14: =+WTA!Q23 -> 0.278 | R14: =+WTA!R23 -> -13
A15: =+WTA!A24 -> Elena Rybakina | B15: =+WTA!B24 -> 9 | C15: =+WTA!C24 -> 0.238 | D15: =+WTA!D24 -> 0.337 | E15: =+WTA!E24 -> 0.471 | F15: =+WTA!F24 -> 0.309 | G15: =+WTA!G24 -> 0.438 | H15: =+WTA!H24 -> 0.511 | I15: =+WTA!I24 -> 0.392 | J15: =+WTA!J24 -> 0.477 | K15: =+WTA!K24 -> 0.5 | L15: =+WTA!L24 -> 0.169 | M15: =+WTA!M24 -> 0.238 | N15: =+WTA!N24 -> 0.42 | O15: =+WTA!O24 -> 0.135 | P15: =+WTA!P24 -> 0.642 | Q15: =+WTA!Q24 -> 0.731 | R15: =+WTA!R24 -> 48
A16: =+WTA!A25 -> Cori Gauff | B16: =+WTA!B25 -> 14 | C16: =+WTA!C25 -> 0.246 | D16: =+WTA!D25 -> 0.342 | E16: =+WTA!E25 -> 0.512 | F16: =+WTA!F25 -> 0.301 | G16: =+WTA!G25 -> 0.44 | H16: =+WTA!H25 -> 0.528 | I16: =+WTA!I25 -> 0.548 | J16: =+WTA!J25 -> 0.413 | K16: =+WTA!K25 -> 0.368 | L16: =+WTA!L25 -> 0.212 | M16: =+WTA!M25 -> 0.257 | N16: =+WTA!N25 -> 0.486 | O16: =+WTA!O25 -> 0.401 | P16: =+WTA!P25 -> 0.287 | Q16: =+WTA!Q25 -> 0.13 | R16: =+WTA!R25 -> 71
A17: =+WTA!A26 -> Ann Li | B17: =+WTA!B26 -> 6 | C17: =+WTA!C26 -> 0.245 | D17: =+WTA!D26 -> 0.336 | E17: =+WTA!E26 -> 0.469 | F17: =+WTA!F26 -> 0.288 | G17: =+WTA!G26 -> 0.404 | H17: =+WTA!H26 -> 0.508 | I17: =+WTA!I26 -> 0.554 | J17: =+WTA!J26 -> 0.369 | K17: =+WTA!K26 -> 0.158 | L17: =+WTA!L26 -> 0.192 | M17: =+WTA!M26 -> 0.247 | N17: =+WTA!N26 -> 0.407 | O17: =+WTA!O26 -> 0.2 | P17: =+WTA!P26 -> 0.558 | Q17: =+WTA!Q26 -> 0.8 | R17: =+WTA!R26 -> -12
A18: =+WTA!A27 -> Karolina Muchova | B18: =+WTA!B27 -> 13 | C18: =+WTA!C27 -> 0.232 | D18: =+WTA!D27 -> 0.317 | E18: =+WTA!E27 -> 0.495 | F18: =+WTA!F27 -> 0.28 | G18: =+WTA!G27 -> 0.389 | H18: =+WTA!H27 -> 0.501 | I18: =+WTA!I27 -> 0.366 | J18: =+WTA!J27 -> 0.423 | K18: =+WTA!K27 -> 0.48 | L18: =+WTA!L27 -> 0.157 | M18: =+WTA!M27 -> 0.204 | N18: =+WTA!N27 -> 0.484 | O18: =+WTA!O27 -> 0.272 | P18: =+WTA!P27 -> 0.419 | Q18: =+WTA!Q27 -> 0.364 | R18: =+WTA!R27 -> -5
A19: =+WTA!A28 -> Marta Kostyuk | B19: =+WTA!B28 -> 8 | C19: =+WTA!C28 -> 0.233 | D19: =+WTA!D28 -> 0.314 | E19: =+WTA!E28 -> 0.512 | F19: =+WTA!F28 -> 0.279 | G19: =+WTA!G28 -> 0.388 | H19: =+WTA!H28 -> 0.538 | I19: =+WTA!I28 -> 0.524 | J19: =+WTA!J28 -> 0.328 | K19: =+WTA!K28 -> 0.25 | L19: =+WTA!L28 -> 0.194 | M19: =+WTA!M28 -> 0.237 | N19: =+WTA!N28 -> 0.467 | O19: =+WTA!O28 -> 0.303 | P19: =+WTA!P28 -> 0.278 | Q19: =+WTA!Q28 -> 0.263 | R19: =+WTA!R28 -> 64
A20: =+WTA!A29 -> Tsvetana Pironkova | B20: =+WTA!B29 -> 7 | C20: =+WTA!C29 -> 0.213 | D20: =+WTA!D29 -> 0.287 | E20: =+WTA!E29 -> 0.492 | F20: =+WTA!F29 -> 0.275 | G20: =+WTA!G29 -> 0.37 | H20: =+WTA!H29 -> 0.6 | I20: =+WTA!I29 -> 0.469 | J20: =+WTA!J29 -> 0.399 | K20: =+WTA!K29 -> 0.367 | L20: =+WTA!L29 -> 0.139 | M20: =+WTA!M29 -> 0.191 | N20: =+WTA!N29 -> 0.37 | O20: =+WTA!O29 -> 0.15 | P20: =+WTA!P29 -> 0.493 | Q20: =+WTA!Q29 -> 0.5 | R20: =+WTA!R29 -> -44
A21: =+WTA!A30 -> Jessica Pegula | B21: =+WTA!B30 -> 11 | C21: =+WTA!C30 -> 0.217 | D21: =+WTA!D30 -> 0.291 | E21: =+WTA!E30 -> 0.457 | F21: =+WTA!F30 -> 0.275 | G21: =+WTA!G30 -> 0.363 | H21: =+WTA!H30 -> 0.47 | I21: =+WTA!I30 -> 0.267 | J21: =+WTA!J30 -> 0.329 | K21: =+WTA!K30 -> 0.35 | L21: =+WTA!L30 -> 0.148 | M21: =+WTA!M30 -> 0.207 | N21: =+WTA!N30 -> 0.439 | O21: =+WTA!O30 -> 0.123 | P21: =+WTA!P30 -> 0.371 | Q21: =+WTA!Q30 -> 0.6 | R21: =+WTA!R30 -> 31
A22: =+WTA!A31 -> Garbine Muguruza | B22: =+WTA!B31 -> 13 | C22: =+WTA!C31 -> 0.232 | D22: =+WTA!D31 -> 0.324 | E22: =+WTA!E31 -> 0.481 | F22: =+WTA!F31 -> 0.273 | G22: =+WTA!G31 -> 0.389 | H22: =+WTA!H31 -> 0.507 | I22: =+WTA!I31 -> 0.426 | J22: =+WTA!J31 -> 0.449 | K22: =+WTA!K31 -> 0.448 | L22: =+WTA!L31 -> 0.158 | M22: =+WTA!M31 -> 0.203 | N22: =+WTA!N31 -> 0.424 | O22: =+WTA!O31 -> 0.083 | P22: =+WTA!P31 -> 0.582 | Q22: =+WTA!Q31 -> 0.448 | R22: =+WTA!R31 -> 26
A23: =+WTA!A32 -> Petra Kvitova | B23: =+WTA!B32 -> 11 | C23: =+WTA!C32 -> 0.232 | D23: =+WTA!D32 -> 0.374 | E23: =+WTA!E32 -> 0.491 | F23: =+WTA!F32 -> 0.269 | G23: =+WTA!G32 -> 0.429 | H23: =+WTA!H32 -> 0.503 | I23: =+WTA!I32 -> 0.382 | J23: =+WTA!J32 -> 0.551 | K23: =+WTA!K32 -> 0.525 | L23: =+WTA!L32 -> 0.18 | M23: =+WTA!M32 -> 0.303 | N23: =+WTA!N32 -> 0.467 | O23: =+WTA!O32 -> 0.089 | P23: =+WTA!P32 -> 0.681 | Q23: =+WTA!Q32 -> 0.842 | R23: =+WTA!R32 -> 42
A24: =+WTA!A33 -> Elina Svitolina | B24: =+WTA!B33 -> 15 | C24: =+WTA!C33 -> 0.214 | D24: =+WTA!D33 -> 0.295 | E24: =+WTA!E33 -> 0.466 | F24: =+WTA!F33 -> 0.267 | G24: =+WTA!G33 -> 0.381 | H24: =+WTA!H33 -> 0.514 | I24: =+WTA!I33 -> 0.472 | J24: =+WTA!J33 -> 0.463 | K24: =+WTA!K33 -> 0.456 | L24: =+WTA!L33 -> 0.142 | M24: =+WTA!M33 -> 0.173 | N24: =+WTA!N33 -> 0.398 | O24: =+WTA!O33 -> 0.126 | P24: =+WTA!P33 -> 0.277 | Q24: =+WTA!Q33 -> 0.209 | R24: =+WTA!R33 -> -28
A25: =+WTA!A34 -> Clara Tauson | B25: =+WTA!B34 -> 5 | C25: =+WTA!C34 -> 0.204 | D25: =+WTA!D34 -> 0.326 | E25: =+WTA!E34 -> 0.502 | F25: =+WTA!F34 -> 0.266 | G25: =+WTA!G34 -> 0.403 | H25: =+WTA!H34 -> 0.52 | I25: =+WTA!I34 -> 0.372 | J25: =+WTA!J34 -> 0.45 | K25: =+WTA!K34 -> 0.5 | L25: =+WTA!L34 -> 0.113 | M25: =+WTA!M34 -> 0.218 | N25: =+WTA!N34 -> 0.475 | O25: =+WTA!O34 -> 0.097 | P25: =+WTA!P34 -> 0.549 | Q25: =+WTA!Q34 -> 0.4 | R25: =+WTA!R34 -> -12
A26: =+WTA!A35 -> Anett Kontaveit | B26: =+WTA!B35 -> 9 | C26: =+WTA!C35 -> 0.208 | D26: =+WTA!D35 -> 0.308 | E26: =+WTA!E35 -> 0.469 | F26: =+WTA!F35 -> 0.26 | G26: =+WTA!G35 -> 0.396 | H26: =+WTA!H35 -> 0.513 | I26: =+WTA!I35 -> 0.437 | J26: =+WTA!J35 -> 0.569 | K26: =+WTA!K35 -> 0.581 | L26: =+WTA!L35 -> 0.145 | M26: =+WTA!M35 -> 0.195 | N26: =+WTA!N35 -> 0.404 | O26: =+WTA!O35 -> 0.206 | P26: =+WTA!P35 -> 0.424 | Q26: =+WTA!Q35 -> 0.35 | R26: =+WTA!R35 -> 19
A27: =+WTA!A36 -> Barbora Krejcikova | B27: =+WTA!B36 -> 18 | C27: =+WTA!C36 -> 0.212 | D27: =+WTA!D36 -> 0.298 | E27: =+WTA!E36 -> 0.499 | F27: =+WTA!F36 -> 0.259 | G27: =+WTA!G36 -> 0.364 | H27: =+WTA!H36 -> 0.532 | I27: =+WTA!I36 -> 0.494 | J27: =+WTA!J36 -> 0.593 | K27: =+WTA!K36 -> 0.566 | L27: =+WTA!L36 -> 0.148 | M27: =+WTA!M36 -> 0.208 | N27: =+WTA!N36 -> 0.439 | O27: =+WTA!O36 -> 0.143 | P27: =+WTA!P36 -> 0.574 | Q27: =+WTA!Q36 -> 0.548 | R27: =+WTA!R36 -> 28
A28: =+WTA!A37 -> Ajla Tomljanovic | B28: =+WTA!B37 -> 5 | C28: =+WTA!C37 -> 0.193 | D28: =+WTA!D37 -> 0.251 | E28: =+WTA!E37 -> 0.401 | F28: =+WTA!F37 -> 0.256 | G28: =+WTA!G37 -> 0.331 | H28: =+WTA!H37 -> 0.392 | I28: =+WTA!I37 -> 0.508 | J28: =+WTA!J37 -> 0.438 | K28: =+WTA!K37 -> 0.308 | L28: =+WTA!L37 -> 0.092 | M28: =+WTA!M37 -> 0.126 | N28: =+WTA!N37 -> 0.417 | O28: =+WTA!O37 -> 0.509 | P28: =+WTA!P37 -> 0.121 | Q28: =+WTA!Q37 -> 0 | R28: =+WTA!R37 -> -28
A29: =+WTA!A38 -> Kiki Bertens | B29: =+WTA!B38 -> 14 | C29: =+WTA!C38 -> 0.206 | D29: =+WTA!D38 -> 0.279 | E29: =+WTA!E38 -> 0.427 | F29: =+WTA!F38 -> 0.245 | G29: =+WTA!G38 -> 0.339 | H29: =+WTA!H38 -> 0.419 | I29: =+WTA!I38 -> 0.4 | J29: =+WTA!J38 -> 0.502 | K29: =+WTA!K38 -> 0.597 | L29: =+WTA!L38 -> 0.167 | M29: =+WTA!M38 -> 0.211 | N29: =+WTA!N38 -> 0.445 | O29: =+WTA!O38 -> 0.11 | P29: =+WTA!P38 -> 0.338 | Q29: =+WTA!Q38 -> 0.381 | R29: =+WTA!R38 -> 36
A30: =+WTA!A39 -> Iga Swiatek | B30: =+WTA!B39 -> 32 | C30: =+WTA!C39 -> 0.208 | D30: =+WTA!D39 -> 0.33 | E30: =+WTA!E39 -> 0.547 | F30: =+WTA!F39 -> 0.244 | G30: =+WTA!G39 -> 0.406 | H30: =+WTA!H39 -> 0.565 | I30: =+WTA!I39 -> 0.37 | J30: =+WTA!J39 -> 0.555 | K30: =+WTA!K39 -> 0.547 | L30: =+WTA!L39 -> 0.175 | M30: =+WTA!M39 -> 0.247 | N30: =+WTA!N39 -> 0.522 | O30: =+WTA!O39 -> 0.135 | P30: =+WTA!P39 -> 0.627 | Q30: =+WTA!Q39 -> 0.685 | R30: =+WTA!R39 -> 3
A31: =+WTA!A40 -> Jelena Ostapenko | B31: =+WTA!B40 -> 7 | C31: =+WTA!C40 -> 0.201 | D31: =+WTA!D40 -> 0.327 | E31: =+WTA!E40 -> 0.488 | F31: =+WTA!F40 -> 0.243 | G31: =+WTA!G40 -> 0.422 | H31: =+WTA!H40 -> 0.497 | I31: =+WTA!I40 -> 0.38 | J31: =+WTA!J40 -> 0.342 | K31: =+WTA!K40 -> 0.364 | L31: =+WTA!L40 -> 0.175 | M31: =+WTA!M40 -> 0.241 | N31: =+WTA!N40 -> 0.474 | O31: =+WTA!O40 -> 0.397 | P31: =+WTA!P40 -> 0.545 | Q31: =+WTA!Q40 -> 0.625 | R31: =+WTA!R40 -> 49
A32: =+WTA!A41 -> Victoria Azarenka | B32: =+WTA!B41 -> 18 | C32: =+WTA!C41 -> 0.223 | D32: =+WTA!D41 -> 0.292 | E32: =+WTA!E41 -> 0.484 | F32: =+WTA!F41 -> 0.242 | G32: =+WTA!G41 -> 0.331 | H32: =+WTA!H41 -> 0.514 | I32: =+WTA!I41 -> 0.493 | J32: =+WTA!J41 -> 0.468 | K32: =+WTA!K41 -> 0.516 | L32: =+WTA!L41 -> 0.21 | M32: =+WTA!M41 -> 0.244 | N32: =+WTA!N41 -> 0.415 | O32: =+WTA!O41 -> 0.143 | P32: =+WTA!P41 -> 0.227 | Q32: =+WTA!Q41 -> 0.273 | R32: =+WTA!R41 -> 56
A33: =+WTA!A42 -> Paula Badosa | B33: =+WTA!B42 -> 13 | C33: =+WTA!C42 -> 0.204 | D33: =+WTA!D42 -> 0.28 | E33: =+WTA!E42 -> 0.477 | F33: =+WTA!F42 -> 0.24 | G33: =+WTA!G42 -> 0.329 | H33: =+WTA!H42 -> 0.509 | I33: =+WTA!I42 -> 0.575 | J33: =+WTA!J42 -> 0.256 | K33: =+WTA!K42 -> 0.316 | L33: =+WTA!L42 -> 0.166 | M33: =+WTA!M42 -> 0.226 | N33: =+WTA!N42 -> 0.403 | O33: =+WTA!O42 -> 0.474 | P33: =+WTA!P42 -> 0.575 | Q33: =+WTA!Q42 -> 0.571 | R33: =+WTA!R42 -> 34
A34: =+WTA!A43 -> Kaja Juvan | B34: =+WTA!B43 -> 10 | C34: =+WTA!C43 -> 0.203 | D34: =+WTA!D43 -> 0.286 | E34: =+WTA!E43 -> 0.435 | F34: =+WTA!F43 -> 0.239 | G34: =+WTA!G43 -> 0.336 | H34: =+WTA!H43 -> 0.478 | I34: =+WTA!I43 -> 0.294 | J34: =+WTA!J43 -> 0.567 | K34: =+WTA!K43 -> 0.625 | L34: =+WTA!L43 -> 0.154 | M34: =+WTA!M43 -> 0.221 | N34: =+WTA!N43 -> 0.369 | O34: =+WTA!O43 -> 0.254 | P34: =+WTA!P43 -> 0.691 | Q34: =+WTA!Q43 -> 0.714 | R34: =+WTA!R43 -> -28
A35: =+WTA!A44 -> Sorana Cirstea | B35: =+WTA!B44 -> 10 | C35: =+WTA!C44 -> 0.215 | D35: =+WTA!D44 -> 0.313 | E35: =+WTA!E44 -> 0.448 | F35: =+WTA!F44 -> 0.238 | G35: =+WTA!G44 -> 0.361 | H35: =+WTA!H44 -> 0.488 | I35: =+WTA!I44 -> 0.418 | J35: =+WTA!J44 -> 0.385 | K35: =+WTA!K44 -> 0.375 | L35: =+WTA!L44 -> 0.194 | M35: =+WTA!M44 -> 0.253 | N35: =+WTA!N44 -> 0.377 | O35: =+WTA!O44 -> 0.436 | P35: =+WTA!P44 -> 0.385 | Q35: =+WTA!Q44 -> 0.387 | R35: =+WTA!R44 -> 5
A36: =+WTA!A45 -> Bianca Andreescu | B36: =+WTA!B45 -> 17 | C36: =+WTA!C45 -> 0.207 | D36: =+WTA!D45 -> 0.312 | E36: =+WTA!E45 -> 0.508 | F36: =+WTA!F45 -> 0.237 | G36: =+WTA!G45 -> 0.377 | H36: =+WTA!H45 -> 0.543 | I36: =+WTA!I45 -> 0.41 | J36: =+WTA!J45 -> 0.38 | K36: =+WTA!K45 -> 0.426 | L36: =+WTA!L45 -> 0.173 | M36: =+WTA!M45 -> 0.218 | N36: =+WTA!N45 -> 0.438 | O36: =+WTA!O45 -> 0.106 | P36: =+WTA!P45 -> 0.395 | Q36: =+WTA!Q45 -> 0.516 | R36: =+WTA!R45 -> 53
A37: =+WTA!A46 -> Viktorija Golubic | B37: =+WTA!B46 -> 8 | C37: =+WTA!C46 -> 0.22 | D37: =+WTA!D46 -> 0.281 | E37: =+WTA!E46 -> 0.455 | F37: =+WTA!F46 -> 0.236 | G37: =+WTA!G46 -> 0.313 | H37: =+WTA!H46 -> 0.493 | I37: =+WTA!I46 -> 0.364 | J37: =+WTA!J46 -> 0.336 | K37: =+WTA!K46 -> 0.405 | L37: =+WTA!L46 -> 0.203 | M37: =+WTA!M46 -> 0.229 | N37: =+WTA!N46 -> 0.361 | O37: =+WTA!O46 -> 0.259 | P37: =+WTA!P46 -> 0.569 | Q37: =+WTA!Q46 -> 0.615 | R37: =+WTA!R46 -> -3
A38: =+WTA!A47 -> Elise Mertens | B38: =+WTA!B47 -> 11 | C38: =+WTA!C47 -> 0.192 | D38: =+WTA!D47 -> 0.246 | E38: =+WTA!E47 -> 0.467 | F38: =+WTA!F47 -> 0.236 | G38: =+WTA!G47 -> 0.305 | H38: =+WTA!H47 -> 0.515 | I38: =+WTA!I47 -> 0.553 | J38: =+WTA!J47 -> 0.432 | K38: =+WTA!K47 -> 0.392 | L38: =+WTA!L47 -> 0.136 | M38: =+WTA!M47 -> 0.169 | N38: =+WTA!N47 -> 0.382 | O38: =+WTA!O47 -> 0.243 | P38: =+WTA!P47 -> 0.424 | Q38: =+WTA!Q47 -> 0.444 | R38: =+WTA!R47 -> 13
A39: =+WTA!A48 -> Marketa Vondrousova | B39: =+WTA!B48 -> 7 | C39: =+WTA!C48 -> 0.183 | D39: =+WTA!D48 -> 0.269 | E39: =+WTA!E48 -> 0.471 | F39: =+WTA!F48 -> 0.233 | G39: =+WTA!G48 -> 0.35 | H39: =+WTA!H48 -> 0.457 | I39: =+WTA!I48 -> 0.184 | J39: =+WTA!J48 -> 0.476 | K39: =+WTA!K48 -> 0.391 | L39: =+WTA!L48 -> 0.139 | M39: =+WTA!M48 -> 0.194 | N39: =+WTA!N48 -> 0.492 | O39: =+WTA!O48 -> 0 | P39: =+WTA!P48 -> 0.632 | Q39: =+WTA!Q48 -> 0.85 | R39: =+WTA!R48 -> 12
A40: =+WTA!A49 -> Anna Blinkova | B40: =+WTA!B49 -> 5 | C40: =+WTA!C49 -> 0.186 | D40: =+WTA!D49 -> 0.288 | E40: =+WTA!E49 -> 0.456 | F40: =+WTA!F49 -> 0.227 | G40: =+WTA!G49 -> 0.351 | H40: =+WTA!H49 -> 0.503 | I40: =+WTA!I49 -> 0.3 | J40: =+WTA!J49 -> 0.441 | K40: =+WTA!K49 -> 0.3 | L40: =+WTA!L49 -> 0.151 | M40: =+WTA!M49 -> 0.238 | N40: =+WTA!N49 -> 0.383 | O40: =+WTA!O49 -> 0.241 | P40: =+WTA!P49 -> 0.333 | Q40: =+WTA!Q49 -> 0.333 | R40: =+WTA!R49 -> 27
A41: =+WTA!A50 -> Maria Camila Osorio Serrano | B41: =+WTA!B50 -> 7 | C41: =+WTA!C50 -> 0.211 | D41: =+WTA!D50 -> 0.274 | E41: =+WTA!E50 -> 0.447 | F41: =+WTA!F50 -> 0.224 | G41: =+WTA!G50 -> 0.311 | H41: =+WTA!H50 -> 0.5 | I41: =+WTA!I50 -> 0.449 | J41: =+WTA!J50 -> 0.362 | K41: =+WTA!K50 -> 0.467 | L41: =+WTA!L50 -> 0.233 | M41: =+WTA!M50 -> 0.267 | N41: =+WTA!N50 -> 0.348 | O41: =+WTA!O50 -> 0.614 | P41: =+WTA!P50 -> 0.155 | Q41: =+WTA!Q50 -> 0.158 | R41: =+WTA!R50 -> 101
A42: =+WTA!A51 -> Simona Halep | B42: =+WTA!B51 -> 28 | C42: =+WTA!C51 -> 0.2 | D42: =+WTA!D51 -> 0.268 | E42: =+WTA!E51 -> 0.504 | F42: =+WTA!F51 -> 0.22 | G42: =+WTA!G51 -> 0.309 | H42: =+WTA!H51 -> 0.528 | I42: =+WTA!I51 -> 0.396 | J42: =+WTA!J51 -> 0.418 | K42: =+WTA!K51 -> 0.479 | L42: =+WTA!L51 -> 0.187 | M42: =+WTA!M51 -> 0.216 | N42: =+WTA!N51 -> 0.446 | O42: =+WTA!O51 -> 0.516 | P42: =+WTA!P51 -> 0.183 | Q42: =+WTA!Q51 -> 0.19 | R42: =+WTA!R51 -> 63
A43: =+WTA!A52 -> Polona Hercog | B43: =+WTA!B52 -> 5 | C43: =+WTA!C52 -> 0.16 | D43: =+WTA!D52 -> 0.259 | E43: =+WTA!E52 -> 0.442 | F43: =+WTA!F52 -> 0.218 | G43: =+WTA!G52 -> 0.332 | H43: =+WTA!H52 -> 0.453 | I43: =+WTA!I52 -> 0.37 | J43: =+WTA!J52 -> 0.554 | K43: =+WTA!K52 -> 0.536 | L43: =+WTA!L52 -> 0.104 | M43: =+WTA!M52 -> 0.198 | N43: =+WTA!N52 -> 0.429 | O43: =+WTA!O52 -> 0.109 | P43: =+WTA!P52 -> 0.633 | Q43: =+WTA!Q52 -> 0.588 | R43: =+WTA!R52 -> -11
A44: =+WTA!A53 -> Darya Kasatkina | B44: =+WTA!B53 -> 7 | C44: =+WTA!C53 -> 0.193 | D44: =+WTA!D53 -> 0.245 | E44: =+WTA!E53 -> 0.39 | F44: =+WTA!F53 -> 0.214 | G44: =+WTA!G53 -> 0.279 | H44: =+WTA!H53 -> 0.421 | I44: =+WTA!I53 -> 0.527 | J44: =+WTA!J53 -> 0.411 | K44: =+WTA!K53 -> 0.231 | L44: =+WTA!L53 -> 0.177 | M44: =+WTA!M53 -> 0.208 | N44: =+WTA!N53 -> 0.318 | O44: =+WTA!O53 -> 0.345 | P44: =+WTA!P53 -> 0.764 | Q44: =+WTA!Q53 -> 0.75 | R44: =+WTA!R53 -> 53
A45: =+WTA!A54 -> Jil Belen Teichmann | B45: =+WTA!B54 -> 6 | C45: =+WTA!C54 -> 0.18 | D45: =+WTA!D54 -> 0.266 | E45: =+WTA!E54 -> 0.486 | F45: =+WTA!F54 -> 0.211 | G45: =+WTA!G54 -> 0.329 | H45: =+WTA!H54 -> 0.561 | I45: =+WTA!I54 -> 0.257 | J45: =+WTA!J54 -> 0.49 | K45: =+WTA!K54 -> 0.643 | L45: =+WTA!L54 -> 0.15 | M45: =+WTA!M54 -> 0.19 | N45: =+WTA!N54 -> 0.354 | O45: =+WTA!O54 -> 0.318 | P45: =+WTA!P54 -> 0.483 | Q45: =+WTA!Q54 -> 0.538 | R45: =+WTA!R54 -> 33
A46: =+WTA!A55 -> Nadia Podoroska | B46: =+WTA!B55 -> 10 | C46: =+WTA!C55 -> 0.197 | D46: =+WTA!D55 -> 0.277 | E46: =+WTA!E55 -> 0.431 | F46: =+WTA!F55 -> 0.209 | G46: =+WTA!G55 -> 0.308 | H46: =+WTA!H55 -> 0.453 | I46: =+WTA!I55 -> 0.464 | J46: =+WTA!J55 -> 0.338 | K46: =+WTA!K55 -> 0.381 | L46: =+WTA!L55 -> 0.187 | M46: =+WTA!M55 -> 0.225 | N46: =+WTA!N55 -> 0.376 | O46: =+WTA!O55 -> 0.346 | P46: =+WTA!P55 -> 0.618 | Q46: =+WTA!Q55 -> 0.789 | R46: =+WTA!R55 -> 6
A47: =+WTA!A56 -> Leylah Annie Fernandez | B47: =+WTA!B56 -> 5 | C47: =+WTA!C56 -> 0.178 | D47: =+WTA!D56 -> 0.253 | E47: =+WTA!E56 -> 0.464 | F47: =+WTA!F56 -> 0.208 | G47: =+WTA!G56 -> 0.305 | H47: =+WTA!H56 -> 0.492 | I47: =+WTA!I56 -> 0.302 | J47: =+WTA!J56 -> 0.517 | K47: =+WTA!K56 -> 0.462 | L47: =+WTA!L56 -> 0.164 | M47: =+WTA!M56 -> 0.213 | N47: =+WTA!N56 -> 0.412 | O47: =+WTA!O56 -> 0.286 | P47: =+WTA!P56 -> 0.288 | Q47: =+WTA!Q56 -> 0.25 | R47: =+WTA!R56 -> 34
A48: =+WTA!A57 -> Anastasia Pavlyuchenkova | B48: =+WTA!B57 -> 7 | C48: =+WTA!C57 -> 0.187 | D48: =+WTA!D57 -> 0.309 | E48: =+WTA!E57 -> 0.487 | F48: =+WTA!F57 -> 0.207 | G48: =+WTA!G57 -> 0.349 | H48: =+WTA!H57 -> 0.495 | I48: =+WTA!I57 -> 0.399 | J48: =+WTA!J57 -> 0.521 | K48: =+WTA!K57 -> 0.48 | L48: =+WTA!L57 -> 0.169 | M48: =+WTA!M57 -> 0.266 | N48: =+WTA!N57 -> 0.469 | O48: =+WTA!O57 -> 0.105 | P48: =+WTA!P57 -> 0.287 | Q48: =+WTA!Q57 -> 0.261 | R48: =+WTA!R57 -> 51
A49: =+WTA!A58 -> Arantxa Rus | B49: =+WTA!B58 -> 18 | C49: =+WTA!C58 -> 0.185 | D49: =+WTA!D58 -> 0.252 | E49: =+WTA!E58 -> 0.47 | F49: =+WTA!F58 -> 0.202 | G49: =+WTA!G58 -> 0.279 | H49: =+WTA!H58 -> 0.502 | I49: =+WTA!I58 -> 0.33 | J49: =+WTA!J58 -> 0.551 | K49: =+WTA!K58 -> 0.606 | L49: =+WTA!L58 -> 0.18 | M49: =+WTA!M58 -> 0.234 | N49: =+WTA!N58 -> 0.37 | O49: =+WTA!O58 -> 0.553 | P49: =+WTA!P58 -> 0.186 | Q49: =+WTA!Q58 -> 0.176 | R49: =+WTA!R58 -> 50
A50: =+WTA!A59 -> Su Wei Hsieh | B50: =+WTA!B59 -> 7 | C50: =+WTA!C59 -> 0.178 | D50: =+WTA!D59 -> 0.263 | E50: =+WTA!E59 -> 0.475 | F50: =+WTA!F59 -> 0.201 | G50: =+WTA!G59 -> 0.313 | H50: =+WTA!H59 -> 0.51 | I50: =+WTA!I59 -> 0.523 | J50: =+WTA!J59 -> 0.354 | K50: =+WTA!K59 -> 0.405 | L50: =+WTA!L59 -> 0.151 | M50: =+WTA!M59 -> 0.183 | N50: =+WTA!N59 -> 0.393 | O50: =+WTA!O59 -> 0.508 | P50: =+WTA!P59 -> 0.388 | Q50: =+WTA!Q59 -> 0.091 | R50: =+WTA!R59 -> 29
A51: =+WTA!A60 -> Marie Bouzkova | B51: =+WTA!B60 -> 8 | C51: =+WTA!C60 -> 0.183 | D51: =+WTA!D60 -> 0.242 | E51: =+WTA!E60 -> 0.511 | F51: =+WTA!F60 -> 0.198 | G51: =+WTA!G60 -> 0.277 | H51: =+WTA!H60 -> 0.509 | I51: =+WTA!I60 -> 0.53 | J51: =+WTA!J60 -> 0.367 | K51: =+WTA!K60 -> 0.44 | L51: =+WTA!L60 -> 0.171 | M51: =+WTA!M60 -> 0.189 | N51: =+WTA!N60 -> 0.515 | O51: =+WTA!O60 -> 0.412 | P51: =+WTA!P60 -> 0.417 | Q51: =+WTA!Q60 -> 0.429 | R51: =+WTA!R60 -> 50
A52: =+WTA!A61 -> Jasmine Paolini | B52: =+WTA!B61 -> 7 | C52: =+WTA!C61 -> 0.178 | D52: =+WTA!D61 -> 0.236 | E52: =+WTA!E61 -> 0.472 | F52: =+WTA!F61 -> 0.197 | G52: =+WTA!G61 -> 0.261 | H52: =+WTA!H61 -> 0.483 | I52: =+WTA!I61 -> 0.257 | J52: =+WTA!J61 -> 0.433 | K52: =+WTA!K61 -> 0.481 | L52: =+WTA!L61 -> 0.159 | M52: =+WTA!M61 -> 0.214 | N52: =+WTA!N61 -> 0.443 | O52: =+WTA!O61 -> 0.102 | P52: =+WTA!P61 -> 0.537 | Q52: =+WTA!Q61 -> 0.706 | R52: =+WTA!R61 -> 32
A53: =+WTA!A62 -> Laura Siegemund | B53: =+WTA!B62 -> 7 | C53: =+WTA!C62 -> 0.175 | D53: =+WTA!D62 -> 0.246 | E53: =+WTA!E62 -> 0.435 | F53: =+WTA!F62 -> 0.186 | G53: =+WTA!G62 -> 0.274 | H53: =+WTA!H62 -> 0.444 | I53: =+WTA!I62 -> 0.418 | J53: =+WTA!J62 -> 0.421 | K53: =+WTA!K62 -> 0.531 | L53: =+WTA!L62 -> 0.202 | M53: =+WTA!M62 -> 0.257 | N53: =+WTA!N62 -> 0.414 | O53: =+WTA!O62 -> 0.37 | P53: =+WTA!P62 -> 0.255 | Q53: =+WTA!Q62 -> 0.133 | R53: =+WTA!R62 -> 57
A54: =+WTA!A63 -> Tamara Zidansek | B54: =+WTA!B63 -> 6 | C54: =+WTA!C63 -> 0.186 | D54: =+WTA!D63 -> 0.274 | E54: =+WTA!E63 -> 0.489 | F54: =+WTA!F63 -> 0.18 | G54: =+WTA!G63 -> 0.285 | H54: =+WTA!H63 -> 0.537 | I54: =+WTA!I63 -> 0.306 | J54: =+WTA!J63 -> 0.547 | K54: =+WTA!K63 -> 0.667 | L54: =+WTA!L63 -> 0.228 | M54: =+WTA!M63 -> 0.293 | N54: =+WTA!N63 -> 0.38 | O54: =+WTA!O63 -> 0.25 | P54: =+WTA!P63 -> 0.635 | Q54: =+WTA!Q63 -> 0.818 | R54: =+WTA!R63 -> 60
A55: =+WTA!A64 -> Sofia Kenin | B55: =+WTA!B64 -> 10 | C55: =+WTA!C64 -> 0.153 | D55: =+WTA!D64 -> 0.251 | E55: =+WTA!E64 -> 0.48 | F55: =+WTA!F64 -> 0.174 | G55: =+WTA!G64 -> 0.3 | H55: =+WTA!H64 -> 0.528 | I55: =+WTA!I64 -> 0.543 | J55: =+WTA!J64 -> 0.494 | K55: =+WTA!K64 -> 0.544 | L55: =+WTA!L64 -> 0.132 | M55: =+WTA!M64 -> 0.184 | N55: =+WTA!N64 -> 0.376 | O55: =+WTA!O64 -> 0.051 | P55: =+WTA!P64 -> 0.685 | Q55: =+WTA!Q64 -> 0.889 | R55: =+WTA!R64 -> 9
A56: =+WTA!A65 -> Angelique Kerber | B56: =+WTA!B65 -> 11 | C56: =+WTA!C65 -> 0.149 | D56: =+WTA!D65 -> 0.249 | E56: =+WTA!E65 -> 0.53 | F56: =+WTA!F65 -> 0.171 | G56: =+WTA!G65 -> 0.298 | H56: =+WTA!H65 -> 0.541 | I56: =+WTA!I65 -> 0.391 | J56: =+WTA!J65 -> 0.678 | K56: =+WTA!K65 -> 0.75 | L56: =+WTA!L65 -> 0.126 | M56: =+WTA!M65 -> 0.177 | N56: =+WTA!N65 -> 0.503 | O56: =+WTA!O65 -> 0.02 | P56: =+WTA!P65 -> 0.556 | Q56: =+WTA!Q65 -> 0.696 | R56: =+WTA!R65 -> 4
A57: =+WTA!A66 -> Fiona Ferro | B57: =+WTA!B66 -> 6 | C57: =+WTA!C66 -> 0.146 | D57: =+WTA!D66 -> 0.277 | E57: =+WTA!E66 -> 0.487 | F57: =+WTA!F66 -> 0.166 | G57: =+WTA!G66 -> 0.309 | H57: =+WTA!H66 -> 0.484 | I57: =+WTA!I66 -> 0.535 | J57: =+WTA!J66 -> 0.515 | K57: =+WTA!K66 -> 0.538 | L57: =+WTA!L66 -> 0.126 | M57: =+WTA!M66 -> 0.247 | N57: =+WTA!N66 -> 0.491 | O57: =+WTA!O66 -> 0.103 | P57: =+WTA!P66 -> 0.721 | Q57: =+WTA!Q66 -> 0.867 | R57: =+WTA!R66 -> -29
A58: =+WTA!A67 -> Martina Trevisan | B58: =+WTA!B67 -> 6 | C58: =+WTA!C67 -> 0.132 | D58: =+WTA!D67 -> 0.185 | E58: =+WTA!E67 -> 0.447 | F58: =+WTA!F67 -> 0.153 | G58: =+WTA!G67 -> 0.214 | H58: =+WTA!H67 -> 0.44 | I58: =+WTA!I67 -> 0.191 | J58: =+WTA!J67 -> 0.708 | K58: =+WTA!K67 -> 0.895 | L58: =+WTA!L67 -> 0.097 | M58: =+WTA!M67 -> 0.135 | N58: =+WTA!N67 -> 0.464 | O58: =+WTA!O67 -> 0.039 | P58: =+WTA!P67 -> 0.418 | Q58: =+WTA!Q67 -> 0.333 | R58: =+WTA!R67 -> -19
A59: =+WTA!A68 -> Katerina Siniakova | B59: =+WTA!B68 -> 6 | C59: =+WTA!C68 -> 0.126 | D59: =+WTA!D68 -> 0.205 | E59: =+WTA!E68 -> 0.472 | F59: =+WTA!F68 -> 0.143 | G59: =+WTA!G68 -> 0.243 | H59: =+WTA!H68 -> 0.498 | I59: =+WTA!I68 -> 0.25 | J59: =+WTA!J68 -> 0.351 | K59: =+WTA!K68 -> 0.286 | L59: =+WTA!L68 -> 0.117 | M59: =+WTA!M68 -> 0.167 | N59: =+WTA!N68 -> 0.415 | O59: =+WTA!O68 -> 0.15 | P59: =+WTA!P68 -> 0.217 | Q59: =+WTA!Q68 -> 0.455 | R59: =+WTA!R68 -> -10
A60: =+WTA!A69 -> Sara Sorribes Tormo | B60: =+WTA!B69 -> 10 | C60: =+WTA!C69 -> 0.121 | D60: =+WTA!D69 -> 0.145 | E60: =+WTA!E69 -> 0.443 | F60: =+WTA!F69 -> 0.124 | G60: =+WTA!G69 -> 0.155 | H60: =+WTA!H69 -> 0.444 | I60: =+WTA!I69 -> 0.401 | J60: =+WTA!J69 -> 0.226 | K60: =+WTA!K69 -> 0.282 | L60: =+WTA!L69 -> 0.132 | M60: =+WTA!M69 -> 0.141 | N60: =+WTA!N69 -> 0.44 | O60: =+WTA!O69 -> 0.522 | P60: =+WTA!P69 -> 0.15 | Q60: =+WTA!Q69 -> 0.25 | R60: =+WTA!R69 -> 13
A61: =+WTA!A70 -> Irina Maria Bara | B61: =+WTA!B70 -> 5 | C61: =+WTA!C70 -> 0.108 | D61: =+WTA!D70 -> 0.14 | E61: =+WTA!E70 -> 0.452 | F61: =+WTA!F70 -> 0.122 | G61: =+WTA!G70 -> 0.163 | H61: =+WTA!H70 -> 0.433 | I61: =+WTA!I70 -> 0.246 | J61: =+WTA!J70 -> 0.252 | K61: =+WTA!K70 -> 0.35 | L61: =+WTA!L70 -> 0.094 | M61: =+WTA!M70 -> 0.106 | N61: =+WTA!N70 -> 0.506 | O61: =+WTA!O70 -> 0.111 | P61: =+WTA!P70 -> 0.163 | Q61: =+WTA!Q70 -> 0.1 | R61: =+WTA!R70 -> -32
A62: =+WTA!A71 -> Sara Errani | B62: =+WTA!B71 -> 5 | C62: =+WTA!C71 -> 0.098 | D62: =+WTA!D71 -> 0.131 | E62: =+WTA!E71 -> 0.437 | F62: =+WTA!F71 -> 0.106 | G62: =+WTA!G71 -> 0.144 | H62: =+WTA!H71 -> 0.459 | I62: =+WTA!I71 -> 0.22 | J62: =+WTA!J71 -> 0.401 | K62: =+WTA!K71 -> 0.473 | L62: =+WTA!L71 -> 0.107 | M62: =+WTA!M71 -> 0.131 | N62: =+WTA!N71 -> 0.347 | O62: =+WTA!O71 -> 0.419 | P62: =+WTA!P71 -> 0.171 | Q62: =+WTA!Q71 -> 0.167 | R62: =+WTA!R71 -> -30
A63: =+WTA!A72 -> 0 | B63: =+WTA!B72 -> 0 | C63: =+WTA!C72 -> 0 | D63: =+WTA!D72 -> 0 | E63: =+WTA!E72 -> 0 | F63: =+WTA!F72 -> 0 | G63: =+WTA!G72 -> 0 | H63: =+WTA!H72 -> 0 | I63: =+WTA!I72 -> 0 | J63: =+WTA!J72 -> 0 | K63: =+WTA!K72 -> 0 | L63: =+WTA!L72 -> 0 | M63: =+WTA!M72 -> 0 | N63: =+WTA!N72 -> 0 | O63: =+WTA!O72 -> 0 | P63: =+WTA!P72 -> 0 | Q63: =+WTA!Q72 -> 0 | R63: =+WTA!R72 -> 0
A64: =+WTA!A73 -> 0 | B64: =+WTA!B73 -> 0 | C64: =+WTA!C73 -> 0 | D64: =+WTA!D73 -> 0 | E64: =+WTA!E73 -> 0 | F64: =+WTA!F73 -> 0 | G64: =+WTA!G73 -> 0 | H64: =+WTA!H73 -> 0 | I64: =+WTA!I73 -> 0 | J64: =+WTA!J73 -> 0 | K64: =+WTA!K73 -> 0 | L64: =+WTA!L73 -> 0 | M64: =+WTA!M73 -> 0 | N64: =+WTA!N73 -> 0 | O64: =+WTA!O73 -> 0 | P64: =+WTA!P73 -> 0 | Q64: =+WTA!Q73 -> 0 | R64: =+WTA!R73 -> 0
A65: =+WTA!A74 -> 0 | B65: =+WTA!B74 -> 0 | C65: =+WTA!C74 -> 0 | D65: =+WTA!D74 -> 0 | E65: =+WTA!E74 -> 0 | F65: =+WTA!F74 -> 0 | G65: =+WTA!G74 -> 0 | H65: =+WTA!H74 -> 0 | I65: =+WTA!I74 -> 0 | J65: =+WTA!J74 -> 0 | K65: =+WTA!K74 -> 0 | L65: =+WTA!L74 -> 0 | M65: =+WTA!M74 -> 0 | N65: =+WTA!N74 -> 0 | O65: =+WTA!O74 -> 0 | P65: =+WTA!P74 -> 0 | Q65: =+WTA!Q74 -> 0 | R65: =+WTA!R74 -> 0
A66: =+WTA!A75 -> 0 | B66: =+WTA!B75 -> 0 | C66: =+WTA!C75 -> 0 | D66: =+WTA!D75 -> 0 | E66: =+WTA!E75 -> 0 | F66: =+WTA!F75 -> 0 | G66: =+WTA!G75 -> 0 | H66: =+WTA!H75 -> 0 | I66: =+WTA!I75 -> 0 | J66: =+WTA!J75 -> 0 | K66: =+WTA!K75 -> 0 | L66: =+WTA!L75 -> 0 | M66: =+WTA!M75 -> 0 | N66: =+WTA!N75 -> 0 | O66: =+WTA!O75 -> 0 | P66: =+WTA!P75 -> 0 | Q66: =+WTA!Q75 -> 0 | R66: =+WTA!R75 -> 0
A67: =+WTA!A76 -> 0 | B67: =+WTA!B76 -> 0 | C67: =+WTA!C76 -> 0 | D67: =+WTA!D76 -> 0 | E67: =+WTA!E76 -> 0 | F67: =+WTA!F76 -> 0 | G67: =+WTA!G76 -> 0 | H67: =+WTA!H76 -> 0 | I67: =+WTA!I76 -> 0 | J67: =+WTA!J76 -> 0 | K67: =+WTA!K76 -> 0 | L67: =+WTA!L76 -> 0 | M67: =+WTA!M76 -> 0 | N67: =+WTA!N76 -> 0 | O67: =+WTA!O76 -> 0 | P67: =+WTA!P76 -> 0 | Q67: =+WTA!Q76 -> 0 | R67: =+WTA!R76 -> 0
A68: =+WTA!A77 -> 0 | B68: =+WTA!B77 -> 0 | C68: =+WTA!C77 -> 0 | D68: =+WTA!D77 -> 0 | E68: =+WTA!E77 -> 0 | F68: =+WTA!F77 -> 0 | G68: =+WTA!G77 -> 0 | H68: =+WTA!H77 -> 0 | I68: =+WTA!I77 -> 0 | J68: =+WTA!J77 -> 0 | K68: =+WTA!K77 -> 0 | L68: =+WTA!L77 -> 0 | M68: =+WTA!M77 -> 0 | N68: =+WTA!N77 -> 0 | O68: =+WTA!O77 -> 0 | P68: =+WTA!P77 -> 0 | Q68: =+WTA!Q77 -> 0 | R68: =+WTA!R77 -> 0
A69: =+WTA!A78 -> 0 | B69: =+WTA!B78 -> 0 | C69: =+WTA!C78 -> 0 | D69: =+WTA!D78 -> 0 | E69: =+WTA!E78 -> 0 | F69: =+WTA!F78 -> 0 | G69: =+WTA!G78 -> 0 | H69: =+WTA!H78 -> 0 | I69: =+WTA!I78 -> 0 | J69: =+WTA!J78 -> 0 | K69: =+WTA!K78 -> 0 | L69: =+WTA!L78 -> 0 | M69: =+WTA!M78 -> 0 | N69: =+WTA!N78 -> 0 | O69: =+WTA!O78 -> 0 | P69: =+WTA!P78 -> 0 | Q69: =+WTA!Q78 -> 0 | R69: =+WTA!R78 -> 0
A70: =+WTA!A79 -> 0 | B70: =+WTA!B79 -> 0 | C70: =+WTA!C79 -> 0 | D70: =+WTA!D79 -> 0 | E70: =+WTA!E79 -> 0 | F70: =+WTA!F79 -> 0 | G70: =+WTA!G79 -> 0 | H70: =+WTA!H79 -> 0 | I70: =+WTA!I79 -> 0 | J70: =+WTA!J79 -> 0 | K70: =+WTA!K79 -> 0 | L70: =+WTA!L79 -> 0 | M70: =+WTA!M79 -> 0 | N70: =+WTA!N79 -> 0 | O70: =+WTA!O79 -> 0 | P70: =+WTA!P79 -> 0 | Q70: =+WTA!Q79 -> 0 | R70: =+WTA!R79 -> 0
A71: =+WTA!A80 -> 0 | B71: =+WTA!B80 -> 0 | C71: =+WTA!C80 -> 0 | D71: =+WTA!D80 -> 0 | E71: =+WTA!E80 -> 0 | F71: =+WTA!F80 -> 0 | G71: =+WTA!G80 -> 0 | H71: =+WTA!H80 -> 0 | I71: =+WTA!I80 -> 0 | J71: =+WTA!J80 -> 0 | K71: =+WTA!K80 -> 0 | L71: =+WTA!L80 -> 0 | M71: =+WTA!M80 -> 0 | N71: =+WTA!N80 -> 0 | O71: =+WTA!O80 -> 0 | P71: =+WTA!P80 -> 0 | Q71: =+WTA!Q80 -> 0 | R71: =+WTA!R80 -> 0
A72: =+WTA!A81 -> 0 | B72: =+WTA!B81 -> 0 | C72: =+WTA!C81 -> 0 | D72: =+WTA!D81 -> 0 | E72: =+WTA!E81 -> 0 | F72: =+WTA!F81 -> 0 | G72: =+WTA!G81 -> 0 | H72: =+WTA!H81 -> 0 | I72: =+WTA!I81 -> 0 | J72: =+WTA!J81 -> 0 | K72: =+WTA!K81 -> 0 | L72: =+WTA!L81 -> 0 | M72: =+WTA!M81 -> 0 | N72: =+WTA!N81 -> 0 | O72: =+WTA!O81 -> 0 | P72: =+WTA!P81 -> 0 | Q72: =+WTA!Q81 -> 0 | R72: =+WTA!R81 -> 0
A73: =+WTA!A82 -> 0 | B73: =+WTA!B82 -> 0 | C73: =+WTA!C82 -> 0 | D73: =+WTA!D82 -> 0 | E73: =+WTA!E82 -> 0 | F73: =+WTA!F82 -> 0 | G73: =+WTA!G82 -> 0 | H73: =+WTA!H82 -> 0 | I73: =+WTA!I82 -> 0 | J73: =+WTA!J82 -> 0 | K73: =+WTA!K82 -> 0 | L73: =+WTA!L82 -> 0 | M73: =+WTA!M82 -> 0 | N73: =+WTA!N82 -> 0 | O73: =+WTA!O82 -> 0 | P73: =+WTA!P82 -> 0 | Q73: =+WTA!Q82 -> 0 | R73: =+WTA!R82 -> 0
A74: =+WTA!A83 -> 0 | B74: =+WTA!B83 -> 0 | C74: =+WTA!C83 -> 0 | D74: =+WTA!D83 -> 0 | E74: =+WTA!E83 -> 0 | F74: =+WTA!F83 -> 0 | G74: =+WTA!G83 -> 0 | H74: =+WTA!H83 -> 0 | I74: =+WTA!I83 -> 0 | J74: =+WTA!J83 -> 0 | K74: =+WTA!K83 -> 0 | L74: =+WTA!L83 -> 0 | M74: =+WTA!M83 -> 0 | N74: =+WTA!N83 -> 0 | O74: =+WTA!O83 -> 0 | P74: =+WTA!P83 -> 0 | Q74: =+WTA!Q83 -> 0 | R74: =+WTA!R83 -> 0
A75: =+WTA!A84 -> 0 | B75: =+WTA!B84 -> 0 | C75: =+WTA!C84 -> 0 | D75: =+WTA!D84 -> 0 | E75: =+WTA!E84 -> 0 | F75: =+WTA!F84 -> 0 | G75: =+WTA!G84 -> 0 | H75: =+WTA!H84 -> 0 | I75: =+WTA!I84 -> 0 | J75: =+WTA!J84 -> 0 | K75: =+WTA!K84 -> 0 | L75: =+WTA!L84 -> 0 | M75: =+WTA!M84 -> 0 | N75: =+WTA!N84 -> 0 | O75: =+WTA!O84 -> 0 | P75: =+WTA!P84 -> 0 | Q75: =+WTA!Q84 -> 0 | R75: =+WTA!R84 -> 0
A76: =+WTA!A85 -> 0 | B76: =+WTA!B85 -> 0 | C76: =+WTA!C85 -> 0 | D76: =+WTA!D85 -> 0 | E76: =+WTA!E85 -> 0 | F76: =+WTA!F85 -> 0 | G76: =+WTA!G85 -> 0 | H76: =+WTA!H85 -> 0 | I76: =+WTA!I85 -> 0 | J76: =+WTA!J85 -> 0 | K76: =+WTA!K85 -> 0 | L76: =+WTA!L85 -> 0 | M76: =+WTA!M85 -> 0 | N76: =+WTA!N85 -> 0 | O76: =+WTA!O85 -> 0 | P76: =+WTA!P85 -> 0 | Q76: =+WTA!Q85 -> 0 | R76: =+WTA!R85 -> 0
A77: =+WTA!A86 -> 0 | B77: =+WTA!B86 -> 0 | C77: =+WTA!C86 -> 0 | D77: =+WTA!D86 -> 0 | E77: =+WTA!E86 -> 0 | F77: =+WTA!F86 -> 0 | G77: =+WTA!G86 -> 0 | H77: =+WTA!H86 -> 0 | I77: =+WTA!I86 -> 0 | J77: =+WTA!J86 -> 0 | K77: =+WTA!K86 -> 0 | L77: =+WTA!L86 -> 0 | M77: =+WTA!M86 -> 0 | N77: =+WTA!N86 -> 0 | O77: =+WTA!O86 -> 0 | P77: =+WTA!P86 -> 0 | Q77: =+WTA!Q86 -> 0 | R77: =+WTA!R86 -> 0
A78: =+WTA!A87 -> 0 | B78: =+WTA!B87 -> 0 | C78: =+WTA!C87 -> 0 | D78: =+WTA!D87 -> 0 | E78: =+WTA!E87 -> 0 | F78: =+WTA!F87 -> 0 | G78: =+WTA!G87 -> 0 | H78: =+WTA!H87 -> 0 | I78: =+WTA!I87 -> 0 | J78: =+WTA!J87 -> 0 | K78: =+WTA!K87 -> 0 | L78: =+WTA!L87 -> 0 | M78: =+WTA!M87 -> 0 | N78: =+WTA!N87 -> 0 | O78: =+WTA!O87 -> 0 | P78: =+WTA!P87 -> 0 | Q78: =+WTA!Q87 -> 0 | R78: =+WTA!R87 -> 0
A79: =+WTA!A88 -> 0 | B79: =+WTA!B88 -> 0 | C79: =+WTA!C88 -> 0 | D79: =+WTA!D88 -> 0 | E79: =+WTA!E88 -> 0 | F79: =+WTA!F88 -> 0 | G79: =+WTA!G88 -> 0 | H79: =+WTA!H88 -> 0 | I79: =+WTA!I88 -> 0 | J79: =+WTA!J88 -> 0 | K79: =+WTA!K88 -> 0 | L79: =+WTA!L88 -> 0 | M79: =+WTA!M88 -> 0 | N79: =+WTA!N88 -> 0 | O79: =+WTA!O88 -> 0 | P79: =+WTA!P88 -> 0 | Q79: =+WTA!Q88 -> 0 | R79: =+WTA!R88 -> 0
A80: =+WTA!A89 -> 0 | B80: =+WTA!B89 -> 0 | C80: =+WTA!C89 -> 0 | D80: =+WTA!D89 -> 0 | E80: =+WTA!E89 -> 0 | F80: =+WTA!F89 -> 0 | G80: =+WTA!G89 -> 0 | H80: =+WTA!H89 -> 0 | I80: =+WTA!I89 -> 0 | J80: =+WTA!J89 -> 0 | K80: =+WTA!K89 -> 0 | L80: =+WTA!L89 -> 0 | M80: =+WTA!M89 -> 0 | N80: =+WTA!N89 -> 0 | O80: =+WTA!O89 -> 0 | P80: =+WTA!P89 -> 0 | Q80: =+WTA!Q89 -> 0 | R80: =+WTA!R89 -> 0
A81: =+WTA!A90 -> 0 | B81: =+WTA!B90 -> 0 | C81: =+WTA!C90 -> 0 | D81: =+WTA!D90 -> 0 | E81: =+WTA!E90 -> 0 | F81: =+WTA!F90 -> 0 | G81: =+WTA!G90 -> 0 | H81: =+WTA!H90 -> 0 | I81: =+WTA!I90 -> 0 | J81: =+WTA!J90 -> 0 | K81: =+WTA!K90 -> 0 | L81: =+WTA!L90 -> 0 | M81: =+WTA!M90 -> 0 | N81: =+WTA!N90 -> 0 | O81: =+WTA!O90 -> 0 | P81: =+WTA!P90 -> 0 | Q81: =+WTA!Q90 -> 0 | R81: =+WTA!R90 -> 0
A82: =+WTA!A91 -> 0 | B82: =+WTA!B91 -> 0 | C82: =+WTA!C91 -> 0 | D82: =+WTA!D91 -> 0 | E82: =+WTA!E91 -> 0 | F82: =+WTA!F91 -> 0 | G82: =+WTA!G91 -> 0 | H82: =+WTA!H91 -> 0 | I82: =+WTA!I91 -> 0 | J82: =+WTA!J91 -> 0 | K82: =+WTA!K91 -> 0 | L82: =+WTA!L91 -> 0 | M82: =+WTA!M91 -> 0 | N82: =+WTA!N91 -> 0 | O82: =+WTA!O91 -> 0 | P82: =+WTA!P91 -> 0 | Q82: =+WTA!Q91 -> 0 | R82: =+WTA!R91 -> 0
A83: =+WTA!A92 -> 0 | B83: =+WTA!B92 -> 0 | C83: =+WTA!C92 -> 0 | D83: =+WTA!D92 -> 0 | E83: =+WTA!E92 -> 0 | F83: =+WTA!F92 -> 0 | G83: =+WTA!G92 -> 0 | H83: =+WTA!H92 -> 0 | I83: =+WTA!I92 -> 0 | J83: =+WTA!J92 -> 0 | K83: =+WTA!K92 -> 0 | L83: =+WTA!L92 -> 0 | M83: =+WTA!M92 -> 0 | N83: =+WTA!N92 -> 0 | O83: =+WTA!O92 -> 0 | P83: =+WTA!P92 -> 0 | Q83: =+WTA!Q92 -> 0 | R83: =+WTA!R92 -> 0
A84: =+WTA!A93 -> 0 | B84: =+WTA!B93 -> 0 | C84: =+WTA!C93 -> 0 | D84: =+WTA!D93 -> 0 | E84: =+WTA!E93 -> 0 | F84: =+WTA!F93 -> 0 | G84: =+WTA!G93 -> 0 | H84: =+WTA!H93 -> 0 | I84: =+WTA!I93 -> 0 | J84: =+WTA!J93 -> 0 | K84: =+WTA!K93 -> 0 | L84: =+WTA!L93 -> 0 | M84: =+WTA!M93 -> 0 | N84: =+WTA!N93 -> 0 | O84: =+WTA!O93 -> 0 | P84: =+WTA!P93 -> 0 | Q84: =+WTA!Q93 -> 0 | R84: =+WTA!R93 -> 0
A85: =+WTA!A94 -> 0 | B85: =+WTA!B94 -> 0 | C85: =+WTA!C94 -> 0 | D85: =+WTA!D94 -> 0 | E85: =+WTA!E94 -> 0 | F85: =+WTA!F94 -> 0 | G85: =+WTA!G94 -> 0 | H85: =+WTA!H94 -> 0 | I85: =+WTA!I94 -> 0 | J85: =+WTA!J94 -> 0 | K85: =+WTA!K94 -> 0 | L85: =+WTA!L94 -> 0 | M85: =+WTA!M94 -> 0 | N85: =+WTA!N94 -> 0 | O85: =+WTA!O94 -> 0 | P85: =+WTA!P94 -> 0 | Q85: =+WTA!Q94 -> 0 | R85: =+WTA!R94 -> 0
A86: =+WTA!A95 -> 0 | B86: =+WTA!B95 -> 0 | C86: =+WTA!C95 -> 0 | D86: =+WTA!D95 -> 0 | E86: =+WTA!E95 -> 0 | F86: =+WTA!F95 -> 0 | G86: =+WTA!G95 -> 0 | H86: =+WTA!H95 -> 0 | I86: =+WTA!I95 -> 0 | J86: =+WTA!J95 -> 0 | K86: =+WTA!K95 -> 0 | L86: =+WTA!L95 -> 0 | M86: =+WTA!M95 -> 0 | N86: =+WTA!N95 -> 0 | O86: =+WTA!O95 -> 0 | P86: =+WTA!P95 -> 0 | Q86: =+WTA!Q95 -> 0 | R86: =+WTA!R95 -> 0
A87: =+WTA!A96 -> 0 | B87: =+WTA!B96 -> 0 | C87: =+WTA!C96 -> 0 | D87: =+WTA!D96 -> 0 | E87: =+WTA!E96 -> 0 | F87: =+WTA!F96 -> 0 | G87: =+WTA!G96 -> 0 | H87: =+WTA!H96 -> 0 | I87: =+WTA!I96 -> 0 | J87: =+WTA!J96 -> 0 | K87: =+WTA!K96 -> 0 | L87: =+WTA!L96 -> 0 | M87: =+WTA!M96 -> 0 | N87: =+WTA!N96 -> 0 | O87: =+WTA!O96 -> 0 | P87: =+WTA!P96 -> 0 | Q87: =+WTA!Q96 -> 0 | R87: =+WTA!R96 -> 0
A88: =+WTA!A97 -> 0 | B88: =+WTA!B97 -> 0 | C88: =+WTA!C97 -> 0 | D88: =+WTA!D97 -> 0 | E88: =+WTA!E97 -> 0 | F88: =+WTA!F97 -> 0 | G88: =+WTA!G97 -> 0 | H88: =+WTA!H97 -> 0 | I88: =+WTA!I97 -> 0 | J88: =+WTA!J97 -> 0 | K88: =+WTA!K97 -> 0 | L88: =+WTA!L97 -> 0 | M88: =+WTA!M97 -> 0 | N88: =+WTA!N97 -> 0 | O88: =+WTA!O97 -> 0 | P88: =+WTA!P97 -> 0 | Q88: =+WTA!Q97 -> 0 | R88: =+WTA!R97 -> 0
A89: =+WTA!A98 -> 0 | B89: =+WTA!B98 -> 0 | C89: =+WTA!C98 -> 0 | D89: =+WTA!D98 -> 0 | E89: =+WTA!E98 -> 0 | F89: =+WTA!F98 -> 0 | G89: =+WTA!G98 -> 0 | H89: =+WTA!H98 -> 0 | I89: =+WTA!I98 -> 0 | J89: =+WTA!J98 -> 0 | K89: =+WTA!K98 -> 0 | L89: =+WTA!L98 -> 0 | M89: =+WTA!M98 -> 0 | N89: =+WTA!N98 -> 0 | O89: =+WTA!O98 -> 0 | P89: =+WTA!P98 -> 0 | Q89: =+WTA!Q98 -> 0 | R89: =+WTA!R98 -> 0
A90: =+WTA!A99 -> 0 | B90: =+WTA!B99 -> 0 | C90: =+WTA!C99 -> 0 | D90: =+WTA!D99 -> 0 | E90: =+WTA!E99 -> 0 | F90: =+WTA!F99 -> 0 | G90: =+WTA!G99 -> 0 | H90: =+WTA!H99 -> 0 | I90: =+WTA!I99 -> 0 | J90: =+WTA!J99 -> 0 | K90: =+WTA!K99 -> 0 | L90: =+WTA!L99 -> 0 | M90: =+WTA!M99 -> 0 | N90: =+WTA!N99 -> 0 | O90: =+WTA!O99 -> 0 | P90: =+WTA!P99 -> 0 | Q90: =+WTA!Q99 -> 0 | R90: =+WTA!R99 -> 0
A91: =+WTA!A100 -> 0 | B91: =+WTA!B100 -> 0 | C91: =+WTA!C100 -> 0 | D91: =+WTA!D100 -> 0 | E91: =+WTA!E100 -> 0 | F91: =+WTA!F100 -> 0 | G91: =+WTA!G100 -> 0 | H91: =+WTA!H100 -> 0 | I91: =+WTA!I100 -> 0 | J91: =+WTA!J100 -> 0 | K91: =+WTA!K100 -> 0 | L91: =+WTA!L100 -> 0 | M91: =+WTA!M100 -> 0 | N91: =+WTA!N100 -> 0 | O91: =+WTA!O100 -> 0 | P91: =+WTA!P100 -> 0 | Q91: =+WTA!Q100 -> 0 | R91: =+WTA!R100 -> 0
A92: =+WTA!A101 -> 0 | B92: =+WTA!B101 -> 0 | C92: =+WTA!C101 -> 0 | D92: =+WTA!D101 -> 0 | E92: =+WTA!E101 -> 0 | F92: =+WTA!F101 -> 0 | G92: =+WTA!G101 -> 0 | H92: =+WTA!H101 -> 0 | I92: =+WTA!I101 -> 0 | J92: =+WTA!J101 -> 0 | K92: =+WTA!K101 -> 0 | L92: =+WTA!L101 -> 0 | M92: =+WTA!M101 -> 0 | N92: =+WTA!N101 -> 0 | O92: =+WTA!O101 -> 0 | P92: =+WTA!P101 -> 0 | Q92: =+WTA!Q101 -> 0 | R92: =+WTA!R101 -> 0
A93: =+WTA!A102 -> 0 | B93: =+WTA!B102 -> 0 | C93: =+WTA!C102 -> 0 | D93: =+WTA!D102 -> 0 | E93: =+WTA!E102 -> 0 | F93: =+WTA!F102 -> 0 | G93: =+WTA!G102 -> 0 | H93: =+WTA!H102 -> 0 | I93: =+WTA!I102 -> 0 | J93: =+WTA!J102 -> 0 | K93: =+WTA!K102 -> 0 | L93: =+WTA!L102 -> 0 | M93: =+WTA!M102 -> 0 | N93: =+WTA!N102 -> 0 | O93: =+WTA!O102 -> 0 | P93: =+WTA!P102 -> 0 | Q93: =+WTA!Q102 -> 0 | R93: =+WTA!R102 -> 0
A94: =+WTA!A103 -> 0 | B94: =+WTA!B103 -> 0 | C94: =+WTA!C103 -> 0 | D94: =+WTA!D103 -> 0 | E94: =+WTA!E103 -> 0 | F94: =+WTA!F103 -> 0 | G94: =+WTA!G103 -> 0 | H94: =+WTA!H103 -> 0 | I94: =+WTA!I103 -> 0 | J94: =+WTA!J103 -> 0 | K94: =+WTA!K103 -> 0 | L94: =+WTA!L103 -> 0 | M94: =+WTA!M103 -> 0 | N94: =+WTA!N103 -> 0 | O94: =+WTA!O103 -> 0 | P94: =+WTA!P103 -> 0 | Q94: =+WTA!Q103 -> 0 | R94: =+WTA!R103 -> 0
A95: =+WTA!A104 -> 0 | B95: =+WTA!B104 -> 0 | C95: =+WTA!C104 -> 0 | D95: =+WTA!D104 -> 0 | E95: =+WTA!E104 -> 0 | F95: =+WTA!F104 -> 0 | G95: =+WTA!G104 -> 0 | H95: =+WTA!H104 -> 0 | I95: =+WTA!I104 -> 0 | J95: =+WTA!J104 -> 0 | K95: =+WTA!K104 -> 0 | L95: =+WTA!L104 -> 0 | M95: =+WTA!M104 -> 0 | N95: =+WTA!N104 -> 0 | O95: =+WTA!O104 -> 0 | P95: =+WTA!P104 -> 0 | Q95: =+WTA!Q104 -> 0 | R95: =+WTA!R104 -> 0
A96: =+WTA!A105 -> 0 | B96: =+WTA!B105 -> 0 | C96: =+WTA!C105 -> 0 | D96: =+WTA!D105 -> 0 | E96: =+WTA!E105 -> 0 | F96: =+WTA!F105 -> 0 | G96: =+WTA!G105 -> 0 | H96: =+WTA!H105 -> 0 | I96: =+WTA!I105 -> 0 | J96: =+WTA!J105 -> 0 | K96: =+WTA!K105 -> 0 | L96: =+WTA!L105 -> 0 | M96: =+WTA!M105 -> 0 | N96: =+WTA!N105 -> 0 | O96: =+WTA!O105 -> 0 | P96: =+WTA!P105 -> 0 | Q96: =+WTA!Q105 -> 0 | R96: =+WTA!R105 -> 0
A97: =+WTA!A106 -> 0 | B97: =+WTA!B106 -> 0 | C97: =+WTA!C106 -> 0 | D97: =+WTA!D106 -> 0 | E97: =+WTA!E106 -> 0 | F97: =+WTA!F106 -> 0 | G97: =+WTA!G106 -> 0 | H97: =+WTA!H106 -> 0 | I97: =+WTA!I106 -> 0 | J97: =+WTA!J106 -> 0 | K97: =+WTA!K106 -> 0 | L97: =+WTA!L106 -> 0 | M97: =+WTA!M106 -> 0 | N97: =+WTA!N106 -> 0 | O97: =+WTA!O106 -> 0 | P97: =+WTA!P106 -> 0 | Q97: =+WTA!Q106 -> 0 | R97: =+WTA!R106 -> 0
A98: =+WTA!A107 -> 0 | B98: =+WTA!B107 -> 0 | C98: =+WTA!C107 -> 0 | D98: =+WTA!D107 -> 0 | E98: =+WTA!E107 -> 0 | F98: =+WTA!F107 -> 0 | G98: =+WTA!G107 -> 0 | H98: =+WTA!H107 -> 0 | I98: =+WTA!I107 -> 0 | J98: =+WTA!J107 -> 0 | K98: =+WTA!K107 -> 0 | L98: =+WTA!L107 -> 0 | M98: =+WTA!M107 -> 0 | N98: =+WTA!N107 -> 0 | O98: =+WTA!O107 -> 0 | P98: =+WTA!P107 -> 0 | Q98: =+WTA!Q107 -> 0 | R98: =+WTA!R107 -> 0
A99: =+WTA!A108 -> 0 | B99: =+WTA!B108 -> 0 | C99: =+WTA!C108 -> 0 | D99: =+WTA!D108 -> 0 | E99: =+WTA!E108 -> 0 | F99: =+WTA!F108 -> 0 | G99: =+WTA!G108 -> 0 | H99: =+WTA!H108 -> 0 | I99: =+WTA!I108 -> 0 | J99: =+WTA!J108 -> 0 | K99: =+WTA!K108 -> 0 | L99: =+WTA!L108 -> 0 | M99: =+WTA!M108 -> 0 | N99: =+WTA!N108 -> 0 | O99: =+WTA!O108 -> 0 | P99: =+WTA!P108 -> 0 | Q99: =+WTA!Q108 -> 0 | R99: =+WTA!R108 -> 0
A100: =+WTA!A109 -> 0 | B100: =+WTA!B109 -> 0 | C100: =+WTA!C109 -> 0 | D100: =+WTA!D109 -> 0 | E100: =+WTA!E109 -> 0 | F100: =+WTA!F109 -> 0 | G100: =+WTA!G109 -> 0 | H100: =+WTA!H109 -> 0 | I100: =+WTA!I109 -> 0 | J100: =+WTA!J109 -> 0 | K100: =+WTA!K109 -> 0 | L100: =+WTA!L109 -> 0 | M100: =+WTA!M109 -> 0 | N100: =+WTA!N109 -> 0 | O100: =+WTA!O109 -> 0 | P100: =+WTA!P109 -> 0 | Q100: =+WTA!Q109 -> 0 | R100: =+WTA!R109 -> 0
A101: =+WTA!A110 -> 0 | B101: =+WTA!B110 -> 0 | C101: =+WTA!C110 -> 0 | D101: =+WTA!D110 -> 0 | E101: =+WTA!E110 -> 0 | F101: =+WTA!F110 -> 0 | G101: =+WTA!G110 -> 0 | H101: =+WTA!H110 -> 0 | I101: =+WTA!I110 -> 0 | J101: =+WTA!J110 -> 0 | K101: =+WTA!K110 -> 0 | L101: =+WTA!L110 -> 0 | M101: =+WTA!M110 -> 0 | N101: =+WTA!N110 -> 0 | O101: =+WTA!O110 -> 0 | P101: =+WTA!P110 -> 0 | Q101: =+WTA!Q110 -> 0 | R101: =+WTA!R110 -> 0
A102: =+WTA!A111 -> 0 | B102: =+WTA!B111 -> 0 | C102: =+WTA!C111 -> 0 | D102: =+WTA!D111 -> 0 | E102: =+WTA!E111 -> 0 | F102: =+WTA!F111 -> 0 | G102: =+WTA!G111 -> 0 | H102: =+WTA!H111 -> 0 | I102: =+WTA!I111 -> 0 | J102: =+WTA!J111 -> 0 | K102: =+WTA!K111 -> 0 | L102: =+WTA!L111 -> 0 | M102: =+WTA!M111 -> 0 | N102: =+WTA!N111 -> 0 | O102: =+WTA!O111 -> 0 | P102: =+WTA!P111 -> 0 | Q102: =+WTA!Q111 -> 0 | R102: =+WTA!R111 -> 0
A103: =+WTA!A112 -> 0 | B103: =+WTA!B112 -> 0 | C103: =+WTA!C112 -> 0 | D103: =+WTA!D112 -> 0 | E103: =+WTA!E112 -> 0 | F103: =+WTA!F112 -> 0 | G103: =+WTA!G112 -> 0 | H103: =+WTA!H112 -> 0 | I103: =+WTA!I112 -> 0 | J103: =+WTA!J112 -> 0 | K103: =+WTA!K112 -> 0 | L103: =+WTA!L112 -> 0 | M103: =+WTA!M112 -> 0 | N103: =+WTA!N112 -> 0 | O103: =+WTA!O112 -> 0 | P103: =+WTA!P112 -> 0 | Q103: =+WTA!Q112 -> 0 | R103: =+WTA!R112 -> 0
A104: =+WTA!A113 -> 0 | B104: =+WTA!B113 -> 0 | C104: =+WTA!C113 -> 0 | D104: =+WTA!D113 -> 0 | E104: =+WTA!E113 -> 0 | F104: =+WTA!F113 -> 0 | G104: =+WTA!G113 -> 0 | H104: =+WTA!H113 -> 0 | I104: =+WTA!I113 -> 0 | J104: =+WTA!J113 -> 0 | K104: =+WTA!K113 -> 0 | L104: =+WTA!L113 -> 0 | M104: =+WTA!M113 -> 0 | N104: =+WTA!N113 -> 0 | O104: =+WTA!O113 -> 0 | P104: =+WTA!P113 -> 0 | Q104: =+WTA!Q113 -> 0 | R104: =+WTA!R113 -> 0
A105: =+WTA!A114 -> 0 | B105: =+WTA!B114 -> 0 | C105: =+WTA!C114 -> 0 | D105: =+WTA!D114 -> 0 | E105: =+WTA!E114 -> 0 | F105: =+WTA!F114 -> 0 | G105: =+WTA!G114 -> 0 | H105: =+WTA!H114 -> 0 | I105: =+WTA!I114 -> 0 | J105: =+WTA!J114 -> 0 | K105: =+WTA!K114 -> 0 | L105: =+WTA!L114 -> 0 | M105: =+WTA!M114 -> 0 | N105: =+WTA!N114 -> 0 | O105: =+WTA!O114 -> 0 | P105: =+WTA!P114 -> 0 | Q105: =+WTA!Q114 -> 0 | R105: =+WTA!R114 -> 0
A106: =+WTA!A115 -> 0 | B106: =+WTA!B115 -> 0 | C106: =+WTA!C115 -> 0 | D106: =+WTA!D115 -> 0 | E106: =+WTA!E115 -> 0 | F106: =+WTA!F115 -> 0 | G106: =+WTA!G115 -> 0 | H106: =+WTA!H115 -> 0 | I106: =+WTA!I115 -> 0 | J106: =+WTA!J115 -> 0 | K106: =+WTA!K115 -> 0 | L106: =+WTA!L115 -> 0 | M106: =+WTA!M115 -> 0 | N106: =+WTA!N115 -> 0 | O106: =+WTA!O115 -> 0 | P106: =+WTA!P115 -> 0 | Q106: =+WTA!Q115 -> 0 | R106: =+WTA!R115 -> 0
A107: =+WTA!A116 -> 0 | B107: =+WTA!B116 -> 0 | C107: =+WTA!C116 -> 0 | D107: =+WTA!D116 -> 0 | E107: =+WTA!E116 -> 0 | F107: =+WTA!F116 -> 0 | G107: =+WTA!G116 -> 0 | H107: =+WTA!H116 -> 0 | I107: =+WTA!I116 -> 0 | J107: =+WTA!J116 -> 0 | K107: =+WTA!K116 -> 0 | L107: =+WTA!L116 -> 0 | M107: =+WTA!M116 -> 0 | N107: =+WTA!N116 -> 0 | O107: =+WTA!O116 -> 0 | P107: =+WTA!P116 -> 0 | Q107: =+WTA!Q116 -> 0 | R107: =+WTA!R116 -> 0
A108: =+WTA!A117 -> 0 | B108: =+WTA!B117 -> 0 | C108: =+WTA!C117 -> 0 | D108: =+WTA!D117 -> 0 | E108: =+WTA!E117 -> 0 | F108: =+WTA!F117 -> 0 | G108: =+WTA!G117 -> 0 | H108: =+WTA!H117 -> 0 | I108: =+WTA!I117 -> 0 | J108: =+WTA!J117 -> 0 | K108: =+WTA!K117 -> 0 | L108: =+WTA!L117 -> 0 | M108: =+WTA!M117 -> 0 | N108: =+WTA!N117 -> 0 | O108: =+WTA!O117 -> 0 | P108: =+WTA!P117 -> 0 | Q108: =+WTA!Q117 -> 0 | R108: =+WTA!R117 -> 0
A109: =+WTA!A118 -> 0 | B109: =+WTA!B118 -> 0 | C109: =+WTA!C118 -> 0 | D109: =+WTA!D118 -> 0 | E109: =+WTA!E118 -> 0 | F109: =+WTA!F118 -> 0 | G109: =+WTA!G118 -> 0 | H109: =+WTA!H118 -> 0 | I109: =+WTA!I118 -> 0 | J109: =+WTA!J118 -> 0 | K109: =+WTA!K118 -> 0 | L109: =+WTA!L118 -> 0 | M109: =+WTA!M118 -> 0 | N109: =+WTA!N118 -> 0 | O109: =+WTA!O118 -> 0 | P109: =+WTA!P118 -> 0 | Q109: =+WTA!Q118 -> 0 | R109: =+WTA!R118 -> 0
A110: =+WTA!A119 -> 0 | B110: =+WTA!B119 -> 0 | C110: =+WTA!C119 -> 0 | D110: =+WTA!D119 -> 0 | E110: =+WTA!E119 -> 0 | F110: =+WTA!F119 -> 0 | G110: =+WTA!G119 -> 0 | H110: =+WTA!H119 -> 0 | I110: =+WTA!I119 -> 0 | J110: =+WTA!J119 -> 0 | K110: =+WTA!K119 -> 0 | L110: =+WTA!L119 -> 0 | M110: =+WTA!M119 -> 0 | N110: =+WTA!N119 -> 0 | O110: =+WTA!O119 -> 0 | P110: =+WTA!P119 -> 0 | Q110: =+WTA!Q119 -> 0 | R110: =+WTA!R119 -> 0
A111: =+WTA!A120 -> 0 | B111: =+WTA!B120 -> 0 | C111: =+WTA!C120 -> 0 | D111: =+WTA!D120 -> 0 | E111: =+WTA!E120 -> 0 | F111: =+WTA!F120 -> 0 | G111: =+WTA!G120 -> 0 | H111: =+WTA!H120 -> 0 | I111: =+WTA!I120 -> 0 | J111: =+WTA!J120 -> 0 | K111: =+WTA!K120 -> 0 | L111: =+WTA!L120 -> 0 | M111: =+WTA!M120 -> 0 | N111: =+WTA!N120 -> 0 | O111: =+WTA!O120 -> 0 | P111: =+WTA!P120 -> 0 | Q111: =+WTA!Q120 -> 0 | R111: =+WTA!R120 -> 0
A112: =+WTA!A121 -> 0 | B112: =+WTA!B121 -> 0 | C112: =+WTA!C121 -> 0 | D112: =+WTA!D121 -> 0 | E112: =+WTA!E121 -> 0 | F112: =+WTA!F121 -> 0 | G112: =+WTA!G121 -> 0 | H112: =+WTA!H121 -> 0 | I112: =+WTA!I121 -> 0 | J112: =+WTA!J121 -> 0 | K112: =+WTA!K121 -> 0 | L112: =+WTA!L121 -> 0 | M112: =+WTA!M121 -> 0 | N112: =+WTA!N121 -> 0 | O112: =+WTA!O121 -> 0 | P112: =+WTA!P121 -> 0 | Q112: =+WTA!Q121 -> 0 | R112: =+WTA!R121 -> 0
A113: =+WTA!A122 -> 0 | B113: =+WTA!B122 -> 0 | C113: =+WTA!C122 -> 0 | D113: =+WTA!D122 -> 0 | E113: =+WTA!E122 -> 0 | F113: =+WTA!F122 -> 0 | G113: =+WTA!G122 -> 0 | H113: =+WTA!H122 -> 0 | I113: =+WTA!I122 -> 0 | J113: =+WTA!J122 -> 0 | K113: =+WTA!K122 -> 0 | L113: =+WTA!L122 -> 0 | M113: =+WTA!M122 -> 0 | N113: =+WTA!N122 -> 0 | O113: =+WTA!O122 -> 0 | P113: =+WTA!P122 -> 0 | Q113: =+WTA!Q122 -> 0 | R113: =+WTA!R122 -> 0
A114: =+WTA!A123 -> 0 | B114: =+WTA!B123 -> 0 | C114: =+WTA!C123 -> 0 | D114: =+WTA!D123 -> 0 | E114: =+WTA!E123 -> 0 | F114: =+WTA!F123 -> 0 | G114: =+WTA!G123 -> 0 | H114: =+WTA!H123 -> 0 | I114: =+WTA!I123 -> 0 | J114: =+WTA!J123 -> 0 | K114: =+WTA!K123 -> 0 | L114: =+WTA!L123 -> 0 | M114: =+WTA!M123 -> 0 | N114: =+WTA!N123 -> 0 | O114: =+WTA!O123 -> 0 | P114: =+WTA!P123 -> 0 | Q114: =+WTA!Q123 -> 0 | R114: =+WTA!R123 -> 0
A115: =+WTA!A124 -> 0 | B115: =+WTA!B124 -> 0 | C115: =+WTA!C124 -> 0 | D115: =+WTA!D124 -> 0 | E115: =+WTA!E124 -> 0 | F115: =+WTA!F124 -> 0 | G115: =+WTA!G124 -> 0 | H115: =+WTA!H124 -> 0 | I115: =+WTA!I124 -> 0 | J115: =+WTA!J124 -> 0 | K115: =+WTA!K124 -> 0 | L115: =+WTA!L124 -> 0 | M115: =+WTA!M124 -> 0 | N115: =+WTA!N124 -> 0 | O115: =+WTA!O124 -> 0 | P115: =+WTA!P124 -> 0 | Q115: =+WTA!Q124 -> 0 | R115: =+WTA!R124 -> 0
A116: =+WTA!A125 -> 0 | B116: =+WTA!B125 -> 0 | C116: =+WTA!C125 -> 0 | D116: =+WTA!D125 -> 0 | E116: =+WTA!E125 -> 0 | F116: =+WTA!F125 -> 0 | G116: =+WTA!G125 -> 0 | H116: =+WTA!H125 -> 0 | I116: =+WTA!I125 -> 0 | J116: =+WTA!J125 -> 0 | K116: =+WTA!K125 -> 0 | L116: =+WTA!L125 -> 0 | M116: =+WTA!M125 -> 0 | N116: =+WTA!N125 -> 0 | O116: =+WTA!O125 -> 0 | P116: =+WTA!P125 -> 0 | Q116: =+WTA!Q125 -> 0 | R116: =+WTA!R125 -> 0
A117: =+WTA!A126 -> 0 | B117: =+WTA!B126 -> 0 | C117: =+WTA!C126 -> 0 | D117: =+WTA!D126 -> 0 | E117: =+WTA!E126 -> 0 | F117: =+WTA!F126 -> 0 | G117: =+WTA!G126 -> 0 | H117: =+WTA!H126 -> 0 | I117: =+WTA!I126 -> 0 | J117: =+WTA!J126 -> 0 | K117: =+WTA!K126 -> 0 | L117: =+WTA!L126 -> 0 | M117: =+WTA!M126 -> 0 | N117: =+WTA!N126 -> 0 | O117: =+WTA!O126 -> 0 | P117: =+WTA!P126 -> 0 | Q117: =+WTA!Q126 -> 0 | R117: =+WTA!R126 -> 0
A118: =+WTA!A127 -> 0 | B118: =+WTA!B127 -> 0 | C118: =+WTA!C127 -> 0 | D118: =+WTA!D127 -> 0 | E118: =+WTA!E127 -> 0 | F118: =+WTA!F127 -> 0 | G118: =+WTA!G127 -> 0 | H118: =+WTA!H127 -> 0 | I118: =+WTA!I127 -> 0 | J118: =+WTA!J127 -> 0 | K118: =+WTA!K127 -> 0 | L118: =+WTA!L127 -> 0 | M118: =+WTA!M127 -> 0 | N118: =+WTA!N127 -> 0 | O118: =+WTA!O127 -> 0 | P118: =+WTA!P127 -> 0 | Q118: =+WTA!Q127 -> 0 | R118: =+WTA!R127 -> 0
A119: =+WTA!A128 -> 0 | B119: =+WTA!B128 -> 0 | C119: =+WTA!C128 -> 0 | D119: =+WTA!D128 -> 0 | E119: =+WTA!E128 -> 0 | F119: =+WTA!F128 -> 0 | G119: =+WTA!G128 -> 0 | H119: =+WTA!H128 -> 0 | I119: =+WTA!I128 -> 0 | J119: =+WTA!J128 -> 0 | K119: =+WTA!K128 -> 0 | L119: =+WTA!L128 -> 0 | M119: =+WTA!M128 -> 0 | N119: =+WTA!N128 -> 0 | O119: =+WTA!O128 -> 0 | P119: =+WTA!P128 -> 0 | Q119: =+WTA!Q128 -> 0 | R119: =+WTA!R128 -> 0
A120: =+WTA!A129 -> 0 | B120: =+WTA!B129 -> 0 | C120: =+WTA!C129 -> 0 | D120: =+WTA!D129 -> 0 | E120: =+WTA!E129 -> 0 | F120: =+WTA!F129 -> 0 | G120: =+WTA!G129 -> 0 | H120: =+WTA!H129 -> 0 | I120: =+WTA!I129 -> 0 | J120: =+WTA!J129 -> 0 | K120: =+WTA!K129 -> 0 | L120: =+WTA!L129 -> 0 | M120: =+WTA!M129 -> 0 | N120: =+WTA!N129 -> 0 | O120: =+WTA!O129 -> 0 | P120: =+WTA!P129 -> 0 | Q120: =+WTA!Q129 -> 0 | R120: =+WTA!R129 -> 0
A121: =+WTA!A130 -> 0 | B121: =+WTA!B130 -> 0 | C121: =+WTA!C130 -> 0 | D121: =+WTA!D130 -> 0 | E121: =+WTA!E130 -> 0 | F121: =+WTA!F130 -> 0 | G121: =+WTA!G130 -> 0 | H121: =+WTA!H130 -> 0 | I121: =+WTA!I130 -> 0 | J121: =+WTA!J130 -> 0 | K121: =+WTA!K130 -> 0 | L121: =+WTA!L130 -> 0 | M121: =+WTA!M130 -> 0 | N121: =+WTA!N130 -> 0 | O121: =+WTA!O130 -> 0 | P121: =+WTA!P130 -> 0 | Q121: =+WTA!Q130 -> 0 | R121: =+WTA!R130 -> 0
A122: =+WTA!A131 -> 0 | B122: =+WTA!B131 -> 0 | C122: =+WTA!C131 -> 0 | D122: =+WTA!D131 -> 0 | E122: =+WTA!E131 -> 0 | F122: =+WTA!F131 -> 0 | G122: =+WTA!G131 -> 0 | H122: =+WTA!H131 -> 0 | I122: =+WTA!I131 -> 0 | J122: =+WTA!J131 -> 0 | K122: =+WTA!K131 -> 0 | L122: =+WTA!L131 -> 0 | M122: =+WTA!M131 -> 0 | N122: =+WTA!N131 -> 0 | O122: =+WTA!O131 -> 0 | P122: =+WTA!P131 -> 0 | Q122: =+WTA!Q131 -> 0 | R122: =+WTA!R131 -> 0
A123: =+WTA!A132 -> 0 | B123: =+WTA!B132 -> 0 | C123: =+WTA!C132 -> 0 | D123: =+WTA!D132 -> 0 | E123: =+WTA!E132 -> 0 | F123: =+WTA!F132 -> 0 | G123: =+WTA!G132 -> 0 | H123: =+WTA!H132 -> 0 | I123: =+WTA!I132 -> 0 | J123: =+WTA!J132 -> 0 | K123: =+WTA!K132 -> 0 | L123: =+WTA!L132 -> 0 | M123: =+WTA!M132 -> 0 | N123: =+WTA!N132 -> 0 | O123: =+WTA!O132 -> 0 | P123: =+WTA!P132 -> 0 | Q123: =+WTA!Q132 -> 0 | R123: =+WTA!R132 -> 0
A124: =+WTA!A133 -> 0 | B124: =+WTA!B133 -> 0 | C124: =+WTA!C133 -> 0 | D124: =+WTA!D133 -> 0 | E124: =+WTA!E133 -> 0 | F124: =+WTA!F133 -> 0 | G124: =+WTA!G133 -> 0 | H124: =+WTA!H133 -> 0 | I124: =+WTA!I133 -> 0 | J124: =+WTA!J133 -> 0 | K124: =+WTA!K133 -> 0 | L124: =+WTA!L133 -> 0 | M124: =+WTA!M133 -> 0 | N124: =+WTA!N133 -> 0 | O124: =+WTA!O133 -> 0 | P124: =+WTA!P133 -> 0 | Q124: =+WTA!Q133 -> 0 | R124: =+WTA!R133 -> 0
A125: =+WTA!A134 -> 0 | B125: =+WTA!B134 -> 0 | C125: =+WTA!C134 -> 0 | D125: =+WTA!D134 -> 0 | E125: =+WTA!E134 -> 0 | F125: =+WTA!F134 -> 0 | G125: =+WTA!G134 -> 0 | H125: =+WTA!H134 -> 0 | I125: =+WTA!I134 -> 0 | J125: =+WTA!J134 -> 0 | K125: =+WTA!K134 -> 0 | L125: =+WTA!L134 -> 0 | M125: =+WTA!M134 -> 0 | N125: =+WTA!N134 -> 0 | O125: =+WTA!O134 -> 0 | P125: =+WTA!P134 -> 0 | Q125: =+WTA!Q134 -> 0 | R125: =+WTA!R134 -> 0
A126: =+WTA!A135 -> 0 | B126: =+WTA!B135 -> 0 | C126: =+WTA!C135 -> 0 | D126: =+WTA!D135 -> 0 | E126: =+WTA!E135 -> 0 | F126: =+WTA!F135 -> 0 | G126: =+WTA!G135 -> 0 | H126: =+WTA!H135 -> 0 | I126: =+WTA!I135 -> 0 | J126: =+WTA!J135 -> 0 | K126: =+WTA!K135 -> 0 | L126: =+WTA!L135 -> 0 | M126: =+WTA!M135 -> 0 | N126: =+WTA!N135 -> 0 | O126: =+WTA!O135 -> 0 | P126: =+WTA!P135 -> 0 | Q126: =+WTA!Q135 -> 0 | R126: =+WTA!R135 -> 0
A127: =+WTA!A136 -> 0 | B127: =+WTA!B136 -> 0 | C127: =+WTA!C136 -> 0 | D127: =+WTA!D136 -> 0 | E127: =+WTA!E136 -> 0 | F127: =+WTA!F136 -> 0 | G127: =+WTA!G136 -> 0 | H127: =+WTA!H136 -> 0 | I127: =+WTA!I136 -> 0 | J127: =+WTA!J136 -> 0 | K127: =+WTA!K136 -> 0 | L127: =+WTA!L136 -> 0 | M127: =+WTA!M136 -> 0 | N127: =+WTA!N136 -> 0 | O127: =+WTA!O136 -> 0 | P127: =+WTA!P136 -> 0 | Q127: =+WTA!Q136 -> 0 | R127: =+WTA!R136 -> 0
A128: =+WTA!A137 -> 0 | B128: =+WTA!B137 -> 0 | C128: =+WTA!C137 -> 0 | D128: =+WTA!D137 -> 0 | E128: =+WTA!E137 -> 0 | F128: =+WTA!F137 -> 0 | G128: =+WTA!G137 -> 0 | H128: =+WTA!H137 -> 0 | I128: =+WTA!I137 -> 0 | J128: =+WTA!J137 -> 0 | K128: =+WTA!K137 -> 0 | L128: =+WTA!L137 -> 0 | M128: =+WTA!M137 -> 0 | N128: =+WTA!N137 -> 0 | O128: =+WTA!O137 -> 0 | P128: =+WTA!P137 -> 0 | Q128: =+WTA!Q137 -> 0 | R128: =+WTA!R137 -> 0
A129: =+WTA!A138 -> 0 | B129: =+WTA!B138 -> 0 | C129: =+WTA!C138 -> 0 | D129: =+WTA!D138 -> 0 | E129: =+WTA!E138 -> 0 | F129: =+WTA!F138 -> 0 | G129: =+WTA!G138 -> 0 | H129: =+WTA!H138 -> 0 | I129: =+WTA!I138 -> 0 | J129: =+WTA!J138 -> 0 | K129: =+WTA!K138 -> 0 | L129: =+WTA!L138 -> 0 | M129: =+WTA!M138 -> 0 | N129: =+WTA!N138 -> 0 | O129: =+WTA!O138 -> 0 | P129: =+WTA!P138 -> 0 | Q129: =+WTA!Q138 -> 0 | R129: =+WTA!R138 -> 0
A130: =+WTA!A139 -> 0 | B130: =+WTA!B139 -> 0 | C130: =+WTA!C139 -> 0 | D130: =+WTA!D139 -> 0 | E130: =+WTA!E139 -> 0 | F130: =+WTA!F139 -> 0 | G130: =+WTA!G139 -> 0 | H130: =+WTA!H139 -> 0 | I130: =+WTA!I139 -> 0 | J130: =+WTA!J139 -> 0 | K130: =+WTA!K139 -> 0 | L130: =+WTA!L139 -> 0 | M130: =+WTA!M139 -> 0 | N130: =+WTA!N139 -> 0 | O130: =+WTA!O139 -> 0 | P130: =+WTA!P139 -> 0 | Q130: =+WTA!Q139 -> 0 | R130: =+WTA!R139 -> 0
A131: =+WTA!A140 -> 0 | B131: =+WTA!B140 -> 0 | C131: =+WTA!C140 -> 0 | D131: =+WTA!D140 -> 0 | E131: =+WTA!E140 -> 0 | F131: =+WTA!F140 -> 0 | G131: =+WTA!G140 -> 0 | H131: =+WTA!H140 -> 0 | I131: =+WTA!I140 -> 0 | J131: =+WTA!J140 -> 0 | K131: =+WTA!K140 -> 0 | L131: =+WTA!L140 -> 0 | M131: =+WTA!M140 -> 0 | N131: =+WTA!N140 -> 0 | O131: =+WTA!O140 -> 0 | P131: =+WTA!P140 -> 0 | Q131: =+WTA!Q140 -> 0 | R131: =+WTA!R140 -> 0
A132: =+WTA!A141 -> 0 | B132: =+WTA!B141 -> 0 | C132: =+WTA!C141 -> 0 | D132: =+WTA!D141 -> 0 | E132: =+WTA!E141 -> 0 | F132: =+WTA!F141 -> 0 | G132: =+WTA!G141 -> 0 | H132: =+WTA!H141 -> 0 | I132: =+WTA!I141 -> 0 | J132: =+WTA!J141 -> 0 | K132: =+WTA!K141 -> 0 | L132: =+WTA!L141 -> 0 | M132: =+WTA!M141 -> 0 | N132: =+WTA!N141 -> 0 | O132: =+WTA!O141 -> 0 | P132: =+WTA!P141 -> 0 | Q132: =+WTA!Q141 -> 0 | R132: =+WTA!R141 -> 0
A133: =+WTA!A142 -> 0 | B133: =+WTA!B142 -> 0 | C133: =+WTA!C142 -> 0 | D133: =+WTA!D142 -> 0 | E133: =+WTA!E142 -> 0 | F133: =+WTA!F142 -> 0 | G133: =+WTA!G142 -> 0 | H133: =+WTA!H142 -> 0 | I133: =+WTA!I142 -> 0 | J133: =+WTA!J142 -> 0 | K133: =+WTA!K142 -> 0 | L133: =+WTA!L142 -> 0 | M133: =+WTA!M142 -> 0 | N133: =+WTA!N142 -> 0 | O133: =+WTA!O142 -> 0 | P133: =+WTA!P142 -> 0 | Q133: =+WTA!Q142 -> 0 | R133: =+WTA!R142 -> 0
A134: =+WTA!A143 -> 0 | B134: =+WTA!B143 -> 0 | C134: =+WTA!C143 -> 0 | D134: =+WTA!D143 -> 0 | E134: =+WTA!E143 -> 0 | F134: =+WTA!F143 -> 0 | G134: =+WTA!G143 -> 0 | H134: =+WTA!H143 -> 0 | I134: =+WTA!I143 -> 0 | J134: =+WTA!J143 -> 0 | K134: =+WTA!K143 -> 0 | L134: =+WTA!L143 -> 0 | M134: =+WTA!M143 -> 0 | N134: =+WTA!N143 -> 0 | O134: =+WTA!O143 -> 0 | P134: =+WTA!P143 -> 0 | Q134: =+WTA!Q143 -> 0 | R134: =+WTA!R143 -> 0
A135: =+WTA!A144 -> 0 | B135: =+WTA!B144 -> 0 | C135: =+WTA!C144 -> 0 | D135: =+WTA!D144 -> 0 | E135: =+WTA!E144 -> 0 | F135: =+WTA!F144 -> 0 | G135: =+WTA!G144 -> 0 | H135: =+WTA!H144 -> 0 | I135: =+WTA!I144 -> 0 | J135: =+WTA!J144 -> 0 | K135: =+WTA!K144 -> 0 | L135: =+WTA!L144 -> 0 | M135: =+WTA!M144 -> 0 | N135: =+WTA!N144 -> 0 | O135: =+WTA!O144 -> 0 | P135: =+WTA!P144 -> 0 | Q135: =+WTA!Q144 -> 0 | R135: =+WTA!R144 -> 0
A136: =+WTA!A145 -> 0 | B136: =+WTA!B145 -> 0 | C136: =+WTA!C145 -> 0 | D136: =+WTA!D145 -> 0 | E136: =+WTA!E145 -> 0 | F136: =+WTA!F145 -> 0 | G136: =+WTA!G145 -> 0 | H136: =+WTA!H145 -> 0 | I136: =+WTA!I145 -> 0 | J136: =+WTA!J145 -> 0 | K136: =+WTA!K145 -> 0 | L136: =+WTA!L145 -> 0 | M136: =+WTA!M145 -> 0 | N136: =+WTA!N145 -> 0 | O136: =+WTA!O145 -> 0 | P136: =+WTA!P145 -> 0 | Q136: =+WTA!Q145 -> 0 | R136: =+WTA!R145 -> 0
A137: =+WTA!A146 -> 0 | B137: =+WTA!B146 -> 0 | C137: =+WTA!C146 -> 0 | D137: =+WTA!D146 -> 0 | E137: =+WTA!E146 -> 0 | F137: =+WTA!F146 -> 0 | G137: =+WTA!G146 -> 0 | H137: =+WTA!H146 -> 0 | I137: =+WTA!I146 -> 0 | J137: =+WTA!J146 -> 0 | K137: =+WTA!K146 -> 0 | L137: =+WTA!L146 -> 0 | M137: =+WTA!M146 -> 0 | N137: =+WTA!N146 -> 0 | O137: =+WTA!O146 -> 0 | P137: =+WTA!P146 -> 0 | Q137: =+WTA!Q146 -> 0 | R137: =+WTA!R146 -> 0
A138: =+WTA!A147 -> 0 | B138: =+WTA!B147 -> 0 | C138: =+WTA!C147 -> 0 | D138: =+WTA!D147 -> 0 | E138: =+WTA!E147 -> 0 | F138: =+WTA!F147 -> 0 | G138: =+WTA!G147 -> 0 | H138: =+WTA!H147 -> 0 | I138: =+WTA!I147 -> 0 | J138: =+WTA!J147 -> 0 | K138: =+WTA!K147 -> 0 | L138: =+WTA!L147 -> 0 | M138: =+WTA!M147 -> 0 | N138: =+WTA!N147 -> 0 | O138: =+WTA!O147 -> 0 | P138: =+WTA!P147 -> 0 | Q138: =+WTA!Q147 -> 0 | R138: =+WTA!R147 -> 0
A139: =+WTA!A148 -> 0 | B139: =+WTA!B148 -> 0 | C139: =+WTA!C148 -> 0 | D139: =+WTA!D148 -> 0 | E139: =+WTA!E148 -> 0 | F139: =+WTA!F148 -> 0 | G139: =+WTA!G148 -> 0 | H139: =+WTA!H148 -> 0 | I139: =+WTA!I148 -> 0 | J139: =+WTA!J148 -> 0 | K139: =+WTA!K148 -> 0 | L139: =+WTA!L148 -> 0 | M139: =+WTA!M148 -> 0 | N139: =+WTA!N148 -> 0 | O139: =+WTA!O148 -> 0 | P139: =+WTA!P148 -> 0 | Q139: =+WTA!Q148 -> 0 | R139: =+WTA!R148 -> 0
A140: =+WTA!A149 -> 0 | B140: =+WTA!B149 -> 0 | C140: =+WTA!C149 -> 0 | D140: =+WTA!D149 -> 0 | E140: =+WTA!E149 -> 0 | F140: =+WTA!F149 -> 0 | G140: =+WTA!G149 -> 0 | H140: =+WTA!H149 -> 0 | I140: =+WTA!I149 -> 0 | J140: =+WTA!J149 -> 0 | K140: =+WTA!K149 -> 0 | L140: =+WTA!L149 -> 0 | M140: =+WTA!M149 -> 0 | N140: =+WTA!N149 -> 0 | O140: =+WTA!O149 -> 0 | P140: =+WTA!P149 -> 0 | Q140: =+WTA!Q149 -> 0 | R140: =+WTA!R149 -> 0
A141: =+WTA!A150 -> 0 | B141: =+WTA!B150 -> 0 | C141: =+WTA!C150 -> 0 | D141: =+WTA!D150 -> 0 | E141: =+WTA!E150 -> 0 | F141: =+WTA!F150 -> 0 | G141: =+WTA!G150 -> 0 | H141: =+WTA!H150 -> 0 | I141: =+WTA!I150 -> 0 | J141: =+WTA!J150 -> 0 | K141: =+WTA!K150 -> 0 | L141: =+WTA!L150 -> 0 | M141: =+WTA!M150 -> 0 | N141: =+WTA!N150 -> 0 | O141: =+WTA!O150 -> 0 | P141: =+WTA!P150 -> 0 | Q141: =+WTA!Q150 -> 0 | R141: =+WTA!R150 -> 0
A142: =+WTA!A151 -> 0 | B142: =+WTA!B151 -> 0 | C142: =+WTA!C151 -> 0 | D142: =+WTA!D151 -> 0 | E142: =+WTA!E151 -> 0 | F142: =+WTA!F151 -> 0 | G142: =+WTA!G151 -> 0 | H142: =+WTA!H151 -> 0 | I142: =+WTA!I151 -> 0 | J142: =+WTA!J151 -> 0 | K142: =+WTA!K151 -> 0 | L142: =+WTA!L151 -> 0 | M142: =+WTA!M151 -> 0 | N142: =+WTA!N151 -> 0 | O142: =+WTA!O151 -> 0 | P142: =+WTA!P151 -> 0 | Q142: =+WTA!Q151 -> 0 | R142: =+WTA!R151 -> 0
A143: =+WTA!A152 -> 0 | B143: =+WTA!B152 -> 0 | C143: =+WTA!C152 -> 0 | D143: =+WTA!D152 -> 0 | E143: =+WTA!E152 -> 0 | F143: =+WTA!F152 -> 0 | G143: =+WTA!G152 -> 0 | H143: =+WTA!H152 -> 0 | I143: =+WTA!I152 -> 0 | J143: =+WTA!J152 -> 0 | K143: =+WTA!K152 -> 0 | L143: =+WTA!L152 -> 0 | M143: =+WTA!M152 -> 0 | N143: =+WTA!N152 -> 0 | O143: =+WTA!O152 -> 0 | P143: =+WTA!P152 -> 0 | Q143: =+WTA!Q152 -> 0 | R143: =+WTA!R152 -> 0
A144: =+WTA!A153 -> 0 | B144: =+WTA!B153 -> 0 | C144: =+WTA!C153 -> 0 | D144: =+WTA!D153 -> 0 | E144: =+WTA!E153 -> 0 | F144: =+WTA!F153 -> 0 | G144: =+WTA!G153 -> 0 | H144: =+WTA!H153 -> 0 | I144: =+WTA!I153 -> 0 | J144: =+WTA!J153 -> 0 | K144: =+WTA!K153 -> 0 | L144: =+WTA!L153 -> 0 | M144: =+WTA!M153 -> 0 | N144: =+WTA!N153 -> 0 | O144: =+WTA!O153 -> 0 | P144: =+WTA!P153 -> 0 | Q144: =+WTA!Q153 -> 0 | R144: =+WTA!R153 -> 0
A145: =+WTA!A154 -> 0 | B145: =+WTA!B154 -> 0 | C145: =+WTA!C154 -> 0 | D145: =+WTA!D154 -> 0 | E145: =+WTA!E154 -> 0 | F145: =+WTA!F154 -> 0 | G145: =+WTA!G154 -> 0 | H145: =+WTA!H154 -> 0 | I145: =+WTA!I154 -> 0 | J145: =+WTA!J154 -> 0 | K145: =+WTA!K154 -> 0 | L145: =+WTA!L154 -> 0 | M145: =+WTA!M154 -> 0 | N145: =+WTA!N154 -> 0 | O145: =+WTA!O154 -> 0 | P145: =+WTA!P154 -> 0 | Q145: =+WTA!Q154 -> 0 | R145: =+WTA!R154 -> 0
A146: =+WTA!A155 -> 0 | B146: =+WTA!B155 -> 0 | C146: =+WTA!C155 -> 0 | D146: =+WTA!D155 -> 0 | E146: =+WTA!E155 -> 0 | F146: =+WTA!F155 -> 0 | G146: =+WTA!G155 -> 0 | H146: =+WTA!H155 -> 0 | I146: =+WTA!I155 -> 0 | J146: =+WTA!J155 -> 0 | K146: =+WTA!K155 -> 0 | L146: =+WTA!L155 -> 0 | M146: =+WTA!M155 -> 0 | N146: =+WTA!N155 -> 0 | O146: =+WTA!O155 -> 0 | P146: =+WTA!P155 -> 0 | Q146: =+WTA!Q155 -> 0 | R146: =+WTA!R155 -> 0
A147: =+WTA!A156 -> 0 | B147: =+WTA!B156 -> 0 | C147: =+WTA!C156 -> 0 | D147: =+WTA!D156 -> 0 | E147: =+WTA!E156 -> 0 | F147: =+WTA!F156 -> 0 | G147: =+WTA!G156 -> 0 | H147: =+WTA!H156 -> 0 | I147: =+WTA!I156 -> 0 | J147: =+WTA!J156 -> 0 | K147: =+WTA!K156 -> 0 | L147: =+WTA!L156 -> 0 | M147: =+WTA!M156 -> 0 | N147: =+WTA!N156 -> 0 | O147: =+WTA!O156 -> 0 | P147: =+WTA!P156 -> 0 | Q147: =+WTA!Q156 -> 0 | R147: =+WTA!R156 -> 0
A148: =+WTA!A157 -> 0 | B148: =+WTA!B157 -> 0 | C148: =+WTA!C157 -> 0 | D148: =+WTA!D157 -> 0 | E148: =+WTA!E157 -> 0 | F148: =+WTA!F157 -> 0 | G148: =+WTA!G157 -> 0 | H148: =+WTA!H157 -> 0 | I148: =+WTA!I157 -> 0 | J148: =+WTA!J157 -> 0 | K148: =+WTA!K157 -> 0 | L148: =+WTA!L157 -> 0 | M148: =+WTA!M157 -> 0 | N148: =+WTA!N157 -> 0 | O148: =+WTA!O157 -> 0 | P148: =+WTA!P157 -> 0 | Q148: =+WTA!Q157 -> 0 | R148: =+WTA!R157 -> 0
A149: =+WTA!A158 -> 0 | B149: =+WTA!B158 -> 0 | C149: =+WTA!C158 -> 0 | D149: =+WTA!D158 -> 0 | E149: =+WTA!E158 -> 0 | F149: =+WTA!F158 -> 0 | G149: =+WTA!G158 -> 0 | H149: =+WTA!H158 -> 0 | I149: =+WTA!I158 -> 0 | J149: =+WTA!J158 -> 0 | K149: =+WTA!K158 -> 0 | L149: =+WTA!L158 -> 0 | M149: =+WTA!M158 -> 0 | N149: =+WTA!N158 -> 0 | O149: =+WTA!O158 -> 0 | P149: =+WTA!P158 -> 0 | Q149: =+WTA!Q158 -> 0 | R149: =+WTA!R158 -> 0
A150: =+WTA!A159 -> 0 | B150: =+WTA!B159 -> 0 | C150: =+WTA!C159 -> 0 | D150: =+WTA!D159 -> 0 | E150: =+WTA!E159 -> 0 | F150: =+WTA!F159 -> 0 | G150: =+WTA!G159 -> 0 | H150: =+WTA!H159 -> 0 | I150: =+WTA!I159 -> 0 | J150: =+WTA!J159 -> 0 | K150: =+WTA!K159 -> 0 | L150: =+WTA!L159 -> 0 | M150: =+WTA!M159 -> 0 | N150: =+WTA!N159 -> 0 | O150: =+WTA!O159 -> 0 | P150: =+WTA!P159 -> 0 | Q150: =+WTA!Q159 -> 0 | R150: =+WTA!R159 -> 0
A151: =+WTA!A160 -> 0 | B151: =+WTA!B160 -> 0 | C151: =+WTA!C160 -> 0 | D151: =+WTA!D160 -> 0 | E151: =+WTA!E160 -> 0 | F151: =+WTA!F160 -> 0 | G151: =+WTA!G160 -> 0 | H151: =+WTA!H160 -> 0 | I151: =+WTA!I160 -> 0 | J151: =+WTA!J160 -> 0 | K151: =+WTA!K160 -> 0 | L151: =+WTA!L160 -> 0 | M151: =+WTA!M160 -> 0 | N151: =+WTA!N160 -> 0 | O151: =+WTA!O160 -> 0 | P151: =+WTA!P160 -> 0 | Q151: =+WTA!Q160 -> 0 | R151: =+WTA!R160 -> 0
A152: =+WTA!A161 -> 0 | B152: =+WTA!B161 -> 0 | C152: =+WTA!C161 -> 0 | D152: =+WTA!D161 -> 0 | E152: =+WTA!E161 -> 0 | F152: =+WTA!F161 -> 0 | G152: =+WTA!G161 -> 0 | H152: =+WTA!H161 -> 0 | I152: =+WTA!I161 -> 0 | J152: =+WTA!J161 -> 0 | K152: =+WTA!K161 -> 0 | L152: =+WTA!L161 -> 0 | M152: =+WTA!M161 -> 0 | N152: =+WTA!N161 -> 0 | O152: =+WTA!O161 -> 0 | P152: =+WTA!P161 -> 0 | Q152: =+WTA!Q161 -> 0 | R152: =+WTA!R161 -> 0
A153: =+WTA!A162 -> 0 | B153: =+WTA!B162 -> 0 | C153: =+WTA!C162 -> 0 | D153: =+WTA!D162 -> 0 | E153: =+WTA!E162 -> 0 | F153: =+WTA!F162 -> 0 | G153: =+WTA!G162 -> 0 | H153: =+WTA!H162 -> 0 | I153: =+WTA!I162 -> 0 | J153: =+WTA!J162 -> 0 | K153: =+WTA!K162 -> 0 | L153: =+WTA!L162 -> 0 | M153: =+WTA!M162 -> 0 | N153: =+WTA!N162 -> 0 | O153: =+WTA!O162 -> 0 | P153: =+WTA!P162 -> 0 | Q153: =+WTA!Q162 -> 0 | R153: =+WTA!R162 -> 0
A154: =+WTA!A163 -> 0 | B154: =+WTA!B163 -> 0 | C154: =+WTA!C163 -> 0 | D154: =+WTA!D163 -> 0 | E154: =+WTA!E163 -> 0 | F154: =+WTA!F163 -> 0 | G154: =+WTA!G163 -> 0 | H154: =+WTA!H163 -> 0 | I154: =+WTA!I163 -> 0 | J154: =+WTA!J163 -> 0 | K154: =+WTA!K163 -> 0 | L154: =+WTA!L163 -> 0 | M154: =+WTA!M163 -> 0 | N154: =+WTA!N163 -> 0 | O154: =+WTA!O163 -> 0 | P154: =+WTA!P163 -> 0 | Q154: =+WTA!Q163 -> 0 | R154: =+WTA!R163 -> 0
A155: =+WTA!A164 -> 0 | B155: =+WTA!B164 -> 0 | C155: =+WTA!C164 -> 0 | D155: =+WTA!D164 -> 0 | E155: =+WTA!E164 -> 0 | F155: =+WTA!F164 -> 0 | G155: =+WTA!G164 -> 0 | H155: =+WTA!H164 -> 0 | I155: =+WTA!I164 -> 0 | J155: =+WTA!J164 -> 0 | K155: =+WTA!K164 -> 0 | L155: =+WTA!L164 -> 0 | M155: =+WTA!M164 -> 0 | N155: =+WTA!N164 -> 0 | O155: =+WTA!O164 -> 0 | P155: =+WTA!P164 -> 0 | Q155: =+WTA!Q164 -> 0 | R155: =+WTA!R164 -> 0
A156: =+WTA!A165 -> 0 | B156: =+WTA!B165 -> 0 | C156: =+WTA!C165 -> 0 | D156: =+WTA!D165 -> 0 | E156: =+WTA!E165 -> 0 | F156: =+WTA!F165 -> 0 | G156: =+WTA!G165 -> 0 | H156: =+WTA!H165 -> 0 | I156: =+WTA!I165 -> 0 | J156: =+WTA!J165 -> 0 | K156: =+WTA!K165 -> 0 | L156: =+WTA!L165 -> 0 | M156: =+WTA!M165 -> 0 | N156: =+WTA!N165 -> 0 | O156: =+WTA!O165 -> 0 | P156: =+WTA!P165 -> 0 | Q156: =+WTA!Q165 -> 0 | R156: =+WTA!R165 -> 0
A157: =+WTA!A166 -> 0 | B157: =+WTA!B166 -> 0 | C157: =+WTA!C166 -> 0 | D157: =+WTA!D166 -> 0 | E157: =+WTA!E166 -> 0 | F157: =+WTA!F166 -> 0 | G157: =+WTA!G166 -> 0 | H157: =+WTA!H166 -> 0 | I157: =+WTA!I166 -> 0 | J157: =+WTA!J166 -> 0 | K157: =+WTA!K166 -> 0 | L157: =+WTA!L166 -> 0 | M157: =+WTA!M166 -> 0 | N157: =+WTA!N166 -> 0 | O157: =+WTA!O166 -> 0 | P157: =+WTA!P166 -> 0 | Q157: =+WTA!Q166 -> 0 | R157: =+WTA!R166 -> 0
A158: =+WTA!A167 -> 0 | B158: =+WTA!B167 -> 0 | C158: =+WTA!C167 -> 0 | D158: =+WTA!D167 -> 0 | E158: =+WTA!E167 -> 0 | F158: =+WTA!F167 -> 0 | G158: =+WTA!G167 -> 0 | H158: =+WTA!H167 -> 0 | I158: =+WTA!I167 -> 0 | J158: =+WTA!J167 -> 0 | K158: =+WTA!K167 -> 0 | L158: =+WTA!L167 -> 0 | M158: =+WTA!M167 -> 0 | N158: =+WTA!N167 -> 0 | O158: =+WTA!O167 -> 0 | P158: =+WTA!P167 -> 0 | Q158: =+WTA!Q167 -> 0 | R158: =+WTA!R167 -> 0
A159: =+WTA!A168 -> 0 | B159: =+WTA!B168 -> 0 | C159: =+WTA!C168 -> 0 | D159: =+WTA!D168 -> 0 | E159: =+WTA!E168 -> 0 | F159: =+WTA!F168 -> 0 | G159: =+WTA!G168 -> 0 | H159: =+WTA!H168 -> 0 | I159: =+WTA!I168 -> 0 | J159: =+WTA!J168 -> 0 | K159: =+WTA!K168 -> 0 | L159: =+WTA!L168 -> 0 | M159: =+WTA!M168 -> 0 | N159: =+WTA!N168 -> 0 | O159: =+WTA!O168 -> 0 | P159: =+WTA!P168 -> 0 | Q159: =+WTA!Q168 -> 0 | R159: =+WTA!R168 -> 0
A160: =+WTA!A169 -> 0 | B160: =+WTA!B169 -> 0 | C160: =+WTA!C169 -> 0 | D160: =+WTA!D169 -> 0 | E160: =+WTA!E169 -> 0 | F160: =+WTA!F169 -> 0 | G160: =+WTA!G169 -> 0 | H160: =+WTA!H169 -> 0 | I160: =+WTA!I169 -> 0 | J160: =+WTA!J169 -> 0 | K160: =+WTA!K169 -> 0 | L160: =+WTA!L169 -> 0 | M160: =+WTA!M169 -> 0 | N160: =+WTA!N169 -> 0 | O160: =+WTA!O169 -> 0 | P160: =+WTA!P169 -> 0 | Q160: =+WTA!Q169 -> 0 | R160: =+WTA!R169 -> 0
A161: =+WTA!A170 -> 0 | B161: =+WTA!B170 -> 0 | C161: =+WTA!C170 -> 0 | D161: =+WTA!D170 -> 0 | E161: =+WTA!E170 -> 0 | F161: =+WTA!F170 -> 0 | G161: =+WTA!G170 -> 0 | H161: =+WTA!H170 -> 0 | I161: =+WTA!I170 -> 0 | J161: =+WTA!J170 -> 0 | K161: =+WTA!K170 -> 0 | L161: =+WTA!L170 -> 0 | M161: =+WTA!M170 -> 0 | N161: =+WTA!N170 -> 0 | O161: =+WTA!O170 -> 0 | P161: =+WTA!P170 -> 0 | Q161: =+WTA!Q170 -> 0 | R161: =+WTA!R170 -> 0
A162: =+WTA!A171 -> 0 | B162: =+WTA!B171 -> 0 | C162: =+WTA!C171 -> 0 | D162: =+WTA!D171 -> 0 | E162: =+WTA!E171 -> 0 | F162: =+WTA!F171 -> 0 | G162: =+WTA!G171 -> 0 | H162: =+WTA!H171 -> 0 | I162: =+WTA!I171 -> 0 | J162: =+WTA!J171 -> 0 | K162: =+WTA!K171 -> 0 | L162: =+WTA!L171 -> 0 | M162: =+WTA!M171 -> 0 | N162: =+WTA!N171 -> 0 | O162: =+WTA!O171 -> 0 | P162: =+WTA!P171 -> 0 | Q162: =+WTA!Q171 -> 0 | R162: =+WTA!R171 -> 0
A163: =+WTA!A172 -> 0 | B163: =+WTA!B172 -> 0 | C163: =+WTA!C172 -> 0 | D163: =+WTA!D172 -> 0 | E163: =+WTA!E172 -> 0 | F163: =+WTA!F172 -> 0 | G163: =+WTA!G172 -> 0 | H163: =+WTA!H172 -> 0 | I163: =+WTA!I172 -> 0 | J163: =+WTA!J172 -> 0 | K163: =+WTA!K172 -> 0 | L163: =+WTA!L172 -> 0 | M163: =+WTA!M172 -> 0 | N163: =+WTA!N172 -> 0 | O163: =+WTA!O172 -> 0 | P163: =+WTA!P172 -> 0 | Q163: =+WTA!Q172 -> 0 | R163: =+WTA!R172 -> 0
A164: =+WTA!A173 -> 0 | B164: =+WTA!B173 -> 0 | C164: =+WTA!C173 -> 0 | D164: =+WTA!D173 -> 0 | E164: =+WTA!E173 -> 0 | F164: =+WTA!F173 -> 0 | G164: =+WTA!G173 -> 0 | H164: =+WTA!H173 -> 0 | I164: =+WTA!I173 -> 0 | J164: =+WTA!J173 -> 0 | K164: =+WTA!K173 -> 0 | L164: =+WTA!L173 -> 0 | M164: =+WTA!M173 -> 0 | N164: =+WTA!N173 -> 0 | O164: =+WTA!O173 -> 0 | P164: =+WTA!P173 -> 0 | Q164: =+WTA!Q173 -> 0 | R164: =+WTA!R173 -> 0
A165: =+WTA!A174 -> 0 | B165: =+WTA!B174 -> 0 | C165: =+WTA!C174 -> 0 | D165: =+WTA!D174 -> 0 | E165: =+WTA!E174 -> 0 | F165: =+WTA!F174 -> 0 | G165: =+WTA!G174 -> 0 | H165: =+WTA!H174 -> 0 | I165: =+WTA!I174 -> 0 | J165: =+WTA!J174 -> 0 | K165: =+WTA!K174 -> 0 | L165: =+WTA!L174 -> 0 | M165: =+WTA!M174 -> 0 | N165: =+WTA!N174 -> 0 | O165: =+WTA!O174 -> 0 | P165: =+WTA!P174 -> 0 | Q165: =+WTA!Q174 -> 0 | R165: =+WTA!R174 -> 0
A166: =+WTA!A175 -> 0 | B166: =+WTA!B175 -> 0 | C166: =+WTA!C175 -> 0 | D166: =+WTA!D175 -> 0 | E166: =+WTA!E175 -> 0 | F166: =+WTA!F175 -> 0 | G166: =+WTA!G175 -> 0 | H166: =+WTA!H175 -> 0 | I166: =+WTA!I175 -> 0 | J166: =+WTA!J175 -> 0 | K166: =+WTA!K175 -> 0 | L166: =+WTA!L175 -> 0 | M166: =+WTA!M175 -> 0 | N166: =+WTA!N175 -> 0 | O166: =+WTA!O175 -> 0 | P166: =+WTA!P175 -> 0 | Q166: =+WTA!Q175 -> 0 | R166: =+WTA!R175 -> 0
A167: =+WTA!A176 -> 0 | B167: =+WTA!B176 -> 0 | C167: =+WTA!C176 -> 0 | D167: =+WTA!D176 -> 0 | E167: =+WTA!E176 -> 0 | F167: =+WTA!F176 -> 0 | G167: =+WTA!G176 -> 0 | H167: =+WTA!H176 -> 0 | I167: =+WTA!I176 -> 0 | J167: =+WTA!J176 -> 0 | K167: =+WTA!K176 -> 0 | L167: =+WTA!L176 -> 0 | M167: =+WTA!M176 -> 0 | N167: =+WTA!N176 -> 0 | O167: =+WTA!O176 -> 0 | P167: =+WTA!P176 -> 0 | Q167: =+WTA!Q176 -> 0 | R167: =+WTA!R176 -> 0
A168: =+WTA!A177 -> 0 | B168: =+WTA!B177 -> 0 | C168: =+WTA!C177 -> 0 | D168: =+WTA!D177 -> 0 | E168: =+WTA!E177 -> 0 | F168: =+WTA!F177 -> 0 | G168: =+WTA!G177 -> 0 | H168: =+WTA!H177 -> 0 | I168: =+WTA!I177 -> 0 | J168: =+WTA!J177 -> 0 | K168: =+WTA!K177 -> 0 | L168: =+WTA!L177 -> 0 | M168: =+WTA!M177 -> 0 | N168: =+WTA!N177 -> 0 | O168: =+WTA!O177 -> 0 | P168: =+WTA!P177 -> 0 | Q168: =+WTA!Q177 -> 0 | R168: =+WTA!R177 -> 0
A169: =+WTA!A178 -> 0 | B169: =+WTA!B178 -> 0 | C169: =+WTA!C178 -> 0 | D169: =+WTA!D178 -> 0 | E169: =+WTA!E178 -> 0 | F169: =+WTA!F178 -> 0 | G169: =+WTA!G178 -> 0 | H169: =+WTA!H178 -> 0 | I169: =+WTA!I178 -> 0 | J169: =+WTA!J178 -> 0 | K169: =+WTA!K178 -> 0 | L169: =+WTA!L178 -> 0 | M169: =+WTA!M178 -> 0 | N169: =+WTA!N178 -> 0 | O169: =+WTA!O178 -> 0 | P169: =+WTA!P178 -> 0 | Q169: =+WTA!Q178 -> 0 | R169: =+WTA!R178 -> 0
A170: =+WTA!A179 -> 0 | B170: =+WTA!B179 -> 0 | C170: =+WTA!C179 -> 0 | D170: =+WTA!D179 -> 0 | E170: =+WTA!E179 -> 0 | F170: =+WTA!F179 -> 0 | G170: =+WTA!G179 -> 0 | H170: =+WTA!H179 -> 0 | I170: =+WTA!I179 -> 0 | J170: =+WTA!J179 -> 0 | K170: =+WTA!K179 -> 0 | L170: =+WTA!L179 -> 0 | M170: =+WTA!M179 -> 0 | N170: =+WTA!N179 -> 0 | O170: =+WTA!O179 -> 0 | P170: =+WTA!P179 -> 0 | Q170: =+WTA!Q179 -> 0 | R170: =+WTA!R179 -> 0
A171: =+WTA!A180 -> 0 | B171: =+WTA!B180 -> 0 | C171: =+WTA!C180 -> 0 | D171: =+WTA!D180 -> 0 | E171: =+WTA!E180 -> 0 | F171: =+WTA!F180 -> 0 | G171: =+WTA!G180 -> 0 | H171: =+WTA!H180 -> 0 | I171: =+WTA!I180 -> 0 | J171: =+WTA!J180 -> 0 | K171: =+WTA!K180 -> 0 | L171: =+WTA!L180 -> 0 | M171: =+WTA!M180 -> 0 | N171: =+WTA!N180 -> 0 | O171: =+WTA!O180 -> 0 | P171: =+WTA!P180 -> 0 | Q171: =+WTA!Q180 -> 0 | R171: =+WTA!R180 -> 0
A172: =+WTA!A181 -> 0 | B172: =+WTA!B181 -> 0 | C172: =+WTA!C181 -> 0 | D172: =+WTA!D181 -> 0 | E172: =+WTA!E181 -> 0 | F172: =+WTA!F181 -> 0 | G172: =+WTA!G181 -> 0 | H172: =+WTA!H181 -> 0 | I172: =+WTA!I181 -> 0 | J172: =+WTA!J181 -> 0 | K172: =+WTA!K181 -> 0 | L172: =+WTA!L181 -> 0 | M172: =+WTA!M181 -> 0 | N172: =+WTA!N181 -> 0 | O172: =+WTA!O181 -> 0 | P172: =+WTA!P181 -> 0 | Q172: =+WTA!Q181 -> 0 | R172: =+WTA!R181 -> 0
A173: =+WTA!A182 -> 0 | B173: =+WTA!B182 -> 0 | C173: =+WTA!C182 -> 0 | D173: =+WTA!D182 -> 0 | E173: =+WTA!E182 -> 0 | F173: =+WTA!F182 -> 0 | G173: =+WTA!G182 -> 0 | H173: =+WTA!H182 -> 0 | I173: =+WTA!I182 -> 0 | J173: =+WTA!J182 -> 0 | K173: =+WTA!K182 -> 0 | L173: =+WTA!L182 -> 0 | M173: =+WTA!M182 -> 0 | N173: =+WTA!N182 -> 0 | O173: =+WTA!O182 -> 0 | P173: =+WTA!P182 -> 0 | Q173: =+WTA!Q182 -> 0 | R173: =+WTA!R182 -> 0
A174: =+WTA!A183 -> 0 | B174: =+WTA!B183 -> 0 | C174: =+WTA!C183 -> 0 | D174: =+WTA!D183 -> 0 | E174: =+WTA!E183 -> 0 | F174: =+WTA!F183 -> 0 | G174: =+WTA!G183 -> 0 | H174: =+WTA!H183 -> 0 | I174: =+WTA!I183 -> 0 | J174: =+WTA!J183 -> 0 | K174: =+WTA!K183 -> 0 | L174: =+WTA!L183 -> 0 | M174: =+WTA!M183 -> 0 | N174: =+WTA!N183 -> 0 | O174: =+WTA!O183 -> 0 | P174: =+WTA!P183 -> 0 | Q174: =+WTA!Q183 -> 0 | R174: =+WTA!R183 -> 0
A175: =+WTA!A184 -> 0 | B175: =+WTA!B184 -> 0 | C175: =+WTA!C184 -> 0 | D175: =+WTA!D184 -> 0 | E175: =+WTA!E184 -> 0 | F175: =+WTA!F184 -> 0 | G175: =+WTA!G184 -> 0 | H175: =+WTA!H184 -> 0 | I175: =+WTA!I184 -> 0 | J175: =+WTA!J184 -> 0 | K175: =+WTA!K184 -> 0 | L175: =+WTA!L184 -> 0 | M175: =+WTA!M184 -> 0 | N175: =+WTA!N184 -> 0 | O175: =+WTA!O184 -> 0 | P175: =+WTA!P184 -> 0 | Q175: =+WTA!Q184 -> 0 | R175: =+WTA!R184 -> 0
A176: =+WTA!A185 -> 0 | B176: =+WTA!B185 -> 0 | C176: =+WTA!C185 -> 0 | D176: =+WTA!D185 -> 0 | E176: =+WTA!E185 -> 0 | F176: =+WTA!F185 -> 0 | G176: =+WTA!G185 -> 0 | H176: =+WTA!H185 -> 0 | I176: =+WTA!I185 -> 0 | J176: =+WTA!J185 -> 0 | K176: =+WTA!K185 -> 0 | L176: =+WTA!L185 -> 0 | M176: =+WTA!M185 -> 0 | N176: =+WTA!N185 -> 0 | O176: =+WTA!O185 -> 0 | P176: =+WTA!P185 -> 0 | Q176: =+WTA!Q185 -> 0 | R176: =+WTA!R185 -> 0
A177: =+WTA!A186 -> 0 | B177: =+WTA!B186 -> 0 | C177: =+WTA!C186 -> 0 | D177: =+WTA!D186 -> 0 | E177: =+WTA!E186 -> 0 | F177: =+WTA!F186 -> 0 | G177: =+WTA!G186 -> 0 | H177: =+WTA!H186 -> 0 | I177: =+WTA!I186 -> 0 | J177: =+WTA!J186 -> 0 | K177: =+WTA!K186 -> 0 | L177: =+WTA!L186 -> 0 | M177: =+WTA!M186 -> 0 | N177: =+WTA!N186 -> 0 | O177: =+WTA!O186 -> 0 | P177: =+WTA!P186 -> 0 | Q177: =+WTA!Q186 -> 0 | R177: =+WTA!R186 -> 0
A178: =+WTA!A187 -> 0 | B178: =+WTA!B187 -> 0 | C178: =+WTA!C187 -> 0 | D178: =+WTA!D187 -> 0 | E178: =+WTA!E187 -> 0 | F178: =+WTA!F187 -> 0 | G178: =+WTA!G187 -> 0 | H178: =+WTA!H187 -> 0 | I178: =+WTA!I187 -> 0 | J178: =+WTA!J187 -> 0 | K178: =+WTA!K187 -> 0 | L178: =+WTA!L187 -> 0 | M178: =+WTA!M187 -> 0 | N178: =+WTA!N187 -> 0 | O178: =+WTA!O187 -> 0 | P178: =+WTA!P187 -> 0 | Q178: =+WTA!Q187 -> 0 | R178: =+WTA!R187 -> 0
A179: =+WTA!A188 -> 0 | B179: =+WTA!B188 -> 0 | C179: =+WTA!C188 -> 0 | D179: =+WTA!D188 -> 0 | E179: =+WTA!E188 -> 0 | F179: =+WTA!F188 -> 0 | G179: =+WTA!G188 -> 0 | H179: =+WTA!H188 -> 0 | I179: =+WTA!I188 -> 0 | J179: =+WTA!J188 -> 0 | K179: =+WTA!K188 -> 0 | L179: =+WTA!L188 -> 0 | M179: =+WTA!M188 -> 0 | N179: =+WTA!N188 -> 0 | O179: =+WTA!O188 -> 0 | P179: =+WTA!P188 -> 0 | Q179: =+WTA!Q188 -> 0 | R179: =+WTA!R188 -> 0
A180: =+WTA!A189 -> 0 | B180: =+WTA!B189 -> 0 | C180: =+WTA!C189 -> 0 | D180: =+WTA!D189 -> 0 | E180: =+WTA!E189 -> 0 | F180: =+WTA!F189 -> 0 | G180: =+WTA!G189 -> 0 | H180: =+WTA!H189 -> 0 | I180: =+WTA!I189 -> 0 | J180: =+WTA!J189 -> 0 | K180: =+WTA!K189 -> 0 | L180: =+WTA!L189 -> 0 | M180: =+WTA!M189 -> 0 | N180: =+WTA!N189 -> 0 | O180: =+WTA!O189 -> 0 | P180: =+WTA!P189 -> 0 | Q180: =+WTA!Q189 -> 0 | R180: =+WTA!R189 -> 0
A181: =+WTA!A190 -> 0 | B181: =+WTA!B190 -> 0 | C181: =+WTA!C190 -> 0 | D181: =+WTA!D190 -> 0 | E181: =+WTA!E190 -> 0 | F181: =+WTA!F190 -> 0 | G181: =+WTA!G190 -> 0 | H181: =+WTA!H190 -> 0 | I181: =+WTA!I190 -> 0 | J181: =+WTA!J190 -> 0 | K181: =+WTA!K190 -> 0 | L181: =+WTA!L190 -> 0 | M181: =+WTA!M190 -> 0 | N181: =+WTA!N190 -> 0 | O181: =+WTA!O190 -> 0 | P181: =+WTA!P190 -> 0 | Q181: =+WTA!Q190 -> 0 | R181: =+WTA!R190 -> 0
A182: =+WTA!A191 -> 0 | B182: =+WTA!B191 -> 0 | C182: =+WTA!C191 -> 0 | D182: =+WTA!D191 -> 0 | E182: =+WTA!E191 -> 0 | F182: =+WTA!F191 -> 0 | G182: =+WTA!G191 -> 0 | H182: =+WTA!H191 -> 0 | I182: =+WTA!I191 -> 0 | J182: =+WTA!J191 -> 0 | K182: =+WTA!K191 -> 0 | L182: =+WTA!L191 -> 0 | M182: =+WTA!M191 -> 0 | N182: =+WTA!N191 -> 0 | O182: =+WTA!O191 -> 0 | P182: =+WTA!P191 -> 0 | Q182: =+WTA!Q191 -> 0 | R182: =+WTA!R191 -> 0
A183: =+WTA!A192 -> 0 | B183: =+WTA!B192 -> 0 | C183: =+WTA!C192 -> 0 | D183: =+WTA!D192 -> 0 | E183: =+WTA!E192 -> 0 | F183: =+WTA!F192 -> 0 | G183: =+WTA!G192 -> 0 | H183: =+WTA!H192 -> 0 | I183: =+WTA!I192 -> 0 | J183: =+WTA!J192 -> 0 | K183: =+WTA!K192 -> 0 | L183: =+WTA!L192 -> 0 | M183: =+WTA!M192 -> 0 | N183: =+WTA!N192 -> 0 | O183: =+WTA!O192 -> 0 | P183: =+WTA!P192 -> 0 | Q183: =+WTA!Q192 -> 0 | R183: =+WTA!R192 -> 0
A184: =+WTA!A193 -> 0 | B184: =+WTA!B193 -> 0 | C184: =+WTA!C193 -> 0 | D184: =+WTA!D193 -> 0 | E184: =+WTA!E193 -> 0 | F184: =+WTA!F193 -> 0 | G184: =+WTA!G193 -> 0 | H184: =+WTA!H193 -> 0 | I184: =+WTA!I193 -> 0 | J184: =+WTA!J193 -> 0 | K184: =+WTA!K193 -> 0 | L184: =+WTA!L193 -> 0 | M184: =+WTA!M193 -> 0 | N184: =+WTA!N193 -> 0 | O184: =+WTA!O193 -> 0 | P184: =+WTA!P193 -> 0 | Q184: =+WTA!Q193 -> 0 | R184: =+WTA!R193 -> 0
A185: =+WTA!A194 -> 0 | B185: =+WTA!B194 -> 0 | C185: =+WTA!C194 -> 0 | D185: =+WTA!D194 -> 0 | E185: =+WTA!E194 -> 0 | F185: =+WTA!F194 -> 0 | G185: =+WTA!G194 -> 0 | H185: =+WTA!H194 -> 0 | I185: =+WTA!I194 -> 0 | J185: =+WTA!J194 -> 0 | K185: =+WTA!K194 -> 0 | L185: =+WTA!L194 -> 0 | M185: =+WTA!M194 -> 0 | N185: =+WTA!N194 -> 0 | O185: =+WTA!O194 -> 0 | P185: =+WTA!P194 -> 0 | Q185: =+WTA!Q194 -> 0 | R185: =+WTA!R194 -> 0
A186: =+WTA!A195 -> 0 | B186: =+WTA!B195 -> 0 | C186: =+WTA!C195 -> 0 | D186: =+WTA!D195 -> 0 | E186: =+WTA!E195 -> 0 | F186: =+WTA!F195 -> 0 | G186: =+WTA!G195 -> 0 | H186: =+WTA!H195 -> 0 | I186: =+WTA!I195 -> 0 | J186: =+WTA!J195 -> 0 | K186: =+WTA!K195 -> 0 | L186: =+WTA!L195 -> 0 | M186: =+WTA!M195 -> 0 | N186: =+WTA!N195 -> 0 | O186: =+WTA!O195 -> 0 | P186: =+WTA!P195 -> 0 | Q186: =+WTA!Q195 -> 0 | R186: =+WTA!R195 -> 0
A187: =+WTA!A196 -> 0 | B187: =+WTA!B196 -> 0 | C187: =+WTA!C196 -> 0 | D187: =+WTA!D196 -> 0 | E187: =+WTA!E196 -> 0 | F187: =+WTA!F196 -> 0 | G187: =+WTA!G196 -> 0 | H187: =+WTA!H196 -> 0 | I187: =+WTA!I196 -> 0 | J187: =+WTA!J196 -> 0 | K187: =+WTA!K196 -> 0 | L187: =+WTA!L196 -> 0 | M187: =+WTA!M196 -> 0 | N187: =+WTA!N196 -> 0 | O187: =+WTA!O196 -> 0 | P187: =+WTA!P196 -> 0 | Q187: =+WTA!Q196 -> 0 | R187: =+WTA!R196 -> 0
A188: =+WTA!A197 -> 0 | B188: =+WTA!B197 -> 0 | C188: =+WTA!C197 -> 0 | D188: =+WTA!D197 -> 0 | E188: =+WTA!E197 -> 0 | F188: =+WTA!F197 -> 0 | G188: =+WTA!G197 -> 0 | H188: =+WTA!H197 -> 0 | I188: =+WTA!I197 -> 0 | J188: =+WTA!J197 -> 0 | K188: =+WTA!K197 -> 0 | L188: =+WTA!L197 -> 0 | M188: =+WTA!M197 -> 0 | N188: =+WTA!N197 -> 0 | O188: =+WTA!O197 -> 0 | P188: =+WTA!P197 -> 0 | Q188: =+WTA!Q197 -> 0 | R188: =+WTA!R197 -> 0
A189: =+WTA!A198 -> 0 | B189: =+WTA!B198 -> 0 | C189: =+WTA!C198 -> 0 | D189: =+WTA!D198 -> 0 | E189: =+WTA!E198 -> 0 | F189: =+WTA!F198 -> 0 | G189: =+WTA!G198 -> 0 | H189: =+WTA!H198 -> 0 | I189: =+WTA!I198 -> 0 | J189: =+WTA!J198 -> 0 | K189: =+WTA!K198 -> 0 | L189: =+WTA!L198 -> 0 | M189: =+WTA!M198 -> 0 | N189: =+WTA!N198 -> 0 | O189: =+WTA!O198 -> 0 | P189: =+WTA!P198 -> 0 | Q189: =+WTA!Q198 -> 0 | R189: =+WTA!R198 -> 0
A190: =+WTA!A199 -> 0 | B190: =+WTA!B199 -> 0 | C190: =+WTA!C199 -> 0 | D190: =+WTA!D199 -> 0 | E190: =+WTA!E199 -> 0 | F190: =+WTA!F199 -> 0 | G190: =+WTA!G199 -> 0 | H190: =+WTA!H199 -> 0 | I190: =+WTA!I199 -> 0 | J190: =+WTA!J199 -> 0 | K190: =+WTA!K199 -> 0 | L190: =+WTA!L199 -> 0 | M190: =+WTA!M199 -> 0 | N190: =+WTA!N199 -> 0 | O190: =+WTA!O199 -> 0 | P190: =+WTA!P199 -> 0 | Q190: =+WTA!Q199 -> 0 | R190: =+WTA!R199 -> 0
A191: =+WTA!A200 -> 0 | B191: =+WTA!B200 -> 0 | C191: =+WTA!C200 -> 0 | D191: =+WTA!D200 -> 0 | E191: =+WTA!E200 -> 0 | F191: =+WTA!F200 -> 0 | G191: =+WTA!G200 -> 0 | H191: =+WTA!H200 -> 0 | I191: =+WTA!I200 -> 0 | J191: =+WTA!J200 -> 0 | K191: =+WTA!K200 -> 0 | L191: =+WTA!L200 -> 0 | M191: =+WTA!M200 -> 0 | N191: =+WTA!N200 -> 0 | O191: =+WTA!O200 -> 0 | P191: =+WTA!P200 -> 0 | Q191: =+WTA!Q200 -> 0 | R191: =+WTA!R200 -> 0
A192: =+WTA!A201 -> 0 | B192: =+WTA!B201 -> 0 | C192: =+WTA!C201 -> 0 | D192: =+WTA!D201 -> 0 | E192: =+WTA!E201 -> 0 | F192: =+WTA!F201 -> 0 | G192: =+WTA!G201 -> 0 | H192: =+WTA!H201 -> 0 | I192: =+WTA!I201 -> 0 | J192: =+WTA!J201 -> 0 | K192: =+WTA!K201 -> 0 | L192: =+WTA!L201 -> 0 | M192: =+WTA!M201 -> 0 | N192: =+WTA!N201 -> 0 | O192: =+WTA!O201 -> 0 | P192: =+WTA!P201 -> 0 | Q192: =+WTA!Q201 -> 0 | R192: =+WTA!R201 -> 0
A193: =+WTA!A202 -> 0 | B193: =+WTA!B202 -> 0 | C193: =+WTA!C202 -> 0 | D193: =+WTA!D202 -> 0 | E193: =+WTA!E202 -> 0 | F193: =+WTA!F202 -> 0 | G193: =+WTA!G202 -> 0 | H193: =+WTA!H202 -> 0 | I193: =+WTA!I202 -> 0 | J193: =+WTA!J202 -> 0 | K193: =+WTA!K202 -> 0 | L193: =+WTA!L202 -> 0 | M193: =+WTA!M202 -> 0 | N193: =+WTA!N202 -> 0 | O193: =+WTA!O202 -> 0 | P193: =+WTA!P202 -> 0 | Q193: =+WTA!Q202 -> 0 | R193: =+WTA!R202 -> 0
A194: =+WTA!A203 -> 0 | B194: =+WTA!B203 -> 0 | C194: =+WTA!C203 -> 0 | D194: =+WTA!D203 -> 0 | E194: =+WTA!E203 -> 0 | F194: =+WTA!F203 -> 0 | G194: =+WTA!G203 -> 0 | H194: =+WTA!H203 -> 0 | I194: =+WTA!I203 -> 0 | J194: =+WTA!J203 -> 0 | K194: =+WTA!K203 -> 0 | L194: =+WTA!L203 -> 0 | M194: =+WTA!M203 -> 0 | N194: =+WTA!N203 -> 0 | O194: =+WTA!O203 -> 0 | P194: =+WTA!P203 -> 0 | Q194: =+WTA!Q203 -> 0 | R194: =+WTA!R203 -> 0
A195: =+WTA!A204 -> 0 | B195: =+WTA!B204 -> 0 | C195: =+WTA!C204 -> 0 | D195: =+WTA!D204 -> 0 | E195: =+WTA!E204 -> 0 | F195: =+WTA!F204 -> 0 | G195: =+WTA!G204 -> 0 | H195: =+WTA!H204 -> 0 | I195: =+WTA!I204 -> 0 | J195: =+WTA!J204 -> 0 | K195: =+WTA!K204 -> 0 | L195: =+WTA!L204 -> 0 | M195: =+WTA!M204 -> 0 | N195: =+WTA!N204 -> 0 | O195: =+WTA!O204 -> 0 | P195: =+WTA!P204 -> 0 | Q195: =+WTA!Q204 -> 0 | R195: =+WTA!R204 -> 0
A196: =+WTA!A205 -> 0 | B196: =+WTA!B205 -> 0 | C196: =+WTA!C205 -> 0 | D196: =+WTA!D205 -> 0 | E196: =+WTA!E205 -> 0 | F196: =+WTA!F205 -> 0 | G196: =+WTA!G205 -> 0 | H196: =+WTA!H205 -> 0 | I196: =+WTA!I205 -> 0 | J196: =+WTA!J205 -> 0 | K196: =+WTA!K205 -> 0 | L196: =+WTA!L205 -> 0 | M196: =+WTA!M205 -> 0 | N196: =+WTA!N205 -> 0 | O196: =+WTA!O205 -> 0 | P196: =+WTA!P205 -> 0 | Q196: =+WTA!Q205 -> 0 | R196: =+WTA!R205 -> 0
A197: =+WTA!A206 -> 0 | B197: =+WTA!B206 -> 0 | C197: =+WTA!C206 -> 0 | D197: =+WTA!D206 -> 0 | E197: =+WTA!E206 -> 0 | F197: =+WTA!F206 -> 0 | G197: =+WTA!G206 -> 0 | H197: =+WTA!H206 -> 0 | I197: =+WTA!I206 -> 0 | J197: =+WTA!J206 -> 0 | K197: =+WTA!K206 -> 0 | L197: =+WTA!L206 -> 0 | M197: =+WTA!M206 -> 0 | N197: =+WTA!N206 -> 0 | O197: =+WTA!O206 -> 0 | P197: =+WTA!P206 -> 0 | Q197: =+WTA!Q206 -> 0 | R197: =+WTA!R206 -> 0
A198: =+WTA!A207 -> 0 | B198: =+WTA!B207 -> 0 | C198: =+WTA!C207 -> 0 | D198: =+WTA!D207 -> 0 | E198: =+WTA!E207 -> 0 | F198: =+WTA!F207 -> 0 | G198: =+WTA!G207 -> 0 | H198: =+WTA!H207 -> 0 | I198: =+WTA!I207 -> 0 | J198: =+WTA!J207 -> 0 | K198: =+WTA!K207 -> 0 | L198: =+WTA!L207 -> 0 | M198: =+WTA!M207 -> 0 | N198: =+WTA!N207 -> 0 | O198: =+WTA!O207 -> 0 | P198: =+WTA!P207 -> 0 | Q198: =+WTA!Q207 -> 0 | R198: =+WTA!R207 -> 0
A199: =+WTA!A208 -> 0 | B199: =+WTA!B208 -> 0 | C199: =+WTA!C208 -> 0 | D199: =+WTA!D208 -> 0 | E199: =+WTA!E208 -> 0 | F199: =+WTA!F208 -> 0 | G199: =+WTA!G208 -> 0 | H199: =+WTA!H208 -> 0 | I199: =+WTA!I208 -> 0 | J199: =+WTA!J208 -> 0 | K199: =+WTA!K208 -> 0 | L199: =+WTA!L208 -> 0 | M199: =+WTA!M208 -> 0 | N199: =+WTA!N208 -> 0 | O199: =+WTA!O208 -> 0 | P199: =+WTA!P208 -> 0 | Q199: =+WTA!Q208 -> 0 | R199: =+WTA!R208 -> 0
A200: =+WTA!A209 -> 0 | B200: =+WTA!B209 -> 0 | C200: =+WTA!C209 -> 0 | D200: =+WTA!D209 -> 0 | E200: =+WTA!E209 -> 0 | F200: =+WTA!F209 -> 0 | G200: =+WTA!G209 -> 0 | H200: =+WTA!H209 -> 0 | I200: =+WTA!I209 -> 0 | J200: =+WTA!J209 -> 0 | K200: =+WTA!K209 -> 0 | L200: =+WTA!L209 -> 0 | M200: =+WTA!M209 -> 0 | N200: =+WTA!N209 -> 0 | O200: =+WTA!O209 -> 0 | P200: =+WTA!P209 -> 0 | Q200: =+WTA!Q209 -> 0 | R200: =+WTA!R209 -> 0
... 64 more rows

Sheet WTA (hidden)
A4: tennisabstract.com
A6: Match Charting Project: Women's Serve Leaders: Last 52 This page displays a variety of serve stats derived from the shot-by-shot logs compiled by volunteers for the Match Charting Project. The table below lists all players with at least 5 charted matches from the last 52 weeks. If you don't find a player you would like to see, the best way to get her on the list is to contribute to the project! These numbers are not official, and because each player's stats represent only a fraction of her total matches, they should not be viewed as authoritative or, particularly, precise. Most players' results could be skewed by a disproportionate number of matches on a single surface, or against strong or weak opponents. Another reason to chart more matches! This is just one of 16 leaderboards based on MCP stats: Men Last 52: Serve | Return | Rally | Tactics Men Career: Serve | Return | Rally | Tactics Women Last 52: Serve | Return | Rally | Tactics Women Career: Serve | Return | Rally | Tactics Mouse over column headers for further explanation of each stat, and click to sort. Here is a more detailed glossary. Updated weekly(ish). Last update: 2021-07-26
A8: Player Matches Unret% <=3 W% RiP W% 1st: Unret% <=3 W% RiP W% D Wide% A Wide% BP Wide% 2nd: Unret% <=3 W% RiP W% D Wide% A Wide% BP Wide% 2ndAgg Serena Williams932.8%41.0%44.5%45.2%55.3%51.0%52.5%41.5%40.6%17.2%23.4%38.1%1.8%44.4%58.3%-4 Ludmilla Samsonova534.5%44.8%47.7%44.9%56.3%52.6%44.9%42.5%36.4%26.7%37.4%42.7%7.1%29.3%25.0%70 Naomi Osaka1631.3%42.4%50.7%41.8%55.1%57.9%44.5%42.2%45.0%21.7%31.4%44.3%20.5%42.0%50.0%4 Jennifer Brady1428.9%38.7%50.7%38.0%51.5%56.6%49.8%48.9%41.7%19.4%25.1%45.1%15.2%48.5%31.6%-26 Ashleigh Barty1929.7%40.3%52.4%37.4%51.6%57.6%43.3%33.9%30.8%20.4%26.0%45.4%18.5%56.5%63.0%36 Ons Jabeur1124.4%32.9%44.4%35.4%46.4%53.0%57.4%30.7%29.3%13.8%20.2%36.5%19.4%54.0%51.3%5 Aryna Sabalenka6527.5%42.4%50.6%35.1%52.4%52.7%58.2%51.2%60.4%19.8%33.6%47.7%55.0%46.5%40.5%71 Karolina Pliskova1327.6%36.8%50.1%35.1%45.2%51.8%49.4%48.3%46.7%19.2%29.1%46.9%21.5%55.7%50.0%50 Belinda Bencic522.8%33.0%48.3%33.3%49.5%50.0%55.4%35.0%33.3%10.5%13.2%46.1%35.2%33.3%25.0%-21 Shelby Rogers528.1%36.6%44.9%33.1%43.8%49.4%45.7%49.2%42.9%22.3%27.7%37.6%24.5%50.6%53.8%28 Ana Konjuh525.1%35.1%49.2%32.5%44.4%51.2%49.5%23.9%47.6%15.9%24.3%45.6%37.3%29.2%0.0%22 Maria Sakkari1724.9%33.9%46.3%31.2%42.9%49.9%44.4%43.7%31.1%16.9%22.1%40.8%20.0%41.7%41.4%46 Veronika Kudermetova723.4%33.9%44.3%31.0%47.1%55.1%44.4%42.6%38.5%16.3%20.7%33.5%64.9%34.1%27.8%-13 Elena Rybakina923.8%33.7%47.1%30.9%43.8%51.1%39.2%47.7%50.0%16.9%23.8%42.0%13.5%64.2%73.1%48 Cori Gauff1424.6%34.2%51.2%30.1%44.0%52.8%54.8%41.3%36.8%21.2%25.7%48.6%40.1%28.7%13.0%71 Ann Li624.5%33.6%46.9%28.8%40.4%50.8%55.4%36.9%15.8%19.2%24.7%40.7%20.0%55.8%80.0%-12 Karolina Muchova1323.2%31.7%49.5%28.0%38.9%50.1%36.6%42.3%48.0%15.7%20.4%48.4%27.2%41.9%36.4%-5 Marta Kostyuk823.3%31.4%51.2%27.9%38.8%53.8%52.4%32.8%25.0%19.4%23.7%46.7%30.3%27.8%26.3%64 Tsvetana Pironkova721.3%28.7%49.2%27.5%37.0%60.0%46.9%39.9%36.7%13.9%19.1%37.0%15.0%49.3%50.0%-44 Jessica Pegula1121.7%29.1%45.7%27.5%36.3%47.0%26.7%32.9%35.0%14.8%20.7%43.9%12.3%37.1%60.0%31 Garbine Muguruza1323.2%32.4%48.1%27.3%38.9%50.7%42.6%44.9%44.8%15.8%20.3%42.4%8.3%58.2%44.8%26 Petra Kvitova1123.2%37.4%49.1%26.9%42.9%50.3%38.2%55.1%52.5%18.0%30.3%46.7%8.9%68.1%84.2%42 Elina Svitolina1521.4%29.5%46.6%26.7%38.1%51.4%47.2%46.3%45.6%14.2%17.3%39.8%12.6%27.7%20.9%-28 Clara Tauson520.4%32.6%50.2%26.6%40.3%52.0%37.2%45.0%50.0%11.3%21.8%47.5%9.7%54.9%40.0%-12 Anett Kontaveit920.8%30.8%46.9%26.0%39.6%51.3%43.7%56.9%58.1%14.5%19.5%40.4%20.6%42.4%35.0%19 Barbora Krejcikova1821.2%29.8%49.9%25.9%36.4%53.2%49.4%59.3%56.6%14.8%20.8%43.9%14.3%57.4%54.8%28 Ajla Tomljanovic519.3%25.1%40.1%25.6%33.1%39.2%50.8%43.8%30.8%9.2%12.6%41.7%50.9%12.1%0.0%-28 Kiki Bertens1420.6%27.9%42.7%24.5%33.9%41.9%40.0%50.2%59.7%16.7%21.1%44.5%11.0%33.8%38.1%36 Iga Swiatek3220.8%33.0%54.7%24.4%40.6%56.5%37.0%55.5%54.7%17.5%24.7%52.2%13.5%62.7%68.5%3 Jelena Ostapenko720.1%32.7%48.8%24.3%42.2%49.7%38.0%34.2%36.4%17.5%24.1%47.4%39.7%54.5%62.5%49 Victoria Azarenka1822.3%29.2%48.4%24.2%33.1%51.4%49.3%46.8%51.6%21.0%24.4%41.5%14.3%22.7%27.3%56 Paula Badosa1320.4%28.0%47.7%24.0%32.9%50.9%57.5%25.6%31.6%16.6%22.6%40.3%47.4%57.5%57.1%34 Kaja Juvan1020.3%28.6%43.5%23.9%33.6%47.8%29.4%56.7%62.5%15.4%22.1%36.9%25.4%69.1%71.4%-28 Sorana Cirstea1021.5%31.3%44.8%23.8%36.1%48.8%41.8%38.5%37.5%19.4%25.3%37.7%43.6%38.5%38.7%5 Bianca Andreescu1720.7%31.2%50.8%23.7%37.7%54.3%41.0%38.0%42.6%17.3%21.8%43.8%10.6%39.5%51.6%53 Viktorija Golubic822.0%28.1%45.5%23.6%31.3%49.3%36.4%33.6%40.5%20.3%22.9%36.1%25.9%56.9%61.5%-3 Elise Mertens1119.2%24.6%46.7%23.6%30.5%51.5%55.3%43.2%39.2%13.6%16.9%38.2%24.3%42.4%44.4%13 Marketa Vondrousova718.3%26.9%47.1%23.3%35.0%45.7%18.4%47.6%39.1%13.9%19.4%49.2%0.0%63.2%85.0%12 Anna Blinkova518.6%28.8%45.6%22.7%35.1%50.3%30.0%44.1%30.0%15.1%23.8%38.3%24.1%33.3%33.3%27 Maria Camila Osorio Serrano721.1%27.4%44.7%22.4%31.1%50.0%44.9%36.2%46.7%23.3%26.7%34.8%61.4%15.5%15.8%101 Simona Halep2820.0%26.8%50.4%22.0%30.9%52.8%39.6%41.8%47.9%18.7%21.6%44.6%51.6%18.3%19.0%63 Polona Hercog516.0%25.9%44.2%21.8%33.2%45.3%37.0%55.4%53.6%10.4%19.8%42.9%10.9%63.3%58.8%-11 Darya Kasatkina719.3%24.5%39.0%21.4%27.9%42.1%52.7%41.1%23.1%17.7%20.8%31.8%34.5%76.4%75.0%53 Jil Belen Teichmann618.0%26.6%48.6%21.1%32.9%56.1%25.7%49.0%64.3%15.0%19.0%35.4%31.8%48.3%53.8%33 Nadia Podoroska1019.7%27.7%43.1%20.9%30.8%45.3%46.4%33.8%38.1%18.7%22.5%37.6%34.6%61.8%78.9%6 Leylah Annie Fernandez517.8%25.3%46.4%20.8%30.5%49.2%30.2%51.7%46.2%16.4%21.3%41.2%28.6%28.8%25.0%34 Anastasia Pavlyuchenkova718.7%30.9%48.7%20.7%34.9%49.5%39.9%52.1%48.0%16.9%26.6%46.9%10.5%28.7%26.1%51 Arantxa Rus1818.5%25.2%47.0%20.2%27.9%50.2%33.0%55.1%60.6%18.0%23.4%37.0%55.3%18.6%17.6%50 Su Wei Hsieh717.8%26.3%47.5%20.1%31.3%51.0%52.3%35.4%40.5%15.1%18.3%39.3%50.8%38.8%9.1%29 Marie Bouzkova818.3%24.2%51.1%19.8%27.7%50.9%53.0%36.7%44.0%17.1%18.9%51.5%41.2%41.7%42.9%50 Jasmine Paolini717.8%23.6%47.2%19.7%26.1%48.3%25.7%43.3%48.1%15.9%21.4%44.3%10.2%53.7%70.6%32 Laura Siegemund717.5%24.6%43.5%18.6%27.4%44.4%41.8%42.1%53.1%20.2%25.7%41.4%37.0%25.5%13.3%57 Tamara Zidansek618.6%27.4%48.9%18.0%28.5%53.7%30.6%54.7%66.7%22.8%29.3%38.0%25.0%63.5%81.8%60 Sofia Kenin1015.3%25.1%48.0%17.4%30.0%52.8%54.3%49.4%54.4%13.2%18.4%37.6%5.1%68.5%88.9%9 Angelique Kerber1114.9%24.9%53.0%17.1%29.8%54.1%39.1%67.8%75.0%12.6%17.7%50.3%2.0%55.6%69.6%4 Fiona Ferro614.6%27.7%48.7%16.6%30.9%48.4%53.5%51.5%53.8%12.6%24.7%49.1%10.3%72.1%86.7%-29 Martina Trevisan613.2%18.5%44.7%15.3%21.4%44.0%19.1%70.8%89.5%9.7%13.5%46.4%3.9%41.8%33.3%-19 Katerina Siniakova612.6%20.5%47.2%14.3%24.3%49.8%25.0%35.1%28.6%11.7%16.7%41.5%15.0%21.7%45.5%-10 Sara Sorribes Tormo1012.1%14.5%44.3%12.4%15.5%44.4%40.1%22.6%28.2%13.2%14.1%44.0%52.2%15.0%25.0%13 Irina Maria Bara510.8%14.0%45.2%12.2%16.3%43.3%24.6%25.2%35.0%9.4%10.6%50.6%11.1%16.3%10.0%-32 Sara Errani59.8%13.1%43.7%10.6%14.4%45.9%22.0%40.1%47.3%10.7%13.1%34.7%41.9%17.1%16.7%-30
A10: Player | B10: Matches | C10: Unret% | D10: <=3 W% | E10: RiP W% | F10: 1st: Unret% | G10: <=3 W% | H10: RiP W% | I10: D Wide% | J10: A Wide% | K10: BP Wide% | L10: 2nd: Unret% | M10: <=3 W% | N10: RiP W% | O10: D Wide% | P10: A Wide% | Q10: BP Wide% | R10: 2ndAgg
A11: Serena Williams | B11: 9 | C11: 0.328 | D11: 0.41 | E11: 0.445 | F11: 0.452 | G11: 0.553 | H11: 0.51 | I11: 0.525 | J11: 0.415 | K11: 0.406 | L11: 0.172 | M11: 0.234 | N11: 0.381 | O11: 0.018 | P11: 0.444 | Q11: 0.583 | R11: -4
A12: Ludmilla Samsonova | B12: 5 | C12: 0.345 | D12: 0.448 | E12: 0.477 | F12: 0.449 | G12: 0.563 | H12: 0.526 | I12: 0.449 | J12: 0.425 | K12: 0.364 | L12: 0.267 | M12: 0.374 | N12: 0.427 | O12: 0.071 | P12: 0.293 | Q12: 0.25 | R12: 70
A13: Naomi Osaka | B13: 16 | C13: 0.313 | D13: 0.424 | E13: 0.507 | F13: 0.418 | G13: 0.551 | H13: 0.579 | I13: 0.445 | J13: 0.422 | K13: 0.45 | L13: 0.217 | M13: 0.314 | N13: 0.443 | O13: 0.205 | P13: 0.42 | Q13: 0.5 | R13: 4
A14: Jennifer Brady | B14: 14 | C14: 0.289 | D14: 0.387 | E14: 0.507 | F14: 0.38 | G14: 0.515 | H14: 0.566 | I14: 0.498 | J14: 0.489 | K14: 0.417 | L14: 0.194 | M14: 0.251 | N14: 0.451 | O14: 0.152 | P14: 0.485 | Q14: 0.316 | R14: -26
A15: Ashleigh Barty | B15: 19 | C15: 0.297 | D15: 0.403 | E15: 0.524 | F15: 0.374 | G15: 0.516 | H15: 0.576 | I15: 0.433 | J15: 0.339 | K15: 0.308 | L15: 0.204 | M15: 0.26 | N15: 0.454 | O15: 0.185 | P15: 0.565 | Q15: 0.63 | R15: 36
A16: Ons Jabeur | B16: 11 | C16: 0.244 | D16: 0.329 | E16: 0.444 | F16: 0.354 | G16: 0.464 | H16: 0.53 | I16: 0.574 | J16: 0.307 | K16: 0.293 | L16: 0.138 | M16: 0.202 | N16: 0.365 | O16: 0.194 | P16: 0.54 | Q16: 0.513 | R16: 5
A17: Aryna Sabalenka | B17: 65 | C17: 0.275 | D17: 0.424 | E17: 0.506 | F17: 0.351 | G17: 0.524 | H17: 0.527 | I17: 0.582 | J17: 0.512 | K17: 0.604 | L17: 0.198 | M17: 0.336 | N17: 0.477 | O17: 0.55 | P17: 0.465 | Q17: 0.405 | R17: 71
A18: Karolina Pliskova | B18: 13 | C18: 0.276 | D18: 0.368 | E18: 0.501 | F18: 0.351 | G18: 0.452 | H18: 0.518 | I18: 0.494 | J18: 0.483 | K18: 0.467 | L18: 0.192 | M18: 0.291 | N18: 0.469 | O18: 0.215 | P18: 0.557 | Q18: 0.5 | R18: 50
A19: Belinda Bencic | B19: 5 | C19: 0.228 | D19: 0.33 | E19: 0.483 | F19: 0.333 | G19: 0.495 | H19: 0.5 | I19: 0.554 | J19: 0.35 | K19: 0.333 | L19: 0.105 | M19: 0.132 | N19: 0.461 | O19: 0.352 | P19: 0.333 | Q19: 0.25 | R19: -21
A20: Shelby Rogers | B20: 5 | C20: 0.281 | D20: 0.366 | E20: 0.449 | F20: 0.331 | G20: 0.438 | H20: 0.494 | I20: 0.457 | J20: 0.492 | K20: 0.429 | L20: 0.223 | M20: 0.277 | N20: 0.376 | O20: 0.245 | P20: 0.506 | Q20: 0.538 | R20: 28
A21: Ana Konjuh | B21: 5 | C21: 0.251 | D21: 0.351 | E21: 0.492 | F21: 0.325 | G21: 0.444 | H21: 0.512 | I21: 0.495 | J21: 0.239 | K21: 0.476 | L21: 0.159 | M21: 0.243 | N21: 0.456 | O21: 0.373 | P21: 0.292 | Q21: 0 | R21: 22
A22: Maria Sakkari | B22: 17 | C22: 0.249 | D22: 0.339 | E22: 0.463 | F22: 0.312 | G22: 0.429 | H22: 0.499 | I22: 0.444 | J22: 0.437 | K22: 0.311 | L22: 0.169 | M22: 0.221 | N22: 0.408 | O22: 0.2 | P22: 0.417 | Q22: 0.414 | R22: 46
A23: Veronika Kudermetova | B23: 7 | C23: 0.234 | D23: 0.339 | E23: 0.443 | F23: 0.31 | G23: 0.471 | H23: 0.551 | I23: 0.444 | J23: 0.426 | K23: 0.385 | L23: 0.163 | M23: 0.207 | N23: 0.335 | O23: 0.649 | P23: 0.341 | Q23: 0.278 | R23: -13
A24: Elena Rybakina | B24: 9 | C24: 0.238 | D24: 0.337 | E24: 0.471 | F24: 0.309 | G24: 0.438 | H24: 0.511 | I24: 0.392 | J24: 0.477 | K24: 0.5 | L24: 0.169 | M24: 0.238 | N24: 0.42 | O24: 0.135 | P24: 0.642 | Q24: 0.731 | R24: 48
A25: Cori Gauff | B25: 14 | C25: 0.246 | D25: 0.342 | E25: 0.512 | F25: 0.301 | G25: 0.44 | H25: 0.528 | I25: 0.548 | J25: 0.413 | K25: 0.368 | L25: 0.212 | M25: 0.257 | N25: 0.486 | O25: 0.401 | P25: 0.287 | Q25: 0.13 | R25: 71
A26: Ann Li | B26: 6 | C26: 0.245 | D26: 0.336 | E26: 0.469 | F26: 0.288 | G26: 0.404 | H26: 0.508 | I26: 0.554 | J26: 0.369 | K26: 0.158 | L26: 0.192 | M26: 0.247 | N26: 0.407 | O26: 0.2 | P26: 0.558 | Q26: 0.8 | R26: -12
A27: Karolina Muchova | B27: 13 | C27: 0.232 | D27: 0.317 | E27: 0.495 | F27: 0.28 | G27: 0.389 | H27: 0.501 | I27: 0.366 | J27: 0.423 | K27: 0.48 | L27: 0.157 | M27: 0.204 | N27: 0.484 | O27: 0.272 | P27: 0.419 | Q27: 0.364 | R27: -5
A28: Marta Kostyuk | B28: 8 | C28: 0.233 | D28: 0.314 | E28: 0.512 | F28: 0.279 | G28: 0.388 | H28: 0.538 | I28: 0.524 | J28: 0.328 | K28: 0.25 | L28: 0.194 | M28: 0.237 | N28: 0.467 | O28: 0.303 | P28: 0.278 | Q28: 0.263 | R28: 64
A29: Tsvetana Pironkova | B29: 7 | C29: 0.213 | D29: 0.287 | E29: 0.492 | F29: 0.275 | G29: 0.37 | H29: 0.6 | I29: 0.469 | J29: 0.399 | K29: 0.367 | L29: 0.139 | M29: 0.191 | N29: 0.37 | O29: 0.15 | P29: 0.493 | Q29: 0.5 | R29: -44
A30: Jessica Pegula | B30: 11 | C30: 0.217 | D30: 0.291 | E30: 0.457 | F30: 0.275 | G30: 0.363 | H30: 0.47 | I30: 0.267 | J30: 0.329 | K30: 0.35 | L30: 0.148 | M30: 0.207 | N30: 0.439 | O30: 0.123 | P30: 0.371 | Q30: 0.6 | R30: 31
A31: Garbine Muguruza | B31: 13 | C31: 0.232 | D31: 0.324 | E31: 0.481 | F31: 0.273 | G31: 0.389 | H31: 0.507 | I31: 0.426 | J31: 0.449 | K31: 0.448 | L31: 0.158 | M31: 0.203 | N31: 0.424 | O31: 0.083 | P31: 0.582 | Q31: 0.448 | R31: 26
A32: Petra Kvitova | B32: 11 | C32: 0.232 | D32: 0.374 | E32: 0.491 | F32: 0.269 | G32: 0.429 | H32: 0.503 | I32: 0.382 | J32: 0.551 | K32: 0.525 | L32: 0.18 | M32: 0.303 | N32: 0.467 | O32: 0.089 | P32: 0.681 | Q32: 0.842 | R32: 42
A33: Elina Svitolina | B33: 15 | C33: 0.214 | D33: 0.295 | E33: 0.466 | F33: 0.267 | G33: 0.381 | H33: 0.514 | I33: 0.472 | J33: 0.463 | K33: 0.456 | L33: 0.142 | M33: 0.173 | N33: 0.398 | O33: 0.126 | P33: 0.277 | Q33: 0.209 | R33: -28
A34: Clara Tauson | B34: 5 | C34: 0.204 | D34: 0.326 | E34: 0.502 | F34: 0.266 | G34: 0.403 | H34: 0.52 | I34: 0.372 | J34: 0.45 | K34: 0.5 | L34: 0.113 | M34: 0.218 | N34: 0.475 | O34: 0.097 | P34: 0.549 | Q34: 0.4 | R34: -12
A35: Anett Kontaveit | B35: 9 | C35: 0.208 | D35: 0.308 | E35: 0.469 | F35: 0.26 | G35: 0.396 | H35: 0.513 | I35: 0.437 | J35: 0.569 | K35: 0.581 | L35: 0.145 | M35: 0.195 | N35: 0.404 | O35: 0.206 | P35: 0.424 | Q35: 0.35 | R35: 19
A36: Barbora Krejcikova | B36: 18 | C36: 0.212 | D36: 0.298 | E36: 0.499 | F36: 0.259 | G36: 0.364 | H36: 0.532 | I36: 0.494 | J36: 0.593 | K36: 0.566 | L36: 0.148 | M36: 0.208 | N36: 0.439 | O36: 0.143 | P36: 0.574 | Q36: 0.548 | R36: 28
A37: Ajla Tomljanovic | B37: 5 | C37: 0.193 | D37: 0.251 | E37: 0.401 | F37: 0.256 | G37: 0.331 | H37: 0.392 | I37: 0.508 | J37: 0.438 | K37: 0.308 | L37: 0.092 | M37: 0.126 | N37: 0.417 | O37: 0.509 | P37: 0.121 | Q37: 0 | R37: -28
A38: Kiki Bertens | B38: 14 | C38: 0.206 | D38: 0.279 | E38: 0.427 | F38: 0.245 | G38: 0.339 | H38: 0.419 | I38: 0.4 | J38: 0.502 | K38: 0.597 | L38: 0.167 | M38: 0.211 | N38: 0.445 | O38: 0.11 | P38: 0.338 | Q38: 0.381 | R38: 36
A39: Iga Swiatek | B39: 32 | C39: 0.208 | D39: 0.33 | E39: 0.547 | F39: 0.244 | G39: 0.406 | H39: 0.565 | I39: 0.37 | J39: 0.555 | K39: 0.547 | L39: 0.175 | M39: 0.247 | N39: 0.522 | O39: 0.135 | P39: 0.627 | Q39: 0.685 | R39: 3
A40: Jelena Ostapenko | B40: 7 | C40: 0.201 | D40: 0.327 | E40: 0.488 | F40: 0.243 | G40: 0.422 | H40: 0.497 | I40: 0.38 | J40: 0.342 | K40: 0.364 | L40: 0.175 | M40: 0.241 | N40: 0.474 | O40: 0.397 | P40: 0.545 | Q40: 0.625 | R40: 49
A41: Victoria Azarenka | B41: 18 | C41: 0.223 | D41: 0.292 | E41: 0.484 | F41: 0.242 | G41: 0.331 | H41: 0.514 | I41: 0.493 | J41: 0.468 | K41: 0.516 | L41: 0.21 | M41: 0.244 | N41: 0.415 | O41: 0.143 | P41: 0.227 | Q41: 0.273 | R41: 56
A42: Paula Badosa | B42: 13 | C42: 0.204 | D42: 0.28 | E42: 0.477 | F42: 0.24 | G42: 0.329 | H42: 0.509 | I42: 0.575 | J42: 0.256 | K42: 0.316 | L42: 0.166 | M42: 0.226 | N42: 0.403 | O42: 0.474 | P42: 0.575 | Q42: 0.571 | R42: 34
A43: Kaja Juvan | B43: 10 | C43: 0.203 | D43: 0.286 | E43: 0.435 | F43: 0.239 | G43: 0.336 | H43: 0.478 | I43: 0.294 | J43: 0.567 | K43: 0.625 | L43: 0.154 | M43: 0.221 | N43: 0.369 | O43: 0.254 | P43: 0.691 | Q43: 0.714 | R43: -28
A44: Sorana Cirstea | B44: 10 | C44: 0.215 | D44: 0.313 | E44: 0.448 | F44: 0.238 | G44: 0.361 | H44: 0.488 | I44: 0.418 | J44: 0.385 | K44: 0.375 | L44: 0.194 | M44: 0.253 | N44: 0.377 | O44: 0.436 | P44: 0.385 | Q44: 0.387 | R44: 5
A45: Bianca Andreescu | B45: 17 | C45: 0.207 | D45: 0.312 | E45: 0.508 | F45: 0.237 | G45: 0.377 | H45: 0.543 | I45: 0.41 | J45: 0.38 | K45: 0.426 | L45: 0.173 | M45: 0.218 | N45: 0.438 | O45: 0.106 | P45: 0.395 | Q45: 0.516 | R45: 53
A46: Viktorija Golubic | B46: 8 | C46: 0.22 | D46: 0.281 | E46: 0.455 | F46: 0.236 | G46: 0.313 | H46: 0.493 | I46: 0.364 | J46: 0.336 | K46: 0.405 | L46: 0.203 | M46: 0.229 | N46: 0.361 | O46: 0.259 | P46: 0.569 | Q46: 0.615 | R46: -3
A47: Elise Mertens | B47: 11 | C47: 0.192 | D47: 0.246 | E47: 0.467 | F47: 0.236 | G47: 0.305 | H47: 0.515 | I47: 0.553 | J47: 0.432 | K47: 0.392 | L47: 0.136 | M47: 0.169 | N47: 0.382 | O47: 0.243 | P47: 0.424 | Q47: 0.444 | R47: 13
A48: Marketa Vondrousova | B48: 7 | C48: 0.183 | D48: 0.269 | E48: 0.471 | F48: 0.233 | G48: 0.35 | H48: 0.457 | I48: 0.184 | J48: 0.476 | K48: 0.391 | L48: 0.139 | M48: 0.194 | N48: 0.492 | O48: 0 | P48: 0.632 | Q48: 0.85 | R48: 12
A49: Anna Blinkova | B49: 5 | C49: 0.186 | D49: 0.288 | E49: 0.456 | F49: 0.227 | G49: 0.351 | H49: 0.503 | I49: 0.3 | J49: 0.441 | K49: 0.3 | L49: 0.151 | M49: 0.238 | N49: 0.383 | O49: 0.241 | P49: 0.333 | Q49: 0.333 | R49: 27
A50: Maria Camila Osorio Serrano | B50: 7 | C50: 0.211 | D50: 0.274 | E50: 0.447 | F50: 0.224 | G50: 0.311 | H50: 0.5 | I50: 0.449 | J50: 0.362 | K50: 0.467 | L50: 0.233 | M50: 0.267 | N50: 0.348 | O50: 0.614 | P50: 0.155 | Q50: 0.158 | R50: 101
A51: Simona Halep | B51: 28 | C51: 0.2 | D51: 0.268 | E51: 0.504 | F51: 0.22 | G51: 0.309 | H51: 0.528 | I51: 0.396 | J51: 0.418 | K51: 0.479 | L51: 0.187 | M51: 0.216 | N51: 0.446 | O51: 0.516 | P51: 0.183 | Q51: 0.19 | R51: 63
A52: Polona Hercog | B52: 5 | C52: 0.16 | D52: 0.259 | E52: 0.442 | F52: 0.218 | G52: 0.332 | H52: 0.453 | I52: 0.37 | J52: 0.554 | K52: 0.536 | L52: 0.104 | M52: 0.198 | N52: 0.429 | O52: 0.109 | P52: 0.633 | Q52: 0.588 | R52: -11
A53: Darya Kasatkina | B53: 7 | C53: 0.193 | D53: 0.245 | E53: 0.39 | F53: 0.214 | G53: 0.279 | H53: 0.421 | I53: 0.527 | J53: 0.411 | K53: 0.231 | L53: 0.177 | M53: 0.208 | N53: 0.318 | O53: 0.345 | P53: 0.764 | Q53: 0.75 | R53: 53
A54: Jil Belen Teichmann | B54: 6 | C54: 0.18 | D54: 0.266 | E54: 0.486 | F54: 0.211 | G54: 0.329 | H54: 0.561 | I54: 0.257 | J54: 0.49 | K54: 0.643 | L54: 0.15 | M54: 0.19 | N54: 0.354 | O54: 0.318 | P54: 0.483 | Q54: 0.538 | R54: 33
A55: Nadia Podoroska | B55: 10 | C55: 0.197 | D55: 0.277 | E55: 0.431 | F55: 0.209 | G55: 0.308 | H55: 0.453 | I55: 0.464 | J55: 0.338 | K55: 0.381 | L55: 0.187 | M55: 0.225 | N55: 0.376 | O55: 0.346 | P55: 0.618 | Q55: 0.789 | R55: 6
A56: Leylah Annie Fernandez | B56: 5 | C56: 0.178 | D56: 0.253 | E56: 0.464 | F56: 0.208 | G56: 0.305 | H56: 0.492 | I56: 0.302 | J56: 0.517 | K56: 0.462 | L56: 0.164 | M56: 0.213 | N56: 0.412 | O56: 0.286 | P56: 0.288 | Q56: 0.25 | R56: 34
A57: Anastasia Pavlyuchenkova | B57: 7 | C57: 0.187 | D57: 0.309 | E57: 0.487 | F57: 0.207 | G57: 0.349 | H57: 0.495 | I57: 0.399 | J57: 0.521 | K57: 0.48 | L57: 0.169 | M57: 0.266 | N57: 0.469 | O57: 0.105 | P57: 0.287 | Q57: 0.261 | R57: 51
A58: Arantxa Rus | B58: 18 | C58: 0.185 | D58: 0.252 | E58: 0.47 | F58: 0.202 | G58: 0.279 | H58: 0.502 | I58: 0.33 | J58: 0.551 | K58: 0.606 | L58: 0.18 | M58: 0.234 | N58: 0.37 | O58: 0.553 | P58: 0.186 | Q58: 0.176 | R58: 50
A59: Su Wei Hsieh | B59: 7 | C59: 0.178 | D59: 0.263 | E59: 0.475 | F59: 0.201 | G59: 0.313 | H59: 0.51 | I59: 0.523 | J59: 0.354 | K59: 0.405 | L59: 0.151 | M59: 0.183 | N59: 0.393 | O59: 0.508 | P59: 0.388 | Q59: 0.091 | R59: 29
A60: Marie Bouzkova | B60: 8 | C60: 0.183 | D60: 0.242 | E60: 0.511 | F60: 0.198 | G60: 0.277 | H60: 0.509 | I60: 0.53 | J60: 0.367 | K60: 0.44 | L60: 0.171 | M60: 0.189 | N60: 0.515 | O60: 0.412 | P60: 0.417 | Q60: 0.429 | R60: 50
A61: Jasmine Paolini | B61: 7 | C61: 0.178 | D61: 0.236 | E61: 0.472 | F61: 0.197 | G61: 0.261 | H61: 0.483 | I61: 0.257 | J61: 0.433 | K61: 0.481 | L61: 0.159 | M61: 0.214 | N61: 0.443 | O61: 0.102 | P61: 0.537 | Q61: 0.706 | R61: 32
A62: Laura Siegemund | B62: 7 | C62: 0.175 | D62: 0.246 | E62: 0.435 | F62: 0.186 | G62: 0.274 | H62: 0.444 | I62: 0.418 | J62: 0.421 | K62: 0.531 | L62: 0.202 | M62: 0.257 | N62: 0.414 | O62: 0.37 | P62: 0.255 | Q62: 0.133 | R62: 57
A63: Tamara Zidansek | B63: 6 | C63: 0.186 | D63: 0.274 | E63: 0.489 | F63: 0.18 | G63: 0.285 | H63: 0.537 | I63: 0.306 | J63: 0.547 | K63: 0.667 | L63: 0.228 | M63: 0.293 | N63: 0.38 | O63: 0.25 | P63: 0.635 | Q63: 0.818 | R63: 60
A64: Sofia Kenin | B64: 10 | C64: 0.153 | D64: 0.251 | E64: 0.48 | F64: 0.174 | G64: 0.3 | H64: 0.528 | I64: 0.543 | J64: 0.494 | K64: 0.544 | L64: 0.132 | M64: 0.184 | N64: 0.376 | O64: 0.051 | P64: 0.685 | Q64: 0.889 | R64: 9
A65: Angelique Kerber | B65: 11 | C65: 0.149 | D65: 0.249 | E65: 0.53 | F65: 0.171 | G65: 0.298 | H65: 0.541 | I65: 0.391 | J65: 0.678 | K65: 0.75 | L65: 0.126 | M65: 0.177 | N65: 0.503 | O65: 0.02 | P65: 0.556 | Q65: 0.696 | R65: 4
A66: Fiona Ferro | B66: 6 | C66: 0.146 | D66: 0.277 | E66: 0.487 | F66: 0.166 | G66: 0.309 | H66: 0.484 | I66: 0.535 | J66: 0.515 | K66: 0.538 | L66: 0.126 | M66: 0.247 | N66: 0.491 | O66: 0.103 | P66: 0.721 | Q66: 0.867 | R66: -29
A67: Martina Trevisan | B67: 6 | C67: 0.132 | D67: 0.185 | E67: 0.447 | F67: 0.153 | G67: 0.214 | H67: 0.44 | I67: 0.191 | J67: 0.708 | K67: 0.895 | L67: 0.097 | M67: 0.135 | N67: 0.464 | O67: 0.039 | P67: 0.418 | Q67: 0.333 | R67: -19
A68: Katerina Siniakova | B68: 6 | C68: 0.126 | D68: 0.205 | E68: 0.472 | F68: 0.143 | G68: 0.243 | H68: 0.498 | I68: 0.25 | J68: 0.351 | K68: 0.286 | L68: 0.117 | M68: 0.167 | N68: 0.415 | O68: 0.15 | P68: 0.217 | Q68: 0.455 | R68: -10
A69: Sara Sorribes Tormo | B69: 10 | C69: 0.121 | D69: 0.145 | E69: 0.443 | F69: 0.124 | G69: 0.155 | H69: 0.444 | I69: 0.401 | J69: 0.226 | K69: 0.282 | L69: 0.132 | M69: 0.141 | N69: 0.44 | O69: 0.522 | P69: 0.15 | Q69: 0.25 | R69: 13
A70: Irina Maria Bara | B70: 5 | C70: 0.108 | D70: 0.14 | E70: 0.452 | F70: 0.122 | G70: 0.163 | H70: 0.433 | I70: 0.246 | J70: 0.252 | K70: 0.35 | L70: 0.094 | M70: 0.106 | N70: 0.506 | O70: 0.111 | P70: 0.163 | Q70: 0.1 | R70: -32
A71: Sara Errani | B71: 5 | C71: 0.098 | D71: 0.131 | E71: 0.437 | F71: 0.106 | G71: 0.144 | H71: 0.459 | I71: 0.22 | J71: 0.401 | K71: 0.473 | L71: 0.107 | M71: 0.131 | N71: 0.347 | O71: 0.419 | P71: 0.171 | Q71: 0.167 | R71: -30

Sheet WTA CLAY (hidden)

Sheet WTA GRASS (hidden)

Sheet WTA HARD (hidden)

Sheet Elaborazione Quote (hidden)
A1: Quote pre-partita | H1: =+A27 -> Gioca Responsabile. 18+
A2: bet365.it | H2: =+A2 -> bet365.it | I2: =+A3 -> 1 | J2: =+A5 -> 2
A3: 1 | H3: =+A2 -> bet365.it | I3: =+F4 -> 1.57 | J3: =+F6 -> 2.37
A4: 1.57 | B4: =LEFT(A4,1) -> 1 | C4: =RIGHT(A4,3) -> 57 | D4: =LEFT(C4,2) -> 57 | E4: =+D4/100 -> 0.57 | F4: =+E4+B4 -> 1.57 | H4: =+A7 -> Eurobet.it | I4: =+F9 -> 1.55 | J4: =+F11 -> 2.4
A5: 2 | H5: =+A12 -> GoldBet | I5: =+F14 -> 1.55 | J5: =+F16 -> 2.41
A6: 2.37 | B6: =LEFT(A6,1) -> 2 | C6: =RIGHT(A6,3) -> 37 | D6: =LEFT(C6,2) -> 37 | E6: =+D6/100 -> 0.37 | F6: =+E6+B6 -> 2.37 | H6: =+A17 -> PlanetWin | I6: =+F19 -> 1.6 | J6: =+F21 -> 2.3
A7: Eurobet.it | H7: =+A22 -> Sisal | I7: =+F24 -> 1.57 | J7: =+F26 -> 2.02
A8: 1
A9: 1.55 | B9: =LEFT(A9,1) -> 1 | C9: =RIGHT(A9,3) -> 55 | D9: =LEFT(C9,2) -> 55 | E9: =+D9/100 -> 0.55 | F9: =+E9+B9 -> 1.55
A10: 2
A11: 2.40 | B11: =LEFT(A11,1) -> 2 | C11: =RIGHT(A11,3) -> 40 | D11: =LEFT(C11,2) -> 40 | E11: =+D11/100 -> 0.4 | F11: =+E11+B11 -> 2.4
A12: GoldBet
A13: 1
A14: 1.55 | B14: =LEFT(A14,1) -> 1 | C14: =RIGHT(A14,3) -> 55 | D14: =LEFT(C14,2) -> 55 | E14: =+D14/100 -> 0.55 | F14: =+E14+B14 -> 1.55
A15: 2
A16: 2.41 | B16: =LEFT(A16,1) -> 2 | C16: =RIGHT(A16,3) -> 41 | D16: =LEFT(C16,2) -> 41 | E16: =+D16/100 -> 0.41 | F16: =+E16+B16 -> 2.41
A17: PlanetWin
A18: 1
A19: 1.60 | B19: =LEFT(A19,1) -> 1 | C19: =RIGHT(A19,3) -> 60 | D19: =LEFT(C19,2) -> 60 | E19: =+D19/100 -> 0.6 | F19: =+E19+B19 -> 1.6
A20: 2
A21: 2.30 | B21: =LEFT(A21,1) -> 2 | C21: =RIGHT(A21,3) -> 30 | D21: =LEFT(C21,2) -> 30 | E21: =+D21/100 -> 0.3 | F21: =+E21+B21 -> 2.3
A22: Sisal
A23: 1
A24: 1.57 | B24: =LEFT(A24,1) -> 1 | C24: =RIGHT(A24,3) -> 57 | D24: =LEFT(C24,2) -> 57 | E24: =+D24/100 -> 0.57 | F24: =+E24+B24 -> 1.57
A25: 2
A26: 2.4 | B26: =LEFT(A26,1) -> 2 | C26: =RIGHT(A26,3) -> 2,4 | D26: =LEFT(C26,2) -> 2, | E26: =+D26/100 -> 0.02 | F26: =+E26+B26 -> 2.02
A27: Gioca Responsabile. 18+

Sheet Inserimento Dati (hidden)
C22: Ultimi Incontri: GULBIS E.
C23: 24.06.21
C24: WIM
C25: Gulbis E.
C26: Nakashima B.
C27: 0 : 3
C28: P
C29: 23.06.21
C30: WIM
C31: Martin A.
C32: Gulbis E.
C33: 0 : 2
C34: V
C35: 22.06.21
C36: WIM
C37: Popko D.
C38: Gulbis E.
C39: 1 : 2
C40: V
C41: 12.06.21
C42: HAL
C43: Gulbis E.
C44: Duckworth J.
C45: 1 : 2
C46: P
C47: 24.05.21
C48: FO
C49: Galan Riveros D. E.
C50: Gulbis E.
C51: 2 : 0
C52: P
C53: 17.05.21
C54: OEI
C55: Gulbis E.
C56: Bergs Z.
C57: 0 : 2
C58: P
C59: 16.05.21
C60: OEI
C61: Gulbis E.
C62: Gimeno-Traver D.
C63: 2 : 0
C64: V
C65: 11.05.21
C66: ZAG
C67: Gulbis E.
C68: Gojo B.
C69: 0 : 2
C70: P
C71: 10.05.21
C72: ZAG
C73: Gulbis E.
C74: Ito T.
C75: 2 : 1
C76: V
C77: 09.05.21
C78: ZAG
C79: Gulbis E.
C80: Tiurnev E.
C81: 2 : 0
C82: V
C83: 04.04.21
C84: MAR
C85: Gulbis E.
C86: Zapata Miralles B.
C87: 0 : 2
C88: P
C89: 31.03.21
C90: MAR
C91: Marcora R.
C92: Gulbis E.
C93: 2 : 0
C94: P
C95: 29.03.21
C96: MAR
C97: Gulbis E.
C98: Donskoy E.
C99: 2 : 0
C100: V
C101: 08.03.21
C102: MAR
C103: Molcan A.
C104: Gulbis E.
C105: 2 : 0
C106: P
C107: 07.03.21
C108: MAR
C109: Gulbis E.
C110: Horansky F.
C111: 2 : 0
C112: V
C113: 24.02.21
C114: SGP
C115: Marcora R.
C116: Gulbis E.
C117: 2 : 0
C118: P
C119: 19.02.21
C120: BIE
C121: Musetti L.
C122: Gulbis E.
C123: 2 : 0
C124: P
C125: 17.02.21
C126: BIE
C127: Gulbis E.
C128: Popko D.
C129: 2 : 0
C130: V
C131: 16.02.21
C132: BIE
C133: Brancaccio R.
C134: Gulbis E.
C135: 1 : 2
C136: V
C137: 25.01.21
C138: QUI
C139: Gulbis E.
C140: Gaio F.
C141: 0 : 2
C142: P
C143: 17.01.21
C144: IST
C145: Gulbis E.
C146: Cid Subervi R.
C147: 0 : 2
C148: P
C149: 11.01.21
C150: AO
C151: Gulbis E.
C152: Rola B.
C153: 0 : 2
C154: P

Sheet GAME
C3: MBD TENNIS PRO | O3: MERCATO QUOTE E MONEY | AB3: QUOTE
O4: MATCH | Q4: Quote Apertura | S4: Quote Attuali | U4: Money | V4: Percentuali Money | X4: Money totali | Z4: TORNEO | AA4: DATA
C6: Sevizio ATP | E6: =IFERROR(VLOOKUP(C69,GAME!A70:C1250,3,FALSE),"") -> 138 | G6: =+'Elaborazioni Giocatore1'!B3 -> 0 | K6: Servizio ATP | M6: =IFERROR(VLOOKUP(F69,GAME!A70:C1250,3,FALSE),"") -> 175 | AB6: =+'Elaborazione Quote'!H1 -> Gioca Responsabile. 18+
C7: FORMA | E7: =+'Elaborazioni Giocatore1'!AG30 -> Buona | K7: FORMA | M7: =+'Elaborazioni Giocatore2'!AG30 -> Ottima | Q7: 1 | R7: 2 | S7: 1 | T7: 2 | V7: 1 | W7: 2 | X7: 1 | Y7: 2
C8: =+'Elaborazioni Giocatore1'!C23 -> ULTIMI INCONTRI: HALYS Q. | K8: =+'Elaborazioni Giocatore2'!C23 -> ULTIMI INCONTRI: IVASHKA I. | O8: =IF(Elaborazione!C5=0,"",Elaborazione!C5) -> S Verma | P8: =IF(Elaborazione!H5=0,"",Elaborazione!H5) -> Perkins | Q8: =IF(Elaborazione!I5=0,"",Elaborazione!AA5) -> 1,35 | R8: =IF(Elaborazione!I5=0,"",Elaborazione!AB5) -> 2,14 | S8: =IF(Elaborazione!I5=0,"",Elaborazione!M5) -> 1.03 | T8: =IF(Elaborazione!I5=0,"",Elaborazione!N5) -> 2.1 | U8: =IF(Elaborazione!I5=0,"",Elaborazione!I5) -> 743 | V8: =IF(Elaborazione!I5=0,"",Elaborazione!S5) -> 72.5 % | W8: =IF(Elaborazione!I5=0,"",Elaborazione!T5) -> 27.5 % | X8: =IF(Elaborazione!I5=0,"",Elaborazione!Y5) -> 539 | Y8: =IF(Elaborazione!I5=0,"",Elaborazione!Z5) -> 204 | Z8: =IF(Elaborazione!A5=0,"",Elaborazione!A5) -> UTR Ann Arbor Men's 2022 | AA8: =IF(Elaborazione!B5=0,"",Elaborazione!B5) -> 26.Jul 23:00:00 | AC8: =+'Elaborazione Quote'!I2 -> 1 | AD8: =+'Elaborazione Quote'!J2 -> 2
O9: =IF(Elaborazione!C6=0,"",Elaborazione!C6) -> Muchova | P9: =IF(Elaborazione!H6=0,"",Elaborazione!H6) -> Luci Havlic | Q9: =IF(Elaborazione!I6=0,"",Elaborazione!AA6) -> 1,04 | R9: =IF(Elaborazione!I6=0,"",Elaborazione!AB6) -> 15 1 | S9: =IF(Elaborazione!I6=0,"",Elaborazione!M6) ->  | T9: =IF(Elaborazione!I6=0,"",Elaborazione!N6) ->  | U9: =IF(Elaborazione!I6=0,"",Elaborazione!I6) -> € 1 276 | V9: =IF(Elaborazione!I6=0,"",Elaborazione!S6) ->  | W9: =IF(Elaborazione!I6=0,"",Elaborazione!T6) ->  | X9: =IF(Elaborazione!I6=0,"",Elaborazione!Y6) ->  | Y9: =IF(Elaborazione!I6=0,"",Elaborazione!Z6) ->  | Z9: =IF(Elaborazione!A6=0,"",Elaborazione!A6) -> WTA Prague 2022 | AA9: =IF(Elaborazione!B6=0,"",Elaborazione!B6) -> 26.Jul 02:00:00 | AB9: =+'Elaborazione Quote'!H3 -> bet365.it | AC9: =+'Elaborazione Quote'!I3 -> 1.57 | AD9: =+'Elaborazione Quote'!J3 -> 2.37 | AE9: =IF($E$29<AC9,"VALUEBET","") ->  | AF9: =IF($M$29<AD9,"VALUEBET","") -> 
D10: TOTALI | L10: TOTALI | O10: =IF(Elaborazione!C7=0,"",Elaborazione!C7) -> Borges | P10: =IF(Elaborazione!H7=0,"",Elaborazione!H7) -> Basic | Q10: =IF(Elaborazione!I7=0,"",Elaborazione!AA7) -> 1,49 | R10: =IF(Elaborazione!I7=0,"",Elaborazione!AB7) -> 2,92 | S10: =IF(Elaborazione!I7=0,"",Elaborazione!M7) -> 1.46 | T10: =IF(Elaborazione!I7=0,"",Elaborazione!N7) -> 2.58 | U10: =IF(Elaborazione!I7=0,"",Elaborazione!I7) -> 485 | V10: =IF(Elaborazione!I7=0,"",Elaborazione!S7) -> 99.5 % | W10: =IF(Elaborazione!I7=0,"",Elaborazione!T7) -> 0.5 % | X10: =IF(Elaborazione!I7=0,"",Elaborazione!Y7) -> 483 | Y10: =IF(Elaborazione!I7=0,"",Elaborazione!Z7) -> 5 2 | Z10: =IF(Elaborazione!A7=0,"",Elaborazione!A7) -> Segovia Challenger 2022 | AA10: =IF(Elaborazione!B7=0,"",Elaborazione!B7) -> 26.Jul 14:00:00 | AB10: =+'Elaborazione Quote'!H4 -> Eurobet.it | AC10: =+'Elaborazione Quote'!I4 -> 1.55 | AD10: =+'Elaborazione Quote'!J4 -> 2.4 | AE10: =IF($E$29<AC10,"VALUEBET","") ->  | AF10: =IF($M$29<AD10,"VALUEBET","") -> 
D11: VINTE | E11: PERSE | L11: VINTE | M11: PERSE | O11: =IF(Elaborazione!C8=0,"",Elaborazione!C8) -> Pellegrino | P11: =IF(Elaborazione!H8=0,"",Elaborazione!H8) -> Sels | Q11: =IF(Elaborazione!I8=0,"",Elaborazione!AA8) -> 1,67 | R11: =IF(Elaborazione!I8=0,"",Elaborazione!AB8) -> 2,42 | S11: =IF(Elaborazione!I8=0,"",Elaborazione!M8) -> 1.6 | T11: =IF(Elaborazione!I8=0,"",Elaborazione!N8) -> 2.22 | U11: =IF(Elaborazione!I8=0,"",Elaborazione!I8) -> 255 | V11: =IF(Elaborazione!I8=0,"",Elaborazione!S8) -> 94.6 % | W11: =IF(Elaborazione!I8=0,"",Elaborazione!T8) -> 5.4 % | X11: =IF(Elaborazione!I8=0,"",Elaborazione!Y8) -> 241 | Y11: =IF(Elaborazione!I8=0,"",Elaborazione!Z8) -> 14 | Z11: =IF(Elaborazione!A8=0,"",Elaborazione!A8) -> San Benedetto Del Tronto Challenger 2022 | AA11: =IF(Elaborazione!B8=0,"",Elaborazione!B8) -> 26.Jul 15:00:00 | AB11: =+'Elaborazione Quote'!H5 -> GoldBet | AC11: =+'Elaborazione Quote'!I5 -> 1.55 | AD11: =+'Elaborazione Quote'!J5 -> 2.41
C12: Match | D12: =+'Elaborazione totale'!D7 -> 5 | E12: =+'Elaborazione totale'!E7 -> 4 | F12: Match | K12: Match | L12: =+'Elaborazione totale'!D36 -> 5 | M12: =+'Elaborazione totale'!E36 -> 5 | N12: Match | O12: =IF(Elaborazione!C9=0,"",Elaborazione!C9) -> Kontaveit | P12: =IF(Elaborazione!H9=0,"",Elaborazione!H9) -> Gorgodze | Q12: =IF(Elaborazione!I9=0,"",Elaborazione!AA9) -> 1,07 | R12: =IF(Elaborazione!I9=0,"",Elaborazione!AB9) -> 13,5 | S12: =IF(Elaborazione!I9=0,"",Elaborazione!M9) -> 1.07 | T12: =IF(Elaborazione!I9=0,"",Elaborazione!N9) -> 12.5 | U12: =IF(Elaborazione!I9=0,"",Elaborazione!I9) -> € 3 181 | V12: =IF(Elaborazione!I9=0,"",Elaborazione!S9) -> 97.1 % | W12: =IF(Elaborazione!I9=0,"",Elaborazione!T9) -> 2.9 % | X12: =IF(Elaborazione!I9=0,"",Elaborazione!Y9) -> 3 090 | Y12: =IF(Elaborazione!I9=0,"",Elaborazione!Z9) -> 91 | Z12: =IF(Elaborazione!A9=0,"",Elaborazione!A9) -> WTA Prague 2022 | AA12: =IF(Elaborazione!B9=0,"",Elaborazione!B9) -> 26.Jul 14:00:00 | AB12: =+'Elaborazione Quote'!H6 -> PlanetWin | AC12: =+'Elaborazione Quote'!I6 -> 1.6 | AD12: =+'Elaborazione Quote'!J6 -> 2.3
C13: Set | D13: =+'Elaborazione totale'!F7 -> 14 | E13: =+'Elaborazione totale'!G7 -> 11 | F13: Set | K13: Set | L13: =+'Elaborazione totale'!F36 -> 12 | M13: =+'Elaborazione totale'!G36 -> 14 | N13: Set | O13: =IF(Elaborazione!C10=0,"",Elaborazione!C10) -> Prizmic | P13: =IF(Elaborazione!H10=0,"",Elaborazione!H10) -> Zapata Mira | Q13: =IF(Elaborazione!I10=0,"",Elaborazione!AA10) -> 8,6 | R13: =IF(Elaborazione!I10=0,"",Elaborazione!AB10) -> 1,09 | S13: =IF(Elaborazione!I10=0,"",Elaborazione!M10) -> 8 | T13: =IF(Elaborazione!I10=0,"",Elaborazione!N10) -> 1.11 | U13: =IF(Elaborazione!I10=0,"",Elaborazione!I10) -> € 1 603 | V13: =IF(Elaborazione!I10=0,"",Elaborazione!S10) -> 9.9 % | W13: =IF(Elaborazione!I10=0,"",Elaborazione!T10) -> 90.1 % | X13: =IF(Elaborazione!I10=0,"",Elaborazione!Y10) -> 159 | Y13: =IF(Elaborazione!I10=0,"",Elaborazione!Z10) -> 1 443 | Z13: =IF(Elaborazione!A10=0,"",Elaborazione!A10) -> ATP Umag 2022 | AA13: =IF(Elaborazione!B10=0,"",Elaborazione!B10) -> 26.Jul 16:00:00 | AB13: =+'Elaborazione Quote'!H7 -> Sisal | AC13: =+'Elaborazione Quote'!I7 -> 1.57 | AD13: =+'Elaborazione Quote'!J7 -> 2.02
D14: TERRENO | L14: TERRENO | O14: =IF(Elaborazione!C11=0,"",Elaborazione!C11) -> Nakashima | P14: =IF(Elaborazione!H11=0,"",Elaborazione!H11) -> Thompson | Q14: =IF(Elaborazione!I11=0,"",Elaborazione!AA11) -> 1,35 | R14: =IF(Elaborazione!I11=0,"",Elaborazione!AB11) -> 3,55 | S14: =IF(Elaborazione!I11=0,"",Elaborazione!M11) -> 1.28 | T14: =IF(Elaborazione!I11=0,"",Elaborazione!N11) -> 4.4 | U14: =IF(Elaborazione!I11=0,"",Elaborazione!I11) -> € 15 304 | V14: =IF(Elaborazione!I11=0,"",Elaborazione!S11) -> 90.1 % | W14: =IF(Elaborazione!I11=0,"",Elaborazione!T11) -> 9.9 % | X14: =IF(Elaborazione!I11=0,"",Elaborazione!Y11) -> 13 795 | Y14: =IF(Elaborazione!I11=0,"",Elaborazione!Z11) -> 1 509 | Z14: =IF(Elaborazione!A11=0,"",Elaborazione!A11) -> ATP Atlanta 2022 | AA14: =IF(Elaborazione!B11=0,"",Elaborazione!B11) -> 25.Jul 21:55:00
D15: VINTE | E15: PERSE | L15: VINTE | M15: PERSE | O15: =IF(Elaborazione!C12=0,"",Elaborazione!C12) -> Luc Bronzet | P15: =IF(Elaborazione!H12=0,"",Elaborazione!H12) -> Peterson | Q15: =IF(Elaborazione!I12=0,"",Elaborazione!AA12) -> 2,02 | R15: =IF(Elaborazione!I12=0,"",Elaborazione!AB12) -> 1,93 | S15: =IF(Elaborazione!I12=0,"",Elaborazione!M12) -> 2.1 | T15: =IF(Elaborazione!I12=0,"",Elaborazione!N12) -> 1.83 | U15: =IF(Elaborazione!I12=0,"",Elaborazione!I12) -> € 1 766 | V15: =IF(Elaborazione!I12=0,"",Elaborazione!S12) -> 87.1 % | W15: =IF(Elaborazione!I12=0,"",Elaborazione!T12) -> 12.9 % | X15: =IF(Elaborazione!I12=0,"",Elaborazione!Y12) -> 1 538 | Y15: =IF(Elaborazione!I12=0,"",Elaborazione!Z12) -> 227 | Z15: =IF(Elaborazione!A12=0,"",Elaborazione!A12) -> WTA Prague 2022 | AA15: =IF(Elaborazione!B12=0,"",Elaborazione!B12) -> 26.Jul 02:00:00
C16: Match | D16: =+'Elaborazione totale'!D21 -> 8 | E16: =+'Elaborazione totale'!E21 -> 2 | F16: Match | K16: Match | L16: =+'Elaborazione totale'!D50 -> 4 | M16: =+'Elaborazione totale'!E50 -> 6 | N16: Match | O16: =IF(Elaborazione!C13=0,"",Elaborazione!C13) -> Parrizas Di | P16: =IF(Elaborazione!H13=0,"",Elaborazione!H13) -> A Bogdan | Q16: =IF(Elaborazione!I13=0,"",Elaborazione!AA13) -> 2,04 | R16: =IF(Elaborazione!I13=0,"",Elaborazione!AB13) -> 1,81 | S16: =IF(Elaborazione!I13=0,"",Elaborazione!M13) -> 2.28 | T16: =IF(Elaborazione!I13=0,"",Elaborazione!N13) -> 1.75 | U16: =IF(Elaborazione!I13=0,"",Elaborazione!I13) -> € 2 413 | V16: =IF(Elaborazione!I13=0,"",Elaborazione!S13) -> 28.9 % | W16: =IF(Elaborazione!I13=0,"",Elaborazione!T13) -> 71.1 % | X16: =IF(Elaborazione!I13=0,"",Elaborazione!Y13) -> 698 | Y16: =IF(Elaborazione!I13=0,"",Elaborazione!Z13) -> 1 715 | Z16: =IF(Elaborazione!A13=0,"",Elaborazione!A13) -> WTA Warsaw 2022 | AA16: =IF(Elaborazione!B13=0,"",Elaborazione!B13) -> 26.Jul 11:00:00
C17: Set | D17: =+'Elaborazione totale'!F21 -> 17 | E17: =+'Elaborazione totale'!G21 -> 7 | F17: Set | K17: Set | L17: =+'Elaborazione totale'!F50 -> 8 | M17: =+'Elaborazione totale'!G50 -> 12 | N17: Set | O17: =IF(Elaborazione!C14=0,"",Elaborazione!C14) -> Halys | P17: =IF(Elaborazione!H14=0,"",Elaborazione!H14) -> Ivashka | Q17: =IF(Elaborazione!I14=0,"",Elaborazione!AA14) -> 2,52 | R17: =IF(Elaborazione!I14=0,"",Elaborazione!AB14) -> 1,62 | S17: =IF(Elaborazione!I14=0,"",Elaborazione!M14) -> 2.44 | T17: =IF(Elaborazione!I14=0,"",Elaborazione!N14) -> 1.62 | U17: =IF(Elaborazione!I14=0,"",Elaborazione!I14) -> 308 | V17: =IF(Elaborazione!I14=0,"",Elaborazione!S14) -> 26.7 % | W17: =IF(Elaborazione!I14=0,"",Elaborazione!T14) -> 73.3 % | X17: =IF(Elaborazione!I14=0,"",Elaborazione!Y14) -> 7 82 | Y17: =IF(Elaborazione!I14=0,"",Elaborazione!Z14) -> 226 | Z17: =IF(Elaborazione!A14=0,"",Elaborazione!A14) -> ATP Atlanta 2022 | AA17: =IF(Elaborazione!B14=0,"",Elaborazione!B14) -> 26.Jul 17:00:00
O18: =IF(Elaborazione!C15=0,"",Elaborazione!C15) -> Al Shevchen | P18: =IF(Elaborazione!H15=0,"",Elaborazione!H15) -> Thiem | Q18: =IF(Elaborazione!I15=0,"",Elaborazione!AA15) -> 5 4, | R18: =IF(Elaborazione!I15=0,"",Elaborazione!AB15) -> 1,23 | S18: =IF(Elaborazione!I15=0,"",Elaborazione!M15) -> 4.9 | T18: =IF(Elaborazione!I15=0,"",Elaborazione!N15) -> 1.24 | U18: =IF(Elaborazione!I15=0,"",Elaborazione!I15) -> € 2 017 | V18: =IF(Elaborazione!I15=0,"",Elaborazione!S15) -> 2.2 % | W18: =IF(Elaborazione!I15=0,"",Elaborazione!T15) -> 97.8 % | X18: =IF(Elaborazione!I15=0,"",Elaborazione!Y15) -> 45 | Y18: =IF(Elaborazione!I15=0,"",Elaborazione!Z15) -> 1 972 | Z18: =IF(Elaborazione!A15=0,"",Elaborazione!A15) -> ATP Kitzbuhel 2022 | AA18: =IF(Elaborazione!B15=0,"",Elaborazione!B15) -> 26.Jul 19:30:00
C19: Vinto o perso almento un set | K19: Vinto o perso almento un set | O19: =IF(Elaborazione!C16=0,"",Elaborazione!C16) -> Millman | P19: =IF(Elaborazione!H16=0,"",Elaborazione!H16) -> Popyrin | Q19: =IF(Elaborazione!I16=0,"",Elaborazione!AA16) -> 2,06 | R19: =IF(Elaborazione!I16=0,"",Elaborazione!AB16) -> 1,89 | S19: =IF(Elaborazione!I16=0,"",Elaborazione!M16) -> 2.02 | T19: =IF(Elaborazione!I16=0,"",Elaborazione!N16) -> 1.96 | U19: =IF(Elaborazione!I16=0,"",Elaborazione!I16) -> € 22 432 | V19: =IF(Elaborazione!I16=0,"",Elaborazione!S16) -> 62.4 % | W19: =IF(Elaborazione!I16=0,"",Elaborazione!T16) -> 37.6 % | X19: =IF(Elaborazione!I16=0,"",Elaborazione!Y16) -> 13 992 | Y19: =IF(Elaborazione!I16=0,"",Elaborazione!Z16) -> 8 440 | Z19: =IF(Elaborazione!A16=0,"",Elaborazione!A16) -> ATP Atlanta 2022 | AA19: =IF(Elaborazione!B16=0,"",Elaborazione!B16) -> 26.Jul 00:00:00
C20: TOTALI | E20: TERRENO | K20: TOTALI | M20: TERRENO | O20: =IF(Elaborazione!C17=0,"",Elaborazione!C17) -> Sonego | P20: =IF(Elaborazione!H17=0,"",Elaborazione!H17) -> Andujar | Q20: =IF(Elaborazione!I17=0,"",Elaborazione!AA17) -> 1,55 | R20: =IF(Elaborazione!I17=0,"",Elaborazione!AB17) -> 2,74 | S20: =IF(Elaborazione!I17=0,"",Elaborazione!M17) -> 1.52 | T20: =IF(Elaborazione!I17=0,"",Elaborazione!N17) -> 2.8 | U20: =IF(Elaborazione!I17=0,"",Elaborazione!I17) -> € 9 237 | V20: =IF(Elaborazione!I17=0,"",Elaborazione!S17) -> 93.3 % | W20: =IF(Elaborazione!I17=0,"",Elaborazione!T17) -> 6.7 % | X20: =IF(Elaborazione!I17=0,"",Elaborazione!Y17) -> 8 623 | Y20: =IF(Elaborazione!I17=0,"",Elaborazione!Z17) -> 615 | Z20: =IF(Elaborazione!A17=0,"",Elaborazione!A17) -> ATP Kitzbuhel 2022 | AA20: =IF(Elaborazione!B17=0,"",Elaborazione!B17) -> 26.Jul 11:00:00
C21: Vinto | D21: Perse | E21: Vinto | F21: Perse | K21: Vinto | L21: Perse | M21: Vinto | N21: Perse | O21: =IF(Elaborazione!C18=0,"",Elaborazione!C18) -> Andres Mart | P21: =IF(Elaborazione!H18=0,"",Elaborazione!H18) -> Kokkinakis | Q21: =IF(Elaborazione!I18=0,"",Elaborazione!AA18) -> 5,4 | R21: =IF(Elaborazione!I18=0,"",Elaborazione!AB18) -> 1,2 | S21: =IF(Elaborazione!I18=0,"",Elaborazione!M18) -> 5.3 | T21: =IF(Elaborazione!I18=0,"",Elaborazione!N18) -> 1.22 | U21: =IF(Elaborazione!I18=0,"",Elaborazione!I18) -> € 1 730 | V21: =IF(Elaborazione!I18=0,"",Elaborazione!S18) -> 4.6 % | W21: =IF(Elaborazione!I18=0,"",Elaborazione!T18) -> 95.4 % | X21: =IF(Elaborazione!I18=0,"",Elaborazione!Y18) -> 80 | Y21: =IF(Elaborazione!I18=0,"",Elaborazione!Z18) -> 1 650 | Z21: =IF(Elaborazione!A18=0,"",Elaborazione!A18) -> ATP Atlanta 2022 | AA21: =IF(Elaborazione!B18=0,"",Elaborazione!B18) -> 27.Jul 01:00:00
C22: =+'Elaborazione totale'!L14 -> 2 | D22: =+'Elaborazione totale'!M14 -> -1 | E22: =+'Elaborazione totale'!L28 -> 2 | F22: =+'Elaborazione totale'!M28 -> 0 | G22: =+'Elaborazioni Giocatore1'!B4 -> 24.06.2022 15:00 | K22: =+'Elaborazione totale'!L43 -> 1 | L22: =+'Elaborazione totale'!M43 -> 1 | M22: =+'Elaborazione totale'!L57 -> 0 | N22: =+'Elaborazione totale'!M57 -> 2 | O22: =IF(Elaborazione!C19=0,"",Elaborazione!C19) -> Moutet | P22: =IF(Elaborazione!H19=0,"",Elaborazione!H19) -> Altmaier | Q22: =IF(Elaborazione!I19=0,"",Elaborazione!AA19) -> 1,77 | R22: =IF(Elaborazione!I19=0,"",Elaborazione!AB19) -> 2,22 | S22: =IF(Elaborazione!I19=0,"",Elaborazione!M19) -> 1.75 | T22: =IF(Elaborazione!I19=0,"",Elaborazione!N19) -> 2.26 | U22: =IF(Elaborazione!I19=0,"",Elaborazione!I19) -> 553 | V22: =IF(Elaborazione!I19=0,"",Elaborazione!S19) -> 44.3 % | W22: =IF(Elaborazione!I19=0,"",Elaborazione!T19) -> 55.7 % | X22: =IF(Elaborazione!I19=0,"",Elaborazione!Y19) -> 245 | Y22: =IF(Elaborazione!I19=0,"",Elaborazione!Z19) -> 308 | Z22: =IF(Elaborazione!A19=0,"",Elaborazione!A19) -> ATP Umag 2022 | AA22: =IF(Elaborazione!B19=0,"",Elaborazione!B19) -> 26.Jul 17:30:00
C23: =IFERROR(+C22/(D12+E12),"") -> 0.2222222222 | E23: =IFERROR(+E22/(D16+E16),"") -> 0.2 | K23: =IFERROR(+K22/(L12+M12),"") -> 0.1 | M23: =IFERROR(+M22/(L16+M16),"") -> 0 | O23: =IF(Elaborazione!C20=0,"",Elaborazione!C20) -> Jubb | P23: =IF(Elaborazione!H20=0,"",Elaborazione!H20) -> Em Nava | Q23: =IF(Elaborazione!I20=0,"",Elaborazione!AA20) -> 1,86 | R23: =IF(Elaborazione!I20=0,"",Elaborazione!AB20) -> 2,1 | S23: =IF(Elaborazione!I20=0,"",Elaborazione!M20) -> 1.84 | T23: =IF(Elaborazione!I20=0,"",Elaborazione!N20) -> 2.12 | U23: =IF(Elaborazione!I20=0,"",Elaborazione!I20) -> 253 | V23: =IF(Elaborazione!I20=0,"",Elaborazione!S20) -> 99.5 % | W23: =IF(Elaborazione!I20=0,"",Elaborazione!T20) -> 0.5 % | X23: =IF(Elaborazione!I20=0,"",Elaborazione!Y20) -> 251 | Y23: =IF(Elaborazione!I20=0,"",Elaborazione!Z20) -> 5 1 | Z23: =IF(Elaborazione!A20=0,"",Elaborazione!A20) -> Segovia Challenger 2022 | AA23: =IF(Elaborazione!B20=0,"",Elaborazione!B20) -> 26.Jul 10:00:00
O24: =IF(Elaborazione!C21=0,"",Elaborazione!C21) -> El Cocciare | P24: =IF(Elaborazione!H21=0,"",Elaborazione!H21) -> Mart Kubka | Q24: =IF(Elaborazione!I21=0,"",Elaborazione!AA21) -> 1,07 | R24: =IF(Elaborazione!I21=0,"",Elaborazione!AB21) -> 8 13 | S24: =IF(Elaborazione!I21=0,"",Elaborazione!M21) -> 1.06 | T24: =IF(Elaborazione!I21=0,"",Elaborazione!N21) -> 13 | U24: =IF(Elaborazione!I21=0,"",Elaborazione!I21) -> 399 | V24: =IF(Elaborazione!I21=0,"",Elaborazione!S21) -> 33.8 % | W24: =IF(Elaborazione!I21=0,"",Elaborazione!T21) -> 66.2 % | X24: =IF(Elaborazione!I21=0,"",Elaborazione!Y21) -> 135 | Y24: =IF(Elaborazione!I21=0,"",Elaborazione!Z21) -> 264 | Z24: =IF(Elaborazione!A21=0,"",Elaborazione!A21) -> WTA Warsaw 2022 | AA24: =IF(Elaborazione!B21=0,"",Elaborazione!B21) -> 26.Jul 02:00:00
O25: =IF(Elaborazione!C22=0,"",Elaborazione!C22) -> Sock | P25: =IF(Elaborazione!H22=0,"",Elaborazione!H22) -> Paul | Q25: =IF(Elaborazione!I22=0,"",Elaborazione!AA22) -> 2,46 | R25: =IF(Elaborazione!I22=0,"",Elaborazione!AB22) -> 1,66 | S25: =IF(Elaborazione!I22=0,"",Elaborazione!M22) -> 2.44 | T25: =IF(Elaborazione!I22=0,"",Elaborazione!N22) -> 1.65 | U25: =IF(Elaborazione!I22=0,"",Elaborazione!I22) -> € 1 742 | V25: =IF(Elaborazione!I22=0,"",Elaborazione!S22) -> 30.8 % | W25: =IF(Elaborazione!I22=0,"",Elaborazione!T22) -> 69.2 % | X25: =IF(Elaborazione!I22=0,"",Elaborazione!Y22) -> 536 | Y25: =IF(Elaborazione!I22=0,"",Elaborazione!Z22) -> 1 206 | Z25: =IF(Elaborazione!A22=0,"",Elaborazione!A22) -> ATP Atlanta 2022 | AA25: =IF(Elaborazione!B22=0,"",Elaborazione!B22) -> 26.Jul 19:00:00
C26: =+C8 -> ULTIMI INCONTRI: HALYS Q. | G26: MDB TENNIS PRO | K26: =+K8 -> ULTIMI INCONTRI: IVASHKA I. | O26: =IF(Elaborazione!C23=0,"",Elaborazione!C23) -> Musetti | P26: =IF(Elaborazione!H23=0,"",Elaborazione!H23) -> Bedene | Q26: =IF(Elaborazione!I23=0,"",Elaborazione!AA23) -> 1,36 | R26: =IF(Elaborazione!I23=0,"",Elaborazione!AB23) -> 3,6 | S26: =IF(Elaborazione!I23=0,"",Elaborazione!M23) -> 1.35 | T26: =IF(Elaborazione!I23=0,"",Elaborazione!N23) -> 3.65 | U26: =IF(Elaborazione!I23=0,"",Elaborazione!I23) -> € 1 155 | V26: =IF(Elaborazione!I23=0,"",Elaborazione!S23) -> 68.2 % | W26: =IF(Elaborazione!I23=0,"",Elaborazione!T23) -> 31.8 % | X26: =IF(Elaborazione!I23=0,"",Elaborazione!Y23) -> 788 | Y26: =IF(Elaborazione!I23=0,"",Elaborazione!Z23) -> 367 | Z26: =IF(Elaborazione!A23=0,"",Elaborazione!A23) -> ATP Umag 2022 | AA26: =IF(Elaborazione!B23=0,"",Elaborazione!B23) -> 26.Jul 20:00:00
H27: =+G22 -> 24.06.2022 15:00 | O27: =IF(Elaborazione!C24=0,"",Elaborazione!C24) -> In-Albon | P27: =IF(Elaborazione!H24=0,"",Elaborazione!H24) -> Dom Salkova | Q27: =IF(Elaborazione!I24=0,"",Elaborazione!AA24) -> 1.45 | R27: =IF(Elaborazione!I24=0,"",Elaborazione!AB24) -> 2.98 | S27: =IF(Elaborazione!I24=0,"",Elaborazione!M24) -> 1.47 | T27: =IF(Elaborazione!I24=0,"",Elaborazione!N24) -> 2.96 | U27: =IF(Elaborazione!I24=0,"",Elaborazione!I24) -> 819 | V27: =IF(Elaborazione!I24=0,"",Elaborazione!S24) -> 55.2 % | W27: =IF(Elaborazione!I24=0,"",Elaborazione!T24) -> 44.8 % | X27: =IF(Elaborazione!I24=0,"",Elaborazione!Y24) -> 452 | Y27: =IF(Elaborazione!I24=0,"",Elaborazione!Z24) -> 367 | Z27: =IF(Elaborazione!A24=0,"",Elaborazione!A24) -> WTA Prague 2022 | AA27: =IF(Elaborazione!B24=0,"",Elaborazione!B24) -> 26.Jul 12:30:00
D28: =IFERROR(+'Elaborazione totale'!S22,"") -> 0.5999236111 | G28: PROBABILITA' TIE' BREAK | L28: =IFERROR(+'Elaborazione totale'!T22,"") -> 0.4000763889 | O28: =IF(Elaborazione!C25=0,"",Elaborazione!C25) -> Gasquet | P28: =IF(Elaborazione!H25=0,"",Elaborazione!H25) -> Ofner | Q28: =IF(Elaborazione!I25=0,"",Elaborazione!AA25) -> 1,64 | R28: =IF(Elaborazione!I25=0,"",Elaborazione!AB25) -> 2,48 | S28: =IF(Elaborazione!I25=0,"",Elaborazione!M25) -> 1.63 | T28: =IF(Elaborazione!I25=0,"",Elaborazione!N25) -> 2.5 | U28: =IF(Elaborazione!I25=0,"",Elaborazione!I25) -> 299 | V28: =IF(Elaborazione!I25=0,"",Elaborazione!S25) -> 97.8 % | W28: =IF(Elaborazione!I25=0,"",Elaborazione!T25) -> 2.2 % | X28: =IF(Elaborazione!I25=0,"",Elaborazione!Y25) -> 293 | Y28: =IF(Elaborazione!I25=0,"",Elaborazione!Z25) -> 2 6 | Z28: =IF(Elaborazione!A25=0,"",Elaborazione!A25) -> ATP Kitzbuhel 2022 | AA28: =IF(Elaborazione!B25=0,"",Elaborazione!B25) -> 26.Jul 15:00:00
D29: Q.R. | E29: =IFERROR(SUM(1/D28),"") -> 1.666878885 | H29: =IFERROR(+'Elaborazione totale'!T26,"") -> 0.4757494658 | L29: Q.R. | M29: =IFERROR(SUM(1/L28),"") -> 2.499522661 | O29: =IF(Elaborazione!C26=0,"",Elaborazione!C26) -> Paolini | P29: =IF(Elaborazione!H26=0,"",Elaborazione!H26) -> Kovinic | Q29: =IF(Elaborazione!I26=0,"",Elaborazione!AA26) -> 1,77 | R29: =IF(Elaborazione!I26=0,"",Elaborazione!AB26) -> 2,28 | S29: =IF(Elaborazione!I26=0,"",Elaborazione!M26) -> 1.76 | T29: =IF(Elaborazione!I26=0,"",Elaborazione!N26) -> 2.28 | U29: =IF(Elaborazione!I26=0,"",Elaborazione!I26) -> 323 | V29: =IF(Elaborazione!I26=0,"",Elaborazione!S26) -> 86.3 % | W29: =IF(Elaborazione!I26=0,"",Elaborazione!T26) -> 13.7 % | X29: =IF(Elaborazione!I26=0,"",Elaborazione!Y26) -> 279 | Y29: =IF(Elaborazione!I26=0,"",Elaborazione!Z26) -> 7 44 | Z29: =IF(Elaborazione!A26=0,"",Elaborazione!A26) -> WTA Warsaw 2022 | AA29: =IF(Elaborazione!B26=0,"",Elaborazione!B26) -> 26.Jul 11:30:00
D30: TOTALE | E30: TERRENO | L30: TOTALE | M30: TERRENO | O30: =IF(Elaborazione!C27=0,"",Elaborazione!C27) -> Koepfer | P30: =IF(Elaborazione!H27=0,"",Elaborazione!H27) -> Duckworth | Q30: =IF(Elaborazione!I27=0,"",Elaborazione!AA27) -> 2,2 | R30: =IF(Elaborazione!I27=0,"",Elaborazione!AB27) -> 1,79 | S30: =IF(Elaborazione!I27=0,"",Elaborazione!M27) -> 2.22 | T30: =IF(Elaborazione!I27=0,"",Elaborazione!N27) -> 1.78 | U30: =IF(Elaborazione!I27=0,"",Elaborazione!I27) -> € 3 667 | V30: =IF(Elaborazione!I27=0,"",Elaborazione!S27) -> 4.6 % | W30: =IF(Elaborazione!I27=0,"",Elaborazione!T27) -> 95.4 % | X30: =IF(Elaborazione!I27=0,"",Elaborazione!Y27) -> 167 | Y30: =IF(Elaborazione!I27=0,"",Elaborazione!Z27) -> 3 499 | Z30: =IF(Elaborazione!A27=0,"",Elaborazione!A27) -> ATP Atlanta 2022 | AA30: =IF(Elaborazione!B27=0,"",Elaborazione!B27) -> 27.Jul 00:00:00
D31: =IFERROR(+'Elaborazione totale'!S9,"") -> 0.5277777778 | E31: =IFERROR(+'Elaborazione totale'!S10,"") -> 0.7 | H31: =+G6 -> 0 | L31: =IFERROR(+'Elaborazione totale'!T9,"") -> 0.4722222222 | M31: =IFERROR(+'Elaborazione totale'!T10,"") -> 0.3 | O31: =IF(Elaborazione!C28=0,"",Elaborazione!C28) -> Gojowczyk | P31: =IF(Elaborazione!H28=0,"",Elaborazione!H28) -> N Kyrgios | Q31: =IF(Elaborazione!I28=0,"",Elaborazione!AA28) -> 6 6, | R31: =IF(Elaborazione!I28=0,"",Elaborazione!AB28) -> 1,16 | S31: =IF(Elaborazione!I28=0,"",Elaborazione!M28) -> 6.4 | T31: =IF(Elaborazione!I28=0,"",Elaborazione!N28) -> 1.17 | U31: =IF(Elaborazione!I28=0,"",Elaborazione!I28) -> € 1 185 | V31: =IF(Elaborazione!I28=0,"",Elaborazione!S28) -> 17.8 % | W31: =IF(Elaborazione!I28=0,"",Elaborazione!T28) -> 82.2 % | X31: =IF(Elaborazione!I28=0,"",Elaborazione!Y28) -> 211 | Y31: =IF(Elaborazione!I28=0,"",Elaborazione!Z28) -> 974 | Z31: =IF(Elaborazione!A28=0,"",Elaborazione!A28) -> ATP Atlanta 2022 | AA31: =IF(Elaborazione!B28=0,"",Elaborazione!B28) -> 27.Jul 03:00:00
O32: =IF(Elaborazione!C29=0,"",Elaborazione!C29) -> Agamenone | P32: =IF(Elaborazione!H29=0,"",Elaborazione!H29) -> Djere | Q32: =IF(Elaborazione!I29=0,"",Elaborazione!AA29) -> 4,4 | R32: =IF(Elaborazione!I29=0,"",Elaborazione!AB29) -> 1,25 | S32: =IF(Elaborazione!I29=0,"",Elaborazione!M29) -> 4.5 | T32: =IF(Elaborazione!I29=0,"",Elaborazione!N29) -> 1.27 | U32: =IF(Elaborazione!I29=0,"",Elaborazione!I29) -> € 3 439 | V32: =IF(Elaborazione!I29=0,"",Elaborazione!S29) -> 0 % € | W32: =IF(Elaborazione!I29=0,"",Elaborazione!T29) -> 100 % | X32: =IF(Elaborazione!I29=0,"",Elaborazione!Y29) -> 0 | Y32: =IF(Elaborazione!I29=0,"",Elaborazione!Z29) -> 3 438 | Z32: =IF(Elaborazione!A29=0,"",Elaborazione!A29) -> ATP Umag 2022 | AA32: =IF(Elaborazione!B29=0,"",Elaborazione!B29) -> 26.Jul 19:30:00
O33: =IF(Elaborazione!C30=0,"",Elaborazione!C30) -> Kudla | P33: =IF(Elaborazione!H30=0,"",Elaborazione!H30) -> McDonald | Q33: =IF(Elaborazione!I30=0,"",Elaborazione!AA30) -> 2,78 | R33: =IF(Elaborazione!I30=0,"",Elaborazione!AB30) -> 1,52 | S33: =IF(Elaborazione!I30=0,"",Elaborazione!M30) -> 2.8 | T33: =IF(Elaborazione!I30=0,"",Elaborazione!N30) -> 1.52 | U33: =IF(Elaborazione!I30=0,"",Elaborazione!I30) -> 283 | V33: =IF(Elaborazione!I30=0,"",Elaborazione!S30) -> 26.3 % | W33: =IF(Elaborazione!I30=0,"",Elaborazione!T30) -> 73.7 % | X33: =IF(Elaborazione!I30=0,"",Elaborazione!Y30) -> 3 74 | Y33: =IF(Elaborazione!I30=0,"",Elaborazione!Z30) -> 209 | Z33: =IF(Elaborazione!A30=0,"",Elaborazione!A30) -> ATP Atlanta 2022 | AA33: =IF(Elaborazione!B30=0,"",Elaborazione!B30) -> 26.Jul 19:00:00
C34: TRE SET | G34: =IFERROR(+'Elaborazione totale'!S48,"") -> 2-0 | I34: =IFERROR(+'Elaborazione totale'!T48,"") -> 0.7558139535 | K34: =IFERROR(+'Elaborazione totale'!S49,"") -> 2-1 | M34: =IFERROR(+'Elaborazione totale'!T49,"") -> 0.2441860465 | O34: =IF(Elaborazione!C31=0,"",Elaborazione!C31) -> Marterer | P34: =IF(Elaborazione!H31=0,"",Elaborazione!H31) -> Durasovic | Q34: =IF(Elaborazione!I31=0,"",Elaborazione!AA31) -> 1,03 | R34: =IF(Elaborazione!I31=0,"",Elaborazione!AB31) -> 1,03 | S34: =IF(Elaborazione!I31=0,"",Elaborazione!M31) ->  | T34: =IF(Elaborazione!I31=0,"",Elaborazione!N31) ->  | U34: =IF(Elaborazione!I31=0,"",Elaborazione!I31) -> 287 | V34: =IF(Elaborazione!I31=0,"",Elaborazione!S31) ->  | W34: =IF(Elaborazione!I31=0,"",Elaborazione!T31) ->  | X34: =IF(Elaborazione!I31=0,"",Elaborazione!Y31) ->  | Y34: =IF(Elaborazione!I31=0,"",Elaborazione!Z31) ->  | Z34: =IF(Elaborazione!A31=0,"",Elaborazione!A31) -> Zug Challenger 2022 | AA34: =IF(Elaborazione!B31=0,"",Elaborazione!B31) -> 26.Jul 17:00:00
O35: =IF(Elaborazione!C32=0,"",Elaborazione!C32) ->  | P35: =IF(Elaborazione!H32=0,"",Elaborazione!H32) ->  | Q35: =IF(Elaborazione!I32=0,"",Elaborazione!AA32) ->  | R35: =IF(Elaborazione!I32=0,"",Elaborazione!AB32) ->  | S35: =IF(Elaborazione!I32=0,"",Elaborazione!M32) ->  | T35: =IF(Elaborazione!I32=0,"",Elaborazione!N32) ->  | U35: =IF(Elaborazione!I32=0,"",Elaborazione!I32) ->  | V35: =IF(Elaborazione!I32=0,"",Elaborazione!S32) ->  | W35: =IF(Elaborazione!I32=0,"",Elaborazione!T32) ->  | X35: =IF(Elaborazione!I32=0,"",Elaborazione!Y32) ->  | Y35: =IF(Elaborazione!I32=0,"",Elaborazione!Z32) ->  | Z35: =IF(Elaborazione!A32=0,"",Elaborazione!A32) ->  | AA35: =IF(Elaborazione!B32=0,"",Elaborazione!B32) -> 
H36: =IFERROR(+'Elaborazione totale'!T50,"") -> 0.9090991728 | K36: =IFERROR(+'Elaborazione totale'!T51,"") -> 0.0909008272 | N36: =IFERROR(+'Elaborazione totale'!T52,"") -> 0 | O36: =IF(Elaborazione!C33=0,"",Elaborazione!C33) ->  | P36: =IF(Elaborazione!H33=0,"",Elaborazione!H33) ->  | Q36: =IF(Elaborazione!I33=0,"",Elaborazione!AA33) ->  | R36: =IF(Elaborazione!I33=0,"",Elaborazione!AB33) ->  | S36: =IF(Elaborazione!I33=0,"",Elaborazione!M33) ->  | T36: =IF(Elaborazione!I33=0,"",Elaborazione!N33) ->  | U36: =IF(Elaborazione!I33=0,"",Elaborazione!I33) ->  | V36: =IF(Elaborazione!I33=0,"",Elaborazione!S33) ->  | W36: =IF(Elaborazione!I33=0,"",Elaborazione!T33) ->  | X36: =IF(Elaborazione!I33=0,"",Elaborazione!Y33) ->  | Y36: =IF(Elaborazione!I33=0,"",Elaborazione!Z33) ->  | Z36: =IF(Elaborazione!A33=0,"",Elaborazione!A33) ->  | AA36: =IF(Elaborazione!B33=0,"",Elaborazione!B33) -> 
C37: CINQUE SET | G37: =IFERROR(+'Elaborazione totale'!S50,"") -> 3-1 | J37: =IFERROR(+'Elaborazione totale'!S51,"") -> 3-2 | M37: =IFERROR(+'Elaborazione totale'!S52,"") -> 3-0 | O37: =IF(Elaborazione!C34=0,"",Elaborazione!C34) ->  | P37: =IF(Elaborazione!H34=0,"",Elaborazione!H34) ->  | Q37: =IF(Elaborazione!I34=0,"",Elaborazione!AA34) ->  | R37: =IF(Elaborazione!I34=0,"",Elaborazione!AB34) ->  | S37: =IF(Elaborazione!I34=0,"",Elaborazione!M34) ->  | T37: =IF(Elaborazione!I34=0,"",Elaborazione!N34) ->  | U37: =IF(Elaborazione!I34=0,"",Elaborazione!I34) ->  | V37: =IF(Elaborazione!I34=0,"",Elaborazione!S34) ->  | W37: =IF(Elaborazione!I34=0,"",Elaborazione!T34) ->  | X37: =IF(Elaborazione!I34=0,"",Elaborazione!Y34) ->  | Y37: =IF(Elaborazione!I34=0,"",Elaborazione!Z34) ->  | Z37: =IF(Elaborazione!A34=0,"",Elaborazione!A34) ->  | AA37: =IF(Elaborazione!B34=0,"",Elaborazione!B34) -> 
O38: =IF(Elaborazione!C35=0,"",Elaborazione!C35) ->  | P38: =IF(Elaborazione!H35=0,"",Elaborazione!H35) ->  | Q38: =IF(Elaborazione!I35=0,"",Elaborazione!AA35) ->  | R38: =IF(Elaborazione!I35=0,"",Elaborazione!AB35) ->  | S38: =IF(Elaborazione!I35=0,"",Elaborazione!M35) ->  | T38: =IF(Elaborazione!I35=0,"",Elaborazione!N35) ->  | U38: =IF(Elaborazione!I35=0,"",Elaborazione!I35) ->  | V38: =IF(Elaborazione!I35=0,"",Elaborazione!S35) ->  | W38: =IF(Elaborazione!I35=0,"",Elaborazione!T35) ->  | X38: =IF(Elaborazione!I35=0,"",Elaborazione!Y35) ->  | Y38: =IF(Elaborazione!I35=0,"",Elaborazione!Z35) ->  | Z38: =IF(Elaborazione!A35=0,"",Elaborazione!A35) ->  | AA38: =IF(Elaborazione!B35=0,"",Elaborazione!B35) -> 
C39: GENERALE | E39: TERRENO | K39: GENERALE | M39: TERRENO | O39: =IF(Elaborazione!C36=0,"",Elaborazione!C36) ->  | P39: =IF(Elaborazione!H36=0,"",Elaborazione!H36) ->  | Q39: =IF(Elaborazione!I36=0,"",Elaborazione!AA36) ->  | R39: =IF(Elaborazione!I36=0,"",Elaborazione!AB36) ->  | S39: =IF(Elaborazione!I36=0,"",Elaborazione!M36) ->  | T39: =IF(Elaborazione!I36=0,"",Elaborazione!N36) ->  | U39: =IF(Elaborazione!I36=0,"",Elaborazione!I36) ->  | V39: =IF(Elaborazione!I36=0,"",Elaborazione!S36) ->  | W39: =IF(Elaborazione!I36=0,"",Elaborazione!T36) ->  | X39: =IF(Elaborazione!I36=0,"",Elaborazione!Y36) ->  | Y39: =IF(Elaborazione!I36=0,"",Elaborazione!Z36) ->  | Z39: =IF(Elaborazione!A36=0,"",Elaborazione!A36) ->  | AA39: =IF(Elaborazione!B36=0,"",Elaborazione!B36) -> 
C40: =+'Elaborazioni Giocatore1'!S2&" "&+'Elaborazione totale'!S38 -> Ritiri N° 1 | E40: =+'Elaborazioni Giocatore1'!S2&" "&+'Elaborazione totale'!T38 -> Ritiri N° 0 | K40: =+'Elaborazioni Giocatore1'!S2&" "&+'Elaborazione totale'!U38 -> Ritiri N° 0 | M40: =+'Elaborazioni Giocatore1'!S2&" "&+'Elaborazione totale'!V38 -> Ritiri N° 0 | O40: =IF(Elaborazione!C37=0,"",Elaborazione!C37) ->  | P40: =IF(Elaborazione!H37=0,"",Elaborazione!H37) ->  | Q40: =IF(Elaborazione!I37=0,"",Elaborazione!AA37) ->  | R40: =IF(Elaborazione!I37=0,"",Elaborazione!AB37) ->  | S40: =IF(Elaborazione!I37=0,"",Elaborazione!M37) ->  | T40: =IF(Elaborazione!I37=0,"",Elaborazione!N37) ->  | U40: =IF(Elaborazione!I37=0,"",Elaborazione!I37) ->  | V40: =IF(Elaborazione!I37=0,"",Elaborazione!S37) ->  | W40: =IF(Elaborazione!I37=0,"",Elaborazione!T37) ->  | X40: =IF(Elaborazione!I37=0,"",Elaborazione!Y37) ->  | Y40: =IF(Elaborazione!I37=0,"",Elaborazione!Z37) ->  | Z40: =IF(Elaborazione!A37=0,"",Elaborazione!A37) ->  | AA40: =IF(Elaborazione!B37=0,"",Elaborazione!B37) -> 
O41: =IF(Elaborazione!C38=0,"",Elaborazione!C38) ->  | P41: =IF(Elaborazione!H38=0,"",Elaborazione!H38) ->  | Q41: =IF(Elaborazione!I38=0,"",Elaborazione!AA38) ->  | R41: =IF(Elaborazione!I38=0,"",Elaborazione!AB38) ->  | S41: =IF(Elaborazione!I38=0,"",Elaborazione!M38) ->  | T41: =IF(Elaborazione!I38=0,"",Elaborazione!N38) ->  | U41: =IF(Elaborazione!I38=0,"",Elaborazione!I38) ->  | V41: =IF(Elaborazione!I38=0,"",Elaborazione!S38) ->  | W41: =IF(Elaborazione!I38=0,"",Elaborazione!T38) ->  | X41: =IF(Elaborazione!I38=0,"",Elaborazione!Y38) ->  | Y41: =IF(Elaborazione!I38=0,"",Elaborazione!Z38) ->  | Z41: =IF(Elaborazione!A38=0,"",Elaborazione!A38) ->  | AA41: =IF(Elaborazione!B38=0,"",Elaborazione!B38) -> 
C42: ULTIMO RITIRO | E42: =+'Elaborazioni Giocatore1'!AE16 -> 05.06.22 | K42: ULTIMO RITIRO | M42: =+'Elaborazioni Giocatore2'!AE16 -> Nessuno | O42: =IF(Elaborazione!C39=0,"",Elaborazione!C39) ->  | P42: =IF(Elaborazione!H39=0,"",Elaborazione!H39) ->  | Q42: =IF(Elaborazione!I39=0,"",Elaborazione!AA39) ->  | R42: =IF(Elaborazione!I39=0,"",Elaborazione!AB39) ->  | S42: =IF(Elaborazione!I39=0,"",Elaborazione!M39) ->  | T42: =IF(Elaborazione!I39=0,"",Elaborazione!N39) ->  | U42: =IF(Elaborazione!I39=0,"",Elaborazione!I39) ->  | V42: =IF(Elaborazione!I39=0,"",Elaborazione!S39) ->  | W42: =IF(Elaborazione!I39=0,"",Elaborazione!T39) ->  | X42: =IF(Elaborazione!I39=0,"",Elaborazione!W39) ->  | Y42: =IF(Elaborazione!I39=0,"",Elaborazione!X39) ->  | Z42: =IF(Elaborazione!A39=0,"",Elaborazione!A39) ->  | AA42: =IF(Elaborazione!B39=0,"",Elaborazione!B39) -> 
S43: =IF(Elaborazione!I40=0,"",Elaborazione!M40) ->  | T43: =IF(Elaborazione!I40=0,"",Elaborazione!N40) -> 
C44: SERVIZIO RANK | D44: ATP Giocatore | G44: Terreno | H44: ATP Giocatore | K44: =+C44 -> SERVIZIO RANK | L44: Giocatore | O44: Terreno | P44: Giocatore | T44: =+'Elaborazione H2H'!L1 -> 16.08.18 | U44: =+'Elaborazione H2H'!M1 -> VAN | V44: =+'Elaborazione H2H'!J1 -> Halys Q. | X44: =+'Elaborazione H2H'!K1 -> REM | Z44: =+'Elaborazione H2H'!H1 -> 0 | AA44: =+'Elaborazione H2H'!I1 -> 0
T45: =+'Elaborazione H2H'!L2 -> 2 | U45: =+'Elaborazione H2H'!M2 -> 10.09.15 | V45: =+'Elaborazione H2H'!J2 -> Halys Q. | X45: =+'Elaborazione H2H'!K2 -> REM | Z45: =+'Elaborazione H2H'!H2 -> . | AA45: =+'Elaborazione H2H'!I2 -> I
C46: =+E6 -> 138 | D46: =IFERROR(VLOOKUP(C46,'Elaborazione ATP'!A2:AD1500,2,FALSE),"") -> Quentin Halys | G46: Cemento | H46: =IFERROR(VLOOKUP(C46,'Elaborazione ATP'!A2:AD1500,2,FALSE),"") -> Quentin Halys | K46: =+M6 -> 175 | L46: =IFERROR(VLOOKUP(K46,'Elaborazione ATP'!A2:AD1500,2,FALSE),"") -> Ilya Ivashka | O46: =+G46 -> Cemento | P46: =+L46 -> Ilya Ivashka | T46: =+'Elaborazione H2H'!L3 -> 2 | U46: =+'Elaborazione H2H'!M3 -> 0 | V46: =+'Elaborazione H2H'!J3 ->  | X46: =+'Elaborazione H2H'!K3 ->  | Z46: =+'Elaborazione H2H'!H3 ->  | AA46: =+'Elaborazione H2H'!I3 -> 
T47: =+'Elaborazione H2H'!L4 ->  | U47: =+'Elaborazione H2H'!M4 ->  | V47: =+'Elaborazione H2H'!J4 ->  | X47: =+'Elaborazione H2H'!K4 ->  | Z47: =+'Elaborazione H2H'!H4 ->  | AA47: =+'Elaborazione H2H'!I4 -> 
C48: =+ATP!B2 -> Serve Rating© | D48: =+ATP!C2 -> % 1st Serve | E48: =+ATP!D2 -> % 1st Serve Points Won | F48: =+ATP!E2 -> % 2nd Serve Points Won | G48: =+C48 -> Serve Rating© | H48: =+D48 -> % 1st Serve | I48: =+E48 -> % 1st Serve Points Won | J48: =+F48 -> % 2nd Serve Points Won | K48: =+C48 -> Serve Rating© | L48: =+D48 -> % 1st Serve | M48: % 1st Serve Points Won | N48: % 2nd Serve Points Won | O48: =+G48 -> Serve Rating© | P48: =+H48 -> % 1st Serve | Q48: =+I48 -> % 1st Serve Points Won | R48: =+J48 -> % 2nd Serve Points Won | T48: =+'Elaborazione H2H'!L5 ->  | U48: =+'Elaborazione H2H'!M5 ->  | V48: =+'Elaborazione H2H'!J5 ->  | X48: =+'Elaborazione H2H'!K5 ->  | Z48: =+'Elaborazione H2H'!H5 ->  | AA48: =+'Elaborazione H2H'!I5 -> 
T49: =+'Elaborazione H2H'!L6 ->  | U49: =+'Elaborazione H2H'!M6 ->  | V49: =+'Elaborazione H2H'!J6 ->  | X49: =+'Elaborazione H2H'!K6 ->  | Z49: =+'Elaborazione H2H'!H6 ->  | AA49: =+'Elaborazione H2H'!I6 -> 
C50: =IFERROR(VLOOKUP(C46,'Elaborazione ATP'!A2:AD1500,3,FALSE),"") -> 266.4 | D50: =IFERROR(VLOOKUP(C46,'Elaborazione ATP'!A2:AD1500,4,FALSE),"") -> 0.597 | E50: =IFERROR(VLOOKUP(C46,'Elaborazione ATP'!A2:AD1500,5,FALSE),"") -> 0.757 | F50: =IFERROR(VLOOKUP(C46,'Elaborazione ATP'!A2:AD1500,6,FALSE),"") -> 0.454 | G50: =IFERROR(IF(G46="Erba",VLOOKUP(C46,'Elaborazione ATP'!A2:AD1500,10,FALSE),IF(G46="Terra",VLOOKUP(C46,'Elaborazione ATP'!A2:AD1500,17,FALSE),IF(G46="Cemento",VLOOKUP(C46,'Elaborazione ATP'!A2:AD1500,24,FALSE)))),"") ->  | H50: =IFERROR(IF(G46="Erba",VLOOKUP(C46,'Elaborazione ATP'!A2:AD1500,11,FALSE),IF(G46="Terra",VLOOKUP(C46,'Elaborazione ATP'!A2:AD1500,18,FALSE),IF(G46="Cemento",VLOOKUP(C46,'Elaborazione ATP'!A2:AD1500,25,FALSE)))),"") ->  | I50: =IFERROR(IF(G46="Erba",VLOOKUP(C46,'Elaborazione ATP'!A2:AD1500,12,FALSE),IF(G46="Terra",VLOOKUP(C46,'Elaborazione ATP'!A2:AD1500,19,FALSE),IF(G46="Cemento",VLOOKUP(C46,'Elaborazione ATP'!A2:AD1500,26,FALSE)))),"") ->  | J50: =IFERROR(IF(G46="Erba",VLOOKUP(C46,'Elaborazione ATP'!A2:AD1500,13,FALSE),IF(G46="Terra",VLOOKUP(C46,'Elaborazione ATP'!A2:AD1500,20,FALSE),IF(G46="Cemento",VLOOKUP(C46,'Elaborazione ATP'!A2:AD1500,27,FALSE)))),"") ->  | K50: =IFERROR(VLOOKUP(K46,'Elaborazione ATP'!A2:AD1500,3,FALSE),"") -> 264.5 | L50: =IFERROR(VLOOKUP(K46,'Elaborazione ATP'!A2:AD1500,4,FALSE),"") -> 0.613 | M50: =IFERROR(VLOOKUP(K46,'Elaborazione ATP'!A2:AD1500,5,FALSE),"") -> 0.721 | N50: =IFERROR(VLOOKUP(K46,'Elaborazione ATP'!A2:AD1500,6,FALSE),"") -> 0.495 | O50: =IFERROR(IF(G46="Erba",VLOOKUP(K46,'Elaborazione ATP'!A2:AD1500,10,FALSE),IF(G46="Terra",VLOOKUP(K46,'Elaborazione ATP'!A2:AD1500,17,FALSE),IF(G46="Cemento",VLOOKUP(K46,'Elaborazione ATP'!A2:AD1500,24,FALSE)))),"") -> 265.2 | P50: =IFERROR(IF(G46="Erba",VLOOKUP(K46,'Elaborazione ATP'!A2:AD1500,11,FALSE),IF(G46="Terra",VLOOKUP(K46,'Elaborazione ATP'!A2:AD1500,18,FALSE),IF(G46="Cemento",VLOOKUP(K46,'Elaborazione ATP'!A2:AD1500,25,FALSE)))),"") -> 0.609 | Q50: =IFERROR(IF(G46="Erba",VLOOKUP(K46,'Elaborazione ATP'!A2:AD1500,12,FALSE),IF(G46="Terra",VLOOKUP(K46,'Elaborazione ATP'!A2:AD1500,19,FALSE),IF(G46="Cemento",VLOOKUP(K46,'Elaborazione ATP'!A2:AD1500,26,FALSE)))),"") -> 0.729 | R50: =IFERROR(IF(G46="Erba",VLOOKUP(K46,'Elaborazione ATP'!A2:AD1500,13,FALSE),IF(G46="Terra",VLOOKUP(K46,'Elaborazione ATP'!A2:AD1500,20,FALSE),IF(G46="Cemento",VLOOKUP(K46,'Elaborazione ATP'!A2:AD1500,27,FALSE)))),"") -> 0.492 | T50: =+'Elaborazione H2H'!L7 ->  | U50: =+'Elaborazione H2H'!M7 ->  | V50: =+'Elaborazione H2H'!J7 ->  | X50: =+'Elaborazione H2H'!K7 ->  | Z50: =+'Elaborazione H2H'!H7 ->  | AA50: =+'Elaborazione H2H'!I7 -> 
T51: =+'Elaborazione H2H'!L8 ->  | U51: =+'Elaborazione H2H'!M8 ->  | V51: =+'Elaborazione H2H'!J8 ->  | X51: =+'Elaborazione H2H'!K8 ->  | Z51: =+'Elaborazione H2H'!H8 ->  | AA51: =+'Elaborazione H2H'!I8 -> 
C52: =+ATP!F2 -> % Service Games Won | D52: =+ATP!G2 -> Avg. Aces/ Match | E52: =+ATP!H2 -> Avg. Double Faults/Match | G52: =+C52 -> % Service Games Won | H52: =+D52 -> Avg. Aces/ Match | I52: =+E52 -> Avg. Double Faults/Match | K52: =+G52 -> % Service Games Won | L52: =+H52 -> Avg. Aces/ Match | M52: Avg. Double Faults/Match | O52: % Service Games Won | P52: Avg. Aces/ Match | Q52: Avg. Double Faults/Match | T52: =+'Elaborazione H2H'!L9 ->  | U52: =+'Elaborazione H2H'!M9 ->  | V52: =+'Elaborazione H2H'!J9 ->  | X52: =+'Elaborazione H2H'!K9 ->  | Z52: =+'Elaborazione H2H'!H9 ->  | AA52: =+'Elaborazione H2H'!I9 -> 
T53: =+'Elaborazione H2H'!L10 ->  | U53: =+'Elaborazione H2H'!M10 ->  | V53: =+'Elaborazione H2H'!J10 ->  | X53: =+'Elaborazione H2H'!K10 ->  | Z53: =+'Elaborazione H2H'!H10 ->  | AA53: =+'Elaborazione H2H'!I10 -> 
C54: =IFERROR(VLOOKUP(C46,'Elaborazione ATP'!A2:AD1500,7,FALSE),"") -> 0.801 | D54: =IFERROR(VLOOKUP(C46,'Elaborazione ATP'!A2:AD1500,8,FALSE),"") -> 12.3 | E54: =IFERROR(VLOOKUP(C46,'Elaborazione ATP'!A2:AD1500,9,FALSE),"") -> 6.8 | G54: =IFERROR(IF(G46="Erba",VLOOKUP(C46,'Elaborazione ATP'!A2:AD1500,14,FALSE),IF(G46="Terra",VLOOKUP(C46,'Elaborazione ATP'!A2:AD1500,21,FALSE),IF(G46="Cemento",VLOOKUP(C46,'Elaborazione ATP'!A2:AD1500,28,FALSE)))),"") ->  | H54: =IFERROR(IF(G46="Erba",VLOOKUP(C46,'Elaborazione ATP'!A2:AD1500,15,FALSE),IF(G46="Terra",VLOOKUP(C46,'Elaborazione ATP'!A2:AD1500,22,FALSE),IF(G46="Cemento",VLOOKUP(C46,'Elaborazione ATP'!A2:AD1500,29,FALSE)))),"") ->  | I54: =IFERROR(IF(G46="Erba",VLOOKUP(C46,'Elaborazione ATP'!A2:AD1500,16,FALSE),IF(G46="Terra",VLOOKUP(C46,'Elaborazione ATP'!A2:AD1500,23,FALSE),IF(G46="Cemento",VLOOKUP(C46,'Elaborazione ATP'!A2:AD1500,30,FALSE)))),"") ->  | K54: =IFERROR(VLOOKUP(K46,'Elaborazione ATP'!A2:AD1500,7,FALSE),"") -> 0.784 | L54: =IFERROR(VLOOKUP(K46,'Elaborazione ATP'!A2:AD1500,8,FALSE),"") -> 6.2 | M54: =IFERROR(VLOOKUP(K46,'Elaborazione ATP'!A2:AD1500,9,FALSE),"") -> 3 | O54: =IFERROR(IF(G46="Erba",VLOOKUP(K46,'Elaborazione ATP'!A2:AD1500,14,FALSE),IF(G46="Terra",VLOOKUP(K46,'Elaborazione ATP'!A2:AD1500,21,FALSE),IF(G46="Cemento",VLOOKUP(K46,'Elaborazione ATP'!A2:AD1500,28,FALSE)))),"") -> 0.789 | P54: =IFERROR(IF(G46="Erba",VLOOKUP(K46,'Elaborazione ATP'!A2:AD1500,15,FALSE),IF(G46="Terra",VLOOKUP(K46,'Elaborazione ATP'!A2:AD1500,22,FALSE),IF(G46="Cemento",VLOOKUP(K46,'Elaborazione ATP'!A2:AD1500,29,FALSE)))),"") -> 6.5 | Q54: =IFERROR(IF(G46="Erba",VLOOKUP(K46,'Elaborazione ATP'!A2:AD1500,16,FALSE),IF(G46="Terra",VLOOKUP(K46,'Elaborazione ATP'!A2:AD1500,23,FALSE),IF(G46="Cemento",VLOOKUP(K46,'Elaborazione ATP'!A2:AD1500,30,FALSE)))),"") -> 3.2
C59: Giocatrice | D59: =+'Elaborazione WTA'!B1 -> Matches | E59: =+'Elaborazione WTA'!C1 -> Unret% | F59: =+'Elaborazione WTA'!D1 -> <=3 W% | G59: =+'Elaborazione WTA'!E1 -> RiP W% | H59: =+'Elaborazione WTA'!F1 -> 1st: Unret% | I59: =+'Elaborazione WTA'!G1 -> <=3 W% | J59: =+'Elaborazione WTA'!H1 -> RiP W% | K59: =+'Elaborazione WTA'!I1 -> D Wide% | L59: =+'Elaborazione WTA'!J1 -> A Wide% | M59: =+'Elaborazione WTA'!K1 -> BP Wide% | N59: =+'Elaborazione WTA'!L1 -> 2nd: Unret% | O59: =+'Elaborazione WTA'!M1 -> <=3 W% | P59: =+'Elaborazione WTA'!N1 -> RiP W% | Q59: =+'Elaborazione WTA'!O1 -> D Wide% | R59: =+'Elaborazione WTA'!P1 -> A Wide% | S59: =+'Elaborazione WTA'!Q1 -> BP Wide% | T59: =+'Elaborazione WTA'!R1 -> 2ndAgg
C61: =IFERROR(VLOOKUP(N68,GAME!N70:X1240,3,FALSE),"") ->  | D61: =IFERROR(VLOOKUP(C61,'Elaborazione WTA'!A1:R1029,2,FALSE),"") ->  | E61: =IFERROR(VLOOKUP(C61,'Elaborazione WTA'!A1:R1029,3,FALSE),"") ->  | F61: =IFERROR(VLOOKUP(C61,'Elaborazione WTA'!A1:R1029,4,FALSE),"") ->  | G61: =IFERROR(VLOOKUP(C61,'Elaborazione WTA'!A1:R1029,5,FALSE),"") ->  | H61: =IFERROR(VLOOKUP(C61,'Elaborazione WTA'!A1:R1029,6,FALSE),"") ->  | I61: =IFERROR(VLOOKUP(C61,'Elaborazione WTA'!A1:R1029,7,FALSE),"") ->  | J61: =IFERROR(VLOOKUP(C61,'Elaborazione WTA'!A1:R1029,8,FALSE),"") ->  | K61: =IFERROR(VLOOKUP(C61,'Elaborazione WTA'!A1:R1029,9,FALSE),"") ->  | L61: =IFERROR(VLOOKUP(C61,'Elaborazione WTA'!A1:R1029,10,FALSE),"") ->  | M61: =IFERROR(VLOOKUP(C61,'Elaborazione WTA'!A1:R1029,11,FALSE),"") ->  | N61: =IFERROR(VLOOKUP(C61,'Elaborazione WTA'!A1:R1029,12,FALSE),"") ->  | O61: =IFERROR(VLOOKUP(C61,'Elaborazione WTA'!A1:R1029,13,FALSE),"") ->  | P61: =IFERROR(VLOOKUP(C61,'Elaborazione WTA'!A1:R1029,14,FALSE),"") ->  | Q61: =IFERROR(VLOOKUP(C61,'Elaborazione WTA'!A1:R1029,15,FALSE),"") ->  | R61: =IFERROR(VLOOKUP(C61,'Elaborazione WTA'!A1:R1029,16,FALSE),"") ->  | S61: =IFERROR(VLOOKUP(C61,'Elaborazione WTA'!A1:R1029,17,FALSE),"") ->  | T61: =IFERROR(VLOOKUP(C61,'Elaborazione WTA'!A1:R1029,18,FALSE),"") -> 
C63: Giocatrice | D63: =+'Elaborazione WTA'!B1 -> Matches | E63: =+'Elaborazione WTA'!C1 -> Unret% | F63: =+'Elaborazione WTA'!D1 -> <=3 W% | G63: =+'Elaborazione WTA'!E1 -> RiP W% | H63: =+'Elaborazione WTA'!F1 -> 1st: Unret% | I63: =+'Elaborazione WTA'!G1 -> <=3 W% | J63: =+'Elaborazione WTA'!H1 -> RiP W% | K63: =+'Elaborazione WTA'!I1 -> D Wide% | L63: =+'Elaborazione WTA'!J1 -> A Wide% | M63: =+'Elaborazione WTA'!K1 -> BP Wide% | N63: =+'Elaborazione WTA'!L1 -> 2nd: Unret% | O63: =+'Elaborazione WTA'!M1 -> <=3 W% | P63: =+'Elaborazione WTA'!N1 -> RiP W% | Q63: =+'Elaborazione WTA'!O1 -> D Wide% | R63: =+'Elaborazione WTA'!P1 -> A Wide% | S63: =+'Elaborazione WTA'!Q1 -> BP Wide% | T63: =+'Elaborazione WTA'!R1 -> 2ndAgg
C65: =IFERROR(VLOOKUP(O68,GAME!N70:X1240,3,FALSE),"") ->  | D65: =IFERROR(VLOOKUP(C65,'Elaborazione WTA'!A5:R1033,2,FALSE),"") ->  | E65: =IFERROR(VLOOKUP(C65,'Elaborazione WTA'!A5:R1033,3,FALSE),"") ->  | F65: =IFERROR(VLOOKUP(C65,'Elaborazione WTA'!A5:R1033,4,FALSE),"") ->  | G65: =IFERROR(VLOOKUP(C65,'Elaborazione WTA'!A5:R1033,5,FALSE),"") ->  | H65: =IFERROR(VLOOKUP(C65,'Elaborazione WTA'!A5:R1033,6,FALSE),"") ->  | I65: =IFERROR(VLOOKUP(C65,'Elaborazione WTA'!A5:R1033,7,FALSE),"") ->  | J65: =IFERROR(VLOOKUP(C65,'Elaborazione WTA'!A5:R1033,8,FALSE),"") ->  | K65: =IFERROR(VLOOKUP(C65,'Elaborazione WTA'!A5:R1033,9,FALSE),"") ->  | L65: =IFERROR(VLOOKUP(C65,'Elaborazione WTA'!A5:R1033,10,FALSE),"") ->  | M65: =IFERROR(VLOOKUP(C65,'Elaborazione WTA'!A5:R1033,11,FALSE),"") ->  | N65: =IFERROR(VLOOKUP(C65,'Elaborazione WTA'!A5:R1033,12,FALSE),"") ->  | O65: =IFERROR(VLOOKUP(C65,'Elaborazione WTA'!A5:R1033,13,FALSE),"") ->  | P65: =IFERROR(VLOOKUP(C65,'Elaborazione WTA'!A5:R1033,14,FALSE),"") ->  | Q65: =IFERROR(VLOOKUP(C65,'Elaborazione WTA'!A5:R1033,15,FALSE),"") ->  | R65: =IFERROR(VLOOKUP(C65,'Elaborazione WTA'!A5:R1033,16,FALSE),"") ->  | S65: =IFERROR(VLOOKUP(C65,'Elaborazione WTA'!A5:R1033,17,FALSE),"") ->  | T65: =IFERROR(VLOOKUP(C65,'Elaborazione WTA'!A5:R1033,18,FALSE),"") -> 
A68: =TRIM(C8) -> ULTIMI INCONTRI: HALYS Q. | C68: =IF(C69=A123,1,0) -> 0 | D68: =TRIM(K8) -> ULTIMI INCONTRI: IVASHKA I. | E68: =IF(D68=C134,1,0) -> 0 | N68: =+C8 -> ULTIMI INCONTRI: HALYS Q. | O68: =+K8 -> ULTIMI INCONTRI: IVASHKA I.
A69: =SUBSTITUTE(A68,"ULTIMI INCONTRI:","") -> HALYS Q. | C69: =TRIM(A69) -> HALYS Q. | D69: =SUBSTITUTE(D68,"ULTIMI INCONTRI:","") -> IVASHKA I. | F69: =TRIM(D69) -> IVASHKA I.
A70: =TRIM(M70) -> ISNER J. | C70: =IF(ATP!A3=0,"",ATP!A3) -> 1 | D70: =IF(+ATP!B3=0,"",+ATP!B3) -> John Isner | G70: =TRIM(D70) -> John Isner | H70: =LEFT(G70,FIND(" ",G70,1)-1) -> John | I70: =LEFT(H70,1) -> J | J70: . | K70: =SUBSTITUTE(G70,H70,"") -> Isner | L70: =UPPER(K70) -> ISNER | M70: =+L70&" "&I70&J70 -> ISNER J. | N70: =+W70 -> WILLIAMS S. | O70: 1 | P70: =IF(+'Elaborazione WTA'!A2=0,"",+'Elaborazione WTA'!A2) -> Serena Williams | Q70: =TRIM(P70) -> Serena Williams | R70: =LEFT(Q70,FIND(" ",Q70,1)-1) -> Serena | S70: =LEFT(R70,1) -> S | T70: . | U70: =SUBSTITUTE(Q70,R70,"") -> Williams | V70: =UPPER(U70) -> WILLIAMS | W70: =+V70&" "&S70&T70 -> WILLIAMS S.
A71: KARLOVIC I. | C71: =IF(ATP!A4=0,"",ATP!A4) -> 2 | D71: =IF(+ATP!B4=0,"",+ATP!B4) -> Ivo Karlovic | G71: =TRIM(D71) -> Ivo Karlovic | H71: =LEFT(G71,FIND(" ",G71,1)-1) -> Ivo | I71: =LEFT(H71,1) -> I | J71: . | K71: =SUBSTITUTE(G71,H71,"") -> Karlovic | L71: =UPPER(K71) -> KARLOVIC | M71: KARLOVIC I. | N71: =+W71 -> SAMSONOVA L. | O71: 2 | P71: =IF(+'Elaborazione WTA'!A3=0,"",+'Elaborazione WTA'!A3) -> Ludmilla Samsonova | Q71: =TRIM(P71) -> Ludmilla Samsonova | R71: =LEFT(Q71,FIND(" ",Q71,1)-1) -> Ludmilla | S71: =LEFT(R71,1) -> L | T71: . | U71: =SUBSTITUTE(Q71,R71,"") -> Samsonova | V71: =UPPER(U71) -> SAMSONOVA | W71: =+V71&" "&S71&T71 -> SAMSONOVA L.
A72: OPELKA R. | C72: =IF(ATP!A5=0,"",ATP!A5) -> 3 | D72: =IF(+ATP!B5=0,"",+ATP!B5) -> Reilly Opelka | G72: Reilly Opelka | H72: Reilly | I72: R | J72: . | K72: Opelka | L72: OPELKA | M72: OPELKA R. | N72: OSAKA N. | O72: 3 | P72: =IF(+'Elaborazione WTA'!A4=0,"",+'Elaborazione WTA'!A4) -> Naomi Osaka | Q72: Naomi Osaka | R72: Naomi | S72: N | T72: . | U72: Osaka | V72: OSAKA | W72: OSAKA N.
A73: RAONIC M. | C73: =IF(ATP!A6=0,"",ATP!A6) -> 4 | D73: =IF(+ATP!B6=0,"",+ATP!B6) -> Milos Raonic | G73: Milos Raonic | H73: Milos | I73: M | J73: . | K73: Raonic | L73: RAONIC | M73: RAONIC M. | N73: BRADY J. | O73: 4 | P73: =IF(+'Elaborazione WTA'!A5=0,"",+'Elaborazione WTA'!A5) -> Jennifer Brady | Q73: Jennifer Brady | R73: Jennifer | S73: J | T73: . | U73: Brady | V73: BRADY | W73: BRADY J.
A74: RODDICK A. | C74: =IF(ATP!A7=0,"",ATP!A7) -> 5 | D74: =IF(+ATP!B7=0,"",+ATP!B7) -> Andy Roddick | G74: Andy Roddick | H74: Andy | I74: A | J74: . | K74: Roddick | L74: RODDICK | M74: RODDICK A. | N74: BARTY A. | O74: 5 | P74: =IF(+'Elaborazione WTA'!A6=0,"",+'Elaborazione WTA'!A6) -> Ashleigh Barty | Q74: Ashleigh Barty | R74: Ashleigh | S74: A | T74: . | U74: Barty | V74: BARTY | W74: BARTY A.
A75: KYRGIOS N. | C75: =IF(ATP!A8=0,"",ATP!A8) -> 6 | D75: =IF(+ATP!B8=0,"",+ATP!B8) -> Nick Kyrgios | G75: Nick Kyrgios | H75: Nick | I75: N | J75: . | K75: Kyrgios | L75: KYRGIOS | M75: KYRGIOS N. | N75: JABEUR O. | O75: 6 | P75: =IF(+'Elaborazione WTA'!A7=0,"",+'Elaborazione WTA'!A7) -> Ons Jabeur | Q75: Ons Jabeur | R75: Ons | S75: O | T75: . | U75: Jabeur | V75: JABEUR | W75: JABEUR O.
A76: JOHANSSON J. | C76: =IF(ATP!A9=0,"",ATP!A9) -> 7 | D76: =IF(+ATP!B9=0,"",+ATP!B9) -> Joachim Johansson | G76: Joachim Johansson | H76: Joachim | I76: J | J76: . | K76: Johansson | L76: JOHANSSON | M76: JOHANSSON J. | N76: SABALENKA A. | O76: 7 | P76: =IF(+'Elaborazione WTA'!A8=0,"",+'Elaborazione WTA'!A8) -> Aryna Sabalenka | Q76: Aryna Sabalenka | R76: Aryna | S76: A | T76: . | U76: Sabalenka | V76: SABALENKA | W76: SABALENKA A.
A77: ANDERSON K. | C77: =IF(ATP!A10=0,"",ATP!A10) -> 8 | D77: =IF(+ATP!B10=0,"",+ATP!B10) -> Kevin Anderson | G77: Kevin Anderson | H77: Kevin | I77: K | J77: . | K77: Anderson | L77: ANDERSON | M77: ANDERSON K. | N77: PLISKOVA K. | O77: 8 | P77: =IF(+'Elaborazione WTA'!A9=0,"",+'Elaborazione WTA'!A9) -> Karolina Pliskova | Q77: Karolina Pliskova | R77: Karolina | S77: K | T77: . | U77: Pliskova | V77: PLISKOVA | W77: PLISKOVA K.
A78: FEDERER R. | C78: =IF(ATP!A11=0,"",ATP!A11) -> 9 | D78: =IF(+ATP!B11=0,"",+ATP!B11) -> Roger Federer | G78: Roger Federer | H78: Roger | I78: R | J78: . | K78: Federer | L78: FEDERER | M78: FEDERER R. | N78: BENCIC B. | O78: 9 | P78: =IF(+'Elaborazione WTA'!A10=0,"",+'Elaborazione WTA'!A10) -> Belinda Bencic | Q78: Belinda Bencic | R78: Belinda | S78: B | T78: . | U78: Bencic | V78: BENCIC | W78: BENCIC B.
A79: ARTHURS W. | C79: =IF(ATP!A12=0,"",ATP!A12) -> 10 | D79: =IF(+ATP!B12=0,"",+ATP!B12) -> Wayne Arthurs | G79: Wayne Arthurs | H79: Wayne | I79: W | J79: . | K79: Arthurs | L79: ARTHURS | M79: ARTHURS W. | N79: ROGERS S. | O79: 10 | P79: =IF(+'Elaborazione WTA'!A11=0,"",+'Elaborazione WTA'!A11) -> Shelby Rogers | Q79: Shelby Rogers | R79: Shelby | S79: S | T79: . | U79: Rogers | V79: ROGERS | W79: ROGERS S.
A80: BERRETTINI M. | C80: =IF(ATP!A13=0,"",ATP!A13) -> 11 | D80: =IF(+ATP!B13=0,"",+ATP!B13) -> Matteo Berrettini | G80: Matteo Berrettini | H80: Matteo | I80: M | J80: . | K80: Berrettini | L80: BERRETTINI | M80: BERRETTINI M. | N80: KONJUH A. | O80: 11 | P80: =IF(+'Elaborazione WTA'!A12=0,"",+'Elaborazione WTA'!A12) -> Ana Konjuh | Q80: Ana Konjuh | R80: Ana | S80: A | T80: . | U80: Konjuh | V80: KONJUH | W80: KONJUH A.
A81: CRESSY M. | C81: =IF(ATP!A14=0,"",ATP!A14) -> 12 | D81: =IF(+ATP!B14=0,"",+ATP!B14) -> Maxime Cressy | G81: Maxime Cressy | H81: Maxime | I81: M | J81: . | K81: Cressy | L81: CRESSY | M81: CRESSY M. | N81: SAKKARI M. | O81: 12 | P81: =IF(+'Elaborazione WTA'!A13=0,"",+'Elaborazione WTA'!A13) -> Maria Sakkari | Q81: Maria Sakkari | R81: Maria | S81: M | T81: . | U81: Sakkari | V81: SAKKARI | W81: SAKKARI M.
A82: SAMPRAS P. | C82: =IF(ATP!A15=0,"",ATP!A15) -> 13 | D82: =IF(+ATP!B15=0,"",+ATP!B15) -> Pete Sampras | G82: Pete Sampras | H82: Pete | I82: P | J82: . | K82: Sampras | L82: SAMPRAS | M82: SAMPRAS P. | N82: KUDERMETOVA V. | O82: 13 | P82: =IF(+'Elaborazione WTA'!A14=0,"",+'Elaborazione WTA'!A14) -> Veronika Kudermetova | Q82: Veronika Kudermetova | R82: Veronika | S82: V | T82: . | U82: Kudermetova | V82: KUDERMETOVA | W82: KUDERMETOVA V.
A83: GUCCIONE C. | C83: =IF(ATP!A16=0,"",ATP!A16) -> 14 | D83: =IF(+ATP!B16=0,"",+ATP!B16) -> Chris Guccione | G83: Chris Guccione | H83: Chris | I83: C | J83: . | K83: Guccione | L83: GUCCIONE | M83: GUCCIONE C. | N83: RYBAKINA E. | O83: 14 | P83: =IF(+'Elaborazione WTA'!A15=0,"",+'Elaborazione WTA'!A15) -> Elena Rybakina | Q83: Elena Rybakina | R83: Elena | S83: E | T83: . | U83: Rybakina | V83: RYBAKINA | W83: RYBAKINA E.
A84: KRAJICEK R. | C84: =IF(ATP!A17=0,"",ATP!A17) -> 15 | D84: =IF(+ATP!B17=0,"",+ATP!B17) -> Richard Krajicek | G84: Richard Krajicek | H84: Richard | I84: R | J84: . | K84: Krajicek | L84: KRAJICEK | M84: KRAJICEK R. | N84: GAUFF C. | O84: 15 | P84: =IF(+'Elaborazione WTA'!A16=0,"",+'Elaborazione WTA'!A16) -> Cori Gauff | Q84: Cori Gauff | R84: Cori | S84: C | T84: . | U84: Gauff | V84: GAUFF | W84: GAUFF C.
A85: TSONGA J. | C85: =IF(ATP!A18=0,"",ATP!A18) -> 16 | D85: =IF(+ATP!B18=0,"",+ATP!B18) -> Jo-Wilfried Tsonga | G85: Jo-Wilfried Tsonga | H85: Jo-Wilfried | I85: J | J85: . | K85: Tsonga | L85: TSONGA | M85: TSONGA J. | N85: LI A. | O85: 16 | P85: =IF(+'Elaborazione WTA'!A17=0,"",+'Elaborazione WTA'!A17) -> Ann Li | Q85: Ann Li | R85: Ann | S85: A | T85: . | U85: Li | V85: LI | W85: LI A.
A86: MOODIE W. | C86: =IF(ATP!A19=0,"",ATP!A19) -> 17 | D86: =IF(+ATP!B19=0,"",+ATP!B19) -> Wesley Moodie | G86: Wesley Moodie | H86: Wesley | I86: W | J86: . | K86: Moodie | L86: MOODIE | M86: MOODIE W. | N86: MUCHOVA K. | O86: 17 | P86: =IF(+'Elaborazione WTA'!A18=0,"",+'Elaborazione WTA'!A18) -> Karolina Muchova | Q86: Karolina Muchova | R86: Karolina | S86: K | T86: . | U86: Muchova | V86: MUCHOVA | W86: MUCHOVA K.
A87: NADAL R. | C87: =IF(ATP!A20=0,"",ATP!A20) -> 18 | D87: =IF(+ATP!B20=0,"",+ATP!B20) -> Rafael Nadal | G87: Rafael Nadal | H87: Rafael | I87: R | J87: . | K87: Nadal | L87: NADAL | M87: NADAL R. | N87: KOSTYUK M. | O87: 18 | P87: =IF(+'Elaborazione WTA'!A19=0,"",+'Elaborazione WTA'!A19) -> Marta Kostyuk | Q87: Marta Kostyuk | R87: Marta | S87: M | T87: . | U87: Kostyuk | V87: KOSTYUK | W87: KOSTYUK M.
A88: GROTH S. | C88: =IF(ATP!A21=0,"",ATP!A21) -> 19 | D88: =IF(+ATP!B21=0,"",+ATP!B21) -> Sam Groth | G88: Sam Groth | H88: Sam | I88: S | J88: . | K88: Groth | L88: GROTH | M88: GROTH S. | N88: PIRONKOVA T. | O88: 19 | P88: =IF(+'Elaborazione WTA'!A20=0,"",+'Elaborazione WTA'!A20) -> Tsvetana Pironkova | Q88: Tsvetana Pironkova | R88: Tsvetana | S88: T | T88: . | U88: Pironkova | V88: PIRONKOVA | W88: PIRONKOVA T.
A89: MULLER G. | C89: =IF(ATP!A22=0,"",ATP!A22) -> 20 | D89: =IF(+ATP!B22=0,"",+ATP!B22) -> Gilles Muller | G89: Gilles Muller | H89: Gilles | I89: G | J89: . | K89: Muller | L89: MULLER | M89: MULLER G. | N89: PEGULA J. | O89: 20 | P89: =IF(+'Elaborazione WTA'!A21=0,"",+'Elaborazione WTA'!A21) -> Jessica Pegula | Q89: Jessica Pegula | R89: Jessica | S89: J | T89: . | U89: Pegula | V89: PEGULA | W89: PEGULA J.
A90: TSITSIPAS S. | C90: =IF(ATP!A23=0,"",ATP!A23) -> 21 | D90: =IF(+ATP!B23=0,"",+ATP!B23) -> Stefanos Tsitsipas | G90: Stefanos Tsitsipas | H90: Stefanos | I90: S | J90: . | K90: Tsitsipas | L90: TSITSIPAS | M90: TSITSIPAS S. | N90: MUGURUZA G. | O90: 21 | P90: =IF(+'Elaborazione WTA'!A22=0,"",+'Elaborazione WTA'!A22) -> Garbine Muguruza | Q90: Garbine Muguruza | R90: Garbine | S90: G | T90: . | U90: Muguruza | V90: MUGURUZA | W90: MUGURUZA G.
A91: DJOKOVIC N. | C91: =IF(ATP!A24=0,"",ATP!A24) -> 22 | D91: =IF(+ATP!B24=0,"",+ATP!B24) -> Novak Djokovic | G91: Novak Djokovic | H91: Novak | I91: N | J91: . | K91: Djokovic | L91: DJOKOVIC | M91: DJOKOVIC N. | N91: KVITOVA P. | O91: 22 | P91: =IF(+'Elaborazione WTA'!A23=0,"",+'Elaborazione WTA'!A23) -> Petra Kvitova | Q91: Petra Kvitova | R91: Petra | S91: P | T91: . | U91: Kvitova | V91: KVITOVA | W91: KVITOVA P.
A92: RUSEDSKI G. | C92: =IF(ATP!A25=0,"",ATP!A25) -> 23 | D92: =IF(+ATP!B25=0,"",+ATP!B25) -> Greg Rusedski | G92: Greg Rusedski | H92: Greg | I92: G | J92: . | K92: Rusedski | L92: RUSEDSKI | M92: RUSEDSKI G. | N92: SVITOLINA E. | O92: 23 | P92: =IF(+'Elaborazione WTA'!A24=0,"",+'Elaborazione WTA'!A24) -> Elina Svitolina | Q92: Elina Svitolina | R92: Elina | S92: E | T92: . | U92: Svitolina | V92: SVITOLINA | W92: SVITOLINA E.
A93: LJUBICIC I. | C93: =IF(ATP!A26=0,"",ATP!A26) -> 24 | D93: =IF(+ATP!B26=0,"",+ATP!B26) -> Ivan Ljubicic | G93: Ivan Ljubicic | H93: Ivan | I93: I | J93: . | K93: Ljubicic | L93: LJUBICIC | M93: LJUBICIC I. | N93: TAUSON C. | O93: 24 | P93: =IF(+'Elaborazione WTA'!A25=0,"",+'Elaborazione WTA'!A25) -> Clara Tauson | Q93: Clara Tauson | R93: Clara | S93: C | T93: . | U93: Tauson | V93: TAUSON | W93: TAUSON C.
A94: QUERREY S. | C94: =IF(ATP!A27=0,"",ATP!A27) -> 25 | D94: =IF(+ATP!B27=0,"",+ATP!B27) -> Sam Querrey | G94: Sam Querrey | H94: Sam | I94: S | J94: . | K94: Querrey | L94: QUERREY | M94: QUERREY S. | N94: KONTAVEIT A. | O94: 25 | P94: =IF(+'Elaborazione WTA'!A26=0,"",+'Elaborazione WTA'!A26) -> Anett Kontaveit | Q94: Anett Kontaveit | R94: Anett | S94: A | T94: . | U94: Kontaveit | V94: KONTAVEIT | W94: KONTAVEIT A.
A95: IVANISEVIC G. | C95: =IF(ATP!A28=0,"",ATP!A28) -> 26 | D95: =IF(+ATP!B28=0,"",+ATP!B28) -> Goran Ivanisevic | G95: Goran Ivanisevic | H95: Goran | I95: G | J95: . | K95: Ivanisevic | L95: IVANISEVIC | M95: IVANISEVIC G. | N95: KREJCIKOVA B. | O95: 26 | P95: =IF(+'Elaborazione WTA'!A27=0,"",+'Elaborazione WTA'!A27) -> Barbora Krejcikova | Q95: Barbora Krejcikova | R95: Barbora | S95: B | T95: . | U95: Krejcikova | V95: KREJCIKOVA | W95: KREJCIKOVA B.
A96: PHILIPPOUSSIS M. | C96: =IF(ATP!A29=0,"",ATP!A29) -> 27 | D96: =IF(+ATP!B29=0,"",+ATP!B29) -> Mark Philippoussis | G96: Mark Philippoussis | H96: Mark | I96: M | J96: . | K96: Philippoussis | L96: PHILIPPOUSSIS | M96: PHILIPPOUSSIS M. | N96: TOMLJANOVIC A. | O96: 27 | P96: =IF(+'Elaborazione WTA'!A28=0,"",+'Elaborazione WTA'!A28) -> Ajla Tomljanovic | Q96: Ajla Tomljanovic | R96: Ajla | S96: A | T96: . | U96: Tomljanovic | V96: TOMLJANOVIC | W96: TOMLJANOVIC A.
A97: MARTIN DEL POTRO J. | C97: =IF(ATP!A30=0,"",ATP!A30) -> 28 | D97: =IF(+ATP!B30=0,"",+ATP!B30) -> Juan Martin del Potro | G97: Juan Martin del Potro | H97: Juan | I97: J | J97: . | K97: Martin del Potro | L97: MARTIN DEL POTRO | M97: MARTIN DEL POTRO J. | N97: BERTENS K. | O97: 28 | P97: =IF(+'Elaborazione WTA'!A29=0,"",+'Elaborazione WTA'!A29) -> Kiki Bertens | Q97: Kiki Bertens | R97: Kiki | S97: K | T97: . | U97: Bertens | V97: BERTENS | W97: BERTENS K.
A98: HURKACZ H. | C98: =IF(ATP!A31=0,"",ATP!A31) -> 29 | D98: =IF(+ATP!B31=0,"",+ATP!B31) -> Hubert Hurkacz | G98: Hubert Hurkacz | H98: Hubert | I98: H | J98: . | K98: Hurkacz | L98: HURKACZ | M98: HURKACZ H. | N98: SWIATEK I. | O98: 29 | P98: =IF(+'Elaborazione WTA'!A30=0,"",+'Elaborazione WTA'!A30) -> Iga Swiatek | Q98: Iga Swiatek | R98: Iga | S98: I | T98: . | U98: Swiatek | V98: SWIATEK | W98: SWIATEK I.
A99: NAKASHIMA B. | C99: =IF(ATP!A32=0,"",ATP!A32) -> 30 | D99: =IF(+ATP!B32=0,"",+ATP!B32) -> Brandon Nakashima | G99: Brandon Nakashima | H99: Brandon | I99: B | J99: . | K99: Nakashima | L99: NAKASHIMA | M99: NAKASHIMA B. | N99: OSTAPENKO J. | O99: 30 | P99: =IF(+'Elaborazione WTA'!A31=0,"",+'Elaborazione WTA'!A31) -> Jelena Ostapenko | Q99: Jelena Ostapenko | R99: Jelena | S99: J | T99: . | U99: Ostapenko | V99: OSTAPENKO | W99: OSTAPENKO J.
A100: MIRNYI M. | C100: =IF(ATP!A33=0,"",ATP!A33) -> 31 | D100: =IF(+ATP!B33=0,"",+ATP!B33) -> Max Mirnyi | G100: Max Mirnyi | H100: Max | I100: M | J100: . | K100: Mirnyi | L100: MIRNYI | M100: MIRNYI M. | N100: AZARENKA V. | O100: 31 | P100: =IF(+'Elaborazione WTA'!A32=0,"",+'Elaborazione WTA'!A32) -> Victoria Azarenka | Q100: Victoria Azarenka | R100: Victoria | S100: V | T100: . | U100: Azarenka | V100: AZARENKA | W100: AZARENKA V.
A101: ANCIC M. | C101: =IF(ATP!A34=0,"",ATP!A34) -> 32 | D101: =IF(+ATP!B34=0,"",+ATP!B34) -> Mario Ancic | G101: Mario Ancic | H101: Mario | I101: M | J101: . | K101: Ancic | L101: ANCIC | M101: ANCIC M. | N101: BADOSA P. | O101: 32 | P101: =IF(+'Elaborazione WTA'!A33=0,"",+'Elaborazione WTA'!A33) -> Paula Badosa | Q101: Paula Badosa | R101: Paula | S101: P | T101: . | U101: Badosa | V101: BADOSA | W101: BADOSA P.
A102: RINDERKNECH A. | C102: =IF(ATP!A35=0,"",ATP!A35) -> 33 | D102: =IF(+ATP!B35=0,"",+ATP!B35) -> Arthur Rinderknech | G102: Arthur Rinderknech | H102: Arthur | I102: A | J102: . | K102: Rinderknech | L102: RINDERKNECH | M102: RINDERKNECH A. | N102: JUVAN K. | O102: 33 | P102: =IF(+'Elaborazione WTA'!A34=0,"",+'Elaborazione WTA'!A34) -> Kaja Juvan | Q102: Kaja Juvan | R102: Kaja | S102: K | T102: . | U102: Juvan | V102: JUVAN | W102: JUVAN K.
A103: BECKER B. | C103: =IF(ATP!A36=0,"",ATP!A36) -> 34 | D103: =IF(+ATP!B36=0,"",+ATP!B36) -> Boris Becker | G103: Boris Becker | H103: Boris | I103: B | J103: . | K103: Becker | L103: BECKER | M103: BECKER B. | N103: CIRSTEA S. | O103: 34 | P103: =IF(+'Elaborazione WTA'!A35=0,"",+'Elaborazione WTA'!A35) -> Sorana Cirstea | Q103: Sorana Cirstea | R103: Sorana | S103: S | T103: . | U103: Cirstea | V103: CIRSTEA | W103: CIRSTEA S.
A104: FORGET G. | C104: =IF(ATP!A37=0,"",ATP!A37) -> 35 | D104: =IF(+ATP!B37=0,"",+ATP!B37) -> Guy Forget | G104: Guy Forget | H104: Guy | I104: G | J104: . | K104: Forget | L104: FORGET | M104: FORGET G. | N104: ANDREESCU B. | O104: 35 | P104: =IF(+'Elaborazione WTA'!A36=0,"",+'Elaborazione WTA'!A36) -> Bianca Andreescu | Q104: Bianca Andreescu | R104: Bianca | S104: B | T104: . | U104: Andreescu | V104: ANDREESCU | W104: ANDREESCU B.
A105: MARTIN T. | C105: =IF(ATP!A38=0,"",ATP!A38) -> 36 | D105: =IF(+ATP!B38=0,"",+ATP!B38) -> Todd Martin | G105: Todd Martin | H105: Todd | I105: T | J105: . | K105: Martin | L105: MARTIN | M105: MARTIN T. | N105: GOLUBIC V. | O105: 36 | P105: =IF(+'Elaborazione WTA'!A37=0,"",+'Elaborazione WTA'!A37) -> Viktorija Golubic | Q105: Viktorija Golubic | R105: Viktorija | S105: V | T105: . | U105: Golubic | V105: GOLUBIC | W105: GOLUBIC V.
A106: SODERLING R. | C106: =IF(ATP!A39=0,"",ATP!A39) -> 37 | D106: =IF(+ATP!B39=0,"",+ATP!B39) -> Robin Soderling | G106: Robin Soderling | H106: Robin | I106: R | J106: . | K106: Soderling | L106: SODERLING | M106: SODERLING R. | N106: MERTENS E. | O106: 37 | P106: =IF(+'Elaborazione WTA'!A38=0,"",+'Elaborazione WTA'!A38) -> Elise Mertens | Q106: Elise Mertens | R106: Elise | S106: E | T106: . | U106: Mertens | V106: MERTENS | W106: MERTENS E.
A107: BRANDS D. | C107: =IF(ATP!A40=0,"",ATP!A40) -> 38 | D107: =IF(+ATP!B40=0,"",+ATP!B40) -> Daniel Brands | G107: Daniel Brands | H107: Daniel | I107: D | J107: . | K107: Brands | L107: BRANDS | M107: BRANDS D. | N107: VONDROUSOVA M. | O107: 38 | P107: =IF(+'Elaborazione WTA'!A39=0,"",+'Elaborazione WTA'!A39) -> Marketa Vondrousova | Q107: Marketa Vondrousova | R107: Marketa | S107: M | T107: . | U107: Vondrousova | V107: VONDROUSOVA | W107: VONDROUSOVA M.
A108: RAFTER P. | C108: =IF(ATP!A41=0,"",ATP!A41) -> 39 | D108: =IF(+ATP!B41=0,"",+ATP!B41) -> Patrick Rafter | G108: Patrick Rafter | H108: Patrick | I108: P | J108: . | K108: Rafter | L108: RAFTER | M108: RAFTER P. | N108: BLINKOVA A. | O108: 39 | P108: =IF(+'Elaborazione WTA'!A40=0,"",+'Elaborazione WTA'!A40) -> Anna Blinkova | Q108: Anna Blinkova | R108: Anna | S108: A | T108: . | U108: Blinkova | V108: BLINKOVA | W108: BLINKOVA A.
A109: BERDYCH T. | C109: =IF(ATP!A42=0,"",ATP!A42) -> 40 | D109: =IF(+ATP!B42=0,"",+ATP!B42) -> Tomas Berdych | G109: Tomas Berdych | H109: Tomas | I109: T | J109: . | K109: Berdych | L109: BERDYCH | M109: BERDYCH T. | N109: CAMILA OSORIO SERRANO M. | O109: 40 | P109: =IF(+'Elaborazione WTA'!A41=0,"",+'Elaborazione WTA'!A41) -> Maria Camila Osorio Serrano | Q109: Maria Camila Osorio Serrano | R109: Maria | S109: M | T109: . | U109: Camila Osorio Serrano | V109: CAMILA OSORIO SERRANO | W109: CAMILA OSORIO SERRANO M.
A110: JARRY N. | C110: =IF(ATP!A43=0,"",ATP!A43) -> 41 | D110: =IF(+ATP!B43=0,"",+ATP!B43) -> Nicolas Jarry | G110: Nicolas Jarry | H110: Nicolas | I110: N | J110: . | K110: Jarry | L110: JARRY | M110: JARRY N. | N110: HALEP S. | O110: 41 | P110: =IF(+'Elaborazione WTA'!A42=0,"",+'Elaborazione WTA'!A42) -> Simona Halep | Q110: Simona Halep | R110: Simona | S110: S | T110: . | U110: Halep | V110: HALEP | W110: HALEP S.
A111: RUUD C. | C111: =IF(ATP!A44=0,"",ATP!A44) -> 42 | D111: =IF(+ATP!B44=0,"",+ATP!B44) -> Casper Ruud | G111: Casper Ruud | H111: Casper | I111: C | J111: . | K111: Ruud | L111: RUUD | M111: RUUD C. | N111: HERCOG P. | O111: 42 | P111: =IF(+'Elaborazione WTA'!A43=0,"",+'Elaborazione WTA'!A43) -> Polona Hercog | Q111: Polona Hercog | R111: Polona | S111: P | T111: . | U111: Hercog | V111: HERCOG | W111: HERCOG P.
A112: LOPEZ F. | C112: =IF(ATP!A45=0,"",ATP!A45) -> 43 | D112: =IF(+ATP!B45=0,"",+ATP!B45) -> Feliciano Lopez | G112: Feliciano Lopez | H112: Feliciano | I112: F | J112: . | K112: Lopez | L112: LOPEZ | M112: LOPEZ F. | N112: KASATKINA D. | O112: 43 | P112: =IF(+'Elaborazione WTA'!A44=0,"",+'Elaborazione WTA'!A44) -> Darya Kasatkina | Q112: Darya Kasatkina | R112: Darya | S112: D | T112: . | U112: Kasatkina | V112: KASATKINA | W112: KASATKINA D.
A113: STICH M. | C113: =IF(ATP!A46=0,"",ATP!A46) -> 44 | D113: =IF(+ATP!B46=0,"",+ATP!B46) -> Michael Stich | G113: Michael Stich | H113: Michael | I113: M | J113: . | K113: Stich | L113: STICH | M113: STICH M. | N113: BELEN TEICHMANN J. | O113: 44 | P113: =IF(+'Elaborazione WTA'!A45=0,"",+'Elaborazione WTA'!A45) -> Jil Belen Teichmann | Q113: Jil Belen Teichmann | R113: Jil | S113: J | T113: . | U113: Belen Teichmann | V113: BELEN TEICHMANN | W113: BELEN TEICHMANN J.
A114: COURIER J. | C114: =IF(ATP!A47=0,"",ATP!A47) -> 45 | D114: =IF(+ATP!B47=0,"",+ATP!B47) -> Jim Courier | G114: Jim Courier | H114: Jim | I114: J | J114: . | K114: Courier | L114: COURIER | M114: COURIER J. | N114: PODOROSKA N. | O114: 45 | P114: =IF(+'Elaborazione WTA'!A46=0,"",+'Elaborazione WTA'!A46) -> Nadia Podoroska | Q114: Nadia Podoroska | R114: Nadia | S114: N | T114: . | U114: Podoroska | V114: PODOROSKA | W114: PODOROSKA N.
A115: CILIC M. | C115: =IF(ATP!A48=0,"",ATP!A48) -> 46 | D115: =IF(+ATP!B48=0,"",+ATP!B48) -> Marin Cilic | G115: Marin Cilic | H115: Marin | I115: M | J115: . | K115: Cilic | L115: CILIC | M115: CILIC M. | N115: ANNIE FERNANDEZ L. | O115: 46 | P115: =IF(+'Elaborazione WTA'!A47=0,"",+'Elaborazione WTA'!A47) -> Leylah Annie Fernandez | Q115: Leylah Annie Fernandez | R115: Leylah | S115: L | T115: . | U115: Annie Fernandez | V115: ANNIE FERNANDEZ | W115: ANNIE FERNANDEZ L.
A116: MEDVEDEV D. | C116: =IF(ATP!A49=0,"",ATP!A49) -> 47 | D116: =IF(+ATP!B49=0,"",+ATP!B49) -> Daniil Medvedev | G116: Daniil Medvedev | H116: Daniil | I116: D | J116: . | K116: Medvedev | L116: MEDVEDEV | M116: MEDVEDEV D. | N116: PAVLYUCHENKOVA A. | O116: 47 | P116: =IF(+'Elaborazione WTA'!A48=0,"",+'Elaborazione WTA'!A48) -> Anastasia Pavlyuchenkova | Q116: Anastasia Pavlyuchenkova | R116: Anastasia | S116: A | T116: . | U116: Pavlyuchenkova | V116: PAVLYUCHENKOVA | W116: PAVLYUCHENKOVA A.
A117: BALCELLS J. | C117: =IF(ATP!A50=0,"",ATP!A50) -> 48 | D117: =IF(+ATP!B50=0,"",+ATP!B50) -> Juan Balcells | G117: Juan Balcells | H117: Juan | I117: J | J117: . | K117: Balcells | L117: BALCELLS | M117: BALCELLS J. | N117: RUS A. | O117: 48 | P117: =IF(+'Elaborazione WTA'!A49=0,"",+'Elaborazione WTA'!A49) -> Arantxa Rus | Q117: Arantxa Rus | R117: Arantxa | S117: A | T117: . | U117: Rus | V117: RUS | W117: RUS A.
A118: AGASSI A. | C118: =IF(ATP!A51=0,"",ATP!A51) -> 49 | D118: =IF(+ATP!B51=0,"",+ATP!B51) -> Andre Agassi | G118: Andre Agassi | H118: Andre | I118: A | J118: . | K118: Agassi | L118: AGASSI | M118: AGASSI A. | N118: WEI HSIEH S. | O118: 49 | P118: =IF(+'Elaborazione WTA'!A50=0,"",+'Elaborazione WTA'!A50) -> Su Wei Hsieh | Q118: Su Wei Hsieh | R118: Su | S118: S | T118: . | U118: Wei Hsieh | V118: WEI HSIEH | W118: WEI HSIEH S.
A119: ZVEREV A. | C119: =IF(ATP!A52=0,"",ATP!A52) -> 50 | D119: =IF(+ATP!B52=0,"",+ATP!B52) -> Alexander Zverev | G119: Alexander Zverev | H119: Alexander | I119: A | J119: . | K119: Zverev | L119: ZVEREV | M119: ZVEREV A. | N119: BOUZKOVA M. | O119: 50 | P119: =IF(+'Elaborazione WTA'!A51=0,"",+'Elaborazione WTA'!A51) -> Marie Bouzkova | Q119: Marie Bouzkova | R119: Marie | S119: M | T119: . | U119: Bouzkova | V119: BOUZKOVA | W119: BOUZKOVA M.
A120: AUGER-ALIASSIME F. | C120: =IF(ATP!A53=0,"",ATP!A53) -> 51 | D120: =IF(+ATP!B53=0,"",+ATP!B53) -> Felix Auger-Aliassime | G120: Felix Auger-Aliassime | H120: Felix | I120: F | J120: . | K120: Auger-Aliassime | L120: AUGER-ALIASSIME | M120: AUGER-ALIASSIME F. | N120: PAOLINI J. | O120: 51 | P120: =IF(+'Elaborazione WTA'!A52=0,"",+'Elaborazione WTA'!A52) -> Jasmine Paolini | Q120: Jasmine Paolini | R120: Jasmine | S120: J | T120: . | U120: Paolini | V120: PAOLINI | W120: PAOLINI J.
A121: JOHNSON S. | C121: =IF(ATP!A54=0,"",ATP!A54) -> 52 | D121: =IF(+ATP!B54=0,"",+ATP!B54) -> Steve Johnson | G121: Steve Johnson | H121: Steve | I121: S | J121: . | K121: Johnson | L121: JOHNSON | M121: JOHNSON S. | N121: SIEGEMUND L. | O121: 52 | P121: =IF(+'Elaborazione WTA'!A53=0,"",+'Elaborazione WTA'!A53) -> Laura Siegemund | Q121: Laura Siegemund | R121: Laura | S121: L | T121: . | U121: Siegemund | V121: SIEGEMUND | W121: SIEGEMUND L.
A122: VERKERK M. | C122: =IF(ATP!A55=0,"",ATP!A55) -> 53 | D122: =IF(+ATP!B55=0,"",+ATP!B55) -> Martin Verkerk | G122: Martin Verkerk | H122: Martin | I122: M | J122: . | K122: Verkerk | L122: VERKERK | M122: VERKERK M. | N122: ZIDANSEK T. | O122: 53 | P122: =IF(+'Elaborazione WTA'!A54=0,"",+'Elaborazione WTA'!A54) -> Tamara Zidansek | Q122: Tamara Zidansek | R122: Tamara | S122: T | T122: . | U122: Zidansek | V122: ZIDANSEK | W122: ZIDANSEK T.
A123: HARRIS L. | C123: =IF(ATP!A56=0,"",ATP!A56) -> 54 | D123: =IF(+ATP!B56=0,"",+ATP!B56) -> Lloyd Harris | G123: Lloyd Harris | H123: Lloyd | I123: L | J123: . | K123: Harris | L123: HARRIS | M123: HARRIS L. | N123: KENIN S. | O123: 54 | P123: =IF(+'Elaborazione WTA'!A55=0,"",+'Elaborazione WTA'!A55) -> Sofia Kenin | Q123: Sofia Kenin | R123: Sofia | S123: S | T123: . | U123: Kenin | V123: KENIN | W123: KENIN S.
A124: KHACHANOV K. | C124: =IF(ATP!A57=0,"",ATP!A57) -> 55 | D124: =IF(+ATP!B57=0,"",+ATP!B57) -> Karen Khachanov | G124: Karen Khachanov | H124: Karen | I124: K | J124: . | K124: Khachanov | L124: KHACHANOV | M124: KHACHANOV K. | N124: KERBER A. | O124: 55 | P124: =IF(+'Elaborazione WTA'!A56=0,"",+'Elaborazione WTA'!A56) -> Angelique Kerber | Q124: Angelique Kerber | R124: Angelique | S124: A | T124: . | U124: Kerber | V124: KERBER | W124: KERBER A.
A125: ALMAGRO N. | C125: =IF(ATP!A58=0,"",ATP!A58) -> 56 | D125: =IF(+ATP!B58=0,"",+ATP!B58) -> Nicolas Almagro | G125: Nicolas Almagro | H125: Nicolas | I125: N | J125: . | K125: Almagro | L125: ALMAGRO | M125: ALMAGRO N. | N125: FERRO F. | O125: 56 | P125: =IF(+'Elaborazione WTA'!A57=0,"",+'Elaborazione WTA'!A57) -> Fiona Ferro | Q125: Fiona Ferro | R125: Fiona | S125: F | T125: . | U125: Ferro | V125: FERRO | W125: FERRO F.
A126: FRITZ T. | C126: =IF(ATP!A59=0,"",ATP!A59) -> 57 | D126: =IF(+ATP!B59=0,"",+ATP!B59) -> Taylor Fritz | G126: Taylor Fritz | H126: Taylor | I126: T | J126: . | K126: Fritz | L126: FRITZ | M126: FRITZ T. | N126: TREVISAN M. | O126: 57 | P126: =IF(+'Elaborazione WTA'!A58=0,"",+'Elaborazione WTA'!A58) -> Martina Trevisan | Q126: Martina Trevisan | R126: Martina | S126: M | T126: . | U126: Trevisan | V126: TREVISAN | W126: TREVISAN M.
A127: SONEGO L. | C127: =IF(ATP!A60=0,"",ATP!A60) -> 58 | D127: =IF(+ATP!B60=0,"",+ATP!B60) -> Lorenzo Sonego | G127: Lorenzo Sonego | H127: Lorenzo | I127: L | J127: . | K127: Sonego | L127: SONEGO | M127: SONEGO L. | N127: SINIAKOVA K. | O127: 58 | P127: =IF(+'Elaborazione WTA'!A59=0,"",+'Elaborazione WTA'!A59) -> Katerina Siniakova | Q127: Katerina Siniakova | R127: Katerina | S127: K | T127: . | U127: Siniakova | V127: SINIAKOVA | W127: SINIAKOVA K.
A128: TOMIC B. | C128: =IF(ATP!A61=0,"",ATP!A61) -> 59 | D128: =IF(+ATP!B61=0,"",+ATP!B61) -> Bernard Tomic | G128: Bernard Tomic | H128: Bernard | I128: B | J128: . | K128: Tomic | L128: TOMIC | M128: TOMIC B. | N128: SORRIBES TORMO S. | O128: 59 | P128: =IF(+'Elaborazione WTA'!A60=0,"",+'Elaborazione WTA'!A60) -> Sara Sorribes Tormo | Q128: Sara Sorribes Tormo | R128: Sara | S128: S | T128: . | U128: Sorribes Tormo | V128: SORRIBES TORMO | W128: SORRIBES TORMO S.
A129: COPIL M. | C129: =IF(ATP!A62=0,"",ATP!A62) -> 60 | D129: =IF(+ATP!B62=0,"",+ATP!B62) -> Marius Copil | G129: Marius Copil | H129: Marius | I129: M | J129: . | K129: Copil | L129: COPIL | M129: COPIL M. | N129: MARIA BARA I. | O129: 60 | P129: =IF(+'Elaborazione WTA'!A61=0,"",+'Elaborazione WTA'!A61) -> Irina Maria Bara | Q129: Irina Maria Bara | R129: Irina | S129: I | T129: . | U129: Maria Bara | V129: MARIA BARA | W129: MARIA BARA I.
A130: DIMITROV G. | C130: =IF(ATP!A63=0,"",ATP!A63) -> 61 | D130: =IF(+ATP!B63=0,"",+ATP!B63) -> Grigor Dimitrov | G130: Grigor Dimitrov | H130: Grigor | I130: G | J130: . | K130: Dimitrov | L130: DIMITROV | M130: DIMITROV G. | N130: ERRANI S. | O130: 61 | P130: =IF(+'Elaborazione WTA'!A62=0,"",+'Elaborazione WTA'!A62) -> Sara Errani | Q130: Sara Errani | R130: Sara | S130: S | T130: . | U130: Errani | V130: ERRANI | W130: ERRANI S.
A131: HUMBERT U. | C131: =IF(ATP!A64=0,"",ATP!A64) -> 62 | D131: =IF(+ATP!B64=0,"",+ATP!B64) -> Ugo Humbert | G131: Ugo Humbert | H131: Ugo | I131: U | J131: . | K131: Humbert | L131: HUMBERT | M131: HUMBERT U. | O131: 62 | P131: =IF(+'Elaborazione WTA'!A63=0,"",+'Elaborazione WTA'!A63) ->  | T131: .
A132: WESSELS P. | C132: =IF(ATP!A65=0,"",ATP!A65) -> 63 | D132: =IF(+ATP!B65=0,"",+ATP!B65) -> Peter Wessels | G132: Peter Wessels | H132: Peter | I132: P | J132: . | K132: Wessels | L132: WESSELS | M132: WESSELS P. | O132: 63 | P132: =IF(+'Elaborazione WTA'!A64=0,"",+'Elaborazione WTA'!A64) ->  | T132: .
A133: LARSSON M. | C133: =IF(ATP!A66=0,"",ATP!A66) -> 64 | D133: =IF(+ATP!B66=0,"",+ATP!B66) -> Magnus Larsson | G133: Magnus Larsson | H133: Magnus | I133: M | J133: . | K133: Larsson | L133: LARSSON | M133: LARSSON M. | O133: 64 | P133: =IF(+'Elaborazione WTA'!A65=0,"",+'Elaborazione WTA'!A65) ->  | T133: .
A134: =TRIM(M134) -> VESELY J. | C134: =IF(ATP!A67=0,"",ATP!A67) -> 65 | D134: =IF(+ATP!B67=0,"",+ATP!B67) -> Jiri Vesely | G134: Jiri Vesely | H134: Jiri | I134: J | J134: . | K134: Vesely | L134: VESELY | M134: =+L134&" "&I134&J134 -> VESELY J. | O134: 65 | P134: =IF(+'Elaborazione WTA'!A66=0,"",+'Elaborazione WTA'!A66) ->  | T134: .
A135: THIEM D. | C135: =IF(ATP!A68=0,"",ATP!A68) -> 66 | D135: =IF(+ATP!B68=0,"",+ATP!B68) -> Dominic Thiem | G135: =TRIM(D135) -> Dominic Thiem | H135: =LEFT(G135,FIND(" ",G135,1)-1) -> Dominic | I135: =LEFT(H135,1) -> D | J135: . | K135: =SUBSTITUTE(G135,H135,"") -> Thiem | L135: =UPPER(K135) -> THIEM | M135: THIEM D. | N135: =+W135 ->  | O135: 66 | P135: =IF(+'Elaborazione WTA'!A67=0,"",+'Elaborazione WTA'!A67) ->  | Q135: =TRIM(P135) ->  | R135: =LEFT(Q135,FIND(" ",Q135,1)-1) ->  | S135: =LEFT(R135,1) ->  | T135: . | U135: =SUBSTITUTE(Q135,R135,"") ->  | V135: =UPPER(U135) ->  | W135: =+V135&" "&S135&T135 -> 
A136: SHAPOVALOV D. | C136: =IF(ATP!A69=0,"",ATP!A69) -> 67 | D136: =IF(+ATP!B69=0,"",+ATP!B69) -> Denis Shapovalov | G136: Denis Shapovalov | H136: Denis | I136: D | J136: . | K136: Shapovalov | L136: SHAPOVALOV | M136: SHAPOVALOV D. | O136: 67 | P136: =IF(+'Elaborazione WTA'!A68=0,"",+'Elaborazione WTA'!A68) ->  | T136: .
A137: SUZUKI T. | C137: =IF(ATP!A70=0,"",ATP!A70) -> 68 | D137: =IF(+ATP!B70=0,"",+ATP!B70) -> Takao Suzuki | G137: Takao Suzuki | H137: Takao | I137: T | J137: . | K137: Suzuki | L137: SUZUKI | M137: SUZUKI T. | O137: 68 | P137: =IF(+'Elaborazione WTA'!A69=0,"",+'Elaborazione WTA'!A69) ->  | T137: .
A138: POSPISIL V. | C138: =IF(ATP!A71=0,"",ATP!A71) -> 69 | D138: =IF(+ATP!B71=0,"",+ATP!B71) -> Vasek Pospisil | G138: Vasek Pospisil | H138: Vasek | I138: V | J138: . | K138: Pospisil | L138: POSPISIL | M138: POSPISIL V. | O138: 69 | P138: =IF(+'Elaborazione WTA'!A70=0,"",+'Elaborazione WTA'!A70) ->  | T138: .
A139: WAWRINKA S. | C139: =IF(ATP!A72=0,"",ATP!A72) -> 70 | D139: =IF(+ATP!B72=0,"",+ATP!B72) -> Stan Wawrinka | G139: Stan Wawrinka | H139: Stan | I139: S | J139: . | K139: Wawrinka | L139: WAWRINKA | M139: WAWRINKA S. | O139: 70 | P139: =IF(+'Elaborazione WTA'!A71=0,"",+'Elaborazione WTA'!A71) ->  | T139: .
A140: MATSUOKA S. | C140: =IF(ATP!A73=0,"",ATP!A73) -> 71 | D140: =IF(+ATP!B73=0,"",+ATP!B73) -> Shuzo Matsuoka | G140: Shuzo Matsuoka | H140: Shuzo | I140: S | J140: . | K140: Matsuoka | L140: MATSUOKA | M140: MATSUOKA S. | O140: 71 | P140: =IF(+'Elaborazione WTA'!A72=0,"",+'Elaborazione WTA'!A72) ->  | T140: .
A141: MASUR W. | C141: =IF(ATP!A74=0,"",ATP!A74) -> 72 | D141: =IF(+ATP!B74=0,"",+ATP!B74) -> Wally Masur | G141: Wally Masur | H141: Wally | I141: W | J141: . | K141: Masur | L141: MASUR | M141: MASUR W. | O141: 72 | P141: =IF(+'Elaborazione WTA'!A73=0,"",+'Elaborazione WTA'!A73) ->  | T141: .
A142: LLODRA M. | C142: =IF(ATP!A75=0,"",ATP!A75) -> 73 | D142: =IF(+ATP!B75=0,"",+ATP!B75) -> Michael Llodra | G142: Michael Llodra | H142: Michael | I142: M | J142: . | K142: Llodra | L142: LLODRA | M142: LLODRA M. | O142: 73 | P142: =IF(+'Elaborazione WTA'!A74=0,"",+'Elaborazione WTA'!A74) ->  | T142: .
A143: JANOWICZ J. | C143: =IF(ATP!A76=0,"",ATP!A76) -> 74 | D143: =IF(+ATP!B76=0,"",+ATP!B76) -> Jerzy Janowicz | G143: Jerzy Janowicz | H143: Jerzy | I143: J | J143: . | K143: Janowicz | L143: JANOWICZ | M143: JANOWICZ J. | O143: 74 | P143: =IF(+'Elaborazione WTA'!A75=0,"",+'Elaborazione WTA'!A75) ->  | T143: .
A144: GONZALEZ F. | C144: =IF(ATP!A77=0,"",ATP!A77) -> 75 | D144: =IF(+ATP!B77=0,"",+ATP!B77) -> Fernando Gonzalez | G144: Fernando Gonzalez | H144: Fernando | I144: F | J144: . | K144: Gonzalez | L144: GONZALEZ | M144: GONZALEZ F. | O144: 75 | P144: =IF(+'Elaborazione WTA'!A76=0,"",+'Elaborazione WTA'!A76) ->  | T144: .
A145: KOKKINAKIS T. | C145: =IF(ATP!A78=0,"",ATP!A78) -> 76 | D145: =IF(+ATP!B78=0,"",+ATP!B78) -> Thanasi Kokkinakis | G145: Thanasi Kokkinakis | H145: Thanasi | I145: T | J145: . | K145: Kokkinakis | L145: KOKKINAKIS | M145: KOKKINAKIS T. | O145: 76 | P145: =IF(+'Elaborazione WTA'!A77=0,"",+'Elaborazione WTA'!A77) ->  | T145: .
A146: STARK J. | C146: =IF(ATP!A79=0,"",ATP!A79) -> 77 | D146: =IF(+ATP!B79=0,"",+ATP!B79) -> Jonathan Stark | G146: Jonathan Stark | H146: Jonathan | I146: J | J146: . | K146: Stark | L146: STARK | M146: STARK J. | O146: 77 | P146: =IF(+'Elaborazione WTA'!A78=0,"",+'Elaborazione WTA'!A78) ->  | T146: .
A147: WASKE A. | C147: =IF(ATP!A80=0,"",ATP!A80) -> 78 | D147: =IF(+ATP!B80=0,"",+ATP!B80) -> Alexander Waske | G147: Alexander Waske | H147: Alexander | I147: A | J147: . | K147: Waske | L147: WASKE | M147: WASKE A. | O147: 78 | P147: =IF(+'Elaborazione WTA'!A79=0,"",+'Elaborazione WTA'!A79) ->  | T147: .
A148: DE SCHEPPER K. | C148: =IF(ATP!A81=0,"",ATP!A81) -> 79 | D148: =IF(+ATP!B81=0,"",+ATP!B81) -> Kenny De Schepper | G148: Kenny De Schepper | H148: Kenny | I148: K | J148: . | K148: De Schepper | L148: DE SCHEPPER | M148: DE SCHEPPER K. | O148: 79 | P148: =IF(+'Elaborazione WTA'!A80=0,"",+'Elaborazione WTA'!A80) ->  | T148: .
A149: GASQUET R. | C149: =IF(ATP!A82=0,"",ATP!A82) -> 80 | D149: =IF(+ATP!B82=0,"",+ATP!B82) -> Richard Gasquet | G149: Richard Gasquet | H149: Richard | I149: R | J149: . | K149: Gasquet | L149: GASQUET | M149: GASQUET R. | O149: 80 | P149: =IF(+'Elaborazione WTA'!A81=0,"",+'Elaborazione WTA'!A81) ->  | T149: .
A150: FISH M. | C150: =IF(ATP!A83=0,"",ATP!A83) -> 81 | D150: =IF(+ATP!B83=0,"",+ATP!B83) -> Mardy Fish | G150: Mardy Fish | H150: Mardy | I150: M | J150: . | K150: Fish | L150: FISH | M150: FISH M. | O150: 81 | P150: =IF(+'Elaborazione WTA'!A82=0,"",+'Elaborazione WTA'!A82) ->  | T150: .
A151: ISTOMIN D. | C151: =IF(ATP!A84=0,"",ATP!A84) -> 82 | D151: =IF(+ATP!B84=0,"",+ATP!B84) -> Denis Istomin | G151: Denis Istomin | H151: Denis | I151: D | J151: . | K151: Istomin | L151: ISTOMIN | M151: ISTOMIN D. | O151: 82 | P151: =IF(+'Elaborazione WTA'!A83=0,"",+'Elaborazione WTA'!A83) ->  | T151: .
A152: MONTEIRO T. | C152: =IF(ATP!A85=0,"",ATP!A85) -> 83 | D152: =IF(+ATP!B85=0,"",+ATP!B85) -> Thiago Monteiro | G152: Thiago Monteiro | H152: Thiago | I152: T | J152: . | K152: Monteiro | L152: MONTEIRO | M152: MONTEIRO T. | O152: 83 | P152: =IF(+'Elaborazione WTA'!A84=0,"",+'Elaborazione WTA'!A84) ->  | T152: .
A153: CORIC B. | C153: =IF(ATP!A86=0,"",ATP!A86) -> 84 | D153: =IF(+ATP!B86=0,"",+ATP!B86) -> Borna Coric | G153: Borna Coric | H153: Borna | I153: B | J153: . | K153: Coric | L153: CORIC | M153: CORIC B. | O153: 84 | P153: =IF(+'Elaborazione WTA'!A85=0,"",+'Elaborazione WTA'!A85) ->  | T153: .
A154: KOHLSCHREIBER P. | C154: =IF(ATP!A87=0,"",ATP!A87) -> 85 | D154: =IF(+ATP!B87=0,"",+ATP!B87) -> Philipp Kohlschreiber | G154: Philipp Kohlschreiber | H154: Philipp | I154: P | J154: . | K154: Kohlschreiber | L154: KOHLSCHREIBER | M154: KOHLSCHREIBER P. | O154: 85 | P154: =IF(+'Elaborazione WTA'!A86=0,"",+'Elaborazione WTA'!A86) ->  | T154: .
A155: HANESCU V. | C155: =IF(ATP!A88=0,"",ATP!A88) -> 86 | D155: =IF(+ATP!B88=0,"",+ATP!B88) -> Victor Hanescu | G155: Victor Hanescu | H155: Victor | I155: V | J155: . | K155: Hanescu | L155: HANESCU | M155: HANESCU V. | O155: 86 | P155: =IF(+'Elaborazione WTA'!A87=0,"",+'Elaborazione WTA'!A87) ->  | T155: .
A156: SAFIN M. | C156: =IF(ATP!A89=0,"",ATP!A89) -> 87 | D156: =IF(+ATP!B89=0,"",+ATP!B89) -> Marat Safin | G156: Marat Safin | H156: Marat | I156: M | J156: . | K156: Safin | L156: SAFIN | M156: SAFIN M. | O156: 87 | P156: =IF(+'Elaborazione WTA'!A88=0,"",+'Elaborazione WTA'!A88) ->  | T156: .
A157: FRANA J. | C157: =IF(ATP!A90=0,"",ATP!A90) -> 88 | D157: =IF(+ATP!B90=0,"",+ATP!B90) -> Javier Frana | G157: Javier Frana | H157: Javier | I157: J | J157: . | K157: Frana | L157: FRANA | M157: FRANA J. | O157: 88 | P157: =IF(+'Elaborazione WTA'!A89=0,"",+'Elaborazione WTA'!A89) ->  | T157: .
A158: KUERTEN G. | C158: =IF(ATP!A91=0,"",ATP!A91) -> 89 | D158: =IF(+ATP!B91=0,"",+ATP!B91) -> Gustavo Kuerten | G158: Gustavo Kuerten | H158: Gustavo | I158: G | J158: . | K158: Kuerten | L158: KUERTEN | M158: KUERTEN G. | O158: 89 | P158: =IF(+'Elaborazione WTA'!A90=0,"",+'Elaborazione WTA'!A90) ->  | T158: .
A159: MAYER L. | C159: =IF(ATP!A92=0,"",ATP!A92) -> 90 | D159: =IF(+ATP!B92=0,"",+ATP!B92) -> Leonardo Mayer | G159: Leonardo Mayer | H159: Leonardo | I159: L | J159: . | K159: Mayer | L159: MAYER | M159: MAYER L. | O159: 90 | P159: =IF(+'Elaborazione WTA'!A91=0,"",+'Elaborazione WTA'!A91) ->  | T159: .
A160: RADULESCU A. | C160: =IF(ATP!A93=0,"",ATP!A93) -> 91 | D160: =IF(+ATP!B93=0,"",+ATP!B93) -> Alex Radulescu | G160: Alex Radulescu | H160: Alex | I160: A | J160: . | K160: Radulescu | L160: RADULESCU | M160: RADULESCU A. | O160: 91 | P160: =IF(+'Elaborazione WTA'!A92=0,"",+'Elaborazione WTA'!A92) ->  | T160: .
A161: ZOECKE M. | C161: =IF(ATP!A94=0,"",ATP!A94) -> 92 | D161: =IF(+ATP!B94=0,"",+ATP!B94) -> Markus Zoecke | G161: Markus Zoecke | H161: Markus | I161: M | J161: . | K161: Zoecke | L161: ZOECKE | M161: ZOECKE M. | O161: 92 | P161: =IF(+'Elaborazione WTA'!A93=0,"",+'Elaborazione WTA'!A93) ->  | T161: .
A162: BAUTISTA AGUT R. | C162: =IF(ATP!A95=0,"",ATP!A95) -> 93 | D162: =IF(+ATP!B95=0,"",+ATP!B95) -> Roberto Bautista Agut | G162: Roberto Bautista Agut | H162: Roberto | I162: R | J162: . | K162: Bautista Agut | L162: BAUTISTA AGUT | M162: BAUTISTA AGUT R. | O162: 93 | P162: =IF(+'Elaborazione WTA'!A94=0,"",+'Elaborazione WTA'!A94) ->  | T162: .
A163: LENDL I. | C163: =IF(ATP!A96=0,"",ATP!A96) -> 94 | D163: =IF(+ATP!B96=0,"",+ATP!B96) -> Ivan Lendl | G163: Ivan Lendl | H163: Ivan | I163: I | J163: . | K163: Lendl | L163: LENDL | M163: LENDL I. | O163: 94 | P163: =IF(+'Elaborazione WTA'!A95=0,"",+'Elaborazione WTA'!A95) ->  | T163: .
A164: VERDASCO F. | C164: =IF(ATP!A97=0,"",ATP!A97) -> 95 | D164: =IF(+ATP!B97=0,"",+ATP!B97) -> Fernando Verdasco | G164: Fernando Verdasco | H164: Fernando | I164: F | J164: . | K164: Verdasco | L164: VERDASCO | M164: VERDASCO F. | O164: 95 | P164: =IF(+'Elaborazione WTA'!A96=0,"",+'Elaborazione WTA'!A96) ->  | T164: .
A165: ALCARAZ C. | C165: =IF(ATP!A98=0,"",ATP!A98) -> 96 | D165: =IF(+ATP!B98=0,"",+ATP!B98) -> Carlos Alcaraz | G165: Carlos Alcaraz | H165: Carlos | I165: C | J165: . | K165: Alcaraz | L165: ALCARAZ | M165: ALCARAZ C. | O165: 96 | P165: =IF(+'Elaborazione WTA'!A97=0,"",+'Elaborazione WTA'!A97) ->  | T165: .
A166: MURRAY A. | C166: =IF(ATP!A99=0,"",ATP!A99) -> 97 | D166: =IF(+ATP!B99=0,"",+ATP!B99) -> Andy Murray | G166: Andy Murray | H166: Andy | I166: A | J166: . | K166: Murray | L166: MURRAY | M166: MURRAY A. | O166: 97 | P166: =IF(+'Elaborazione WTA'!A98=0,"",+'Elaborazione WTA'!A98) ->  | T166: .
A167: MONFILS G. | C167: =IF(ATP!A100=0,"",ATP!A100) -> 98 | D167: =IF(+ATP!B100=0,"",+ATP!B100) -> Gael Monfils | G167: Gael Monfils | H167: Gael | I167: G | J167: . | K167: Monfils | L167: MONFILS | M167: MONFILS G. | O167: 98 | P167: =IF(+'Elaborazione WTA'!A99=0,"",+'Elaborazione WTA'!A99) ->  | T167: .
A168: GULBIS E. | C168: =IF(ATP!A101=0,"",ATP!A101) -> 99 | D168: =IF(+ATP!B101=0,"",+ATP!B101) -> Ernests Gulbis | G168: Ernests Gulbis | H168: Ernests | I168: E | J168: . | K168: Gulbis | L168: GULBIS | M168: GULBIS E. | O168: 99 | P168: =IF(+'Elaborazione WTA'!A100=0,"",+'Elaborazione WTA'!A100) ->  | T168: .
A169: BOLELLI S. | C169: =IF(ATP!A102=0,"",ATP!A102) -> 100 | D169: =IF(+ATP!B102=0,"",+ATP!B102) -> Simone Bolelli | G169: Simone Bolelli | H169: Simone | I169: S | J169: . | K169: Bolelli | L169: BOLELLI | M169: BOLELLI S. | O169: 100 | P169: =IF(+'Elaborazione WTA'!A101=0,"",+'Elaborazione WTA'!A101) ->  | T169: .
A170: POPYRIN A. | C170: =IF(ATP!A103=0,"",ATP!A103) -> 101 | D170: =IF(+ATP!B103=0,"",+ATP!B103) -> Alexei Popyrin | G170: Alexei Popyrin | H170: Alexei | I170: A | J170: . | K170: Popyrin | L170: POPYRIN | M170: POPYRIN A. | O170: 101 | P170: =IF(+'Elaborazione WTA'!A102=0,"",+'Elaborazione WTA'!A102) ->  | T170: .
A171: MAHUT N. | C171: =IF(ATP!A104=0,"",ATP!A104) -> 102 | D171: =IF(+ATP!B104=0,"",+ATP!B104) -> Nicolas Mahut | G171: Nicolas Mahut | H171: Nicolas | I171: N | J171: . | K171: Mahut | L171: MAHUT | M171: MAHUT N. | O171: 102 | P171: =IF(+'Elaborazione WTA'!A103=0,"",+'Elaborazione WTA'!A103) ->  | T171: .
A172: RUBLEV A. | C172: =IF(ATP!A105=0,"",ATP!A105) -> 103 | D172: =IF(+ATP!B105=0,"",+ATP!B105) -> Andrey Rublev | G172: Andrey Rublev | H172: Andrey | I172: A | J172: . | K172: Rublev | L172: RUBLEV | M172: RUBLEV A. | O172: 103 | P172: =IF(+'Elaborazione WTA'!A104=0,"",+'Elaborazione WTA'!A104) ->  | T172: .
A173: DELIC A. | C173: =IF(ATP!A106=0,"",ATP!A106) -> 104 | D173: =IF(+ATP!B106=0,"",+ATP!B106) -> Amer Delic | G173: Amer Delic | H173: Amer | I173: A | J173: . | K173: Delic | L173: DELIC | M173: DELIC A. | O173: 104 | P173: =IF(+'Elaborazione WTA'!A105=0,"",+'Elaborazione WTA'!A105) ->  | T173: .
A174: GAMBILL J. | C174: =IF(ATP!A107=0,"",ATP!A107) -> 105 | D174: =IF(+ATP!B107=0,"",+ATP!B107) -> Jan-Michael Gambill | G174: Jan-Michael Gambill | H174: Jan-Michael | I174: J | J174: . | K174: Gambill | L174: GAMBILL | M174: GAMBILL J. | O174: 105 | P174: =IF(+'Elaborazione WTA'!A106=0,"",+'Elaborazione WTA'!A106) ->  | T174: .
A175: GRIEKSPOOR T. | C175: =IF(ATP!A108=0,"",ATP!A108) -> 106 | D175: =IF(+ATP!B108=0,"",+ATP!B108) -> Tallon Griekspoor | G175: Tallon Griekspoor | H175: Tallon | I175: T | J175: . | K175: Griekspoor | L175: GRIEKSPOOR | M175: GRIEKSPOOR T. | O175: 106 | P175: =IF(+'Elaborazione WTA'!A107=0,"",+'Elaborazione WTA'!A107) ->  | T175: .
A176: SOCK J. | C176: =IF(ATP!A109=0,"",ATP!A109) -> 107 | D176: =IF(+ATP!B109=0,"",+ATP!B109) -> Jack Sock | G176: Jack Sock | H176: Jack | I176: J | J176: . | K176: Sock | L176: SOCK | M176: SOCK J. | O176: 107 | P176: =IF(+'Elaborazione WTA'!A108=0,"",+'Elaborazione WTA'!A108) ->  | T176: .
A177: STEPANEK R. | C177: =IF(ATP!A110=0,"",ATP!A110) -> 108 | D177: =IF(+ATP!B110=0,"",+ATP!B110) -> Radek Stepanek | G177: Radek Stepanek | H177: Radek | I177: R | J177: . | K177: Stepanek | L177: STEPANEK | M177: STEPANEK R. | O177: 108 | P177: =IF(+'Elaborazione WTA'!A109=0,"",+'Elaborazione WTA'!A109) ->  | T177: .
A178: CARLSEN K. | C178: =IF(ATP!A111=0,"",ATP!A111) -> 109 | D178: =IF(+ATP!B111=0,"",+ATP!B111) -> Kenneth Carlsen | G178: Kenneth Carlsen | H178: Kenneth | I178: K | J178: . | K178: Carlsen | L178: CARLSEN | M178: CARLSEN K. | O178: 109 | P178: =IF(+'Elaborazione WTA'!A110=0,"",+'Elaborazione WTA'!A110) ->  | T178: .
A179: EDMUND K. | C179: =IF(ATP!A112=0,"",ATP!A112) -> 110 | D179: =IF(+ATP!B112=0,"",+ATP!B112) -> Kyle Edmund | G179: Kyle Edmund | H179: Kyle | I179: K | J179: . | K179: Edmund | L179: EDMUND | M179: EDMUND K. | O179: 110 | P179: =IF(+'Elaborazione WTA'!A111=0,"",+'Elaborazione WTA'!A111) ->  | T179: .
A180: EL AYNAOUI Y. | C180: =IF(ATP!A113=0,"",ATP!A113) -> 111 | D180: =IF(+ATP!B113=0,"",+ATP!B113) -> Younes El Aynaoui | G180: Younes El Aynaoui | H180: Younes | I180: Y | J180: . | K180: El Aynaoui | L180: EL AYNAOUI | M180: EL AYNAOUI Y. | O180: 111 | P180: =IF(+'Elaborazione WTA'!A112=0,"",+'Elaborazione WTA'!A112) ->  | T180: .
A181: =TRIM(M181) -> HAAS T. | C181: =IF(ATP!A114=0,"",ATP!A114) -> 112 | D181: =IF(+ATP!B114=0,"",+ATP!B114) -> Tommy Haas | G181: =TRIM(D181) -> Tommy Haas | H181: =LEFT(G181,FIND(" ",G181,1)-1) -> Tommy | I181: =LEFT(H181,1) -> T | J181: . | K181: =SUBSTITUTE(G181,H181,"") -> Haas | L181: =UPPER(K181) -> HAAS | M181: =+L181&" "&I181&J181 -> HAAS T. | O181: 112 | P181: =IF(+'Elaborazione WTA'!A113=0,"",+'Elaborazione WTA'!A113) ->  | T181: .
A182: MARTERER M. | C182: =IF(ATP!A115=0,"",ATP!A115) -> 113 | D182: =IF(+ATP!B115=0,"",+ATP!B115) -> Maximilian Marterer | G182: Maximilian Marterer | H182: Maximilian | I182: M | J182: . | K182: Marterer | L182: MARTERER | M182: MARTERER M. | O182: 113 | P182: =IF(+'Elaborazione WTA'!A114=0,"",+'Elaborazione WTA'!A114) ->  | T182: .
A183: TIAFOE F. | C183: =IF(ATP!A116=0,"",ATP!A116) -> 114 | D183: =IF(+ATP!B116=0,"",+ATP!B116) -> Frances Tiafoe | G183: Frances Tiafoe | H183: Frances | I183: F | J183: . | K183: Tiafoe | L183: TIAFOE | M183: TIAFOE F. | O183: 114 | P183: =IF(+'Elaborazione WTA'!A115=0,"",+'Elaborazione WTA'!A115) ->  | T183: .
A184: CARLOS FERRERO J. | C184: =IF(ATP!A117=0,"",ATP!A117) -> 115 | D184: =IF(+ATP!B117=0,"",+ATP!B117) -> Juan Carlos Ferrero | G184: Juan Carlos Ferrero | H184: Juan | I184: J | J184: . | K184: Carlos Ferrero | L184: CARLOS FERRERO | M184: CARLOS FERRERO J. | O184: 115 | P184: =IF(+'Elaborazione WTA'!A116=0,"",+'Elaborazione WTA'!A116) ->  | T184: .
A185: BRYAN B. | C185: =IF(ATP!A118=0,"",ATP!A118) -> 116 | D185: =IF(+ATP!B118=0,"",+ATP!B118) -> Bob Bryan | G185: Bob Bryan | H185: Bob | I185: B | J185: . | K185: Bryan | L185: BRYAN | M185: BRYAN B. | O185: 116 | P185: =IF(+'Elaborazione WTA'!A117=0,"",+'Elaborazione WTA'!A117) ->  | T185: .
A186: HERBERT P. | C186: =IF(ATP!A119=0,"",ATP!A119) -> 117 | D186: =IF(+ATP!B119=0,"",+ATP!B119) -> Pierre-Hugues Herbert | G186: Pierre-Hugues Herbert | H186: Pierre-Hugues | I186: P | J186: . | K186: Herbert | L186: HERBERT | M186: HERBERT P. | O186: 117 | P186: =IF(+'Elaborazione WTA'!A118=0,"",+'Elaborazione WTA'!A118) ->  | T186: .
A187: EDBERG S. | C187: =IF(ATP!A120=0,"",ATP!A120) -> 118 | D187: =IF(+ATP!B120=0,"",+ATP!B120) -> Stefan Edberg | G187: Stefan Edberg | H187: Stefan | I187: S | J187: . | K187: Edberg | L187: EDBERG | M187: EDBERG S. | O187: 118 | P187: =IF(+'Elaborazione WTA'!A119=0,"",+'Elaborazione WTA'!A119) ->  | T187: .
A188: ROSSET M. | C188: =IF(ATP!A121=0,"",ATP!A121) -> 119 | D188: =IF(+ATP!B121=0,"",+ATP!B121) -> Marc Rosset | G188: Marc Rosset | H188: Marc | I188: M | J188: . | K188: Rosset | L188: ROSSET | M188: ROSSET M. | O188: 119 | P188: =IF(+'Elaborazione WTA'!A120=0,"",+'Elaborazione WTA'!A120) ->  | T188: .
A189: CHARDY J. | C189: =IF(ATP!A122=0,"",ATP!A122) -> 120 | D189: =IF(+ATP!B122=0,"",+ATP!B122) -> Jeremy Chardy | G189: Jeremy Chardy | H189: Jeremy | I189: J | J189: . | K189: Chardy | L189: CHARDY | M189: CHARDY J. | O189: 120 | P189: =IF(+'Elaborazione WTA'!A121=0,"",+'Elaborazione WTA'!A121) ->  | T189: .
A190: SINNER J. | C190: =IF(ATP!A123=0,"",ATP!A123) -> 121 | D190: =IF(+ATP!B123=0,"",+ATP!B123) -> Jannik Sinner | G190: Jannik Sinner | H190: Jannik | I190: J | J190: . | K190: Sinner | L190: SINNER | M190: SINNER J. | O190: 121 | P190: =IF(+'Elaborazione WTA'!A122=0,"",+'Elaborazione WTA'!A122) ->  | T190: .
A191: VAN DE ZANDSCHULP B. | C191: =IF(ATP!A124=0,"",ATP!A124) -> 122 | D191: =IF(+ATP!B124=0,"",+ATP!B124) -> Botic van de Zandschulp | G191: Botic van de Zandschulp | H191: Botic | I191: B | J191: . | K191: van de Zandschulp | L191: VAN DE ZANDSCHULP | M191: VAN DE ZANDSCHULP B. | O191: 122 | P191: =IF(+'Elaborazione WTA'!A123=0,"",+'Elaborazione WTA'!A123) ->  | T191: .
A192: DANCEVIC F. | C192: =IF(ATP!A125=0,"",ATP!A125) -> 123 | D192: =IF(+ATP!B125=0,"",+ATP!B125) -> Frank Dancevic | G192: Frank Dancevic | H192: Frank | I192: F | J192: . | K192: Dancevic | L192: DANCEVIC | M192: DANCEVIC F. | O192: 123 | P192: =IF(+'Elaborazione WTA'!A124=0,"",+'Elaborazione WTA'!A124) ->  | T192: .
A193: BROWN D. | C193: =IF(ATP!A126=0,"",ATP!A126) -> 124 | D193: =IF(+ATP!B126=0,"",+ATP!B126) -> Dustin Brown | G193: Dustin Brown | H193: Dustin | I193: D | J193: . | K193: Brown | L193: BROWN | M193: BROWN D. | O193: 124 | P193: =IF(+'Elaborazione WTA'!A125=0,"",+'Elaborazione WTA'!A125) ->  | T193: .
A194: HORNA L. | C194: =IF(ATP!A127=0,"",ATP!A127) -> 125 | D194: =IF(+ATP!B127=0,"",+ATP!B127) -> Luis Horna | G194: Luis Horna | H194: Luis | I194: L | J194: . | K194: Horna | L194: HORNA | M194: HORNA L. | O194: 125 | P194: =IF(+'Elaborazione WTA'!A126=0,"",+'Elaborazione WTA'!A126) ->  | T194: .
A195: DE BAKKER T. | C195: =IF(ATP!A128=0,"",ATP!A128) -> 126 | D195: =IF(+ATP!B128=0,"",+ATP!B128) -> Thiemo de Bakker | G195: Thiemo de Bakker | H195: Thiemo | I195: T | J195: . | K195: de Bakker | L195: DE BAKKER | M195: DE BAKKER T. | O195: 126 | P195: =IF(+'Elaborazione WTA'!A127=0,"",+'Elaborazione WTA'!A127) ->  | T195: .
A196: ELTINGH J. | C196: =IF(ATP!A129=0,"",ATP!A129) -> 127 | D196: =IF(+ATP!B129=0,"",+ATP!B129) -> Jacco Eltingh | G196: Jacco Eltingh | H196: Jacco | I196: J | J196: . | K196: Eltingh | L196: ELTINGH | M196: ELTINGH J. | O196: 127 | P196: =IF(+'Elaborazione WTA'!A128=0,"",+'Elaborazione WTA'!A128) ->  | T196: .
A197: CARRAZ G. | C197: =IF(ATP!A130=0,"",ATP!A130) -> 128 | D197: =IF(+ATP!B130=0,"",+ATP!B130) -> Gregory Carraz | G197: Gregory Carraz | H197: Gregory | I197: G | J197: . | K197: Carraz | L197: CARRAZ | M197: CARRAZ G. | O197: 128 | P197: =IF(+'Elaborazione WTA'!A129=0,"",+'Elaborazione WTA'!A129) ->  | T197: .
A198: SANDGREN T. | C198: =IF(ATP!A131=0,"",ATP!A131) -> 129 | D198: =IF(+ATP!B131=0,"",+ATP!B131) -> Tennys Sandgren | G198: Tennys Sandgren | H198: Tennys | I198: T | J198: . | K198: Sandgren | L198: SANDGREN | M198: SANDGREN T. | O198: 129 | P198: =IF(+'Elaborazione WTA'!A130=0,"",+'Elaborazione WTA'!A130) ->  | T198: .
A199: STRUFF J. | C199: =IF(ATP!A132=0,"",ATP!A132) -> 130 | D199: =IF(+ATP!B132=0,"",+ATP!B132) -> Jan-Lennard Struff | G199: Jan-Lennard Struff | H199: Jan-Lennard | I199: J | J199: . | K199: Struff | L199: STRUFF | M199: STRUFF J. | N199: =+W199 ->  | O199: 130 | P199: =IF(+'Elaborazione WTA'!A131=0,"",+'Elaborazione WTA'!A131) ->  | Q199: =TRIM(P199) ->  | R199: =LEFT(Q199,FIND(" ",Q199,1)-1) ->  | S199: =LEFT(R199,1) ->  | T199: . | U199: =SUBSTITUTE(Q199,R199,"") ->  | V199: =UPPER(U199) ->  | W199: =+V199&" "&S199&T199 -> 
A200: ZEBALLOS H. | C200: =IF(ATP!A133=0,"",ATP!A133) -> 131 | D200: =IF(+ATP!B133=0,"",+ATP!B133) -> Horacio Zeballos | G200: Horacio Zeballos | H200: Horacio | I200: H | J200: . | K200: Zeballos | L200: ZEBALLOS | M200: ZEBALLOS H. | O200: 131 | P200: =IF(+'Elaborazione WTA'!A132=0,"",+'Elaborazione WTA'!A132) ->  | T200: .
A201: ANDREEV I. | C201: =IF(ATP!A134=0,"",ATP!A134) -> 132 | D201: =IF(+ATP!B134=0,"",+ATP!B134) -> Igor Andreev | G201: Igor Andreev | H201: Igor | I201: I | J201: . | K201: Andreev | L201: ANDREEV | M201: ANDREEV I. | O201: 132 | P201: =IF(+'Elaborazione WTA'!A133=0,"",+'Elaborazione WTA'!A133) ->  | T201: .
A202: CARRENO BUSTA P. | C202: =IF(ATP!A135=0,"",ATP!A135) -> 133 | D202: =IF(+ATP!B135=0,"",+ATP!B135) -> Pablo Carreno Busta | G202: Pablo Carreno Busta | H202: Pablo | I202: P | J202: . | K202: Carreno Busta | L202: CARRENO BUSTA | M202: CARRENO BUSTA P. | O202: 133 | P202: =IF(+'Elaborazione WTA'!A134=0,"",+'Elaborazione WTA'!A134) ->  | T202: .
A203: GRABB J. | C203: =IF(ATP!A136=0,"",ATP!A136) -> 134 | D203: =IF(+ATP!B136=0,"",+ATP!B136) -> Jim Grabb | G203: Jim Grabb | H203: Jim | I203: J | J203: . | K203: Grabb | L203: GRABB | M203: GRABB J. | O203: 134 | P203: =IF(+'Elaborazione WTA'!A135=0,"",+'Elaborazione WTA'!A135) ->  | T203: .
A204: OTTE O. | C204: =IF(ATP!A137=0,"",ATP!A137) -> 135 | D204: =IF(+ATP!B137=0,"",+ATP!B137) -> Oscar Otte | G204: Oscar Otte | H204: Oscar | I204: O | J204: . | K204: Otte | L204: OTTE | M204: OTTE O. | O204: 135 | P204: =IF(+'Elaborazione WTA'!A136=0,"",+'Elaborazione WTA'!A136) ->  | T204: .
A205: BAEZ S. | C205: =IF(ATP!A138=0,"",ATP!A138) -> 136 | D205: =IF(+ATP!B138=0,"",+ATP!B138) -> Sebastian Baez | G205: Sebastian Baez | H205: Sebastian | I205: S | J205: . | K205: Baez | L205: BAEZ | M205: BAEZ S. | O205: 136 | P205: =IF(+'Elaborazione WTA'!A137=0,"",+'Elaborazione WTA'!A137) ->  | T205: .
A206: HENMAN T. | C206: =IF(ATP!A139=0,"",ATP!A139) -> 137 | D206: =IF(+ATP!B139=0,"",+ATP!B139) -> Tim Henman | G206: Tim Henman | H206: Tim | I206: T | J206: . | K206: Henman | L206: HENMAN | M206: HENMAN T. | O206: 137 | P206: =IF(+'Elaborazione WTA'!A138=0,"",+'Elaborazione WTA'!A138) ->  | T206: .
A207: =TRIM(M207) -> HALYS Q. | C207: =IF(ATP!A140=0,"",ATP!A140) -> 138 | D207: =IF(+ATP!B140=0,"",+ATP!B140) -> Quentin Halys | G207: =TRIM(D207) -> Quentin Halys | H207: =LEFT(G207,FIND(" ",G207,1)-1) -> Quentin | I207: =LEFT(H207,1) -> Q | J207: . | K207: =SUBSTITUTE(G207,H207,"") -> Halys | L207: =UPPER(K207) -> HALYS | M207: =+L207&" "&I207&J207 -> HALYS Q. | O207: 138 | P207: =IF(+'Elaborazione WTA'!A139=0,"",+'Elaborazione WTA'!A139) ->  | T207: .
A208: NAVARRO I. | C208: =IF(ATP!A141=0,"",ATP!A141) -> 139 | D208: =IF(+ATP!B141=0,"",+ATP!B141) -> Ivan Navarro | G208: Ivan Navarro | H208: Ivan | I208: I | J208: . | K208: Navarro | L208: NAVARRO | M208: NAVARRO I. | O208: 139 | P208: =IF(+'Elaborazione WTA'!A140=0,"",+'Elaborazione WTA'!A140) ->  | T208: .
A209: TIPSAREVIC J. | C209: =IF(ATP!A142=0,"",ATP!A142) -> 140 | D209: =IF(+ATP!B142=0,"",+ATP!B142) -> Janko Tipsarevic | G209: Janko Tipsarevic | H209: Janko | I209: J | J209: . | K209: Tipsarevic | L209: TIPSAREVIC | M209: TIPSAREVIC J. | O209: 140 | P209: =IF(+'Elaborazione WTA'!A141=0,"",+'Elaborazione WTA'!A141) ->  | T209: .
A210: MORGAN J. | C210: =IF(ATP!A143=0,"",ATP!A143) -> 141 | D210: =IF(+ATP!B143=0,"",+ATP!B143) -> Jamie Morgan | G210: Jamie Morgan | H210: Jamie | I210: J | J210: . | K210: Morgan | L210: MORGAN | M210: MORGAN J. | O210: 141 | P210: =IF(+'Elaborazione WTA'!A142=0,"",+'Elaborazione WTA'!A142) ->  | T210: .
A211: NORRIE C. | C211: =IF(ATP!A144=0,"",ATP!A144) -> 142 | D211: =IF(+ATP!B144=0,"",+ATP!B144) -> Cameron Norrie | G211: Cameron Norrie | H211: Cameron | I211: C | J211: . | K211: Norrie | L211: NORRIE | M211: NORRIE C. | O211: 142 | P211: =IF(+'Elaborazione WTA'!A143=0,"",+'Elaborazione WTA'!A143) ->  | T211: .
A212: SHELTON B. | C212: =IF(ATP!A145=0,"",ATP!A145) -> 143 | D212: =IF(+ATP!B145=0,"",+ATP!B145) -> Bryan Shelton | G212: Bryan Shelton | H212: Bryan | I212: B | J212: . | K212: Shelton | L212: SHELTON | M212: SHELTON B. | O212: 143 | P212: =IF(+'Elaborazione WTA'!A144=0,"",+'Elaborazione WTA'!A144) ->  | T212: .
... 1041 more rows

Sheet Elaborazioni Giocatore1 (hidden)
F1: 0-0 | G1: 1-0 | H1: 0-1 | I1: 2-0 | J1: 2-1 | K1: 0 : 2 | L1: 1-2 | M1: 3-0 | N1: 3-1 | O1: 3-2 | P1: 0-3 | Q1: 1-3 | R1: 2-3 | S1: VERIFICA DATI | T1: RISULTATI | V1: VINTO o | W1: RISULTATI | AB1: SET | AD1: PERCENTUALI GAME | AF1: PERCENTUALI SET | AH1: =+AI1 -> 0.5714285714 | AI1: =+I4 -> 0.5714285714 | AJ1: =+I1 -> 2-0 | AK1: 0-2
F2: 0 | G2: 0.04166666667 | H2: 0.0006944444444 | I2: 0.08333333333 | J2: 0.08402777778 | K2: 0.001388888889 | L2: 0.04305555556 | M2: 0.125 | N2: 0.1256944444 | O2: 0.1263888889 | P2: 0 : 3 | Q2: 0.04375 | R2: 0.08541666667 | S2: Ritiri N° | T2: DA GIRARE | V2: PERSO | W2: GIRATI | Z2: VINTE | AA2: PERSE | AB2: VINTI | AC2: PERSI | AD2: VINTI | AE2: PERSI | AF2: VINTI | AG2: PERSI | AH2: =+AI2+AF9 -> 0 | AI2: =+J4 -> 0 | AJ2: =+J1 -> 2-1 | AK2: =+L1 -> 1-2
A3: =+'Dati Giocatore1'!A2 -> 0 | B3: =+'Dati Giocatore1'!C2 -> 0 | F3: =COUNTIF(F28:F145,"V") -> 0 | G3: =COUNTIF(G28:G145,"V") -> 0 | H3: =COUNTIF(H28:H145,"V") -> 0 | I3: =COUNTIF(I28:I145,"V") -> 3 | J3: =COUNTIF(J28:J145,"V") -> 0 | K3: 1 | L3: 3 | M3: 0 | N3: 1 | O3: 0 | P3: 0 | Q3: 1 | R3: 0 | S3: =COUNTIF(S28:S700,"R") -> 1 | W3: =SUM(W28:W2038) -> 14 | X3: =SUM(X28:X2038) -> 11 | Y3: =+'Dati Giocatore1'!A22 -> ULTIMI INCONTRI: HALYS Q. | Z3: =COUNTIF(V28:V622,"V") -> 5 | AA3: =COUNTIF(V28:V622,"P") -> 4 | AB3: =+W3 -> 14 | AC3: =+X3 -> 11 | AD3: =IFERROR(+Z3/(Z3+AA3),"") -> 0.5555555556 | AE3: =IFERROR(+AA3/(Z3+AA3),"") -> 0.4444444444 | AF3: =IFERROR(+AB3/(AB3+AC3),"") -> 0.56 | AG3: =IFERROR(+AC3/(AB3+AC3),"") -> 0.44 | AH3: =+AI3 -> 0 | AI3: =+M4 -> 0 | AJ3: =+M1 -> 3-0 | AK3: =+P1 -> 0-3
A4: =+'Dati Giocatore1'!A3 -> 26.07.2021 05:40 | B4: =+'Dati Giocatore1'!C3 -> 24.06.2022 15:00 | I4: =IF(I3=0,0,+(I3+K3)/(I3+J3+K3+L3)) -> 0.5714285714 | J4: =IF(J3=0,0,+(J3+L3)/(I3+J3+K3+L3)) -> 0 | M4: =IF(M3=0,0,+(M3+P3)/(M3+N3+O3+P3+Q3+R3)) -> 0 | N4: =IF(N3=0,0,+((N3+Q3)/(M3+N3+O3+P3+Q3+R3))+0.0001) -> 1.0001 | O4: =IF(O3=0,0,+(O3+R3)/(M3+N3+O3+P3+Q3+R3)+0.0002) -> 0 | AH4: =+AI4 -> 1.0001 | AI4: =+N4 -> 1.0001 | AJ4: =+N1 -> 3-1 | AK4: =+Q1 -> 1-3
A5: =+'Dati Giocatore1'!A4 -> Giocatore | B5: =+'Dati Giocatore1'!C4 -> Rybakov A. | AH5: =+AF9+AI5 -> 0 | AI5: =+O4 -> 0 | AJ5: =+O1 -> 3-2 | AK5: =+R1 -> 2-3
A6: =+'Dati Giocatore1'!A5 -> 0 | B6: =+'Dati Giocatore1'!C5 -> Rybakov A. | Y6: Calcolo Tie break | Z6: =COUNTIF(AA28:AA146,"OK") -> 2 | AA6: =+AF3+AG4 -> 0.56 | AB6: =+AF4+AG3 -> 0.44 | AC6: =+AD3-AE4 -> 0.5555555556 | AD6: =+AD4-AE3 -> -0.4444444444 | AE6: =1-(AA6-AB6) -> 0.88 | AF6: =1-(+AC6-AD6) -> 0 | AG6: =+(Z6*3)/(AB3+AC3+AB4+AC4) -> 0.24
A7: =+'Dati Giocatore1'!A6 -> Tipologia di Ranking | B7: =+'Dati Giocatore1'!C6 -> ATP
A8: =+'Dati Giocatore1'!A7 -> Posizione | B8: =+'Dati Giocatore1'!C7 -> : 409. | AA8: =+AE6+AF6+AG6 -> 1.12 | AB8: =+AA8/3 -> 0.3733333333 | AD8: =+(AG6+AB8)/2 -> 0.3066666667
A9: =+'Dati Giocatore1'!A8 -> 0 | B9: =+'Dati Giocatore1'!C8 -> 2 | AA9: =+AA6/(AA6+AB6) -> 0.56 | AB9: =+AB6/(AA6+AB6) -> 0.44 | AD9: =+AA9-AB9 -> 0.12 | AF9: =IF(AND(AD9>5%,AD9<-5%),0.15,IF(AND(AD9<10%,AD9>-10%),0.1,0)) -> 0
A10: =+'Dati Giocatore1'!A9 -> 0 | B10: =+'Dati Giocatore1'!C9 -> -
A11: =+'Dati Giocatore1'!A10 -> Avversario | B11: =+'Dati Giocatore1'!C10 -> 0 | AA11: TRE SET | AB11: =IF(AA9>AB9,VLOOKUP(AC11,AH1:AK2,3,FALSE),VLOOKUP(AC11,AH1:AK2,4,FALSE)) -> 2-0 | AC11: =MAXA(AH1:AH2) -> 0.5714285714 | AD11: =IF(AA9>AB9,VLOOKUP(AE11,AH1:AK2,3,FALSE),VLOOKUP(AE11,AH1:AK2,4,FALSE)) -> 2-1 | AE11: =MINA(AH1:AH2) -> 0
A12: =+'Dati Giocatore1'!A11 -> 0 | B12: =+'Dati Giocatore1'!C11 -> Finale | AA12: CINQUE SET | AB12: =IF(AA9>AB9,VLOOKUP(AC12,AH3:AK6,3,FALSE),VLOOKUP(AC12,AH3:AK6,4,FALSE)) -> 3-1 | AC12: =MAXA(AH3:AH5) -> 1.0001 | AD12: =IF(AA9>AB9,VLOOKUP(AE12,AH3:AK5,3,FALSE),VLOOKUP(AE12,AH3:AK5,4,FALSE)) -> 3-0 | AE12: =LARGE(AH3:AH5,2) -> 0 | AF12: =IF(AA9>AB9,VLOOKUP(AG12,AH3:AK6,3,FALSE),VLOOKUP(AG12,AH3:AK6,4,FALSE)) -> 3-0 | AG12: =MINA(AH3:AH5) -> 0
A13: =+'Dati Giocatore1'!A12 -> Tipologia di Ranking | B13: =+'Dati Giocatore1'!C12 -> Vanneste J.
A14: =+'Dati Giocatore1'!A13 -> Posizione | B14: =+'Dati Giocatore1'!C13 -> Vanneste J. | AA14: =COUNTIF(AB26:AB650,1) -> 2 | AB14: =COUNTIF(AB26:AB650,0) -> 0 | AC14: =COUNTIF(S26:S650,"R") -> 1
A15: =+'Dati Giocatore1'!A14 -> 0 | B15: =+'Dati Giocatore1'!C14 -> ATP | AA15: Almeno un set | AB15: Neanche un set | AE15: Ultimo Ritiro
A16: =+'Dati Giocatore1'!A15 -> 0 | B16: =+'Dati Giocatore1'!C15 -> : 396. | AA16: =+AA14 -> 2 | AB16: =+AB14-AC14 -> -1 | AE16: =IFERROR(INDEX(AH27:AH1000,MATCH(TRUE,INDEX((AH27:AH1000<>""),0),0)),"Nessuno") -> 05.06.22
A17: =+'Dati Giocatore1'!A16 -> 0 | B17: =+'Dati Giocatore1'!C16 -> Partita
A18: =+'Dati Giocatore1'!A17 -> 0 | B18: =+'Dati Giocatore1'!C17 -> Comparazione quote
A19: =+'Dati Giocatore1'!A18 -> 0 | B19: =+'Dati Giocatore1'!C18 -> Testa a Testa
A20: =+'Dati Giocatore1'!A19 -> 0 | B20: =+'Dati Giocatore1'!C19 -> Tabellone
A21: =+'Dati Giocatore1'!A20 -> 0 | B21: =+'Dati Giocatore1'!C20 -> Tutte le superfici | C21: =LEN(A23) -> 26 | I21: =IF(I1=D28,1,0) -> 0
A22: =+'Dati Giocatore1'!A21 -> 0 | B22: =+'Dati Giocatore1'!C21 -> Cemento | C22: =+C21-1 -> 25
A23: =+'Dati Giocatore1'!A22 -> ULTIMI INCONTRI: HALYS Q. | B23: =+'Dati Giocatore1'!C22 -> ULTIMI INCONTRI: HALYS Q. | C23: =LEFT(A23,+C22) -> ULTIMI INCONTRI: HALYS Q.
A24: Data | B24: =+'Dati Giocatore1'!C23 -> 13.07.22
A25: Torneo | B25: =+'Dati Giocatore1'!C24 -> NEW | AH25: =IF(AC25="P",B21,"") -> 
A26: Avversario 1 | B26: =+'Dati Giocatore1'!C25 -> Halys Q. | Y26: Differenza Set | Z26: Somma set | AH26: =IF(AC26="P",B22,"") -> 
A27: Avversario 2 | B27: =+'Dati Giocatore1'!C26 -> Duckworth J.
A28: Risultato 1 | B28: =TRIM(+'Dati Giocatore1'!C27) -> 1 | C28: =LEFT(B28,1) -> 1 | D28: =+B29 -> 2 | E28: =LEFT(D28,1) -> 2 | F28: =IF(AND(C28="0",E28="0"),"R","") ->  | G28: =IF(AND(C28="1",E28="0"),"V","") ->  | H28: =IF(AND(C28="0",E28="1"),"V","") ->  | I28: =IF(AND(C28="2",E28="0"),"V","") ->  | J28: =IF(AND(C28="2",E28="1"),"V","") ->  | K28: =IF(AND(C28="0",E28="2"),"V","") ->  | L28: =IF(AND(C28="1",E28="2"),"V","") -> V | M28: =IF(AND(C28="3",E28="0"),"V","") ->  | N28: =IF(AND(C28="3",E28="1"),"V","") ->  | O28: =IF(AND(C28="3",E28="2"),"V","") ->  | P28: =IF(AND(C28="0",E28="3"),"V","") ->  | Q28: =IF(AND(C28="1",E28="3"),"V","") ->  | R28: =IF(AND(C28="2",E28="3"),"V","") ->  | S28: =IF(B30=0,"",IF(OR(I28="V",J28="V",K28="V",L28="V",M28="V",N28="V",O28="V",P28="V",Q28="V",R28="V",G28="V",H28="V"),"V","R")) -> V | T28: =IF(F28="R",0,IF(I28="V",2,IF(J28="V",2,IF(K28="V",0,IF(L28="V",1,IF(M28="V",3,IF(N28="V",3,IF(O28="V",3,IF(P28="V",0,IF(Q28="V",1,IF(R28="V",2,IF(G28="V",1,IF(H28="V",0,))))))))))))) -> 1 | U28: =IF(S28="R",0,IF(I28="V",0,IF(J28="V",1,IF(K28="V",2,IF(L28="V",2,IF(M28="V",0,IF(N28="V",1,IF(O28="V",2,IF(P28="V",3,IF(Q28="V",3,IF(R28="V",3,IF(G28="V",0,IF(H28="V",1,""))))))))))))) -> 2 | V28: =IF(S28="R","R",C29) -> P | W28: =IF(S28="R",0,IF(V28="V",IF(T28>U28,T28,U28),IF(V28="P",IF(T28<U28,T28,U28),0))) -> 1 | X28: =IF(S28="R",0,IF(V28="V",IF(T28>U28,U28,T28),IF(V28="P",IF(T28<U28,U28,T28),0))) -> 2 | Y28: =IFERROR(+W28-X28,"") -> -1 | Z28: =IFERROR(+W28+X28,"") -> 3 | AA28: =IF(OR(Y28=1,Y28=-1),IF(OR(Z28=5,Z28=3),"OK",""),"") -> OK | AB28: =IF(S28="","",IF(W28>0,1,0)) -> 1 | AC28: =IF(S28="R",B30,"") ->  | AE28: =IF(V28="V",10,IF(V28="R",-10,0)) -> 0 | AG28: =++AE28+AE35+AE42+AE49+AE56+AE63+AE70+AE77+AE84+AE91 -> 40
A29: Risultato 2 | B29: =TRIM(+'Dati Giocatore1'!C28) -> 2 | C29: =LEFT(B30,1) -> P | D29: =IF(C29="P","KO","OK") -> KO | W29: =IF(S29="R",0,IF(V29="V",IF(T29>U29,T29,U29),IF(V29="P",IF(T29<U29,T29,U29),0))) -> 0 | X29: 0
A30: Vinto o Perso | B30: =+'Dati Giocatore1'!C29 -> P | W30: 0 | X30: 0 | AG30: =IF(AG28<7,"Orribile",IF(AND(AG28<13,AG28>6),"Pessima",IF(AND(AG28<19,AG28>12),"Scarsa",IF(AND(AG28<25,AG28>18),"Insufficiente",IF(AND(AG28<31,AG28>24),"Sufficiente",IF(AND(AG28<37,AG28>30),"Discreta",IF(AND(AG28<43,AG28>36),"Buona",IF(AND(AG28<50,AG28>42),"Distinta",IF(AND(AG28<56,AG28>48),"Ottima","Ottima"))))))))) -> Buona
A31: Data | B31: =+'Dati Giocatore1'!C30 -> 12.07.22 | W31: 0 | X31: 0
A32: Torneo | B32: =+'Dati Giocatore1'!C31 -> NEW | W32: 0 | X32: 0
A33: Avversario 1 | B33: =+'Dati Giocatore1'!C32 -> Halys Q. | W33: 0 | X33: 0
A34: Avversario 2 | B34: =+'Dati Giocatore1'!C33 -> Popyrin Al. | G34: =IF(AND(C34="1",E34="0"),"V","") ->  | H34: =IF(AND(C34="0",E34="1"),"V","") ->  | I34: =IF(AND(C34="2",E34="0"),"V","") ->  | J34: =IF(AND(C34="2",E34="1"),"V","") ->  | K34: =IF(AND(C34="0",E34="2"),"V","") ->  | L34: =IF(AND(C34="1",E34="2"),"V","") ->  | M34: =IF(AND(C34="3",E34="0"),"V","") ->  | N34: =IF(AND(C34="3",E34="1"),"V","") ->  | O34: =IF(AND(C34="3",E34="2"),"V","") ->  | P34: =IF(AND(C34="0",E34="3"),"V","") ->  | Q34: =IF(AND(C34="1",E34="3"),"V","") ->  | R34: =IF(AND(C34="2",E34="3"),"V","") ->  | W34: =IF(S34="R",0,IF(V34="V",IF(T34>U34,T34,U34),IF(V34="P",IF(T34<U34,T34,U34),0))) -> 0 | X34: =IF(S34="R",0,IF(V34="V",IF(T34>U34,U34,T34),IF(V34="P",IF(T34<U34,U34,T34),0))) -> 0 | Y34: =IFERROR(+W34-X34,"") -> 0 | Z34: =IFERROR(+W34+X34,"") -> 0 | AA34: =IF(OR(Y34=1,Y34=-1),IF(OR(Z34=5,Z34=3),"OK",""),"") ->  | AB34: =IF(S34="","",IF(W34>0,1,0)) ->  | AE34: =+AE35 -> 10
A35: Risultato 1 | B35: =TRIM(+'Dati Giocatore1'!C34) -> 2 | C35: =LEFT(B35,1) -> 2 | D35: =+B36 -> 0 | E35: =LEFT(D35,1) -> 0 | F35: =IF(AND(C35="0",E35="0"),"R","") ->  | G35: =IF(AND(C35="1",E35="0"),"V","") ->  | H35: =IF(AND(C35="0",E35="1"),"V","") ->  | I35: =IF(AND(C35="2",E35="0"),"V","") -> V | J35: =IF(AND(C35="2",E35="1"),"V","") ->  | K35: =IF(AND(C35="0",E35="2"),"V","") ->  | L35: =IF(AND(C35="1",E35="2"),"V","") ->  | M35: =IF(AND(C35="3",E35="0"),"V","") ->  | N35: =IF(AND(C35="3",E35="1"),"V","") ->  | O35: =IF(AND(C35="3",E35="2"),"V","") ->  | P35: =IF(AND(C35="0",E35="3"),"V","") ->  | Q35: =IF(AND(C35="1",E35="3"),"V","") ->  | R35: =IF(AND(C35="2",E35="3"),"V","") ->  | S35: =IF(B36=0,"",IF(OR(I35="V",J35="V",K35="V",L35="V",M35="V",N35="V",O35="V",P35="V",Q35="V",R35="V",G35="V",H35="V"),"V","R")) -> V | T35: =IF(F35="R",0,IF(I35="V",2,IF(J35="V",2,IF(K35="V",0,IF(L35="V",1,IF(M35="V",3,IF(N35="V",3,IF(O35="V",3,IF(P35="V",0,IF(Q35="V",1,IF(R35="V",2,IF(G35="V",1,IF(H35="V",0,))))))))))))) -> 2 | U35: =IF(S35="R",0,IF(I35="V",0,IF(J35="V",1,IF(K35="V",2,IF(L35="V",2,IF(M35="V",0,IF(N35="V",1,IF(O35="V",2,IF(P35="V",3,IF(Q35="V",3,IF(R35="V",3,IF(G35="V",0,IF(H35="V",1,""))))))))))))) -> 0 | V35: =IF(S35="R","R",C36) -> V | W35: 2 | X35: 0 | AE35: =IF(V35="V",10,IF(V35="R",-10,0)) -> 10
A36: Risultato 2 | B36: =+'Dati Giocatore1'!C35 -> 0 | C36: =LEFT(B37,1) -> V | D36: =IF(C36="P","KO","OK") -> OK | W36: 0 | X36: 0
A37: Vinto o Perso | B37: =+'Dati Giocatore1'!C36 -> V | W37: 0 | X37: 0
A38: Data | B38: =+'Dati Giocatore1'!C37 -> 29.06.22 | W38: 0 | X38: 0
A39: Torneo | B39: =+'Dati Giocatore1'!C38 -> WIM | W39: 0 | X39: 0
A40: Avversario 1 | B40: =+'Dati Giocatore1'!C39 -> Basilashvili N. | W40: 0 | X40: 0 | Y40: =IFERROR(+W40-X40,"") -> 0 | Z40: =IFERROR(+W40+X40,"") -> 0 | AA40: =IF(OR(Y40=1,Y40=-1),IF(OR(Z40=5,Z40=3),"OK",""),"") ->  | AB40: =IF(S40="","",IF(W40>0,1,0)) -> 
A41: Avversario 2 | B41: =+'Dati Giocatore1'!C40 -> Halys Q. | G41: =IF(AND(C41="1",E41="0"),"V","") ->  | H41: =IF(AND(C41="0",E41="1"),"V","") ->  | I41: =IF(AND(C41="2",E41="0"),"V","") ->  | J41: =IF(AND(C41="2",E41="1"),"V","") ->  | K41: =IF(AND(C41="0",E41="2"),"V","") ->  | L41: =IF(AND(C41="1",E41="2"),"V","") ->  | M41: =IF(AND(C41="3",E41="0"),"V","") ->  | N41: =IF(AND(C41="3",E41="1"),"V","") ->  | O41: =IF(AND(C41="3",E41="2"),"V","") ->  | P41: =IF(AND(C41="0",E41="3"),"V","") ->  | Q41: =IF(AND(C41="1",E41="3"),"V","") ->  | R41: =IF(AND(C41="2",E41="3"),"V","") ->  | W41: 0 | X41: 0 | AE41: =+AE42 -> 0
A42: Risultato 1 | B42: =+'Dati Giocatore1'!C41 -> 3 | C42: =LEFT(B42,1) -> 3 | D42: =+B43 -> 1 | E42: =LEFT(D42,1) -> 1 | F42: =IF(AND(C42="0",E42="0"),"R","") ->  | G42: =IF(AND(C42="1",E42="0"),"V","") ->  | H42: =IF(AND(C42="0",E42="1"),"V","") ->  | I42: =IF(AND(C42="2",E42="0"),"V","") ->  | J42: =IF(AND(C42="2",E42="1"),"V","") ->  | K42: =IF(AND(C42="0",E42="2"),"V","") ->  | L42: =IF(AND(C42="1",E42="2"),"V","") ->  | M42: =IF(AND(C42="3",E42="0"),"V","") ->  | N42: =IF(AND(C42="3",E42="1"),"V","") -> V | O42: =IF(AND(C42="3",E42="2"),"V","") ->  | P42: =IF(AND(C42="0",E42="3"),"V","") ->  | Q42: =IF(AND(C42="1",E42="3"),"V","") ->  | R42: =IF(AND(C42="2",E42="3"),"V","") ->  | S42: =IF(B43=0,"",IF(OR(I42="V",J42="V",K42="V",L42="V",M42="V",N42="V",O42="V",P42="V",Q42="V",R42="V",G42="V",H42="V"),"V","R")) -> V | T42: =IF(F42="R",0,IF(I42="V",2,IF(J42="V",2,IF(K42="V",0,IF(L42="V",1,IF(M42="V",3,IF(N42="V",3,IF(O42="V",3,IF(P42="V",0,IF(Q42="V",1,IF(R42="V",2,IF(G42="V",1,IF(H42="V",0,))))))))))))) -> 3 | U42: =IF(S42="R",0,IF(I42="V",0,IF(J42="V",1,IF(K42="V",2,IF(L42="V",2,IF(M42="V",0,IF(N42="V",1,IF(O42="V",2,IF(P42="V",3,IF(Q42="V",3,IF(R42="V",3,IF(G42="V",0,IF(H42="V",1,""))))))))))))) -> 1 | V42: =IF(S42="R","R",C43) -> P | W42: 1 | X42: 3 | AE42: =IF(V42="V",10,IF(V42="R",-10,0)) -> 0
A43: Risultato 2 | B43: =+'Dati Giocatore1'!C42 -> 1 | C43: =LEFT(B44,1) -> P | D43: =IF(C43="P","KO","OK") -> KO | W43: 0 | X43: 0
A44: Vinto o Perso | B44: =+'Dati Giocatore1'!C43 -> P | W44: 0 | X44: 0
A45: Data | B45: =+'Dati Giocatore1'!C44 -> 27.06.22 | W45: 0 | X45: 0
A46: Torneo | B46: =+'Dati Giocatore1'!C45 -> WIM | W46: 0 | X46: 0 | Y46: =IFERROR(+W46-X46,"") -> 0 | Z46: =IFERROR(+W46+X46,"") -> 0 | AA46: =IF(OR(Y46=1,Y46=-1),IF(OR(Z46=5,Z46=3),"OK",""),"") ->  | AB46: =IF(S46="","",IF(W46>0,1,0)) -> 
A47: Avversario 1 | B47: =+'Dati Giocatore1'!C46 -> Paire B. | W47: 0 | X47: 0
A48: Avversario 2 | B48: =+'Dati Giocatore1'!C47 -> Halys Q. | G48: =IF(AND(C48="1",E48="0"),"V","") ->  | H48: =IF(AND(C48="0",E48="1"),"V","") ->  | I48: =IF(AND(C48="2",E48="0"),"V","") ->  | J48: =IF(AND(C48="2",E48="1"),"V","") ->  | K48: =IF(AND(C48="0",E48="2"),"V","") ->  | L48: =IF(AND(C48="1",E48="2"),"V","") ->  | M48: =IF(AND(C48="3",E48="0"),"V","") ->  | N48: =IF(AND(C48="3",E48="1"),"V","") ->  | O48: =IF(AND(C48="3",E48="2"),"V","") ->  | P48: =IF(AND(C48="0",E48="3"),"V","") ->  | Q48: =IF(AND(C48="1",E48="3"),"V","") ->  | R48: =IF(AND(C48="2",E48="3"),"V","") ->  | W48: 0 | X48: 0 | AE48: =+AE49 -> 10
A49: Risultato 1 | B49: =+'Dati Giocatore1'!C48 -> 1 | C49: =LEFT(B49,1) -> 1 | D49: =+B50 -> 3 | E49: =LEFT(D49,1) -> 3 | F49: =IF(AND(C49="0",E49="0"),"R","") ->  | G49: =IF(AND(C49="1",E49="0"),"V","") ->  | H49: =IF(AND(C49="0",E49="1"),"V","") ->  | I49: =IF(AND(C49="2",E49="0"),"V","") ->  | J49: =IF(AND(C49="2",E49="1"),"V","") ->  | K49: =IF(AND(C49="0",E49="2"),"V","") ->  | L49: =IF(AND(C49="1",E49="2"),"V","") ->  | M49: =IF(AND(C49="3",E49="0"),"V","") ->  | N49: =IF(AND(C49="3",E49="1"),"V","") ->  | O49: =IF(AND(C49="3",E49="2"),"V","") ->  | P49: =IF(AND(C49="0",E49="3"),"V","") ->  | Q49: =IF(AND(C49="1",E49="3"),"V","") -> V | R49: =IF(AND(C49="2",E49="3"),"V","") ->  | S49: =IF(B50=0,"",IF(OR(I49="V",J49="V",K49="V",L49="V",M49="V",N49="V",O49="V",P49="V",Q49="V",R49="V",G49="V",H49="V"),"V","R")) -> V | T49: =IF(F49="R",0,IF(I49="V",2,IF(J49="V",2,IF(K49="V",0,IF(L49="V",1,IF(M49="V",3,IF(N49="V",3,IF(O49="V",3,IF(P49="V",0,IF(Q49="V",1,IF(R49="V",2,IF(G49="V",1,IF(H49="V",0,))))))))))))) -> 1 | U49: =IF(S49="R",0,IF(I49="V",0,IF(J49="V",1,IF(K49="V",2,IF(L49="V",2,IF(M49="V",0,IF(N49="V",1,IF(O49="V",2,IF(P49="V",3,IF(Q49="V",3,IF(R49="V",3,IF(G49="V",0,IF(H49="V",1,""))))))))))))) -> 3 | V49: =IF(S49="R","R",C50) -> V | W49: 3 | X49: 1 | AE49: =IF(V49="V",10,IF(V49="R",-10,0)) -> 10
A50: Risultato 2 | B50: =+'Dati Giocatore1'!C49 -> 3 | C50: =LEFT(B51,1) -> V | D50: =IF(C50="P","KO","OK") -> OK | W50: 0 | X50: 0
A51: Vinto o Perso | B51: =+'Dati Giocatore1'!C50 -> V | W51: 0 | X51: 0
A52: Data | B52: =+'Dati Giocatore1'!C51 -> 19.06.22 | W52: 0 | X52: 0 | Y52: =IFERROR(+W52-X52,"") -> 0 | Z52: =IFERROR(+W52+X52,"") -> 0 | AA52: =IF(OR(Y52=1,Y52=-1),IF(OR(Z52=5,Z52=3),"OK",""),"") ->  | AB52: =IF(S52="","",IF(W52>0,1,0)) -> 
A53: Torneo | B53: =+'Dati Giocatore1'!C52 -> MAL | W53: 0 | X53: 0
A54: Avversario 1 | B54: =+'Dati Giocatore1'!C53 -> Thompson J. | W54: 0 | X54: 0
A55: Avversario 2 | B55: =+'Dati Giocatore1'!C54 -> Halys Q. | G55: =IF(AND(C55="1",E55="0"),"V","") ->  | H55: =IF(AND(C55="0",E55="1"),"V","") ->  | I55: =IF(AND(C55="2",E55="0"),"V","") ->  | J55: =IF(AND(C55="2",E55="1"),"V","") ->  | K55: =IF(AND(C55="0",E55="2"),"V","") ->  | L55: =IF(AND(C55="1",E55="2"),"V","") ->  | M55: =IF(AND(C55="3",E55="0"),"V","") ->  | N55: =IF(AND(C55="3",E55="1"),"V","") ->  | O55: =IF(AND(C55="3",E55="2"),"V","") ->  | P55: =IF(AND(C55="0",E55="3"),"V","") ->  | Q55: =IF(AND(C55="1",E55="3"),"V","") ->  | R55: =IF(AND(C55="2",E55="3"),"V","") ->  | W55: 0 | X55: 0 | AE55: =+AE56 -> 0
A56: Risultato 1 | B56: =+'Dati Giocatore1'!C55 -> 2 | C56: =LEFT(B56,1) -> 2 | D56: =+B57 -> 0 | E56: =LEFT(D56,1) -> 0 | F56: =IF(AND(C56="0",E56="0"),"R","") ->  | I56: V | S56: =IF(B57=0,"",IF(OR(I56="V",J56="V",K56="V",L56="V",M56="V",N56="V",O56="V",P56="V",Q56="V",R56="V",G56="V",H56="V"),"V","R")) -> V | T56: =IF(F56="R",0,IF(I56="V",2,IF(J56="V",2,IF(K56="V",0,IF(L56="V",1,IF(M56="V",3,IF(N56="V",3,IF(O56="V",3,IF(P56="V",0,IF(Q56="V",1,IF(R56="V",2,IF(G56="V",1,IF(H56="V",0,))))))))))))) -> 2 | U56: =IF(S56="R",0,IF(I56="V",0,IF(J56="V",1,IF(K56="V",2,IF(L56="V",2,IF(M56="V",0,IF(N56="V",1,IF(O56="V",2,IF(P56="V",3,IF(Q56="V",3,IF(R56="V",3,IF(G56="V",0,IF(H56="V",1,""))))))))))))) -> 0 | V56: =IF(S56="R","R",C57) -> P | W56: 0 | X56: 2 | AE56: =IF(V56="V",10,IF(V56="R",-10,0)) -> 0
A57: Risultato 2 | B57: =+'Dati Giocatore1'!C56 -> 0 | C57: P | D57: =IF(C57="P","KO","OK") -> KO | W57: 0 | X57: 0
A58: Vinto o Perso | B58: =+'Dati Giocatore1'!C57 -> P | W58: 0 | X58: 0 | Y58: =IFERROR(+W58-X58,"") -> 0 | Z58: =IFERROR(+W58+X58,"") -> 0 | AA58: =IF(OR(Y58=1,Y58=-1),IF(OR(Z58=5,Z58=3),"OK",""),"") ->  | AB58: =IF(S58="","",IF(W58>0,1,0)) -> 
A59: Data | B59: =+'Dati Giocatore1'!C58 -> 18.06.22 | W59: 0 | X59: 0
A60: Torneo | B60: =+'Dati Giocatore1'!C59 -> MAL | W60: 0 | X60: 0
A61: Avversario 1 | B61: =+'Dati Giocatore1'!C60 -> Kuznetsov An. | W61: 0 | X61: 0
A62: Avversario 2 | B62: =+'Dati Giocatore1'!C61 -> Halys Q. | G62: =IF(AND(C62="1",E62="0"),"V","") ->  | H62: =IF(AND(C62="0",E62="1"),"V","") ->  | I62: =IF(AND(C62="2",E62="0"),"V","") ->  | J62: =IF(AND(C62="2",E62="1"),"V","") ->  | K62: =IF(AND(C62="0",E62="2"),"V","") ->  | L62: =IF(AND(C62="1",E62="2"),"V","") ->  | M62: =IF(AND(C62="3",E62="0"),"V","") ->  | N62: =IF(AND(C62="3",E62="1"),"V","") ->  | O62: =IF(AND(C62="3",E62="2"),"V","") ->  | P62: =IF(AND(C62="0",E62="3"),"V","") ->  | Q62: =IF(AND(C62="1",E62="3"),"V","") ->  | R62: =IF(AND(C62="2",E62="3"),"V","") ->  | W62: 0 | X62: 0 | AE62: =+AE63 -> 10
A63: Risultato 1 | B63: =+'Dati Giocatore1'!C62 -> 1 | C63: =LEFT(B63,1) -> 1 | D63: =+B64 -> 2 | E63: =LEFT(D63,1) -> 2 | F63: =IF(AND(C63="0",E63="0"),"R","") ->  | L63: V | S63: =IF(B64=0,"",IF(OR(I63="V",J63="V",K63="V",L63="V",M63="V",N63="V",O63="V",P63="V",Q63="V",R63="V",G63="V",H63="V"),"V","R")) -> V | T63: =IF(F63="R",0,IF(I63="V",2,IF(J63="V",2,IF(K63="V",0,IF(L63="V",1,IF(M63="V",3,IF(N63="V",3,IF(O63="V",3,IF(P63="V",0,IF(Q63="V",1,IF(R63="V",2,IF(G63="V",1,IF(H63="V",0,))))))))))))) -> 1 | U63: =IF(S63="R",0,IF(I63="V",0,IF(J63="V",1,IF(K63="V",2,IF(L63="V",2,IF(M63="V",0,IF(N63="V",1,IF(O63="V",2,IF(P63="V",3,IF(Q63="V",3,IF(R63="V",3,IF(G63="V",0,IF(H63="V",1,""))))))))))))) -> 2 | V63: =IF(S63="R","R",C64) -> V | W63: 2 | X63: 1 | AE63: =IF(V63="V",10,IF(V63="R",-10,0)) -> 10
A64: Risultato 2 | B64: =+'Dati Giocatore1'!C63 -> 2 | C64: =LEFT(B65,1) -> V | D64: =IF(C64="P","KO","OK") -> OK | W64: 0 | X64: 0 | Y64: =IFERROR(+W64-X64,"") -> 0 | Z64: =IFERROR(+W64+X64,"") -> 0 | AA64: =IF(OR(Y64=1,Y64=-1),IF(OR(Z64=5,Z64=3),"OK",""),"") ->  | AB64: =IF(S64="","",IF(W64>0,1,0)) -> 
A65: Vinto o Perso | B65: =+'Dati Giocatore1'!C64 -> V | W65: 0 | X65: 0
A66: Data | B66: =+'Dati Giocatore1'!C65 -> 14.06.22 | W66: 0 | X66: 0
A67: Torneo | B67: =+'Dati Giocatore1'!C66 -> LON | W67: 0 | X67: 0
A68: Avversario 1 | B68: =+'Dati Giocatore1'!C67 -> Halys Q. | W68: 0 | X68: 0
A69: Avversario 2 | B69: =+'Dati Giocatore1'!C68 -> Ruusuvuori E. | G69: =IF(AND(C69="1",E69="0"),"V","") ->  | H69: =IF(AND(C69="0",E69="1"),"V","") ->  | I69: =IF(AND(C69="2",E69="0"),"V","") ->  | J69: =IF(AND(C69="2",E69="1"),"V","") ->  | K69: =IF(AND(C69="0",E69="2"),"V","") ->  | L69: =IF(AND(C69="1",E69="2"),"V","") ->  | M69: =IF(AND(C69="3",E69="0"),"V","") ->  | N69: =IF(AND(C69="3",E69="1"),"V","") ->  | O69: =IF(AND(C69="3",E69="2"),"V","") ->  | P69: =IF(AND(C69="0",E69="3"),"V","") ->  | Q69: =IF(AND(C69="1",E69="3"),"V","") ->  | R69: =IF(AND(C69="2",E69="3"),"V","") ->  | W69: 0 | X69: 0 | AE69: =+AE70 -> 0
A70: Risultato 1 | B70: =+'Dati Giocatore1'!C69 -> 1 | C70: =LEFT(B70,1) -> 1 | D70: =+B71 -> 2 | E70: =LEFT(D70,1) -> 2 | F70: =IF(AND(C70="0",E70="0"),"R","") ->  | L70: V | S70: =IF(B71=0,"",IF(OR(I70="V",J70="V",K70="V",L70="V",M70="V",N70="V",O70="V",P70="V",Q70="V",R70="V",G70="V",H70="V"),"V","R")) -> V | T70: =IF(F70="R",0,IF(I70="V",2,IF(J70="V",2,IF(K70="V",0,IF(L70="V",1,IF(M70="V",3,IF(N70="V",3,IF(O70="V",3,IF(P70="V",0,IF(Q70="V",1,IF(R70="V",2,IF(G70="V",1,IF(H70="V",0,))))))))))))) -> 1 | U70: =IF(S70="R",0,IF(I70="V",0,IF(J70="V",1,IF(K70="V",2,IF(L70="V",2,IF(M70="V",0,IF(N70="V",1,IF(O70="V",2,IF(P70="V",3,IF(Q70="V",3,IF(R70="V",3,IF(G70="V",0,IF(H70="V",1,""))))))))))))) -> 2 | V70: =IF(S70="R","R",C71) -> P | W70: 1 | X70: 2 | Y70: =IFERROR(+W70-X70,"") -> -1 | Z70: =IFERROR(+W70+X70,"") -> 3 | AA70: =IF(OR(Y70=1,Y70=-1),IF(OR(Z70=5,Z70=3),"OK",""),"") -> OK | AB70: =IF(S70="","",IF(W70>0,1,0)) -> 1 | AE70: =IF(V70="V",10,IF(V70="R",-10,0)) -> 0
A71: Risultato 2 | B71: =+'Dati Giocatore1'!C70 -> 2 | C71: =LEFT(B72,1) -> P | D71: =IF(C71="P","KO","OK") -> KO | W71: 0 | X71: 0
A72: Vinto o Perso | B72: =+'Dati Giocatore1'!C71 -> P | W72: 0 | X72: 0
A73: Data | B73: =+'Dati Giocatore1'!C72 -> 12.06.22 | W73: 0 | X73: 0
A74: Torneo | B74: =+'Dati Giocatore1'!C73 -> LON | W74: 0 | X74: 0
A75: Avversario 1 | B75: =+'Dati Giocatore1'!C74 -> Kudla D. | W75: 0 | X75: 0
A76: Avversario 2 | B76: =+'Dati Giocatore1'!C75 -> Halys Q. | G76: =IF(AND(C76="1",E76="0"),"V","") ->  | H76: =IF(AND(C76="0",E76="1"),"V","") ->  | I76: =IF(AND(C76="2",E76="0"),"V","") ->  | J76: =IF(AND(C76="2",E76="1"),"V","") ->  | K76: =IF(AND(C76="0",E76="2"),"V","") ->  | L76: =IF(AND(C76="1",E76="2"),"V","") ->  | M76: =IF(AND(C76="3",E76="0"),"V","") ->  | N76: =IF(AND(C76="3",E76="1"),"V","") ->  | O76: =IF(AND(C76="3",E76="2"),"V","") ->  | P76: =IF(AND(C76="0",E76="3"),"V","") ->  | Q76: =IF(AND(C76="1",E76="3"),"V","") ->  | R76: =IF(AND(C76="2",E76="3"),"V","") ->  | W76: 0 | X76: 0 | Y76: =IFERROR(+W76-X76,"") -> 0 | Z76: =IFERROR(+W76+X76,"") -> 0 | AA76: =IF(OR(Y76=1,Y76=-1),IF(OR(Z76=5,Z76=3),"OK",""),"") ->  | AB76: =IF(S76="","",IF(W76>0,1,0)) ->  | AE76: =+AE77 -> 10
A77: Risultato 1 | B77: =+'Dati Giocatore1'!C76 -> 0 | C77: =LEFT(B77,1) -> 0 | D77: =+B78 -> 2 | E77: =LEFT(D77,1) -> 2 | F77: =IF(AND(C77="0",E77="0"),"R","") ->  | K77: V | S77: =IF(B78=0,"",IF(OR(I77="V",J77="V",K77="V",L77="V",M77="V",N77="V",O77="V",P77="V",Q77="V",R77="V",G77="V",H77="V"),"V","R")) -> V | T77: =IF(F77="R",0,IF(I77="V",2,IF(J77="V",2,IF(K77="V",0,IF(L77="V",1,IF(M77="V",3,IF(N77="V",3,IF(O77="V",3,IF(P77="V",0,IF(Q77="V",1,IF(R77="V",2,IF(G77="V",1,IF(H77="V",0,))))))))))))) -> 0 | U77: =IF(S77="R",0,IF(I77="V",0,IF(J77="V",1,IF(K77="V",2,IF(L77="V",2,IF(M77="V",0,IF(N77="V",1,IF(O77="V",2,IF(P77="V",3,IF(Q77="V",3,IF(R77="V",3,IF(G77="V",0,IF(H77="V",1,""))))))))))))) -> 2 | V77: =IF(S77="R","R",C78) -> V | W77: 2 | X77: 0 | AE77: =IF(V77="V",10,IF(V77="R",-10,0)) -> 10
A78: Risultato 2 | B78: =+'Dati Giocatore1'!C77 -> 2 | C78: =LEFT(B79,1) -> V | D78: =IF(C78="P","KO","OK") -> OK | W78: 0 | X78: 0
A79: Vinto o Perso | B79: =+'Dati Giocatore1'!C78 -> V | W79: 0 | X79: 0
A80: Data | B80: =+'Dati Giocatore1'!C79 -> 11.06.22 | W80: 0 | X80: 0
A81: Torneo | B81: =+'Dati Giocatore1'!C80 -> LON | W81: 0 | X81: 0
A82: Avversario 1 | B82: =+'Dati Giocatore1'!C81 -> Halys Q. | W82: 0 | X82: 0 | Y82: =IFERROR(+W82-X82,"") -> 0 | Z82: =IFERROR(+W82+X82,"") -> 0 | AA82: =IF(OR(Y82=1,Y82=-1),IF(OR(Z82=5,Z82=3),"OK",""),"") ->  | AB82: =IF(S82="","",IF(W82>0,1,0)) -> 
A83: Avversario 2 | B83: =+'Dati Giocatore1'!C82 -> Tabilo A. | G83: =IF(AND(C83="1",E83="0"),"V","") ->  | H83: =IF(AND(C83="0",E83="1"),"V","") ->  | I83: =IF(AND(C83="2",E83="0"),"V","") ->  | J83: =IF(AND(C83="2",E83="1"),"V","") ->  | K83: =IF(AND(C83="0",E83="2"),"V","") ->  | L83: =IF(AND(C83="1",E83="2"),"V","") ->  | M83: =IF(AND(C83="3",E83="0"),"V","") ->  | N83: =IF(AND(C83="3",E83="1"),"V","") ->  | O83: =IF(AND(C83="3",E83="2"),"V","") ->  | P83: =IF(AND(C83="0",E83="3"),"V","") ->  | Q83: =IF(AND(C83="1",E83="3"),"V","") ->  | R83: =IF(AND(C83="2",E83="3"),"V","") ->  | W83: 0 | X83: 0 | AE83: =+AE84 -> 10
A84: Risultato 1 | B84: =+'Dati Giocatore1'!C83 -> 2 | C84: =LEFT(B84,1) -> 2 | D84: =+B85 -> 0 | E84: =LEFT(D84,1) -> 0 | F84: =IF(AND(C84="0",E84="0"),"R","") ->  | I84: V | S84: =IF(B85=0,"",IF(OR(I84="V",J84="V",K84="V",L84="V",M84="V",N84="V",O84="V",P84="V",Q84="V",R84="V",G84="V",H84="V"),"V","R")) -> V | T84: =IF(F84="R",0,IF(I84="V",2,IF(J84="V",2,IF(K84="V",0,IF(L84="V",1,IF(M84="V",3,IF(N84="V",3,IF(O84="V",3,IF(P84="V",0,IF(Q84="V",1,IF(R84="V",2,IF(G84="V",1,IF(H84="V",0,))))))))))))) -> 2 | U84: =IF(S84="R",0,IF(I84="V",0,IF(J84="V",1,IF(K84="V",2,IF(L84="V",2,IF(M84="V",0,IF(N84="V",1,IF(O84="V",2,IF(P84="V",3,IF(Q84="V",3,IF(R84="V",3,IF(G84="V",0,IF(H84="V",1,""))))))))))))) -> 0 | V84: =IF(S84="R","R",C85) -> V | W84: 2 | X84: 0 | AE84: =IF(V84="V",10,IF(V84="R",-10,0)) -> 10
A85: Risultato 2 | B85: =+'Dati Giocatore1'!C84 -> 0 | C85: =LEFT(B86,1) -> V | D85: =IF(C85="P","KO","OK") -> OK | W85: 0 | X85: 0
A86: Vinto o Perso | B86: =+'Dati Giocatore1'!C85 -> V | W86: 0 | X86: 0
A87: Data | B87: =+'Dati Giocatore1'!C86 -> 05.06.22 | W87: 0 | X87: 0
A88: Torneo | B88: =+'Dati Giocatore1'!C87 -> STU | W88: 0 | X88: 0 | Y88: =IFERROR(+W88-X88,"") -> 0 | Z88: =IFERROR(+W88+X88,"") -> 0 | AA88: =IF(OR(Y88=1,Y88=-1),IF(OR(Z88=5,Z88=3),"OK",""),"") ->  | AB88: =IF(S88="","",IF(W88>0,1,0)) -> 
A89: Avversario 1 | B89: =+'Dati Giocatore1'!C88 -> Halys Q. | W89: 0 | X89: 0
A90: Avversario 2 | B90: =+'Dati Giocatore1'!C89 -> Albot R. | G90: =IF(AND(C90="1",E90="0"),"V","") ->  | H90: =IF(AND(C90="0",E90="1"),"V","") ->  | I90: =IF(AND(C90="2",E90="0"),"V","") ->  | J90: =IF(AND(C90="2",E90="1"),"V","") ->  | K90: =IF(AND(C90="0",E90="2"),"V","") ->  | L90: =IF(AND(C90="1",E90="2"),"V","") ->  | M90: =IF(AND(C90="3",E90="0"),"V","") ->  | N90: =IF(AND(C90="3",E90="1"),"V","") ->  | O90: =IF(AND(C90="3",E90="2"),"V","") ->  | P90: =IF(AND(C90="0",E90="3"),"V","") ->  | Q90: =IF(AND(C90="1",E90="3"),"V","") ->  | R90: =IF(AND(C90="2",E90="3"),"V","") ->  | W90: 0 | X90: 0 | AA90: =IF(OR(Y90=1,Y90=-1),IF(OR(Z90=5,Z90=3),"OK",""),"") ->  | AE90: =+AE91 -> -10 | AH90: =IF(AC90="P",B86,"") -> 
A91: Risultato 1 | B91: =+'Dati Giocatore1'!C90 -> 0 | C91: =LEFT(B91,1) -> 0 | D91: =+B92 -> 0 | E91: =LEFT(D91,1) -> 0 | F91: =IF(AND(C91="0",E91="0"),"R","") -> R | S91: =IF(B92=0,"",IF(OR(I91="V",J91="V",K91="V",L91="V",M91="V",N91="V",O91="V",P91="V",Q91="V",R91="V",G91="V",H91="V"),"V","R")) -> R | T91: =IF(F91="R",0,IF(I91="V",2,IF(J91="V",2,IF(K91="V",0,IF(L91="V",1,IF(M91="V",3,IF(N91="V",3,IF(O91="V",3,IF(P91="V",0,IF(Q91="V",1,IF(R91="V",2,IF(G91="V",1,IF(H91="V",0,))))))))))))) -> 0 | U91: =IF(S91="R",0,IF(I91="V",0,IF(J91="V",1,IF(K91="V",2,IF(L91="V",2,IF(M91="V",0,IF(N91="V",1,IF(O91="V",2,IF(P91="V",3,IF(Q91="V",3,IF(R91="V",3,IF(G91="V",0,IF(H91="V",1,""))))))))))))) -> 0 | V91: =IF(S91="R","R",C92) -> R | W91: 0 | X91: 0 | AC91: P | AE91: =IF(V91="V",10,IF(V91="R",-10,0)) -> -10 | AH91: 05.06.22
A92: Risultato 2 | B92: =+'Dati Giocatore1'!C91 -> 0 | C92: =LEFT(B93,1) -> P | D92: =IF(C92="P","KO","OK") -> KO | W92: =IF(S92="R",0,IF(V92="V",IF(T92>U92,T92,U92),IF(V92="P",IF(T92<U92,T92,U92),0))) -> 0 | X92: =IF(S92="R",0,IF(V92="V",IF(T92>U92,U92,T92),IF(V92="P",IF(T92<U92,U92,T92),0))) -> 0 | AC92: =IF(S92="R",B94,"") -> 
A93: Vinto o Perso | B93: =+'Dati Giocatore1'!C92 -> P | W93: 0 | X93: 0
A94: Data | B94: =+'Dati Giocatore1'!C93 -> 00:00:00 | W94: 0 | X94: 0 | Y94: =IFERROR(+W94-X94,"") -> 0 | Z94: =IFERROR(+W94+X94,"") -> 0 | AA94: =IF(OR(Y94=1,Y94=-1),IF(OR(Z94=5,Z94=3),"OK",""),"") ->  | AB94: =IF(S94="","",IF(W94>0,1,0)) -> 
A95: Torneo | B95: =+'Dati Giocatore1'!C94 -> 0 | W95: 0 | X95: 0
A96: Avversario 1 | B96: =+'Dati Giocatore1'!C95 -> 00:00:00 | W96: 0 | X96: 0 | AA96: =IF(OR(Y96=1,Y96=-1),IF(OR(Z96=5,Z96=3),"OK",""),"") -> 
A97: Avversario 2 | B97: =+'Dati Giocatore1'!C96 -> 0 | G97: =IF(AND(C97="1",E97="0"),"V","") ->  | H97: =IF(AND(C97="0",E97="1"),"V","") ->  | I97: =IF(AND(C97="2",E97="0"),"V","") ->  | J97: =IF(AND(C97="2",E97="1"),"V","") ->  | K97: =IF(AND(C97="0",E97="2"),"V","") ->  | L97: =IF(AND(C97="1",E97="2"),"V","") ->  | M97: =IF(AND(C97="3",E97="0"),"V","") ->  | N97: =IF(AND(C97="3",E97="1"),"V","") ->  | O97: =IF(AND(C97="3",E97="2"),"V","") ->  | P97: =IF(AND(C97="0",E97="3"),"V","") ->  | Q97: =IF(AND(C97="1",E97="3"),"V","") ->  | R97: =IF(AND(C97="2",E97="3"),"V","") ->  | W97: 0 | X97: 0 | AE97: =+AE98 -> 0
A98: Risultato 1 | B98: =+'Dati Giocatore1'!C97 -> 0 | C98: =LEFT(B98,1) -> 0 | D98: =+B99 -> 0 | E98: =LEFT(D98,1) -> 0 | F98: =IF(AND(C98="0",E98="0"),"R","") -> R | S98: =IF(B99=0,"",IF(OR(I98="V",J98="V",K98="V",L98="V",M98="V",N98="V",O98="V",P98="V",Q98="V",R98="V",G98="V",H98="V"),"V","R")) ->  | T98: =IF(F98="R",0,IF(I98="V",2,IF(J98="V",2,IF(K98="V",0,IF(L98="V",1,IF(M98="V",3,IF(N98="V",3,IF(O98="V",3,IF(P98="V",0,IF(Q98="V",1,IF(R98="V",2,IF(G98="V",1,IF(H98="V",0,))))))))))))) -> 0 | U98: =IF(S98="R",0,IF(I98="V",0,IF(J98="V",1,IF(K98="V",2,IF(L98="V",2,IF(M98="V",0,IF(N98="V",1,IF(O98="V",2,IF(P98="V",3,IF(Q98="V",3,IF(R98="V",3,IF(G98="V",0,IF(H98="V",1,""))))))))))))) ->  | V98: =IF(S98="R","R",C99) -> 0 | W98: 0 | X98: 0 | AE98: =IF(V98="V",10,IF(V98="R",-10,0)) -> 0
A99: Risultato 2 | B99: =+'Dati Giocatore1'!C98 -> 0 | C99: =LEFT(B100,1) -> 0 | D99: =IF(C99="P","KO","OK") -> OK | W99: 0 | X99: 0
A100: Vinto o Perso | B100: =+'Dati Giocatore1'!C99 -> 00:00:00 | W100: 0 | X100: 0 | Y100: =IFERROR(+W100-X100,"") -> 0 | Z100: =IFERROR(+W100+X100,"") -> 0 | AA100: =IF(OR(Y100=1,Y100=-1),IF(OR(Z100=5,Z100=3),"OK",""),"") ->  | AB100: =IF(S100="","",IF(W100>0,1,0)) -> 
A101: Data | B101: =+'Dati Giocatore1'!C100 -> 0 | W101: 0 | X101: 0
A102: Torneo | B102: =+'Dati Giocatore1'!C101 -> 00:00:00 | W102: 0 | X102: 0 | AA102: =IF(OR(Y102=1,Y102=-1),IF(OR(Z102=5,Z102=3),"OK",""),"") -> 
A103: Avversario 1 | B103: =+'Dati Giocatore1'!C102 -> 0 | W103: 0 | X103: 0
A104: Avversario 2 | B104: =+'Dati Giocatore1'!C103 -> 0 | G104: =IF(AND(C104="1",E104="0"),"V","") ->  | H104: =IF(AND(C104="0",E104="1"),"V","") ->  | I104: =IF(AND(C104="2",E104="0"),"V","") ->  | J104: =IF(AND(C104="2",E104="1"),"V","") ->  | K104: =IF(AND(C104="0",E104="2"),"V","") ->  | L104: =IF(AND(C104="1",E104="2"),"V","") ->  | M104: =IF(AND(C104="3",E104="0"),"V","") ->  | N104: =IF(AND(C104="3",E104="1"),"V","") ->  | O104: =IF(AND(C104="3",E104="2"),"V","") ->  | P104: =IF(AND(C104="0",E104="3"),"V","") ->  | Q104: =IF(AND(C104="1",E104="3"),"V","") ->  | R104: =IF(AND(C104="2",E104="3"),"V","") ->  | W104: 0 | X104: 0 | AE104: =+AE105 -> 0
A105: Risultato 1 | B105: =+'Dati Giocatore1'!C104 -> 0 | C105: =LEFT(B105,1) -> 0 | D105: =+B106 -> 0 | E105: =LEFT(D105,1) -> 0 | F105: =IF(AND(C105="0",E105="0"),"R","") -> R | S105: =IF(B106=0,"",IF(OR(I105="V",J105="V",K105="V",L105="V",M105="V",N105="V",O105="V",P105="V",Q105="V",R105="V",G105="V",H105="V"),"V","R")) ->  | T105: =IF(F105="R",0,IF(I105="V",2,IF(J105="V",2,IF(K105="V",0,IF(L105="V",1,IF(M105="V",3,IF(N105="V",3,IF(O105="V",3,IF(P105="V",0,IF(Q105="V",1,IF(R105="V",2,IF(G105="V",1,IF(H105="V",0,))))))))))))) -> 0 | U105: =IF(S105="R",0,IF(I105="V",0,IF(J105="V",1,IF(K105="V",2,IF(L105="V",2,IF(M105="V",0,IF(N105="V",1,IF(O105="V",2,IF(P105="V",3,IF(Q105="V",3,IF(R105="V",3,IF(G105="V",0,IF(H105="V",1,""))))))))))))) ->  | V105: =IF(S105="R","R",C106) -> 0 | W105: 0 | X105: 0 | AE105: =IF(V105="V",10,IF(V105="R",-10,0)) -> 0
A106: Risultato 2 | B106: =+'Dati Giocatore1'!C105 -> 00:00:00 | C106: =LEFT(B107,1) -> 0 | D106: =IF(C106="P","KO","OK") -> OK | W106: 0 | X106: 0 | Y106: =IFERROR(+W106-X106,"") -> 0 | Z106: =IFERROR(+W106+X106,"") -> 0 | AA106: =IF(OR(Y106=1,Y106=-1),IF(OR(Z106=5,Z106=3),"OK",""),"") ->  | AB106: =IF(S106="","",IF(W106>0,1,0)) -> 
A107: Vinto o Perso | B107: =+'Dati Giocatore1'!C106 -> 0 | W107: 0 | X107: 0
A108: Data | B108: =+'Dati Giocatore1'!C107 -> 00:00:00 | W108: 0 | X108: 0 | AA108: =IF(OR(Y108=1,Y108=-1),IF(OR(Z108=5,Z108=3),"OK",""),"") -> 
A109: Torneo | B109: =+'Dati Giocatore1'!C108 -> 0 | W109: 0 | X109: 0
A110: Avversario 1 | B110: =+'Dati Giocatore1'!C109 -> 0 | W110: 0 | X110: 0
A111: Avversario 2 | B111: =+'Dati Giocatore1'!C110 -> 0 | G111: =IF(AND(C111="1",E111="0"),"V","") ->  | H111: =IF(AND(C111="0",E111="1"),"V","") ->  | I111: =IF(AND(C111="2",E111="0"),"V","") ->  | J111: =IF(AND(C111="2",E111="1"),"V","") ->  | K111: =IF(AND(C111="0",E111="2"),"V","") ->  | L111: =IF(AND(C111="1",E111="2"),"V","") ->  | M111: =IF(AND(C111="3",E111="0"),"V","") ->  | N111: =IF(AND(C111="3",E111="1"),"V","") ->  | O111: =IF(AND(C111="3",E111="2"),"V","") ->  | P111: =IF(AND(C111="0",E111="3"),"V","") ->  | Q111: =IF(AND(C111="1",E111="3"),"V","") ->  | R111: =IF(AND(C111="2",E111="3"),"V","") ->  | W111: 0 | X111: 0 | AE111: =+AE112 -> 0
A112: Risultato 1 | B112: =+'Dati Giocatore1'!C111 -> 00:00:00 | C112: =LEFT(B112,1) -> 0 | D112: =+B113 -> 0 | E112: =LEFT(D112,1) -> 0 | F112: =IF(AND(C112="0",E112="0"),"R","") -> R | S112: =IF(B113=0,"",IF(OR(I112="V",J112="V",K112="V",L112="V",M112="V",N112="V",O112="V",P112="V",Q112="V",R112="V",G112="V",H112="V"),"V","R")) ->  | T112: =IF(F112="R",0,IF(I112="V",2,IF(J112="V",2,IF(K112="V",0,IF(L112="V",1,IF(M112="V",3,IF(N112="V",3,IF(O112="V",3,IF(P112="V",0,IF(Q112="V",1,IF(R112="V",2,IF(G112="V",1,IF(H112="V",0,))))))))))))) -> 0 | U112: =IF(S112="R",0,IF(I112="V",0,IF(J112="V",1,IF(K112="V",2,IF(L112="V",2,IF(M112="V",0,IF(N112="V",1,IF(O112="V",2,IF(P112="V",3,IF(Q112="V",3,IF(R112="V",3,IF(G112="V",0,IF(H112="V",1,""))))))))))))) ->  | V112: =IF(S112="R","R",C113) -> 0 | W112: 0 | X112: 0 | Y112: =IFERROR(+W112-X112,"") -> 0 | Z112: =IFERROR(+W112+X112,"") -> 0 | AA112: =IF(OR(Y112=1,Y112=-1),IF(OR(Z112=5,Z112=3),"OK",""),"") ->  | AB112: =IF(S112="","",IF(W112>0,1,0)) ->  | AE112: =IF(V112="V",10,IF(V112="R",-10,0)) -> 0
A113: Risultato 2 | B113: =+'Dati Giocatore1'!C112 -> 0 | C113: =LEFT(B114,1) -> 0 | D113: =IF(C113="P","KO","OK") -> OK | W113: 0 | X113: 0
A114: Vinto o Perso | B114: =+'Dati Giocatore1'!C113 -> 00:00:00 | W114: 0 | X114: 0 | AA114: =IF(OR(Y114=1,Y114=-1),IF(OR(Z114=5,Z114=3),"OK",""),"") -> 
A115: Data | B115: =+'Dati Giocatore1'!C114 -> 0 | W115: 0 | X115: 0
A116: Torneo | B116: =+'Dati Giocatore1'!C115 -> 0 | W116: 0 | X116: 0
A117: Avversario 1 | B117: =+'Dati Giocatore1'!C116 -> 0 | W117: 0 | X117: 0
A118: Avversario 2 | B118: =+'Dati Giocatore1'!C117 -> 00:00:00 | G118: =IF(AND(C118="1",E118="0"),"V","") ->  | H118: =IF(AND(C118="0",E118="1"),"V","") ->  | I118: =IF(AND(C118="2",E118="0"),"V","") ->  | J118: =IF(AND(C118="2",E118="1"),"V","") ->  | K118: =IF(AND(C118="0",E118="2"),"V","") ->  | L118: =IF(AND(C118="1",E118="2"),"V","") ->  | M118: =IF(AND(C118="3",E118="0"),"V","") ->  | N118: =IF(AND(C118="3",E118="1"),"V","") ->  | O118: =IF(AND(C118="3",E118="2"),"V","") ->  | P118: =IF(AND(C118="0",E118="3"),"V","") ->  | Q118: =IF(AND(C118="1",E118="3"),"V","") ->  | R118: =IF(AND(C118="2",E118="3"),"V","") ->  | W118: 0 | X118: 0 | Y118: =IFERROR(+W118-X118,"") -> 0 | Z118: =IFERROR(+W118+X118,"") -> 0 | AA118: =IF(OR(Y118=1,Y118=-1),IF(OR(Z118=5,Z118=3),"OK",""),"") ->  | AB118: =IF(S118="","",IF(W118>0,1,0)) ->  | AE118: =+AE119 -> 0
A119: Risultato 1 | B119: =+'Dati Giocatore1'!C118 -> 0 | C119: =LEFT(B119,1) -> 0 | D119: =+B120 -> 0 | E119: =LEFT(D119,1) -> 0 | F119: =IF(AND(C119="0",E119="0"),"R","") -> R | S119: =IF(B120=0,"",IF(OR(I119="V",J119="V",K119="V",L119="V",M119="V",N119="V",O119="V",P119="V",Q119="V",R119="V",G119="V",H119="V"),"V","R")) ->  | T119: =IF(F119="R",0,IF(I119="V",2,IF(J119="V",2,IF(K119="V",0,IF(L119="V",1,IF(M119="V",3,IF(N119="V",3,IF(O119="V",3,IF(P119="V",0,IF(Q119="V",1,IF(R119="V",2,IF(G119="V",1,IF(H119="V",0,))))))))))))) -> 0 | U119: =IF(S119="R",0,IF(I119="V",0,IF(J119="V",1,IF(K119="V",2,IF(L119="V",2,IF(M119="V",0,IF(N119="V",1,IF(O119="V",2,IF(P119="V",3,IF(Q119="V",3,IF(R119="V",3,IF(G119="V",0,IF(H119="V",1,""))))))))))))) ->  | V119: =IF(S119="R","R",C120) -> 0 | W119: 0 | X119: 0 | AE119: =IF(V119="V",10,IF(V119="R",-10,0)) -> 0
A120: Risultato 2 | B120: =+'Dati Giocatore1'!C119 -> 00:00:00 | C120: =LEFT(B121,1) -> 0 | D120: =IF(C120="P","KO","OK") -> OK | W120: 0 | X120: 0 | AA120: =IF(OR(Y120=1,Y120=-1),IF(OR(Z120=5,Z120=3),"OK",""),"") -> 
A121: Vinto o Perso | B121: =+'Dati Giocatore1'!C120 -> 0 | W121: 0 | X121: 0
A122: Data | B122: =+'Dati Giocatore1'!C121 -> 0 | W122: 0 | X122: 0
A123: Torneo | B123: =+'Dati Giocatore1'!C122 -> 0 | W123: 0 | X123: 0
A124: Avversario 1 | B124: =+'Dati Giocatore1'!C123 -> 00:00:00 | W124: 0 | X124: 0 | Y124: =IFERROR(+W124-X124,"") -> 0 | Z124: =IFERROR(+W124+X124,"") -> 0 | AA124: =IF(OR(Y124=1,Y124=-1),IF(OR(Z124=5,Z124=3),"OK",""),"") ->  | AB124: =IF(S124="","",IF(W124>0,1,0)) -> 
A125: Avversario 2 | B125: =+'Dati Giocatore1'!C124 -> 0 | G125: =IF(AND(C125="1",E125="0"),"V","") ->  | H125: =IF(AND(C125="0",E125="1"),"V","") ->  | I125: =IF(AND(C125="2",E125="0"),"V","") ->  | J125: =IF(AND(C125="2",E125="1"),"V","") ->  | K125: =IF(AND(C125="0",E125="2"),"V","") ->  | L125: =IF(AND(C125="1",E125="2"),"V","") ->  | M125: =IF(AND(C125="3",E125="0"),"V","") ->  | N125: =IF(AND(C125="3",E125="1"),"V","") ->  | O125: =IF(AND(C125="3",E125="2"),"V","") ->  | P125: =IF(AND(C125="0",E125="3"),"V","") ->  | Q125: =IF(AND(C125="1",E125="3"),"V","") ->  | R125: =IF(AND(C125="2",E125="3"),"V","") ->  | W125: 0 | X125: 0 | AE125: =+AE126 -> 0
A126: Risultato 1 | B126: =+'Dati Giocatore1'!C125 -> 00:00:00 | C126: =LEFT(B126,1) -> 0 | D126: =+B127 -> 0 | E126: =LEFT(D126,1) -> 0 | F126: =IF(AND(C126="0",E126="0"),"R","") -> R | S126: =IF(B127=0,"",IF(OR(I126="V",J126="V",K126="V",L126="V",M126="V",N126="V",O126="V",P126="V",Q126="V",R126="V",G126="V",H126="V"),"V","R")) ->  | T126: =IF(F126="R",0,IF(I126="V",2,IF(J126="V",2,IF(K126="V",0,IF(L126="V",1,IF(M126="V",3,IF(N126="V",3,IF(O126="V",3,IF(P126="V",0,IF(Q126="V",1,IF(R126="V",2,IF(G126="V",1,IF(H126="V",0,))))))))))))) -> 0 | U126: =IF(S126="R",0,IF(I126="V",0,IF(J126="V",1,IF(K126="V",2,IF(L126="V",2,IF(M126="V",0,IF(N126="V",1,IF(O126="V",2,IF(P126="V",3,IF(Q126="V",3,IF(R126="V",3,IF(G126="V",0,IF(H126="V",1,""))))))))))))) ->  | V126: =IF(S126="R","R",C127) -> 0 | W126: 0 | X126: 0 | AA126: =IF(OR(Y126=1,Y126=-1),IF(OR(Z126=5,Z126=3),"OK",""),"") ->  | AE126: =IF(V126="V",10,IF(V126="R",-10,0)) -> 0
A127: Risultato 2 | B127: =+'Dati Giocatore1'!C126 -> 0 | C127: =LEFT(B128,1) -> 0 | D127: =IF(C127="P","KO","OK") -> OK | W127: 0 | X127: 0
A128: Vinto o Perso | B128: =+'Dati Giocatore1'!C127 -> 0 | W128: 0 | X128: 0
A129: Data | B129: =+'Dati Giocatore1'!C128 -> 0 | W129: 0 | X129: 0
A130: Torneo | B130: =+'Dati Giocatore1'!C129 -> 00:00:00 | W130: 0 | X130: 0 | Y130: =IFERROR(+W130-X130,"") -> 0 | Z130: =IFERROR(+W130+X130,"") -> 0 | AA130: =IF(OR(Y130=1,Y130=-1),IF(OR(Z130=5,Z130=3),"OK",""),"") ->  | AB130: =IF(S130="","",IF(W130>0,1,0)) -> 
A131: Avversario 1 | B131: =+'Dati Giocatore1'!C130 -> 0 | W131: 0 | X131: 0
A132: Avversario 2 | B132: =+'Dati Giocatore1'!C131 -> 00:00:00 | G132: =IF(AND(C132="1",E132="0"),"V","") ->  | H132: =IF(AND(C132="0",E132="1"),"V","") ->  | I132: =IF(AND(C132="2",E132="0"),"V","") ->  | J132: =IF(AND(C132="2",E132="1"),"V","") ->  | K132: =IF(AND(C132="0",E132="2"),"V","") ->  | L132: =IF(AND(C132="1",E132="2"),"V","") ->  | M132: =IF(AND(C132="3",E132="0"),"V","") ->  | N132: =IF(AND(C132="3",E132="1"),"V","") ->  | O132: =IF(AND(C132="3",E132="2"),"V","") ->  | P132: =IF(AND(C132="0",E132="3"),"V","") ->  | Q132: =IF(AND(C132="1",E132="3"),"V","") ->  | R132: =IF(AND(C132="2",E132="3"),"V","") ->  | W132: 0 | X132: 0 | AA132: =IF(OR(Y132=1,Y132=-1),IF(OR(Z132=5,Z132=3),"OK",""),"") ->  | AE132: =+AE133 -> 0
A133: Risultato 1 | B133: =+'Dati Giocatore1'!C132 -> 0 | C133: =LEFT(B133,1) -> 0 | D133: =+B134 -> 0 | E133: =LEFT(D133,1) -> 0 | F133: =IF(AND(C133="0",E133="0"),"R","") -> R | S133: =IF(B134=0,"",IF(OR(I133="V",J133="V",K133="V",L133="V",M133="V",N133="V",O133="V",P133="V",Q133="V",R133="V",G133="V",H133="V"),"V","R")) ->  | T133: =IF(F133="R",0,IF(I133="V",2,IF(J133="V",2,IF(K133="V",0,IF(L133="V",1,IF(M133="V",3,IF(N133="V",3,IF(O133="V",3,IF(P133="V",0,IF(Q133="V",1,IF(R133="V",2,IF(G133="V",1,IF(H133="V",0,))))))))))))) -> 0 | U133: =IF(S133="R",0,IF(I133="V",0,IF(J133="V",1,IF(K133="V",2,IF(L133="V",2,IF(M133="V",0,IF(N133="V",1,IF(O133="V",2,IF(P133="V",3,IF(Q133="V",3,IF(R133="V",3,IF(G133="V",0,IF(H133="V",1,""))))))))))))) ->  | V133: =IF(S133="R","R",C134) -> 0 | W133: 0 | X133: 0 | AE133: =IF(V133="V",10,IF(V133="R",-10,0)) -> 0
A134: Risultato 2 | B134: =+'Dati Giocatore1'!C133 -> 0 | C134: =LEFT(B135,1) -> 0 | D134: =IF(C134="P","KO","OK") -> OK | W134: 0 | X134: 0
A135: Vinto o Perso | B135: =+'Dati Giocatore1'!C134 -> 0 | W135: 0 | X135: 0
A136: Data | B136: =+'Dati Giocatore1'!C135 -> 00:00:00 | W136: 0 | X136: 0 | Y136: =IFERROR(+W136-X136,"") -> 0 | Z136: =IFERROR(+W136+X136,"") -> 0 | AA136: =IF(OR(Y136=1,Y136=-1),IF(OR(Z136=5,Z136=3),"OK",""),"") ->  | AB136: =IF(S136="","",IF(W136>0,1,0)) -> 
A137: Torneo | B137: =+'Dati Giocatore1'!C136 -> 0 | W137: 0 | X137: 0
A138: Avversario 1 | B138: =+'Dati Giocatore1'!C137 -> 00:00:00 | W138: 0 | X138: 0 | AA138: =IF(OR(Y138=1,Y138=-1),IF(OR(Z138=5,Z138=3),"OK",""),"") -> 
A139: Avversario 2 | B139: =+'Dati Giocatore1'!C138 -> 0 | G139: =IF(AND(C139="1",E139="0"),"V","") ->  | H139: =IF(AND(C139="0",E139="1"),"V","") ->  | I139: =IF(AND(C139="2",E139="0"),"V","") ->  | J139: =IF(AND(C139="2",E139="1"),"V","") ->  | K139: =IF(AND(C139="0",E139="2"),"V","") ->  | L139: =IF(AND(C139="1",E139="2"),"V","") ->  | M139: =IF(AND(C139="3",E139="0"),"V","") ->  | N139: =IF(AND(C139="3",E139="1"),"V","") ->  | O139: =IF(AND(C139="3",E139="2"),"V","") ->  | P139: =IF(AND(C139="0",E139="3"),"V","") ->  | Q139: =IF(AND(C139="1",E139="3"),"V","") ->  | R139: =IF(AND(C139="2",E139="3"),"V","") ->  | W139: 0 | X139: 0 | AE139: =+AE140 -> 0
A140: Risultato 1 | B140: =+'Dati Giocatore1'!C139 -> 0 | C140: =LEFT(B140,1) -> 0 | D140: =+B141 -> 0 | E140: =LEFT(D140,1) -> 0 | F140: =IF(AND(C140="0",E140="0"),"R","") -> R | S140: =IF(B141=0,"",IF(OR(I140="V",J140="V",K140="V",L140="V",M140="V",N140="V",O140="V",P140="V",Q140="V",R140="V",G140="V",H140="V"),"V","R")) ->  | T140: =IF(F140="R",0,IF(I140="V",2,IF(J140="V",2,IF(K140="V",0,IF(L140="V",1,IF(M140="V",3,IF(N140="V",3,IF(O140="V",3,IF(P140="V",0,IF(Q140="V",1,IF(R140="V",2,IF(G140="V",1,IF(H140="V",0,))))))))))))) -> 0 | U140: =IF(S140="R",0,IF(I140="V",0,IF(J140="V",1,IF(K140="V",2,IF(L140="V",2,IF(M140="V",0,IF(N140="V",1,IF(O140="V",2,IF(P140="V",3,IF(Q140="V",3,IF(R140="V",3,IF(G140="V",0,IF(H140="V",1,""))))))))))))) ->  | V140: =IF(S140="R","R",C141) -> 0 | W140: 0 | X140: 0 | AE140: =IF(V140="V",10,IF(V140="R",-10,0)) -> 0
A141: Risultato 2 | B141: =+'Dati Giocatore1'!C140 -> 0 | C141: =LEFT(B142,1) -> 0 | D141: =IF(C141="P","KO","OK") -> OK | W141: 0 | X141: 0
A142: Vinto o Perso | B142: =+'Dati Giocatore1'!C141 -> 00:00:00 | W142: 0 | X142: 0 | Y142: =IFERROR(+W142-X142,"") -> 0 | Z142: =IFERROR(+W142+X142,"") -> 0 | AA142: =IF(OR(Y142=1,Y142=-1),IF(OR(Z142=5,Z142=3),"OK",""),"") ->  | AB142: =IF(S142="","",IF(W142>0,1,0)) -> 
A143: Data | B143: =+'Dati Giocatore1'!C142 -> 0 | W143: 0 | X143: 0
A144: Torneo | B144: =+'Dati Giocatore1'!C143 -> 00:00:00 | W144: 0 | X144: 0 | AA144: =IF(OR(Y144=1,Y144=-1),IF(OR(Z144=5,Z144=3),"OK",""),"") -> 
A145: Avversario 1 | B145: =+'Dati Giocatore1'!C144 -> 0 | W145: 0 | X145: 0
A146: Avversario 2 | B146: =+'Dati Giocatore1'!C145 -> 0 | G146: =IF(AND(C146="1",E146="0"),"V","") ->  | H146: =IF(AND(C146="0",E146="1"),"V","") ->  | I146: =IF(AND(C146="2",E146="0"),"V","") ->  | J146: =IF(AND(C146="2",E146="1"),"V","") ->  | K146: =IF(AND(C146="0",E146="2"),"V","") ->  | L146: =IF(AND(C146="1",E146="2"),"V","") ->  | M146: =IF(AND(C146="3",E146="0"),"V","") ->  | N146: =IF(AND(C146="3",E146="1"),"V","") ->  | O146: =IF(AND(C146="3",E146="2"),"V","") ->  | P146: =IF(AND(C146="0",E146="3"),"V","") ->  | Q146: =IF(AND(C146="1",E146="3"),"V","") ->  | R146: =IF(AND(C146="2",E146="3"),"V","") ->  | W146: 0 | X146: 0 | AE146: =+AE147 -> 0
A147: Risultato 1 | B147: =+'Dati Giocatore1'!C146 -> 0 | C147: =LEFT(B147,1) -> 0 | D147: =+B148 -> 0 | E147: =LEFT(D147,1) -> 0 | F147: =IF(AND(C147="0",E147="0"),"R","") -> R | S147: =IF(B148=0,"",IF(OR(I147="V",J147="V",K147="V",L147="V",M147="V",N147="V",O147="V",P147="V",Q147="V",R147="V",G147="V",H147="V"),"V","R")) ->  | T147: =IF(F147="R",0,IF(I147="V",2,IF(J147="V",2,IF(K147="V",0,IF(L147="V",1,IF(M147="V",3,IF(N147="V",3,IF(O147="V",3,IF(P147="V",0,IF(Q147="V",1,IF(R147="V",2,IF(G147="V",1,IF(H147="V",0,))))))))))))) -> 0 | U147: =IF(S147="R",0,IF(I147="V",0,IF(J147="V",1,IF(K147="V",2,IF(L147="V",2,IF(M147="V",0,IF(N147="V",1,IF(O147="V",2,IF(P147="V",3,IF(Q147="V",3,IF(R147="V",3,IF(G147="V",0,IF(H147="V",1,""))))))))))))) ->  | V147: =IF(S147="R","R",C148) -> 0 | W147: 0 | X147: 0 | AE147: =IF(V147="V",10,IF(V147="R",-10,0)) -> 0
A148: Risultato 2 | B148: =+'Dati Giocatore1'!C147 -> 00:00:00 | C148: =LEFT(B149,1) -> 0 | D148: =IF(C148="P","KO","OK") -> OK | W148: 0 | X148: 0 | Y148: =IFERROR(+W148-X148,"") -> 0 | Z148: =IFERROR(+W148+X148,"") -> 0 | AA148: =IF(OR(Y148=1,Y148=-1),IF(OR(Z148=5,Z148=3),"OK",""),"") ->  | AB148: =IF(S148="","",IF(W148>0,1,0)) -> 
A149: Vinto o Perso | B149: =+'Dati Giocatore1'!C148 -> 0 | W149: 0 | X149: 0
A150: Data | B150: =+'Dati Giocatore1'!C149 -> 0 | W150: 0 | X150: 0
A151: Torneo | B151: =+'Dati Giocatore1'!C150 -> 0 | W151: 0 | X151: 0
A152: Avversario 1 | B152: =+'Dati Giocatore1'!C151 -> 0 | W152: 0 | X152: 0
A153: Avversario 2 | B153: =+'Dati Giocatore1'!C152 -> 0 | G153: =IF(AND(C153="1",E153="0"),"V","") ->  | H153: =IF(AND(C153="0",E153="1"),"V","") ->  | I153: =IF(AND(C153="2",E153="0"),"V","") ->  | J153: =IF(AND(C153="2",E153="1"),"V","") ->  | K153: =IF(AND(C153="0",E153="2"),"V","") ->  | L153: =IF(AND(C153="1",E153="2"),"V","") ->  | M153: =IF(AND(C153="3",E153="0"),"V","") ->  | N153: =IF(AND(C153="3",E153="1"),"V","") ->  | O153: =IF(AND(C153="3",E153="2"),"V","") ->  | P153: =IF(AND(C153="0",E153="3"),"V","") ->  | Q153: =IF(AND(C153="1",E153="3"),"V","") ->  | R153: =IF(AND(C153="2",E153="3"),"V","") ->  | W153: 0 | X153: 0 | AE153: =+AE154 -> 0
A154: Risultato 1 | B154: =+'Dati Giocatore1'!C153 -> 00:00:00 | C154: =LEFT(B154,1) -> 0 | D154: =+B155 -> 0 | E154: =LEFT(D154,1) -> 0 | F154: =IF(AND(C154="0",E154="0"),"R","") -> R | S154: =IF(B155=0,"",IF(OR(I154="V",J154="V",K154="V",L154="V",M154="V",N154="V",O154="V",P154="V",Q154="V",R154="V",G154="V",H154="V"),"V","R")) ->  | T154: =IF(F154="R",0,IF(I154="V",2,IF(J154="V",2,IF(K154="V",0,IF(L154="V",1,IF(M154="V",3,IF(N154="V",3,IF(O154="V",3,IF(P154="V",0,IF(Q154="V",1,IF(R154="V",2,IF(G154="V",1,IF(H154="V",0,))))))))))))) -> 0 | U154: =IF(S154="R",0,IF(I154="V",0,IF(J154="V",1,IF(K154="V",2,IF(L154="V",2,IF(M154="V",0,IF(N154="V",1,IF(O154="V",2,IF(P154="V",3,IF(Q154="V",3,IF(R154="V",3,IF(G154="V",0,IF(H154="V",1,""))))))))))))) ->  | V154: =IF(S154="R","R",C155) -> 0 | W154: 0 | X154: 0 | Y154: =IFERROR(+W154-X154,"") -> 0 | Z154: =IFERROR(+W154+X154,"") -> 0 | AA154: =IF(OR(Y154=1,Y154=-1),IF(OR(Z154=5,Z154=3),"OK",""),"") ->  | AB154: =IF(S154="","",IF(W154>0,1,0)) ->  | AE154: =IF(V154="V",10,IF(V154="R",-10,0)) -> 0 | AH154: =IF(AC154="P",B150,"") -> 
A155: Risultato 2 | B155: =+'Dati Giocatore1'!C154 -> 0 | C155: =LEFT(B156,1) -> 0 | D155: =IF(C155="P","KO","OK") -> OK | W155: 0 | X155: 0
A156: Vinto o Perso | B156: =+'Dati Giocatore1'!C155 -> 0 | W156: =IF(S156="R",0,IF(V156="V",IF(T156>U156,T156,U156),IF(V156="P",IF(T156<U156,T156,U156),0))) -> 0 | X156: =IF(S156="R",0,IF(V156="V",IF(T156>U156,U156,T156),IF(V156="P",IF(T156<U156,U156,T156),0))) -> 0 | AC156: =IF(S156="R",B158,"") -> 
A157: Data | B157: =+'Dati Giocatore1'!C156 -> 0 | W157: 0 | X157: 0
A158: Torneo | B158: =+'Dati Giocatore1'!C157 -> 0 | W158: 0 | X158: 0
A159: Avversario 1 | B159: =+'Dati Giocatore1'!C158 -> 0 | W159: 0 | X159: 0
A160: Avversario 2 | B160: =+'Dati Giocatore1'!C159 -> 00:00:00 | G160: =IF(AND(C160="1",E160="0"),"V","") ->  | H160: =IF(AND(C160="0",E160="1"),"V","") ->  | I160: =IF(AND(C160="2",E160="0"),"V","") ->  | J160: =IF(AND(C160="2",E160="1"),"V","") ->  | K160: =IF(AND(C160="0",E160="2"),"V","") ->  | L160: =IF(AND(C160="1",E160="2"),"V","") ->  | M160: =IF(AND(C160="3",E160="0"),"V","") ->  | N160: =IF(AND(C160="3",E160="1"),"V","") ->  | O160: =IF(AND(C160="3",E160="2"),"V","") ->  | P160: =IF(AND(C160="0",E160="3"),"V","") ->  | Q160: =IF(AND(C160="1",E160="3"),"V","") ->  | R160: =IF(AND(C160="2",E160="3"),"V","") ->  | W160: 0 | X160: 0 | Y160: =IFERROR(+W160-X160,"") -> 0 | Z160: =IFERROR(+W160+X160,"") -> 0 | AA160: =IF(OR(Y160=1,Y160=-1),IF(OR(Z160=5,Z160=3),"OK",""),"") ->  | AB160: =IF(S160="","",IF(W160>0,1,0)) ->  | AE160: =+AE161 -> 0
A161: Risultato 1 | B161: =+'Dati Giocatore1'!C160 -> 0 | C161: =LEFT(B161,1) -> 0 | D161: =+B162 -> 0 | E161: =LEFT(D161,1) -> 0 | F161: =IF(AND(C161="0",E161="0"),"R","") -> R | S161: =IF(B162=0,"",IF(OR(I161="V",J161="V",K161="V",L161="V",M161="V",N161="V",O161="V",P161="V",Q161="V",R161="V",G161="V",H161="V"),"V","R")) ->  | T161: =IF(F161="R",0,IF(I161="V",2,IF(J161="V",2,IF(K161="V",0,IF(L161="V",1,IF(M161="V",3,IF(N161="V",3,IF(O161="V",3,IF(P161="V",0,IF(Q161="V",1,IF(R161="V",2,IF(G161="V",1,IF(H161="V",0,))))))))))))) -> 0 | U161: =IF(S161="R",0,IF(I161="V",0,IF(J161="V",1,IF(K161="V",2,IF(L161="V",2,IF(M161="V",0,IF(N161="V",1,IF(O161="V",2,IF(P161="V",3,IF(Q161="V",3,IF(R161="V",3,IF(G161="V",0,IF(H161="V",1,""))))))))))))) ->  | V161: =IF(S161="R","R",C162) -> 0 | W161: 0 | X161: 0 | AE161: =IF(V161="V",10,IF(V161="R",-10,0)) -> 0
A162: Risultato 2 | B162: =+'Dati Giocatore1'!C161 -> 0 | C162: =LEFT(B163,1) -> 0 | D162: =IF(C162="P","KO","OK") -> OK | W162: 0 | X162: 0
A163: Vinto o Perso | B163: =+'Dati Giocatore1'!C162 -> 0 | W163: 0 | X163: 0
A164: Data | B164: =+'Dati Giocatore1'!C163 -> 0 | W164: 0 | X164: 0
A165: Torneo | B165: =+'Dati Giocatore1'!C164 -> 0 | W165: 0 | X165: 0
A166: Avversario 1 | B166: =+'Dati Giocatore1'!C165 -> 00:00:00 | W166: 0 | X166: 0 | Y166: =IFERROR(+W166-X166,"") -> 0 | Z166: =IFERROR(+W166+X166,"") -> 0 | AA166: =IF(OR(Y166=1,Y166=-1),IF(OR(Z166=5,Z166=3),"OK",""),"") ->  | AB166: =IF(S166="","",IF(W166>0,1,0)) -> 
A167: Avversario 2 | B167: =+'Dati Giocatore1'!C166 -> 0 | G167: =IF(AND(C167="1",E167="0"),"V","") ->  | H167: =IF(AND(C167="0",E167="1"),"V","") ->  | I167: =IF(AND(C167="2",E167="0"),"V","") ->  | J167: =IF(AND(C167="2",E167="1"),"V","") ->  | K167: =IF(AND(C167="0",E167="2"),"V","") ->  | L167: =IF(AND(C167="1",E167="2"),"V","") ->  | M167: =IF(AND(C167="3",E167="0"),"V","") ->  | N167: =IF(AND(C167="3",E167="1"),"V","") ->  | O167: =IF(AND(C167="3",E167="2"),"V","") ->  | P167: =IF(AND(C167="0",E167="3"),"V","") ->  | Q167: =IF(AND(C167="1",E167="3"),"V","") ->  | R167: =IF(AND(C167="2",E167="3"),"V","") ->  | W167: 0 | X167: 0 | AE167: =+AE168 -> 0
A168: Risultato 1 | B168: =+'Dati Giocatore1'!C167 -> 0 | C168: =LEFT(B168,1) -> 0 | D168: =+B169 -> 0 | E168: =LEFT(D168,1) -> 0 | F168: =IF(AND(C168="0",E168="0"),"R","") -> R | S168: =IF(B169=0,"",IF(OR(I168="V",J168="V",K168="V",L168="V",M168="V",N168="V",O168="V",P168="V",Q168="V",R168="V",G168="V",H168="V"),"V","R")) ->  | T168: =IF(F168="R",0,IF(I168="V",2,IF(J168="V",2,IF(K168="V",0,IF(L168="V",1,IF(M168="V",3,IF(N168="V",3,IF(O168="V",3,IF(P168="V",0,IF(Q168="V",1,IF(R168="V",2,IF(G168="V",1,IF(H168="V",0,))))))))))))) -> 0 | U168: =IF(S168="R",0,IF(I168="V",0,IF(J168="V",1,IF(K168="V",2,IF(L168="V",2,IF(M168="V",0,IF(N168="V",1,IF(O168="V",2,IF(P168="V",3,IF(Q168="V",3,IF(R168="V",3,IF(G168="V",0,IF(H168="V",1,""))))))))))))) ->  | V168: =IF(S168="R","R",C169) -> 0 | W168: 0 | X168: 0 | AE168: =IF(V168="V",10,IF(V168="R",-10,0)) -> 0
A169: Risultato 2 | B169: =+'Dati Giocatore1'!C168 -> 0 | C169: =LEFT(B170,1) -> 0 | D169: =IF(C169="P","KO","OK") -> OK | W169: 0 | X169: 0
A170: Vinto o Perso | B170: =+'Dati Giocatore1'!C169 -> 0 | W170: 0 | X170: 0
A171: Data | B171: =+'Dati Giocatore1'!C170 -> 0 | W171: 0 | X171: 0
A172: Torneo | B172: =+'Dati Giocatore1'!C171 -> 00:00:00 | W172: 0 | X172: 0 | Y172: =IFERROR(+W172-X172,"") -> 0 | Z172: =IFERROR(+W172+X172,"") -> 0 | AA172: =IF(OR(Y172=1,Y172=-1),IF(OR(Z172=5,Z172=3),"OK",""),"") ->  | AB172: =IF(S172="","",IF(W172>0,1,0)) -> 
A173: Avversario 1 | B173: =+'Dati Giocatore1'!C172 -> 0 | W173: 0 | X173: 0
A174: Avversario 2 | B174: =+'Dati Giocatore1'!C173 -> 0 | G174: =IF(AND(C174="1",E174="0"),"V","") ->  | H174: =IF(AND(C174="0",E174="1"),"V","") ->  | I174: =IF(AND(C174="2",E174="0"),"V","") ->  | J174: =IF(AND(C174="2",E174="1"),"V","") ->  | K174: =IF(AND(C174="0",E174="2"),"V","") ->  | L174: =IF(AND(C174="1",E174="2"),"V","") ->  | M174: =IF(AND(C174="3",E174="0"),"V","") ->  | N174: =IF(AND(C174="3",E174="1"),"V","") ->  | O174: =IF(AND(C174="3",E174="2"),"V","") ->  | P174: =IF(AND(C174="0",E174="3"),"V","") ->  | Q174: =IF(AND(C174="1",E174="3"),"V","") ->  | R174: =IF(AND(C174="2",E174="3"),"V","") ->  | W174: 0 | X174: 0 | AE174: =+AE175 -> 0
